Workbook

Sheet TL, LTL, Air & Ports
B2: ATA Truck Tonnage Index (SA) | C2: y/y | E2: DAT Spot Rate, Aggregate, Net Fuel | F2: y/y | H2: DAT Contract Rate, Aggregate, Net Fuel | I2: y/y | K2: Cass Shipment Index | L2: y/y | M2: Cass Expenditures Index | N2: y/y | O2: Cass Intermodal Price Index | P2: y/y | R2: LTL Tonnage | T2: NA Port Total Loaded Container Activity (TEUs) | U2: y/y | V2: NA Loaded Container Import Activity (TEUs) | W2: y/y | X2: NA Loaded Container Export Activity (TEUs) | Y2: y/y | Z2: East/Gulf Coast Loaded Container Import Activity (TEUs) | AA2: y/y | AB2: West Coast Loaded Container Import Activity (TEUs) | AC2: y/y | AE2: IATA International Air Freight, Volumes (FTK's) bn km | AG2: IATA International Air Freight, Capacity (AFTK's) bn km | AJ2: US BTS Truck Trade Value: Exports to Canada | AK2: y/y | AL2: US BTS Truck Trade Value: Exports to Mexico | AM2: y/y | AN2: US BTS Truck Trade Value: Imports from Canada | AO2: y/y | AP2: US BTS Truck Trade Value: Imports from Mexico | AQ2: y/y | AR2: US BTS Truck Trade Value: CN & MX total | AS2: y/y | AT2: BTS Rail Trade Value: CN & MX total | AU2: y/y
A3: 2000-01-01 | B3: 80.13243559 | K3: 1.134 | M3: 1.481
A4: 2000-02-01 | B4: 79.07272931 | K4: 1.112 | M4: 1.408
A5: 2000-03-01 | B5: 74.00357711 | K5: 1.142 | M5: 1.405
A6: 2000-04-01 | B6: 72.91809547 | K6: 1.102 | M6: 1.443
A7: 2000-05-01 | B7: 74.10285986 | K7: 1.103 | M7: 1.45
A8: 2000-06-01 | B8: 74.86790849 | K8: 1.141 | M8: 1.472
A9: 2000-07-01 | B9: 73.68206721 | K9: 1.052 | M9: 1.423
A10: 2000-08-01 | B10: 74.83122485 | K10: 1.157 | M10: 1.459
A11: 2000-09-01 | B11: 73.51878603 | K11: 1.183 | M11: 1.517
A12: 2000-10-01 | B12: 74.02821909 | K12: 1.16 | M12: 1.487
A13: 2000-11-01 | B13: 74.18201923 | K13: 1.101 | M13: 1.426
A14: 2000-12-01 | B14: 73.35101988 | K14: 0.948 | M14: 1.308
A15: 2001-01-01 | B15: 74.58212388 | C15: =B15/B3-1 -> -0.06926423331 | K15: 1.069 | L15: =K15/K3-1 -> -0.05731922399 | M15: 1.362 | N15: =M15/M3-1 -> -0.08035111411
A16: 2001-02-01 | B16: 73.69969936 | C16: -0.06795048049 | K16: 1.02 | L16: -0.08273381295 | M16: 1.275 | N16: -0.09446022727
A17: 2001-03-01 | B17: 74.27732511 | C17: 0.003699118452 | K17: 1.049 | L17: -0.08143607706 | M17: 1.274 | N17: -0.09323843416
A18: 2001-04-01 | B18: 73.80528878 | C18: 0.01216698415 | K18: 0.994 | L18: -0.09800362976 | M18: 1.231 | N18: -0.1469161469
A19: 2001-05-01 | B19: 75.32152531 | C19: 0.01644559267 | K19: 1.075 | L19: -0.02538531278 | M19: 1.278 | N19: -0.1186206897
A20: 2001-06-01 | B20: 74.41591243 | C20: -0.00603724712 | K20: 1.022 | L20: -0.1042944785 | M20: 1.234 | N20: -0.1616847826
A21: 2001-07-01 | B21: 74.84875372 | C21: 0.01583406311 | K21: 1.045 | L21: -0.006653992395 | M21: 1.227 | N21: -0.137737175
A22: 2001-08-01 | B22: 75.07909604 | C22: 0.003312403292 | K22: 0.991 | L22: -0.143474503 | M22: 1.195 | N22: -0.1809458533
A23: 2001-09-01 | B23: 74.62503467 | C23: 0.01504715606 | K23: 0.999 | L23: -0.1555367709 | M23: 1.215 | N23: -0.1990771259
A24: 2001-10-01 | B24: 74.39613062 | C24: 0.0049698822 | K24: 1.057 | L24: -0.08879310345 | M24: 1.25 | N24: -0.1593813046
A25: 2001-11-01 | B25: 74.18581026 | C25: 5.110449692e-05 | K25: 0.979 | L25: -0.110808356 | M25: 1.183 | N25: -0.1704067321
A26: 2001-12-01 | B26: 74.63003905 | C26: 0.01743696496 | K26: 0.966 | L26: 0.01898734177 | M26: 1.167 | N26: -0.1077981651
A27: 2002-01-01 | B27: 75.04657968 | C27: 0.00622744137 | K27: 0.937 | L27: -0.1234798877 | M27: 1.121 | N27: -0.1769456681
A28: 2002-02-01 | B28: 75.74926957 | C28: 0.02780975 | K28: 0.935 | L28: -0.08333333333 | M28: 1.16 | N28: -0.09019607843
A29: 2002-03-01 | B29: 75.89177292 | C29: 0.02173540587 | K29: 0.946 | L29: -0.09818875119 | M29: 1.201 | N29: -0.05729984301
A30: 2002-04-01 | B30: 76.05286276 | C30: 0.03045274952 | K30: 0.978 | L30: -0.01609657948 | M30: 1.21 | N30: -0.01705930138
A31: 2002-05-01 | B31: 76.74471186 | C31: 0.01889481854 | K31: 0.967 | L31: -0.1004651163 | M31: 1.17 | N31: -0.08450704225
A32: 2002-06-01 | B32: 77.49979369 | C32: 0.04144115371 | K32: 0.989 | L32: -0.03228962818 | M32: 1.2 | N32: -0.02755267423
A33: 2002-07-01 | B33: 77.93132356 | C33: 0.04118398355 | K33: 1.062 | L33: 0.01626794258 | M33: 1.303 | N33: 0.0619396903
A34: 2002-08-01 | B34: 78.40708474 | C34: 0.04432643541 | K34: 1.032 | L34: 0.04137235116 | M34: 1.251 | N34: 0.04686192469
A35: 2002-09-01 | B35: 79.19669012 | C35: 0.06126168612 | K35: 1.049 | L35: 0.05005005005 | M35: 1.291 | N35: 0.06255144033
A36: 2002-10-01 | B36: 78.40735731 | C36: 0.05391714137 | K36: 0.999 | L36: -0.05487228004 | M36: 1.297 | N36: 0.0376
A37: 2002-11-01 | B37: 79.36687245 | C37: 0.06983899174 | K37: 0.943 | L37: -0.03677221655 | M37: 1.235 | N37: 0.04395604396
A38: 2002-12-01 | B38: 80.51367428 | C38: 0.07883735969 | K38: 0.898 | L38: -0.07039337474 | M38: 1.2 | N38: 0.02827763496
A39: 2003-01-01 | B39: 79.20784903 | C39: 0.05544915392 | K39: 0.94 | L39: 0.003201707577 | M39: 1.207 | N39: 0.07671721677
A40: 2003-02-01 | B40: 78.92415576 | C40: 0.04191309307 | K40: 0.948 | L40: 0.01390374332 | M40: 1.205 | N40: 0.03879310345
A41: 2003-03-01 | B41: 79.60393757 | C41: 0.04891392716 | K41: 1.035 | L41: 0.09408033827 | M41: 1.285 | N41: 0.06994171524
A42: 2003-04-01 | B42: 79.4552788 | C42: 0.04473751446 | K42: 0.966 | L42: -0.01226993865 | M42: 1.257 | N42: 0.03884297521
A43: 2003-05-01 | B43: 78.79625179 | C43: 0.02673200384 | K43: 0.989 | L43: 0.02275077559 | M43: 1.249 | N43: 0.06752136752
A44: 2003-06-01 | B44: 78.82933548 | C44: 0.01715542356 | K44: 1.016 | L44: 0.02730030334 | M44: 1.306 | N44: 0.08833333333
A45: 2003-07-01 | B45: 79.6830264 | C45: 0.02247751946 | K45: 1.062 | L45: 0 | M45: 1.364 | N45: 0.04681504221
A46: 2003-08-01 | B46: 79.30841833 | C46: 0.011495563 | K46: 1.06 | L46: 0.02713178295 | M46: 1.354 | N46: 0.08233413269
A47: 2003-09-01 | B47: 79.65896096 | C47: 0.005836996978 | K47: 1.086 | L47: 0.03527168732 | M47: 1.425 | N47: 0.1037955074
A48: 2003-10-01 | B48: 80.62257951 | C48: 0.02825273389 | K48: 1.088 | L48: 0.08908908909 | M48: 1.389 | N48: 0.07093292213
A49: 2003-11-01 | B49: 82.28210891 | C49: 0.03673114952 | K49: 1.072 | L49: 0.1367974549 | M49: 1.386 | N49: 0.1222672065
A50: 2003-12-01 | B50: 82.57113178 | C50: 0.02555413747 | K50: 1.029 | L50: 0.1458797327 | M50: 1.376 | N50: 0.1466666667
A51: 2004-01-01 | B51: 82.97139367 | C51: 0.04751479417 | K51: 1.019 | L51: 0.08404255319 | M51: 1.302 | N51: 0.07870753935
A52: 2004-02-01 | B52: 84.78395576 | C52: 0.07424596362 | K52: 1.131 | L52: 0.1930379747 | M52: 1.375 | N52: 0.1410788382
A53: 2004-03-01 | B53: 84.02989906 | C53: 0.05559978093 | K53: 1.169 | L53: 0.129468599 | M53: 1.43 | N53: 0.1128404669
A54: 2004-04-01 | B54: 84.96131957 | C54: 0.06929735628 | K54: 1.142 | L54: 0.182194617 | M54: 1.432 | N54: 0.139220366
A55: 2004-05-01 | B55: 85.07345175 | C55: 0.07966368724 | K55: 1.193 | L55: 0.2062689585 | M55: 1.506 | N55: 0.2057646117
A56: 2004-06-01 | B56: 84.48424865 | C56: 0.07173615166 | K56: 1.249 | L56: 0.2293307087 | M56: 1.616 | N56: 0.2373660031
A57: 2004-07-01 | B57: 85.42694955 | C57: 0.072084651 | K57: 1.175 | L57: 0.1064030132 | M57: 1.503 | N57: 0.1019061584
A58: 2004-08-01 | B58: 84.10089008 | C58: 0.0604282856 | K58: 1.292 | L58: 0.2188679245 | M58: 1.592 | N58: 0.1757754801
A59: 2004-09-01 | B59: 84.28190063 | C59: 0.05803414462 | K59: 1.316 | L59: 0.211786372 | M59: 1.685 | N59: 0.1824561404
A60: 2004-10-01 | B60: 84.67200728 | C60: 0.0502269686 | K60: 1.298 | L60: 0.1930147059 | M60: 1.671 | N60: 0.2030237581
A61: 2004-11-01 | B61: 85.08500376 | C61: 0.03406445084 | K61: 1.292 | L61: 0.2052238806 | M61: 1.631 | N61: 0.1767676768
A62: 2004-12-01 | B62: 84.91279325 | C62: 0.02835932393 | K62: 1.232 | L62: 0.1972789116 | M62: 1.649 | N62: 0.1984011628
A63: 2005-01-01 | B63: 91.03395109 | C63: 0.09717273698 | K63: 1.229 | L63: 0.2060843965 | M63: 1.535 | N63: 0.1789554531 | O63: 100
A64: 2005-02-01 | B64: 86.92096126 | C64: 0.02520530544 | K64: 1.321 | L64: 0.1679929266 | M64: 1.599 | N64: 0.1629090909 | O64: 99.4
A65: 2005-03-01 | B65: 84.79794933 | C65: 0.009140202147 | K65: 1.303 | L65: 0.1146278871 | M65: 1.629 | N65: 0.1391608392 | O65: 101.6
A66: 2005-04-01 | B66: 87.05302153 | C66: 0.02461946179 | K66: 1.228 | L66: 0.07530647986 | M66: 1.651 | N66: 0.1529329609 | O66: 103.1
A67: 2005-05-01 | B67: 85.14113913 | C67: 0.0007956345355 | K67: 1.219 | L67: 0.02179379715 | M67: 1.706 | N67: 0.1328021248 | O67: 104.1
A68: 2005-06-01 | B68: 85.32470196 | C68: 0.009948047448 | K68: 1.233 | L68: -0.0128102482 | M68: 1.774 | N68: 0.09777227723 | O68: 104.1
A69: 2005-07-01 | B69: 85.82673486 | C69: 0.004679850027 | K69: 1.244 | L69: 0.05872340426 | M69: 1.686 | N69: 0.121756487 | O69: 104.9
A70: 2005-08-01 | B70: 85.41781077 | C70: 0.01565881986 | K70: 1.244 | L70: -0.03715170279 | M70: 1.747 | N70: 0.09736180905 | O70: 106.6
A71: 2005-09-01 | B71: 85.92127114 | C71: 0.01945103879 | K71: 1.277 | L71: -0.02963525836 | M71: 1.848 | N71: 0.09673590504 | O71: 108.9
A72: 2005-10-01 | B72: 86.6242031 | C72: 0.02305597655 | K72: 1.257 | L72: -0.03158705701 | M72: 1.883 | N72: 0.1268701376 | O72: 111.1
A73: 2005-11-01 | B73: 87.62227504 | C73: 0.02982042853 | K73: 1.237 | L73: -0.04256965944 | M73: 1.916 | N73: 0.1747394237 | O73: 113.1
A74: 2005-12-01 | B74: 87.56255692 | C74: 0.03120570601 | K74: 1.256 | L74: 0.01948051948 | M74: 1.94 | N74: 0.1764705882 | O74: 110.2
A75: 2006-01-01 | B75: 87.62143458 | C75: -0.03748619571 | K75: 1.286 | L75: 0.04637917006 | M75: 1.926 | N75: 0.254723127 | O75: 109.9 | P75: =O75/O63-1 -> 0.099
A76: 2006-02-01 | B76: 86.27572214 | C76: -0.007423285564 | K76: 1.254 | L76: -0.05071915216 | M76: 1.964 | N76: 0.2282676673 | O76: 110 | P76: 0.106639839
A77: 2006-03-01 | B77: 84.12285981 | C77: -0.007961153802 | K77: 1.28 | L77: -0.01765157329 | M77: 1.962 | N77: 0.2044198895 | O77: 111.1 | P77: 0.09350393701
A78: 2006-04-01 | B78: 85.98592602 | C78: -0.012257995 | K78: 1.288 | L78: 0.04885993485 | M78: 1.977 | N78: 0.1974560872 | O78: 110.4 | P78: 0.07080504365
A79: 2006-05-01 | B79: 85.71614207 | C79: =B79/B67-1 -> 0.006753526564 | K79: 1.329 | L79: =K79/K67-1 -> 0.09023789992 | M79: 2.034 | N79: =M79/M67-1 -> 0.1922626026 | O79: 112.1 | P79: 0.07684918348
A80: 2006-06-01 | B80: 85.71523749 | C80: 0.004577051188 | K80: 1.347 | L80: 0.09245742092 | M80: 2.187 | N80: 0.2328072153 | O80: 112.8 | P80: 0.08357348703
A81: 2006-07-01 | B81: 86.15106513 | C81: 0.003778895581 | K81: 1.289 | L81: 0.03617363344 | M81: 2.053 | N81: 0.2176749703 | O81: 114.9 | P81: 0.09532888465
A82: 2006-08-01 | B82: 82.33598973 | C82: -0.03607937276 | K82: 1.345 | L82: 0.08118971061 | M82: 2.1 | N82: 0.2020606754 | O82: 115.8 | P82: 0.08630393996
A83: 2006-09-01 | B83: 85.10792151 | C83: -0.009466219722 | K83: 1.312 | L83: 0.02740798747 | M83: 2.114 | N83: 0.1439393939 | O83: 115.5 | P83: 0.06060606061
A84: 2006-10-01 | B84: 84.26382726 | C84: -0.02724845654 | K84: 1.24 | L84: -0.01352426412 | M84: 2.002 | N84: 0.06319702602 | O84: 113.8 | P84: 0.02430243024
A85: 2006-11-01 | B85: 82.15820501 | C85: -0.06235937178 | K85: 1.208 | L85: -0.02344381568 | M85: 1.906 | N85: -0.005219206681 | O85: 112.2 | P85: -0.007957559682
A86: 2006-12-01 | B86: 85.2917305 | C86: -0.02593376093 | K86: 1.161 | L86: -0.07563694268 | M86: 1.833 | N86: -0.05515463918 | O86: 112.2 | P86: 0.01814882033
A87: 2007-01-01 | B87: 83.52466376 | C87: -0.04675534974 | K87: 1.171 | L87: -0.08942457232 | M87: 1.812 | N87: -0.05919003115 | O87: 110.8 | P87: 0.008189262966
A88: 2007-02-01 | B88: 83.90384855 | C88: -0.02749178478 | K88: 1.196 | L88: -0.04625199362 | M88: 1.828 | N88: -0.06924643585 | O88: 112.2 | P88: 0.02
A89: 2007-03-01 | B89: 85.7054554 | C89: 0.01881290764 | K89: 1.258 | L89: -0.0171875 | M89: 1.95 | N89: -0.006116207951 | O89: 112.8 | P89: 0.01530153015
A90: 2007-04-01 | B90: 83.95934807 | C90: -0.02356871697 | K90: 1.259 | L90: -0.02251552795 | M90: 1.931 | N90: -0.02326757714 | O90: 113.6 | P90: 0.02898550725
A91: 2007-05-01 | B91: 83.50954045 | C91: -0.02574312808 | K91: 1.278 | L91: -0.03837471783 | M91: 2.003 | N91: -0.01524090462 | O91: 112.9 | P91: 0.007136485281
A92: 2007-06-01 | B92: 82.71364956 | C92: -0.03501813697 | K92: 1.31 | L92: -0.0274684484 | M92: 2.056 | N92: -0.05989940558 | O92: 112.2 | P92: -0.005319148936
A93: 2007-07-01 | B93: 82.8262053 | C93: -0.03859336879 | K93: 1.259 | L93: -0.0232738557 | M93: 1.903 | N93: -0.07306380906 | O93: 116.3 | P93: 0.01218450827
A94: 2007-08-01 | B94: 83.448147 | C94: 0.01350754718 | K94: 1.271 | L94: -0.05501858736 | M94: 1.979 | N94: -0.05761904762 | O94: 116.1 | P94: 0.002590673575
A95: 2007-09-01 | B95: 82.79232849 | C95: -0.02720772615 | K95: 1.295 | L95: -0.01295731707 | M95: 2.053 | N95: -0.02885525071 | O95: 114.9 | P95: -0.005194805195
A96: 2007-10-01 | B96: 83.96453613 | C96: -0.003551834111 | K96: 1.264 | L96: 0.01935483871 | M96: 2.001 | N96: -0.0004995004995 | O96: 116.7 | P96: 0.02548330404
A97: 2007-11-01 | B97: 84.63013497 | C97: 0.03008743866 | K97: 1.256 | L97: 0.03973509934 | M97: 2.018 | N97: 0.05876180483 | O97: 117.6 | P97: 0.04812834225
A98: 2007-12-01 | B98: 84.67580997 | C98: -0.007221339341 | K98: 1.173 | L98: 0.01033591731 | M98: 1.929 | N98: 0.05237315876 | O98: 122 | P98: 0.08734402852
A99: 2008-01-01 | B99: 90.74292186 | C99: 0.08642067837 | K99: 1.129 | L99: -0.03586678053 | M99: 1.844 | N99: 0.01766004415 | O99: 119.3 | P99: 0.07671480144
A100: 2008-02-01 | B100: 89.26152187 | C100: 0.0638549174 | K100: 1.134 | L100: -0.05183946488 | M100: 1.884 | N100: 0.0306345733 | O100: 119.2 | P100: 0.0623885918
A101: 2008-03-01 | B101: 84.447418 | C101: -0.01467861524 | K101: 1.16 | L101: -0.07790143084 | M101: 1.937 | N101: -0.006666666667 | O101: 120.9 | P101: 0.07180851064
A102: 2008-04-01 | B102: 87.82880921 | C102: 0.04608731763 | K102: 1.171 | L102: -0.06989674345 | M102: 1.933 | N102: 0.001035732781 | O102: 123.3 | P102: 0.08538732394
A103: 2008-05-01 | B103: 87.49393312 | C103: 0.04771182609 | K103: 1.162 | L103: -0.09076682316 | M103: 2.023 | N103: 0.009985022466 | O103: 124.6 | P103: 0.1036315323
A104: 2008-06-01 | B104: 85.62459321 | C104: 0.03519302634 | K104: 1.166 | L104: -0.1099236641 | M104: 2.109 | N104: 0.02577821012 | O104: 125.5 | P104: 0.1185383244
A105: 2008-07-01 | B105: 85.28636803 | C105: 0.02970270959 | K105: 1.096 | L105: -0.1294678316 | M105: 2.088 | N105: 0.0972149238 | O105: 132.4 | P105: 0.1384350817
A106: 2008-08-01 | B106: 83.71131554 | C106: 0.003153677494 | K106: 1.127 | L106: -0.1132966168 | M106: 2.023 | N106: 0.02223345124 | O106: 130.9 | P106: 0.1274763135
A107: 2008-09-01 | B107: 83.03206264 | C107: 0.002895608284 | K107: 1.08 | L107: -0.166023166 | M107: 2.023 | N107: -0.01461276181 | O107: 126.5 | P107: 0.1009573542
A108: 2008-10-01 | B108: 85.27160654 | C108: 0.01556693423 | K108: 1.05 | L108: -0.1693037975 | M108: 1.967 | N108: -0.01699150425 | O108: 123.2 | P108: 0.05569837189
A109: 2008-11-01 | B109: 79.88315833 | C109: -0.05609085504 | K109: 1.028 | L109: -0.1815286624 | M109: 1.928 | N109: -0.04459861249 | O109: 117.7 | P109: 0.0008503401361
A110: 2008-12-01 | B110: 78.99288125 | C110: -0.06711395754 | K110: 0.902 | L110: -0.2310315431 | M110: 1.619 | N110: -0.1607050285 | O110: 114.9 | P110: -0.05819672131
A111: 2009-01-01 | B111: 78.27118439 | C111: -0.1374403339 | K111: 0.851 | L111: -0.2462356067 | M111: 1.424 | N111: -0.2277657267 | O111: 110.4 | P111: -0.07460184409
A112: 2009-02-01 | B112: 77.96770078 | C112: -0.1265250788 | K112: 0.938 | L112: -0.1728395062 | M112: 1.507 | N112: -0.2001061571 | O112: 109.3 | P112: -0.08305369128
A113: 2009-03-01 | B113: 76.02030899 | C113: -0.09979119795 | K113: 0.905 | L113: -0.2198275862 | M113: 1.475 | N113: -0.2385131647 | O113: 107.5 | P113: -0.1108354012
A114: 2009-04-01 | B114: 75.52662287 | C114: -0.1400700574 | K114: 0.878 | L114: -0.2502134927 | M114: 1.396 | N114: -0.2778065184 | O114: 107.5 | P114: -0.1281427413
A115: 2009-05-01 | B115: 75.8351298 | C115: -0.1332527057 | K115: 0.913 | L115: -0.2142857143 | M115: 1.43 | N115: -0.2931290163 | O115: 106.6 | P115: -0.1444622793
A116: 2009-06-01 | B116: 76.44532744 | C116: -0.1072036132 | K116: 0.933 | L116: -0.1998284734 | M116: 1.489 | N116: -0.2939781887 | O116: 102.6 | P116: -0.1824701195
A117: 2009-07-01 | B117: 77.26576482 | C117: -0.09404320278 | K117: 0.928 | L117: -0.1532846715 | M117: 1.491 | N117: -0.2859195402 | O117: 108.4 | P117: -0.1812688822
A118: 2009-08-01 | B118: 76.97395711 | C118: -0.08048324636 | K118: 0.94 | L118: -0.1659272405 | M118: 1.477 | N118: -0.2698961938 | O118: 109.4 | P118: -0.1642475172
A119: 2009-09-01 | B119: 77.7803383 | C119: -0.06324935426 | K119: 0.966 | L119: -0.1055555556 | M119: 1.556 | N119: -0.2308452793 | O119: 107.1 | P119: -0.1533596838
A120: 2009-10-01 | B120: 78.75479816 | C120: -0.07642413047 | K120: 0.921 | L120: -0.1228571429 | M120: 1.517 | N120: -0.2287747839 | O120: 108.9 | P120: -0.1160714286
A121: 2009-11-01 | B121: 78.77787971 | C121: -0.01383619084 | K121: 0.947 | L121: -0.07879377432 | M121: 1.596 | N121: -0.1721991701 | O121: 108.1 | P121: -0.08156329652
A122: 2009-12-01 | B122: 79.69529926 | C122: 0.008892168431 | K122: 0.919 | L122: 0.01884700665 | M122: 1.528 | N122: -0.05620753552 | O122: 111.3 | P122: -0.03133159269
A123: 2010-01-01 | B123: 79.32890734 | C123: 0.01351356775 | K123: 0.899 | L123: 0.05640423032 | M123: 1.462 | N123: 0.02668539326 | O123: 111.6 | P123: 0.01086956522
A124: 2010-02-01 | B124: 80.37176414 | C124: 0.0308340933 | K124: 0.93 | L124: -0.008528784648 | M124: 1.549 | N124: 0.02786994028 | O124: 113.1 | P124: 0.03476669716
A125: 2010-03-01 | B125: 83.50929905 | C125: 0.09851301788 | K125: 0.974 | L125: 0.07624309392 | M125: 1.663 | N125: 0.1274576271 | O125: 114.1 | P125: 0.06139534884
A126: 2010-04-01 | B126: 82.88175055 | C126: 0.09738456992 | K126: 0.991 | L126: 0.1287015945 | M126: 1.689 | N126: 0.2098853868 | O126: 115.5 | P126: 0.07441860465
A127: 2010-05-01 | B127: 81.14397774 | C127: 0.07000512772 | K127: 1.014 | L127: 0.1106243154 | M127: 1.784 | N127: 0.2475524476 | O127: 115.8 | P127: 0.08630393996
A128: 2010-06-01 | B128: 82.03959457 | C128: 0.07317997469 | K128: 1.106 | L128: 0.1854233655 | M128: 1.919 | N128: 0.2887844191 | O128: 107.8 | P128: 0.05068226121
A129: 2010-07-01 | B129: 81.06733208 | C129: 0.04920118585 | K129: 1.011 | L129: 0.08943965517 | M129: 1.832 | N129: 0.2287055667 | O129: 112.6 | P129: 0.03874538745
A130: 2010-08-01 | B130: 81.82960499 | C130: 0.0630816975 | K130: 1.095 | L130: 0.164893617 | M130: 1.971 | N130: 0.3344617468 | O130: 113.5 | P130: 0.03747714808
A131: 2010-09-01 | B131: 82.19149892 | C131: 0.05671305529 | K131: 1.116 | L131: 0.1552795031 | M131: 2.031 | N131: 0.3052699229 | O131: 112.3 | P131: 0.04855275444
A132: 2010-10-01 | B132: 81.92836339 | C132: 0.04029678584 | K132: 1.058 | L132: 0.1487513572 | M132: 1.977 | N132: 0.3032300593 | O132: 114.7 | P132: 0.05325987144
A133: 2010-11-01 | B133: 83.86229008 | C133: 0.06454109177 | K133: 1.088 | L133: 0.1488912355 | M133: 1.989 | N133: 0.2462406015 | O133: 114 | P133: 0.05457909343
A134: 2010-12-01 | B134: 83.56326261 | C134: 0.04853439775 | K134: 1.049 | L134: 0.1414581066 | M134: 1.912 | N134: 0.2513089005 | O134: 118.5 | P134: 0.06469002695
A135: 2011-01-01 | B135: 84.50497214 | C135: 0.06524815443 | K135: 1.01 | L135: 0.1234705228 | M135: 1.859 | N135: 0.2715458276 | O135: 121.1 | P135: 0.08512544803
A136: 2011-02-01 | B136: 84.25770182 | C136: 0.04834953814 | K136: 1.036 | L136: 0.1139784946 | M136: 2.091 | N136: 0.3499031633 | O136: 121.6 | P136: 0.07515473033
A137: 2011-03-01 | B137: 88.14709152 | C137: 0.05553623997 | K137: 1.108 | L137: 0.1375770021 | M137: 2.222 | N137: 0.3361395069 | O137: 125.9 | P137: 0.1034180543
A138: 2011-04-01 | B138: 85.05916295 | C138: 0.02627131287 | K138: 1.113 | L138: 0.1231079717 | M138: 2.279 | N138: 0.3493191237 | O138: 128.5 | P138: 0.1125541126
A139: 2011-05-01 | B139: 85.48346576 | C139: 0.0534788673 | K139: 1.111 | L139: 0.09566074951 | M139: 2.317 | N139: 0.2987668161 | O139: 129.4 | P139: =O139/O127-1 -> 0.1174438687
A140: 2011-06-01 | B140: 87.10218062 | C140: 0.06170905744 | K140: 1.165 | L140: 0.05334538879 | M140: 2.423 | N140: 0.26263679 | O140: 121.4 | P140: 0.1261595547
A141: 2011-07-01 | B141: 83.14447479 | C141: 0.02562243823 | K141: 1.122 | L141: 0.1097922849 | M141: 2.373 | N141: 0.2953056769 | O141: 127.3 | P141: 0.1305506217
A142: 2011-08-01 | B142: 87.93992746 | C142: 0.07467129373 | K142: 1.143 | L142: 0.04383561644 | M142: 2.282 | N142: 0.1577879249 | O142: 126.2 | P142: 0.1118942731
A143: 2011-09-01 | B143: 88.15099959 | C143: =B143/B131-1 -> 0.07250750673 | K143: 1.2 | L143: =K143/K131-1 -> 0.0752688172 | M143: 2.338 | N143: =M143/M131-1 -> 0.1511570655 | O143: 122.8 | P143: 0.09349955476
A144: 2011-10-01 | B144: 86.14210353 | C144: 0.0514320067 | K144: 1.081 | L144: 0.02173913043 | M144: 2.295 | N144: 0.1608497724 | O144: 125.5 | P144: 0.0941586748
A145: 2011-11-01 | B145: 88.92293115 | C145: 0.06034465632 | K145: 1.056 | L145: -0.02941176471 | M145: 2.268 | N145: 0.1402714932 | O145: 121.9 | P145: 0.06929824561
A146: 2011-12-01 | B146: 89.57935317 | C146: 0.07199444309 | K146: 1.056 | L146: 0.006673021926 | M146: 2.272 | N146: 0.1882845188 | O146: 128.5 | P146: 0.08438818565
A147: 2012-01-01 | B147: 88.84556525 | C147: 0.05136494344 | K147: 1.046 | L147: 0.03564356436 | M147: 2.269 | N147: 0.2205486821 | O147: 129.9 | P147: 0.07266721718
A148: 2012-02-01 | B148: 92.72612888 | C148: 0.1005062668 | K148: 1.072 | L148: 0.03474903475 | M148: 2.295 | N148: 0.09756097561 | O148: 124.8 | P148: 0.02631578947
A149: 2012-03-01 | B149: 89.48807833 | C149: 0.01521305791 | K149: 1.094 | L149: -0.01263537906 | M149: 2.317 | N149: 0.04275427543 | O149: 130.8 | P149: 0.0389197776
A150: 2012-04-01 | B150: 87.75273043 | C150: 0.03166698784 | K150: 1.115 | L150: 0.001796945193 | M150: 2.395 | N150: 0.05089951733 | O150: 134.6 | P150: 0.04747081712
A151: 2012-05-01 | B151: 89.53127665 | C151: 0.04735197443 | K151: 1.135 | L151: 0.02160216022 | M151: 2.447 | N151: 0.05610703496 | O151: 130.5 | P151: 0.008500772798
A152: 2012-06-01 | B152: 89.27728055 | C152: 0.02497181949 | K152: 1.15 | L152: -0.01287553648 | M152: 2.444 | N152: 0.008666941808 | O152: 122.5 | P152: 0.009060955519
A153: 2012-07-01 | B153: 88.75435959 | C153: 0.06747152848 | K153: 1.142 | L153: 0.01782531194 | M153: 2.394 | N153: 0.008849557522 | O153: 125 | P153: -0.01806755695
A154: 2012-08-01 | B154: 90.31763459 | C154: 0.02703785646 | K154: 1.13 | L154: -0.0113735783 | M154: 2.368 | N154: 0.03768624014 | O154: 125.1 | P154: -0.008716323296
A155: 2012-09-01 | B155: 85.51870772 | C155: -0.02986116866 | K155: 1.155 | L155: -0.0375 | M155: 2.447 | N155: 0.04662104363 | O155: 125.3 | P155: 0.02035830619
A156: 2012-10-01 | B156: 89.15071648 | C156: 0.03492616068 | K156: 1.139 | L156: 0.05365402405 | M156: 2.487 | N156: 0.08366013072 | O156: 129.7 | P156: 0.03346613546
A157: 2012-11-01 | B157: 89.31392846 | C157: 0.004397035762 | K157: 1.093 | L157: 0.03503787879 | M157: 2.342 | N157: 0.03262786596 | O157: 126.5 | P157: 0.03773584906
A158: 2012-12-01 | B158: 85.5343398 | C158: -0.04515564381 | K158: 1.071 | L158: 0.01420454545 | M158: 2.364 | N158: 0.04049295775 | O158: 131.7 | P158: 0.02490272374
A159: 2013-01-01 | B159: 95.21649819 | C159: 0.07170794536 | K159: 1.02 | L159: -0.02485659656 | M159: 2.233 | N159: -0.01586602027 | O159: 130.9 | P159: 0.007698229407
A160: 2013-02-01 | B160: 92.2972691 | C160: -0.004625015394 | K160: 1.077 | L160: 0.004664179104 | M160: 2.2373 | N160: -0.0251416122 | O160: 130.3 | P160: 0.04407051282
A161: 2013-03-01 | B161: 91.72329616 | C161: 0.024977828 | K161: 1.14 | L161: 0.04204753199 | M161: 2.42 | N161: 0.04445403539 | O161: 133 | P161: 0.01681957187
A162: 2013-04-01 | B162: 93.85540702 | C162: 0.069544008 | K162: 1.1 | L162: -0.0134529148 | M162: 2.382 | N162: -0.005427974948 | O162: 134.9 | P162: 0.002228826152
A163: 2013-05-01 | B163: 94.91506913 | C163: 0.06013309185 | K163: 1.132 | L163: -0.002643171806 | M163: 2.383 | N163: -0.02615447487 | O163: 129.8 | P163: -0.005363984674
A164: 2013-06-01 | B164: 92.4814378 | C164: 0.03588995128 | K164: 1.133 | L164: -0.0147826087 | M164: 2.463 | N164: 0.007774140753 | O164: 121.9 | P164: -0.004897959184
A165: 2013-07-01 | B165: 95.09796169 | C165: 0.07147369584 | K165: 1.107 | L165: -0.03064798599 | M165: 2.484 | N165: 0.03759398496 | O165: 126 | P165: 0.008
A166: 2013-08-01 | B166: 94.56036289 | C166: 0.0469756357 | K166: 1.126 | L166: -0.003539823009 | M166: 2.448 | N166: 0.03378378378 | O166: 126.2 | P166: 0.008792965627
A167: 2013-09-01 | B167: 94.21519202 | C167: 0.1016910163 | K167: 1.156 | L167: 0.0008658008658 | M167: 2.575 | N167: 0.05230894973 | O167: 124.7 | P167: -0.004788507582
A168: 2013-10-01 | B168: 95.62467364 | C168: 0.07261811702 | K168: 1.116 | L168: -0.02019315189 | M168: 2.508 | N168: 0.008443908323 | O168: 129.2 | P168: -0.003855050116
A169: 2013-11-01 | B169: 96.85073002 | C169: 0.08438551182 | K169: 1.105 | L169: 0.010978957 | M169: 2.524 | N169: 0.07771135781 | O169: 124.7 | P169: -0.01422924901
A170: 2013-12-01 | B170: 94.47532455 | C170: 0.1045309377 | K170: 1.037 | L170: -0.03174603175 | M170: 2.387 | N170: 0.00972927242 | O170: 130.4 | P170: -0.009870918755
A171: 2014-01-01 | B171: 95.96606329 | C171: 0.007872218696 | K171: 1 | L171: -0.01960784314 | M171: 2.265 | N171: 0.01433049709 | O171: 133.2 | P171: 0.01757066463
A172: 2014-02-01 | B172: 95.4533119 | C172: 0.03419432478 | K172: 1.073 | L172: -0.003714020427 | M172: 2.419 | N172: 0.08121396326 | O172: 132.1 | P172: 0.01381427475
A173: 2014-03-01 | B173: 95.11048911 | C173: 0.03692838231 | K173: 1.144 | L173: 0.00350877193 | M173: 2.549 | N173: 0.05330578512 | O173: 135.4 | P173: 0.01804511278
A174: 2014-04-01 | B174: 96.98981894 | C174: 0.03339617842 | K174: 1.161 | L174: 0.05545454545 | M174: 2.621 | N174: 0.1003358522 | O174: 136.8 | P174: 0.01408450704
A175: 2014-05-01 | B175: 95.93113993 | C175: 0.01070505252 | K175: 1.173 | L175: 0.03621908127 | M175: 2.649 | N175: 0.1116240034 | O175: 133.1 | P175: 0.02542372881
A176: 2014-06-01 | B176: 97.09578104 | C176: 0.04989480422 | K176: 1.201 | L176: 0.06001765225 | M176: 2.76 | N176: 0.1205846529 | O176: 126.6 | P176: 0.0385561936
A177: 2014-07-01 | B177: 97.46977357 | C177: 0.02494072263 | K177: 1.154 | L177: 0.04245709124 | M177: 2.651 | N177: 0.06723027375 | O177: 130.4 | P177: 0.03492063492
A178: 2014-08-01 | B178: 97.44678741 | C178: 0.03052467683 | K178: 1.181 | L178: 0.04884547069 | M178: 2.644 | N178: 0.08006535948 | O178: 130.6 | P178: 0.03486529319
A179: 2014-09-01 | B179: 99.44238697 | C179: 0.05548144448 | K179: 1.164 | L179: 0.006920415225 | M179: 2.666 | N179: 0.03533980583 | O179: 128 | P179: 0.02646351243
A180: 2014-10-01 | B180: 100.0365343 | C180: 0.04613726223 | K180: 1.153 | L180: 0.03315412186 | M180: 2.668 | N180: 0.06379585327 | O180: 134.3 | P180: 0.03947368421
A181: 2014-11-01 | B181: 97.91030017 | C181: 0.01094023918 | K181: 1.151 | L181: 0.04162895928 | M181: 2.65 | N181: 0.0499207607 | O181: 128.5 | P181: 0.03047313553
A182: 2014-12-01 | B182: 100.3270554 | C182: 0.06193925106 | K182: 1.078 | L182: 0.03953712633 | M182: 2.473 | N182: 0.03602848764 | O182: 132.3 | P182: 0.01457055215
A183: 2015-01-01 | B183: 99.78068739 | C183: 0.03974971957 | K183: 1.027 | L183: 0.027 | M183: 2.333 | N183: 0.03002207506 | O183: 132.8 | P183: -0.003003003003
A184: 2015-02-01 | B184: 98.74130499 | C184: 0.03444608708 | K184: 1.083 | L184: 0.009319664492 | M184: 2.434 | N184: 0.006200909467 | O184: 129.7 | P184: -0.0181680545
A185: 2015-03-01 | B185: 101.0885418 | C185: 0.06285376925 | K185: 1.086 | L185: -0.0506993007 | M185: 2.459 | N185: -0.03530796391 | O185: 133.3 | P185: -0.01550960118
A186: 2015-04-01 | B186: 99.19178111 | C186: 0.02270302386 | K186: 1.132 | L186: -0.02497846684 | M186: 2.499 | N186: -0.04654711942 | O186: 134.2 | P186: -0.01900584795
A187: 2015-05-01 | B187: 97.06490142 | C187: 0.01181849284 | K187: 1.158 | L187: -0.01278772379 | M187: 2.537 | N187: -0.0422801057 | O187: 129 | P187: -0.03080390684
A188: 2015-06-01 | B188: 100.4718173 | C188: 0.03477016478 | K188: 1.16 | L188: -0.03413821815 | M188: 2.599 | N188: -0.05833333333 | O188: 123 | P188: -0.02843601896
A189: 2015-07-01 | B189: 100.9622822 | C189: 0.03583170933 | K189: 1.141 | L189: -0.01126516464 | M189: 2.482 | N189: -0.06374952848 | O189: 126.6 | P189: -0.02914110429
A190: 2015-08-01 | B190: 99.47133608 | C190: 0.02077594058 | K190: 1.127 | L190: -0.04572396274 | M190: 2.432 | N190: -0.08018154312 | O190: 128.1 | P190: -0.0191424196
A191: 2015-09-01 | B191: 101.3723302 | C191: 0.01940765215 | K191: 1.146 | L191: -0.01546391753 | M191: 2.49 | N191: -0.06601650413 | O191: 125.1 | P191: -0.02265625
A192: 2015-10-01 | B192: 99.88546227 | C192: -0.001510168372 | K192: 1.092 | L192: -0.05290546401 | M192: 2.435 | N192: -0.08733133433 | O192: 129.9 | P192: -0.03276247208
A193: 2015-11-01 | B193: 100.0188895 | C193: 0.02153592944 | K193: 1.092 | L193: -0.05125977411 | M193: 2.409 | N193: -0.09094339623 | O193: 125.3 | P193: -0.02490272374
A194: 2015-12-01 | B194: 101.7775509 | C194: 0.01445767061 | K194: 1.038 | L194: -0.03710575139 | M194: 2.345 | N194: -0.05175899717 | O194: 127.2 | P194: -0.03854875283
A195: 2016-01-01 | B195: 100.8631941 | C195: 0.01084886042 | K195: 0.974 | L195: -0.05160662123 | M195: 2.174 | N195: -0.06815259323 | O195: 129.8 | P195: -0.02259036145
A196: 2016-02-01 | B196: 106.5412904 | C196: 0.07899414931 | K196: 1.055 | L196: -0.02585410896 | M196: 2.31 | N196: -0.05094494659 | O196: 124.8 | P196: -0.03777949113
A197: 2016-03-01 | B197: 102.6803786 | C197: 0.01574695554 | K197: 1.07 | L197: -0.01473296501 | M197: 2.287 | N197: -0.06994713298 | O197: 129.2 | P197: -0.03075768942
A198: 2016-04-01 | B198: 103.1774754 | C198: 0.04018169944 | K198: 1.077 | L198: -0.04858657244 | M198: 2.292 | N198: -0.08283313325 | O198: 129.6 | P198: -0.03427719821
A199: 2016-05-01 | B199: 101.4244253 | C199: 0.04491349387 | K199: 1.091 | L199: -0.05785837651 | M199: 2.282 | N199: -0.1005124162 | O199: 126.5 | P199: -0.01937984496
A200: 2016-06-01 | B200: 103.1180979 | C200: 0.02633853572 | K200: 1.11 | L200: -0.04310344828 | M200: 2.37 | N200: -0.08811081185 | O200: 121.1 | P200: -0.01544715447
A201: 2016-07-01 | B201: 102.2758742 | C201: 0.01301072015 | K201: 1.111 | L201: -0.02629272568 | M201: 2.355 | N201: -0.05116841257 | O201: 123.5 | P201: -0.02448657188
... 36 more rows

Sheet Railroads
A1: North America Class I Rail Volumes
A2: Week ending: | B2: =C2-7 -> 2000-01-08 | C2: 2000-01-15 | D2: 2000-01-22 | E2: 2000-01-29 | F2: 2000-02-05 | G2: 2000-02-12 | H2: 2000-02-19 | I2: 2000-02-26 | J2: 2000-03-04 | K2: 2000-03-11 | L2: 2000-03-18 | M2: 2000-03-25 | N2: 2000-04-01 | O2: 2000-04-08 | P2: 2000-04-15 | Q2: 2000-04-22 | R2: 2000-04-29 | S2: 2000-05-06 | T2: 2000-05-13 | U2: 2000-05-20 | V2: 2000-05-27 | W2: 2000-06-03 | X2: 2000-06-10 | Y2: 2000-06-17 | Z2: 2000-06-24 | AA2: 2000-07-01 | AB2: 2000-07-08 | AC2: 2000-07-15 | AD2: 2000-07-22 | AE2: 2000-07-29 | AF2: 2000-08-05 | AG2: 2000-08-12 | AH2: 2000-08-19 | AI2: 2000-08-26 | AJ2: 2000-09-02 | AK2: 2000-09-09 | AL2: 2000-09-16 | AM2: 2000-09-23 | AN2: 2000-09-30 | AO2: 2000-10-07 | AP2: 2000-10-14 | AQ2: 2000-10-21 | AR2: 2000-10-28 | AS2: 2000-11-04 | AT2: 2000-11-11 | AU2: 2000-11-18 | AV2: 2000-11-25 | AW2: 2000-12-02 | AX2: 2000-12-09 | AY2: 2000-12-16 | AZ2: 2000-12-23 | BA2: 2000-12-30 | BB2: 2001-01-06 | BC2: 2001-01-13 | BD2: 2001-01-20 | BE2: 2001-01-27 | BF2: 2001-02-03 | BG2: 2001-02-10 | BH2: 2001-02-17 | BI2: 2001-02-24 | BJ2: 2001-03-03 | BK2: 2001-03-10 | BL2: 2001-03-17 | BM2: 2001-03-24 | BN2: =BO2-7 -> 2001-03-31 | BO2: 2001-04-07 | BP2: 2001-04-14 | BQ2: 2001-04-21 | BR2: 2001-04-28 | BS2: 2001-05-05 | BT2: 2001-05-12 | BU2: 2001-05-19 | BV2: 2001-05-26 | BW2: 2001-06-02 | BX2: 2001-06-09 | BY2: 2001-06-16 | BZ2: 2001-06-23 | CA2: 2001-06-30 | CB2: 2001-07-07 | CC2: 2001-07-14 | CD2: 2001-07-21 | CE2: 2001-07-28 | CF2: 2001-08-04 | CG2: 2001-08-11 | CH2: 2001-08-18 | CI2: 2001-08-25 | CJ2: 2001-09-01 | CK2: 2001-09-08 | CL2: 2001-09-15 | CM2: 2001-09-22 | CN2: 2001-09-29 | CO2: 2001-10-06 | CP2: 2001-10-13 | CQ2: 2001-10-20 | CR2: 2001-10-27 | CS2: 2001-11-03 | CT2: 2001-11-10 | CU2: 2001-11-17 | CV2: 2001-11-24 | CW2: 2001-12-01 | CX2: 2001-12-08 | CY2: 2001-12-15 | CZ2: 2001-12-22 | DA2: 2001-12-29 | DB2: 2002-01-05 | DC2: 2002-01-12 | DD2: 2002-01-19 | DE2: 2002-01-26 | DF2: 2002-02-02 | DG2: 2002-02-09 | DH2: 2002-02-16 | DI2: 2002-02-23 | DJ2: 2002-03-02 | DK2: 2002-03-09 | DL2: 2002-03-16 | DM2: 2002-03-23 | DN2: 2002-03-30 | DO2: 2002-04-06 | DP2: 2002-04-13 | DQ2: 2002-04-20 | DR2: 2002-04-27 | DS2: 2002-05-04 | DT2: 2002-05-11 | DU2: 2002-05-18 | DV2: 2002-05-25 | DW2: 2002-06-01 | DX2: 2002-06-08 | DY2: 2002-06-15 | DZ2: =EA2-7 -> 2002-06-22 | EA2: 2002-06-29 | EB2: 2002-07-06 | EC2: 2002-07-13 | ED2: 2002-07-20 | EE2: 2002-07-27 | EF2: 2002-08-03 | EG2: 2002-08-10 | EH2: 2002-08-17 | EI2: 2002-08-24 | EJ2: 2002-08-31 | EK2: 2002-09-07 | EL2: 2002-09-14 | EM2: 2002-09-21 | EN2: 2002-09-28 | EO2: 2002-10-05 | EP2: 2002-10-12 | EQ2: 2002-10-19 | ER2: 2002-10-26 | ES2: 2002-11-02 | ET2: 2002-11-09 | EU2: 2002-11-16 | EV2: 2002-11-23 | EW2: 2002-11-30 | EX2: 2002-12-07 | EY2: 2002-12-14 | EZ2: 2002-12-21 | FA2: 2002-12-28 | FB2: 2003-01-04 | FC2: 2003-01-11 | FD2: 2003-01-18 | FE2: 2003-01-25 | FF2: 2003-02-01 | FG2: 2003-02-08 | FH2: 2003-02-15 | FI2: 2003-02-22 | FJ2: 2003-03-01 | FK2: 2003-03-08 | FL2: 2003-03-15 | FM2: 2003-03-22 | FN2: 2003-03-29 | FO2: 2003-04-05 | FP2: 2003-04-12 | FQ2: 2003-04-19 | FR2: 2003-04-26 | FS2: 2003-05-03 | FT2: 2003-05-10 | FU2: 2003-05-17 | FV2: 2003-05-24 | FW2: 2003-05-31 | FX2: 2003-06-07 | FY2: 2003-06-14 | FZ2: 2003-06-21 | GA2: 2003-06-28 | GB2: 2003-07-05 | GC2: 2003-07-12 | GD2: 2003-07-19 | GE2: 2003-07-26 | GF2: 2003-08-02 | GG2: 2003-08-09 | GH2: 2003-08-16 | GI2: 2003-08-23 | GJ2: 2003-08-30 | GK2: 2003-09-06 | GL2: =GM2-7 -> 2003-09-13 | GM2: 2003-09-20 | GN2: 2003-09-27 | GO2: 2003-10-04 | GP2: 2003-10-11 | GQ2: 2003-10-18 | GR2: 2003-10-25 | GS2: 2003-11-01 | GT2: 2003-11-08 | GU2: 2003-11-15 | GV2: 2003-11-22 | GW2: 2003-11-29 | GX2: 2003-12-06 | GY2: 2003-12-13 | GZ2: 2003-12-20 | HA2: 2003-12-27 | HB2: 2004-01-03 | HC2: 2004-01-10 | HD2: 2004-01-17 | HE2: 2004-01-24 | HF2: 2004-01-31 | HG2: 2004-02-07 | HH2: 2004-02-14 | HI2: 2004-02-21 | HJ2: 2004-02-28 | HK2: 2004-03-06 | HL2: 2004-03-13 | HM2: 2004-03-20 | HN2: 2004-03-27 | HO2: 2004-04-03 | HP2: 2004-04-10 | HQ2: 2004-04-17 | HR2: 2004-04-24 | HS2: 2004-05-01 | HT2: 2004-05-08 | HU2: 2004-05-15 | HV2: 2004-05-22 | HW2: 2004-05-29 | HX2: 2004-06-05 | HY2: 2004-06-12 | HZ2: 2004-06-19 | IA2: 2004-06-26 | IB2: 2004-07-03 | IC2: 2004-07-10 | ID2: 2004-07-17 | IE2: 2004-07-24 | IF2: 2004-07-31 | IG2: 2004-08-07 | IH2: 2004-08-14 | II2: 2004-08-21 | IJ2: 2004-08-28 | IK2: 2004-09-04 | IL2: 2004-09-11 | IM2: 2004-09-18 | IN2: 2004-09-25 | IO2: 2004-10-02 | IP2: 2004-10-09 | IQ2: 2004-10-16 | IR2: 2004-10-23 | IS2: 2004-10-30 | IT2: 2004-11-06 | IU2: 2004-11-13 | IV2: 2004-11-20 | IW2: 2004-11-27 | IX2: =IY2-7 -> 2004-12-04 | IY2: 2004-12-11 | IZ2: 2004-12-18 | JA2: 2004-12-25 | JB2: 2005-01-01 | JC2: 2005-01-08 | JD2: 2005-01-15 | JE2: 2005-01-22 | JF2: 2005-01-29 | JG2: 2005-02-05 | JH2: 2005-02-12 | JI2: 2005-02-19 | JJ2: 2005-02-26 | JK2: 2005-03-05 | JL2: 2005-03-12 | JM2: 2005-03-19 | JN2: 2005-03-26 | JO2: 2005-04-02 | JP2: 2005-04-09 | JQ2: 2005-04-16 | JR2: 2005-04-23 | JS2: 2005-04-30 | JT2: 2005-05-07 | JU2: 2005-05-14 | JV2: 2005-05-21 | JW2: 2005-05-28 | JX2: 2005-06-04 | JY2: 2005-06-11 | JZ2: 2005-06-18 | KA2: 2005-06-25 | KB2: 2005-07-02 | KC2: 2005-07-09 | KD2: 2005-07-16 | KE2: 2005-07-23 | KF2: 2005-07-30 | KG2: 2005-08-06 | KH2: 2005-08-13 | KI2: 2005-08-20 | KJ2: 2005-08-27 | KK2: 2005-09-03 | KL2: 2005-09-10 | KM2: 2005-09-17 | KN2: 2005-09-24 | KO2: 2005-10-01 | KP2: 2005-10-08 | KQ2: 2005-10-15 | KR2: 2005-10-22 | KS2: 2005-10-29 | KT2: 2005-11-05 | KU2: 2005-11-12 | KV2: 2005-11-19 | KW2: 2005-11-26 | KX2: 2005-12-03 | KY2: 2005-12-10 | KZ2: 2005-12-17 | LA2: 2005-12-24 | LB2: 2005-12-31 | LC2: 2006-01-07 | LD2: 2006-01-14 | LE2: 2006-01-21 | LF2: 2006-01-28 | LG2: 2006-02-04 | LH2: 2006-02-11 | LI2: 2006-02-18 | LJ2: =LK2-7 -> 2006-02-25 | LK2: 2006-03-04 | LL2: 2006-03-11 | LM2: 2006-03-18 | LN2: 2006-03-25 | LO2: 2006-04-01 | LP2: 2006-04-08 | LQ2: 2006-04-15 | LR2: 2006-04-22 | LS2: 2006-04-29 | LT2: 2006-05-06 | LU2: 2006-05-13 | LV2: 2006-05-20 | LW2: 2006-05-27 | LX2: 2006-06-03 | LY2: 2006-06-10 | LZ2: 2006-06-17 | MA2: 2006-06-24 | MB2: 2006-07-01 | MC2: 2006-07-08 | MD2: 2006-07-15 | ME2: 2006-07-22 | MF2: 2006-07-29 | MG2: 2006-08-05 | MH2: 2006-08-12 | MI2: 2006-08-19 | MJ2: 2006-08-26 | MK2: 2006-09-02 | ML2: 2006-09-09 | MM2: 2006-09-16 | MN2: 2006-09-23 | MO2: 2006-09-30 | MP2: 2006-10-07 | MQ2: 2006-10-14 | MR2: 2006-10-21 | MS2: 2006-10-28 | MT2: 2006-11-04 | MU2: 2006-11-11 | MV2: 2006-11-18 | MW2: 2006-11-25 | MX2: 2006-12-02 | MY2: 2006-12-09 | MZ2: 2006-12-16 | NA2: 2006-12-23 | NB2: 2006-12-30 | NC2: 2007-01-06 | ND2: 2007-01-13 | NE2: 2007-01-20 | NF2: 2007-01-27 | NG2: 2007-02-03 | NH2: 2007-02-10 | NI2: 2007-02-17 | NJ2: 2007-02-24 | NK2: 2007-03-03 | NL2: 2007-03-10 | NM2: 2007-03-17 | NN2: 2007-03-24 | NO2: 2007-03-31 | NP2: 2007-04-07 | NQ2: 2007-04-14 | NR2: 2007-04-21 | NS2: 2007-04-28 | NT2: 2007-05-05 | NU2: 2007-05-12 | NV2: =NW2-7 -> 2007-05-19 | NW2: 2007-05-26 | NX2: 2007-06-02 | NY2: 2007-06-09 | NZ2: 2007-06-16 | OA2: 2007-06-23 | OB2: 2007-06-30 | OC2: 2007-07-07 | OD2: 2007-07-14 | OE2: 2007-07-21 | OF2: 2007-07-28 | OG2: 2007-08-04 | OH2: 2007-08-11 | OI2: 2007-08-18 | OJ2: 2007-08-25 | OK2: 2007-09-01 | OL2: 2007-09-08 | OM2: 2007-09-15 | ON2: 2007-09-22 | OO2: 2007-09-29 | OP2: 2007-10-06 | OQ2: 2007-10-13 | OR2: 2007-10-20 | OS2: 2007-10-27 | OT2: 2007-11-03 | OU2: 2007-11-10 | OV2: 2007-11-17 | OW2: 2007-11-24 | OX2: 2007-12-01 | OY2: 2007-12-08 | OZ2: 2007-12-15 | PA2: 2007-12-22 | PB2: 2007-12-29 | PC2: 2008-01-05 | PD2: 2008-01-12 | PE2: 2008-01-19 | PF2: 2008-01-26 | PG2: 2008-02-02 | PH2: 2008-02-09 | PI2: 2008-02-16 | PJ2: 2008-02-23 | PK2: 2008-03-01 | PL2: 2008-03-08 | PM2: 2008-03-15 | PN2: 2008-03-22 | PO2: 2008-03-29 | PP2: 2008-04-05 | PQ2: 2008-04-12 | PR2: 2008-04-19 | PS2: 2008-04-26 | PT2: 2008-05-03 | PU2: 2008-05-10 | PV2: 2008-05-17 | PW2: 2008-05-24 | PX2: 2008-05-31 | PY2: 2008-06-07 | PZ2: 2008-06-14 | QA2: 2008-06-21 | QB2: 2008-06-28 | QC2: 2008-07-05 | QD2: 2008-07-12 | QE2: 2008-07-19 | QF2: 2008-07-26 | QG2: 2008-08-02 | QH2: =QI2-7 -> 2008-08-09 | QI2: 2008-08-16 | QJ2: 2008-08-23 | QK2: 2008-08-30 | QL2: 2008-09-06 | QM2: 2008-09-13 | QN2: 2008-09-20 | QO2: 2008-09-27 | QP2: 2008-10-04 | QQ2: 2008-10-11 | QR2: 2008-10-18 | QS2: 2008-10-25 | QT2: 2008-11-01 | QU2: 2008-11-08 | QV2: 2008-11-15 | QW2: 2008-11-22 | QX2: 2008-11-29 | QY2: 2008-12-06 | QZ2: 2008-12-13 | RA2: 2008-12-20 | RB2: 2008-12-27 | RC2: 2009-01-03 | RD2: 2009-01-10 | RE2: 2009-01-17 | RF2: 2009-01-24 | RG2: 2009-01-31 | RH2: 2009-02-07 | RI2: 2009-02-14 | RJ2: 2009-02-21 | RK2: 2009-02-28 | RL2: 2009-03-07 | RM2: 2009-03-14 | RN2: 2009-03-21 | RO2: 2009-03-28 | RP2: 2009-04-04 | RQ2: 2009-04-11 | RR2: 2009-04-18 | RS2: 2009-04-25 | RT2: 2009-05-02 | RU2: 2009-05-09 | RV2: 2009-05-16 | RW2: 2009-05-23 | RX2: 2009-05-30 | RY2: 2009-06-06 | RZ2: 2009-06-13 | SA2: 2009-06-20 | SB2: 2009-06-27 | SC2: 2009-07-04 | SD2: 2009-07-11 | SE2: 2009-07-18 | SF2: 2009-07-25 | SG2: 2009-08-01 | SH2: 2009-08-08 | SI2: 2009-08-15 | SJ2: 2009-08-22 | SK2: 2009-08-29 | SL2: 2009-09-05 | SM2: 2009-09-12 | SN2: 2009-09-19 | SO2: 2009-09-26 | SP2: 2009-10-03 | SQ2: 2009-10-10 | SR2: 2009-10-17 | SS2: 2009-10-24 | ST2: =SU2-7 -> 2009-10-31 | SU2: 2009-11-07 | SV2: 2009-11-14 | SW2: 2009-11-21 | SX2: 2009-11-28 | SY2: 2009-12-05 | SZ2: 2009-12-12 | TA2: 2009-12-19 | TB2: 2009-12-26 | TC2: 2010-01-02 | TD2: 2010-01-09 | TE2: 2010-01-16 | TF2: 2010-01-23 | TG2: 2010-01-30 | TH2: 2010-02-06 | TI2: 2010-02-13 | TJ2: 2010-02-20 | TK2: 2010-02-27 | TL2: 2010-03-06 | TM2: 2010-03-13 | TN2: 2010-03-20 | TO2: 2010-03-27 | TP2: 2010-04-03 | TQ2: 2010-04-10 | TR2: 2010-04-17 | TS2: 2010-04-24 | TT2: 2010-05-01 | TU2: 2010-05-08 | TV2: 2010-05-15 | TW2: 2010-05-22 | TX2: 2010-05-29 | TY2: 2010-06-05 | TZ2: 2010-06-12 | UA2: 2010-06-19 | UB2: 2010-06-26 | UC2: 2010-07-03 | UD2: 2010-07-10 | UE2: 2010-07-17 | UF2: 2010-07-24 | UG2: 2010-07-31 | UH2: 2010-08-07 | UI2: 2010-08-14 | UJ2: 2010-08-21 | UK2: 2010-08-28 | UL2: 2010-09-04 | UM2: 2010-09-11 | UN2: 2010-09-18 | UO2: 2010-09-25 | UP2: 2010-10-02 | UQ2: 2010-10-09 | UR2: 2010-10-16 | US2: 2010-10-23 | UT2: 2010-10-30 | UU2: 2010-11-06 | UV2: 2010-11-13 | UW2: 2010-11-20 | UX2: 2010-11-27 | UY2: 2010-12-04 | UZ2: 2010-12-11 | VA2: 2010-12-18 | VB2: 2010-12-25 | VC2: 2011-01-01 | VD2: 2011-01-08 | VE2: 2011-01-15 | VF2: =VG2-7 -> 2011-01-22 | VG2: 2011-01-29 | VH2: 2011-02-05 | VI2: 2011-02-12 | VJ2: 2011-02-19 | VK2: 2011-02-26 | VL2: 2011-03-05 | VM2: 2011-03-12 | VN2: 2011-03-19 | VO2: 2011-03-26 | VP2: 2011-04-02 | VQ2: 2011-04-09 | VR2: 2011-04-16 | VS2: 2011-04-23 | VT2: 2011-04-30 | VU2: 2011-05-07 | VV2: 2011-05-14 | VW2: 2011-05-21 | VX2: 2011-05-28 | VY2: 2011-06-04 | VZ2: 2011-06-11 | WA2: 2011-06-18 | WB2: 2011-06-25 | WC2: 2011-07-02 | WD2: 2011-07-09 | WE2: 2011-07-16 | WF2: 2011-07-23 | WG2: 2011-07-30 | WH2: 2011-08-06 | WI2: 2011-08-13 | WJ2: 2011-08-20 | WK2: 2011-08-27 | WL2: 2011-09-03 | WM2: 2011-09-10 | WN2: 2011-09-17 | WO2: 2011-09-24 | WP2: 2011-10-01 | WQ2: 2011-10-08 | WR2: 2011-10-15 | WS2: 2011-10-22 | WT2: 2011-10-29 | WU2: 2011-11-05 | WV2: 2011-11-12 | WW2: 2011-11-19 | WX2: 2011-11-26 | WY2: 2011-12-03 | WZ2: 2011-12-10 | XA2: 2011-12-17 | XB2: 2011-12-24 | XC2: 2011-12-31 | XD2: 2012-01-07 | XE2: 2012-01-14 | XF2: 2012-01-21 | XG2: 2012-01-28 | XH2: 2012-02-04 | XI2: 2012-02-11 | XJ2: 2012-02-18 | XK2: 2012-02-25 | XL2: 2012-03-03 | XM2: 2012-03-10 | XN2: 2012-03-17 | XO2: 2012-03-24 | XP2: 2012-03-31 | XQ2: 2012-04-07 | XR2: =XS2-7 -> 2012-04-14 | XS2: 2012-04-21 | XT2: 2012-04-28 | XU2: 2012-05-05 | XV2: 2012-05-12 | XW2: 2012-05-19 | XX2: 2012-05-26 | XY2: 2012-06-02 | XZ2: 2012-06-09 | YA2: 2012-06-16 | YB2: 2012-06-23 | YC2: 2012-06-30 | YD2: 2012-07-07 | YE2: 2012-07-14 | YF2: 2012-07-21 | YG2: 2012-07-28 | YH2: 2012-08-04 | YI2: 2012-08-11 | YJ2: 2012-08-18 | YK2: 2012-08-25 | YL2: 2012-09-01 | YM2: 2012-09-08 | YN2: 2012-09-15 | YO2: 2012-09-22 | YP2: 2012-09-29 | YQ2: 2012-10-06 | YR2: 2012-10-13 | YS2: 2012-10-20 | YT2: 2012-10-27 | YU2: 2012-11-03 | YV2: 2012-11-10 | YW2: 2012-11-17 | YX2: 2012-11-24 | YY2: 2012-12-01 | YZ2: 2012-12-08 | ZA2: 2012-12-15 | ZB2: 2012-12-22 | ZC2: 2012-12-29 | ZD2: 2013-01-05 | ZE2: 2013-01-12 | ZF2: 2013-01-19 | ZG2: 2013-01-26 | ZH2: 2013-02-02 | ZI2: 2013-02-09 | ZJ2: 2013-02-16 | ZK2: 2013-02-23 | ZL2: 2013-03-02 | ZM2: 2013-03-09 | ZN2: 2013-03-16 | ZO2: 2013-03-23 | ZP2: 2013-03-30 | ZQ2: 2013-04-06 | ZR2: 2013-04-13 | ZS2: 2013-04-20 | ZT2: 2013-04-27 | ZU2: 2013-05-04 | ZV2: 2013-05-11 | ZW2: 2013-05-18 | ZX2: 2013-05-25 | ZY2: 2013-06-01 | ZZ2: 2013-06-08 | AAA2: 2013-06-15 | AAB2: 2013-06-22 | AAC2: 2013-06-29 | AAD2: =AAE2-7 -> 2013-07-06 | AAE2: 2013-07-13 | AAF2: 2013-07-20 | AAG2: 2013-07-27 | AAH2: 2013-08-03 | AAI2: 2013-08-10 | AAJ2: 2013-08-17 | AAK2: 2013-08-24 | AAL2: 2013-08-31 | AAM2: 2013-09-07 | AAN2: 2013-09-14 | AAO2: 2013-09-21 | AAP2: 2013-09-28 | AAQ2: 2013-10-05 | AAR2: 2013-10-12 | AAS2: 2013-10-19 | AAT2: 2013-10-26 | AAU2: 2013-11-02 | AAV2: 2013-11-09 | AAW2: 2013-11-16 | AAX2: 2013-11-23 | AAY2: 2013-11-30 | AAZ2: 2013-12-07 | ABA2: 2013-12-14 | ABB2: 2013-12-21 | ABC2: 2013-12-28 | ABD2: 2014-01-04 | ABE2: 2014-01-11 | ABF2: 2014-01-18 | ABG2: 2014-01-25 | ABH2: 2014-02-01 | ABI2: 2014-02-08 | ABJ2: 2014-02-15 | ABK2: 2014-02-22 | ABL2: 2014-03-01 | ABM2: 2014-03-08 | ABN2: 2014-03-15 | ABO2: 2014-03-22 | ABP2: 2014-03-29 | ABQ2: 2014-04-05 | ABR2: 2014-04-12 | ABS2: 2014-04-19 | ABT2: 2014-04-26 | ABU2: 2014-05-03 | ABV2: 2014-05-10 | ABW2: 2014-05-17 | ABX2: 2014-05-24 | ABY2: 2014-05-31 | ABZ2: 2014-06-07 | ACA2: 2014-06-14 | ACB2: 2014-06-21 | ACC2: 2014-06-28 | ACD2: 2014-07-05 | ACE2: 2014-07-12 | ACF2: 2014-07-19 | ACG2: 2014-07-26 | ACH2: 2014-08-02 | ACI2: 2014-08-09 | ACJ2: 2014-08-16 | ACK2: 2014-08-23 | ACL2: 2014-08-30 | ACM2: 2014-09-06 | ACN2: 2014-09-13 | ACO2: 2014-09-20 | ACP2: =ACQ2-7 -> 2014-09-27 | ACQ2: 2014-10-04 | ACR2: 2014-10-11 | ACS2: 2014-10-18 | ACT2: 2014-10-25 | ACU2: 2014-11-01 | ACV2: 2014-11-08 | ACW2: 2014-11-15 | ACX2: 2014-11-22 | ACY2: 2014-11-29 | ACZ2: 2014-12-06 | ADA2: 2014-12-13 | ADB2: 2014-12-20 | ADC2: 2014-12-27 | ADD2: 2015-01-03 | ADE2: 2015-01-10 | ADF2: 2015-01-17 | ADG2: 2015-01-24 | ADH2: 2015-01-31 | ADI2: 2015-02-07 | ADJ2: 2015-02-14 | ADK2: 2015-02-21 | ADL2: 2015-02-28 | ADM2: 2015-03-07 | ADN2: 2015-03-14 | ADO2: 2015-03-21 | ADP2: 2015-03-28 | ADQ2: 2015-04-04 | ADR2: 2015-04-11 | ADS2: 2015-04-18 | ADT2: 2015-04-25 | ADU2: 2015-05-02 | ADV2: 2015-05-09 | ADW2: 2015-05-16 | ADX2: 2015-05-23 | ADY2: 2015-05-30 | ADZ2: 2015-06-06 | AEA2: 2015-06-13 | AEB2: 2015-06-20 | AEC2: 2015-06-27 | AED2: 2015-07-04 | AEE2: 2015-07-11 | AEF2: 2015-07-18 | AEG2: 2015-07-25 | AEH2: 2015-08-01 | AEI2: 2015-08-08 | AEJ2: 2015-08-15 | AEK2: 2015-08-22 | AEL2: 2015-08-29 | AEM2: 2015-09-05 | AEN2: 2015-09-12 | AEO2: 2015-09-19 | AEP2: 2015-09-26 | AEQ2: 2015-10-03 | AER2: 2015-10-10 | AES2: 2015-10-17 | AET2: 2015-10-24 | AEU2: 2015-10-31 | AEV2: 2015-11-07 | AEW2: 2015-11-14 | AEX2: 2015-11-21 | AEY2: 2015-11-28 | AEZ2: 2015-12-05 | AFA2: 2015-12-12 | AFB2: =AFC2-7 -> 2015-12-19 | AFC2: 2015-12-26 | AFD2: 2016-01-02 | AFE2: 2016-01-09 | AFF2: 2016-01-16 | AFG2: 2016-01-23 | AFH2: 2016-01-30 | AFI2: 2016-02-06 | AFJ2: 2016-02-13 | AFK2: 2016-02-20 | AFL2: 2016-02-27 | AFM2: 2016-03-05 | AFN2: 2016-03-12 | AFO2: 2016-03-19 | AFP2: 2016-03-26 | AFQ2: 2016-04-02 | AFR2: 2016-04-09 | AFS2: 2016-04-16 | AFT2: 2016-04-23 | AFU2: 2016-04-30 | AFV2: 2016-05-07 | AFW2: 2016-05-14 | AFX2: 2016-05-21 | AFY2: 2016-05-28 | AFZ2: 2016-06-04 | AGA2: 2016-06-11 | AGB2: 2016-06-18 | AGC2: 2016-06-25 | AGD2: 2016-07-02 | AGE2: 2016-07-09 | AGF2: 2016-07-16 | AGG2: 2016-07-23 | AGH2: 2016-07-30 | AGI2: 2016-08-06 | AGJ2: 2016-08-13 | AGK2: 2016-08-20 | AGL2: 2016-08-27 | AGM2: 2016-09-03 | AGN2: 2016-09-10 | AGO2: 2016-09-17 | AGP2: 2016-09-24 | AGQ2: 2016-10-01 | AGR2: 2016-10-08 | AGS2: 2016-10-15 | AGT2: 2016-10-22 | AGU2: 2016-10-29 | AGV2: 2016-11-05 | AGW2: 2016-11-12 | AGX2: 2016-11-19 | AGY2: 2016-11-26 | AGZ2: 2016-12-03 | AHA2: 2016-12-10 | AHB2: 2016-12-17 | AHC2: 2016-12-24 | AHD2: 2016-12-31 | AHE2: 2017-01-07 | AHF2: 2017-01-14 | AHG2: 2017-01-21 | AHH2: 2017-01-28 | AHI2: 2017-02-04 | AHJ2: 2017-02-11 | AHK2: 2017-02-18 | AHL2: 2017-02-25 | AHM2: 2017-03-04 | AHN2: =AHO2-7 -> 2017-03-11 | AHO2: 2017-03-18 | AHP2: 2017-03-25 | AHQ2: 2017-04-01 | AHR2: 2017-04-08 | AHS2: 2017-04-15 | AHT2: 2017-04-22 | AHU2: 2017-04-29 | AHV2: 2017-05-06 | AHW2: 2017-05-13 | AHX2: 2017-05-20 | AHY2: 2017-05-27 | AHZ2: 2017-06-03 | AIA2: 2017-06-10 | AIB2: 2017-06-17 | AIC2: 2017-06-24 | AID2: 2017-07-01 | AIE2: =AIF2-7 -> 2017-07-08 | AIF2: 2017-07-15 | AIG2: =AIF2+7 -> 2017-07-22 | AIH2: =AIG2+7 -> 2017-07-29 | AII2: 2017-08-05 | AIJ2: 2017-08-12 | AIK2: 2017-08-19 | AIL2: 2017-08-26 | AIM2: 2017-09-02 | AIN2: 2017-09-09 | AIO2: 2017-09-16 | AIP2: 2017-09-23 | AIQ2: 2017-09-30 | AIR2: 2017-10-07 | AIS2: 2017-10-14 | AIT2: 2017-10-21 | AIU2: 2017-10-28 | AIV2: 2017-11-04 | AIW2: 2017-11-11 | AIX2: 2017-11-18 | AIY2: 2017-11-25 | AIZ2: 2017-12-02 | AJA2: 2017-12-09 | AJB2: 2017-12-16 | AJC2: 2017-12-23 | AJD2: 2017-12-30 | AJE2: 2018-01-06 | AJF2: 2018-01-13 | AJG2: 2018-01-20 | AJH2: 2018-01-27 | AJI2: 2018-02-03 | AJJ2: 2018-02-10 | AJK2: 2018-02-17 | AJL2: 2018-02-24 | AJM2: 2018-03-03 | AJN2: 2018-03-10 | AJO2: 2018-03-17 | AJP2: 2018-03-24 | AJQ2: 2018-03-31 | AJR2: 2018-04-07 | AJS2: 2018-04-14 | AJT2: 2018-04-21 | AJU2: 2018-04-28 | AJV2: 2018-05-05 | AJW2: 2018-05-12 | AJX2: 2018-05-19 | AJY2: 2018-05-26 | AJZ2: 2018-06-02 | AKA2: 2018-06-09 | AKB2: 2018-06-16 | AKC2: 2018-06-23 | AKD2: 2018-06-30 | AKE2: 2018-07-07 | AKF2: 2018-07-14 | AKG2: 2018-07-21 | AKH2: 2018-07-28 | AKI2: 2018-08-04 | AKJ2: 2018-08-11 | AKK2: 2018-08-18 | AKL2: 2018-08-25 | AKM2: 2018-09-01 | AKN2: 2018-09-08 | AKO2: 2018-09-15 | AKP2: 2018-09-22 | AKQ2: 2018-09-29 | AKR2: 2018-10-06 | AKS2: 2018-10-13 | AKT2: =AKS2+7 -> 2018-10-20 | AKU2: 2018-10-27 | AKV2: 2018-11-03 | AKW2: 2018-11-10 | AKX2: 2018-11-17 | AKY2: 2018-11-24 | AKZ2: 2018-12-01 | ALA2: 2018-12-08 | ALB2: 2018-12-15 | ALC2: 2018-12-22 | ALD2: 2018-12-29 | ALE2: =ALD2+7 -> 2019-01-05 | ALF2: =ALE2+7 -> 2019-01-12 | ALG2: =ALF2+7 -> 2019-01-19 | ALH2: =ALG2+7 -> 2019-01-26 | ALI2: =ALH2+7 -> 2019-02-02 | ALJ2: =ALI2+7 -> 2019-02-09 | ALK2: =ALJ2+7 -> 2019-02-16 | ALL2: 2019-02-23 | ALM2: 2019-03-02 | ALN2: 2019-03-09 | ALO2: 2019-03-16 | ALP2: 2019-03-23 | ALQ2: =ALP2+7 -> 2019-03-30 | ALR2: =ALQ2+7 -> 2019-04-06 | ALS2: =ALR2+7 -> 2019-04-13 | ALT2: 2019-04-20 | ALU2: 2019-04-27 | ALV2: 2019-05-04 | ALW2: 2019-05-11 | ALX2: 2019-05-18 | ALY2: 2019-05-25 | ALZ2: 2019-06-01 | AMA2: 2019-06-08 | AMB2: 2019-06-15 | AMC2: 2019-06-22 | AMD2: 2019-06-29 | AME2: 2019-07-06 | AMF2: =AME2+7 -> 2019-07-13 | AMG2: =AMF2+7 -> 2019-07-20 | AMH2: 2019-07-27 | AMI2: 2019-08-03 | AMJ2: =AMI2+7 -> 2019-08-10 | AMK2: =AMJ2+7 -> 2019-08-17 | AML2: =AMK2+7 -> 2019-08-24 | AMM2: =AML2+7 -> 2019-08-31 | AMN2: =AMM2+7 -> 2019-09-07 | AMO2: =AMN2+7 -> 2019-09-14 | AMP2: =AMO2+7 -> 2019-09-21 | AMQ2: =AMP2+7 -> 2019-09-28 | AMR2: =AMQ2+7 -> 2019-10-05
A3: Week: | B3: 2000 | C3: 2 | D3: 3 | E3: 4 | F3: 5 | G3: 6 | H3: 7 | I3: 8 | J3: 9 | K3: 10 | L3: 11 | M3: 12 | N3: 13 | O3: 14 | P3: 15 | Q3: 16 | R3: 17 | S3: 18 | T3: 19 | U3: 20 | V3: 21 | W3: 22 | X3: 23 | Y3: 24 | Z3: 25 | AA3: 26 | AB3: 27 | AC3: 28 | AD3: 29 | AE3: 30 | AF3: 31 | AG3: 32 | AH3: 33 | AI3: 34 | AJ3: 35 | AK3: 36 | AL3: 37 | AM3: 38 | AN3: 39 | AO3: 40 | AP3: 41 | AQ3: 42 | AR3: 43 | AS3: 44 | AT3: 45 | AU3: 46 | AV3: 47 | AW3: 48 | AX3: 49 | AY3: 50 | AZ3: 51 | BA3: 52 | BB3: 2001 | BC3: 2 | BD3: 3 | BE3: 4 | BF3: 5 | BG3: 6 | BH3: 7 | BI3: 8 | BJ3: 9 | BK3: 10 | BL3: 11 | BM3: 12 | BN3: 13 | BO3: 14 | BP3: 15 | BQ3: 16 | BR3: 17 | BS3: 18 | BT3: 19 | BU3: 20 | BV3: 21 | BW3: 22 | BX3: 23 | BY3: 24 | BZ3: 25 | CA3: 26 | CB3: 27 | CC3: 28 | CD3: 29 | CE3: 30 | CF3: 31 | CG3: 32 | CH3: 33 | CI3: 34 | CJ3: 35 | CK3: 36 | CL3: 37 | CM3: 38 | CN3: 39 | CO3: 40 | CP3: 41 | CQ3: 42 | CR3: 43 | CS3: 44 | CT3: 45 | CU3: 46 | CV3: 47 | CW3: 48 | CX3: 49 | CY3: 50 | CZ3: 51 | DA3: 52 | DB3: 2002 | DC3: 2 | DD3: 3 | DE3: 4 | DF3: 5 | DG3: 6 | DH3: 7 | DI3: 8 | DJ3: 9 | DK3: 10 | DL3: 11 | DM3: 12 | DN3: 13 | DO3: 14 | DP3: 15 | DQ3: 16 | DR3: 17 | DS3: 18 | DT3: 19 | DU3: 20 | DV3: 21 | DW3: 22 | DX3: 23 | DY3: 24 | DZ3: 25 | EA3: 26 | EB3: 27 | EC3: 28 | ED3: 29 | EE3: 30 | EF3: 31 | EG3: 32 | EH3: 33 | EI3: 34 | EJ3: 35 | EK3: 36 | EL3: 37 | EM3: 38 | EN3: 39 | EO3: 40 | EP3: 41 | EQ3: 42 | ER3: 43 | ES3: 44 | ET3: 45 | EU3: 46 | EV3: 47 | EW3: 48 | EX3: 49 | EY3: 50 | EZ3: 51 | FA3: 52 | FB3: 53 | FC3: 2003 | FD3: 2 | FE3: 3 | FF3: 4 | FG3: 5 | FH3: 6 | FI3: 7 | FJ3: 8 | FK3: 9 | FL3: 10 | FM3: 11 | FN3: 12 | FO3: 13 | FP3: 14 | FQ3: 15 | FR3: 16 | FS3: 17 | FT3: 18 | FU3: 19 | FV3: 20 | FW3: 21 | FX3: 22 | FY3: 23 | FZ3: 24 | GA3: 25 | GB3: 26 | GC3: 27 | GD3: 28 | GE3: 29 | GF3: 30 | GG3: 31 | GH3: 32 | GI3: 33 | GJ3: 34 | GK3: 35 | GL3: 36 | GM3: 37 | GN3: 38 | GO3: 39 | GP3: 40 | GQ3: 41 | GR3: 42 | GS3: 43 | GT3: 44 | GU3: 45 | GV3: 46 | GW3: 47 | GX3: 48 | GY3: 49 | GZ3: 50 | HA3: 51 | HB3: 52 | HC3: 2004 | HD3: 2 | HE3: 3 | HF3: 4 | HG3: 5 | HH3: 6 | HI3: 7 | HJ3: 8 | HK3: 9 | HL3: 10 | HM3: 11 | HN3: 12 | HO3: 13 | HP3: 14 | HQ3: 15 | HR3: 16 | HS3: 17 | HT3: 18 | HU3: 19 | HV3: 20 | HW3: 21 | HX3: 22 | HY3: 23 | HZ3: 24 | IA3: 25 | IB3: 26 | IC3: 27 | ID3: 28 | IE3: 29 | IF3: 30 | IG3: 31 | IH3: 32 | II3: 33 | IJ3: 34 | IK3: 35 | IL3: 36 | IM3: 37 | IN3: 38 | IO3: 39 | IP3: 40 | IQ3: 41 | IR3: 42 | IS3: 43 | IT3: 44 | IU3: 45 | IV3: 46 | IW3: 47 | IX3: 48 | IY3: 49 | IZ3: 50 | JA3: 51 | JB3: 52 | JC3: 2005 | JD3: 2 | JE3: 3 | JF3: 4 | JG3: 5 | JH3: 6 | JI3: 7 | JJ3: 8 | JK3: 9 | JL3: 10 | JM3: 11 | JN3: 12 | JO3: 13 | JP3: 14 | JQ3: 15 | JR3: 16 | JS3: 17 | JT3: 18 | JU3: 19 | JV3: 20 | JW3: 21 | JX3: 22 | JY3: 23 | JZ3: 24 | KA3: 25 | KB3: 26 | KC3: 27 | KD3: 28 | KE3: 29 | KF3: 30 | KG3: 31 | KH3: 32 | KI3: 33 | KJ3: 34 | KK3: 35 | KL3: 36 | KM3: 37 | KN3: 38 | KO3: 39 | KP3: 40 | KQ3: 41 | KR3: 42 | KS3: 43 | KT3: 44 | KU3: 45 | KV3: 46 | KW3: 47 | KX3: 48 | KY3: 49 | KZ3: 50 | LA3: 51 | LB3: 52 | LC3: 2006 | LD3: 2 | LE3: 3 | LF3: 4 | LG3: 5 | LH3: 6 | LI3: 7 | LJ3: 8 | LK3: 9 | LL3: 10 | LM3: 11 | LN3: 12 | LO3: 13 | LP3: 14 | LQ3: 15 | LR3: 16 | LS3: 17 | LT3: 18 | LU3: 19 | LV3: 20 | LW3: 21 | LX3: 22 | LY3: 23 | LZ3: 24 | MA3: 25 | MB3: 26 | MC3: 27 | MD3: 28 | ME3: 29 | MF3: 30 | MG3: 31 | MH3: 32 | MI3: 33 | MJ3: 34 | MK3: 35 | ML3: 36 | MM3: 37 | MN3: 38 | MO3: 39 | MP3: 40 | MQ3: 41 | MR3: 42 | MS3: 43 | MT3: 44 | MU3: 45 | MV3: 46 | MW3: 47 | MX3: 48 | MY3: 49 | MZ3: 50 | NA3: 51 | NB3: 52 | NC3: 2007 | ND3: 2 | NE3: 3 | NF3: 4 | NG3: 5 | NH3: 6 | NI3: 7 | NJ3: 8 | NK3: 9 | NL3: 10 | NM3: 11 | NN3: 12 | NO3: 13 | NP3: 14 | NQ3: 15 | NR3: 16 | NS3: 17 | NT3: 18 | NU3: 19 | NV3: 20 | NW3: 21 | NX3: 22 | NY3: 23 | NZ3: 24 | OA3: 25 | OB3: 26 | OC3: 27 | OD3: 28 | OE3: 29 | OF3: 30 | OG3: 31 | OH3: 32 | OI3: 33 | OJ3: 34 | OK3: 35 | OL3: 36 | OM3: 37 | ON3: 38 | OO3: 39 | OP3: 40 | OQ3: 41 | OR3: 42 | OS3: 43 | OT3: 44 | OU3: 45 | OV3: 46 | OW3: 47 | OX3: 48 | OY3: 49 | OZ3: 50 | PA3: 51 | PB3: 52 | PC3: 2008 | PD3: 2 | PE3: 3 | PF3: 4 | PG3: 5 | PH3: 6 | PI3: 7 | PJ3: 8 | PK3: 9 | PL3: 10 | PM3: 11 | PN3: 12 | PO3: 13 | PP3: 14 | PQ3: 15 | PR3: 16 | PS3: 17 | PT3: 18 | PU3: 19 | PV3: 20 | PW3: 21 | PX3: 22 | PY3: 23 | PZ3: 24 | QA3: 25 | QB3: 26 | QC3: 27 | QD3: 28 | QE3: 29 | QF3: 30 | QG3: 31 | QH3: 32 | QI3: 33 | QJ3: 34 | QK3: 35 | QL3: 36 | QM3: 37 | QN3: 38 | QO3: 39 | QP3: 40 | QQ3: 41 | QR3: 42 | QS3: 43 | QT3: 44 | QU3: 45 | QV3: 46 | QW3: 47 | QX3: 48 | QY3: 49 | QZ3: 50 | RA3: 51 | RB3: 52 | RC3: 53 | RD3: 2009 | RE3: 2 | RF3: 3 | RG3: 4 | RH3: 5 | RI3: 6 | RJ3: 7 | RK3: 8 | RL3: 9 | RM3: 10 | RN3: 11 | RO3: 12 | RP3: 13 | RQ3: 14 | RR3: 15 | RS3: 16 | RT3: 17 | RU3: 18 | RV3: 19 | RW3: 20 | RX3: 21 | RY3: 22 | RZ3: 23 | SA3: 24 | SB3: 25 | SC3: 26 | SD3: 27 | SE3: 28 | SF3: 29 | SG3: 30 | SH3: 31 | SI3: 32 | SJ3: 33 | SK3: 34 | SL3: 35 | SM3: 36 | SN3: 37 | SO3: 38 | SP3: 39 | SQ3: 40 | SR3: 41 | SS3: 42 | ST3: 43 | SU3: 44 | SV3: 45 | SW3: 46 | SX3: 47 | SY3: 48 | SZ3: 49 | TA3: 50 | TB3: 51 | TC3: 52 | TD3: 2010 | TE3: 2 | TF3: 3 | TG3: 4 | TH3: 5 | TI3: 6 | TJ3: 7 | TK3: 8 | TL3: 9 | TM3: 10 | TN3: 11 | TO3: 12 | TP3: 13 | TQ3: 14 | TR3: 15 | TS3: 16 | TT3: 17 | TU3: 18 | TV3: 19 | TW3: 20 | TX3: 21 | TY3: 22 | TZ3: 23 | UA3: 24 | UB3: 25 | UC3: 26 | UD3: 27 | UE3: 28 | UF3: 29 | UG3: 30 | UH3: 31 | UI3: 32 | UJ3: 33 | UK3: 34 | UL3: 35 | UM3: 36 | UN3: 37 | UO3: 38 | UP3: 39 | UQ3: 40 | UR3: 41 | US3: 42 | UT3: 43 | UU3: 44 | UV3: 45 | UW3: 46 | UX3: 47 | UY3: 48 | UZ3: 49 | VA3: 50 | VB3: 51 | VC3: 52 | VD3: 2011 | VE3: 2 | VF3: 3 | VG3: 4 | VH3: 5 | VI3: 6 | VJ3: 7 | VK3: 8 | VL3: 9 | VM3: 10 | VN3: 11 | VO3: 12 | VP3: 13 | VQ3: 14 | VR3: 15 | VS3: 16 | VT3: 17 | VU3: 18 | VV3: 19 | VW3: 20 | VX3: 21 | VY3: 22 | VZ3: 23 | WA3: 24 | WB3: 25 | WC3: 26 | WD3: 27 | WE3: 28 | WF3: 29 | WG3: 30 | WH3: 31 | WI3: 32 | WJ3: 33 | WK3: 34 | WL3: 35 | WM3: 36 | WN3: 37 | WO3: 38 | WP3: 39 | WQ3: 40 | WR3: 41 | WS3: 42 | WT3: 43 | WU3: 44 | WV3: 45 | WW3: 46 | WX3: 47 | WY3: 48 | WZ3: 49 | XA3: 50 | XB3: 51 | XC3: 52 | XD3: 2012 | XE3: 2 | XF3: 3 | XG3: 4 | XH3: 5 | XI3: 6 | XJ3: 7 | XK3: 8 | XL3: 9 | XM3: 10 | XN3: 11 | XO3: 12 | XP3: 13 | XQ3: 14 | XR3: 15 | XS3: 16 | XT3: 17 | XU3: 18 | XV3: 19 | XW3: 20 | XX3: 21 | XY3: 22 | XZ3: 23 | YA3: 24 | YB3: 25 | YC3: 26 | YD3: 27 | YE3: 28 | YF3: 29 | YG3: 30 | YH3: 31 | YI3: 32 | YJ3: 33 | YK3: 34 | YL3: 35 | YM3: 36 | YN3: 37 | YO3: 38 | YP3: 39 | YQ3: 40 | YR3: 41 | YS3: 42 | YT3: 43 | YU3: 44 | YV3: 45 | YW3: 46 | YX3: 47 | YY3: 48 | YZ3: 49 | ZA3: 50 | ZB3: 51 | ZC3: 52 | ZD3: 2013 | ZE3: 2 | ZF3: 3 | ZG3: 4 | ZH3: 5 | ZI3: 6 | ZJ3: 7 | ZK3: 8 | ZL3: 9 | ZM3: 10 | ZN3: 11 | ZO3: 12 | ZP3: 13 | ZQ3: 14 | ZR3: 15 | ZS3: 16 | ZT3: 17 | ZU3: 18 | ZV3: 19 | ZW3: 20 | ZX3: 21 | ZY3: 22 | ZZ3: 23 | AAA3: 24 | AAB3: 25 | AAC3: 26 | AAD3: 27 | AAE3: 28 | AAF3: 29 | AAG3: 30 | AAH3: 31 | AAI3: 32 | AAJ3: 33 | AAK3: 34 | AAL3: 35 | AAM3: 36 | AAN3: 37 | AAO3: 38 | AAP3: 39 | AAQ3: 40 | AAR3: 41 | AAS3: 42 | AAT3: 43 | AAU3: 44 | AAV3: 45 | AAW3: 46 | AAX3: 47 | AAY3: 48 | AAZ3: 49 | ABA3: 50 | ABB3: 51 | ABC3: 52 | ABD3: 2014 | ABE3: 2 | ABF3: 3 | ABG3: 4 | ABH3: 5 | ABI3: 6 | ABJ3: 7 | ABK3: 8 | ABL3: 9 | ABM3: 10 | ABN3: 11 | ABO3: 12 | ABP3: 13 | ABQ3: 14 | ABR3: 15 | ABS3: 16 | ABT3: 17 | ABU3: 18 | ABV3: 19 | ABW3: 20 | ABX3: 21 | ABY3: 22 | ABZ3: 23 | ACA3: 24 | ACB3: 25 | ACC3: 26 | ACD3: 27 | ACE3: 28 | ACF3: 29 | ACG3: 30 | ACH3: 31 | ACI3: 32 | ACJ3: 33 | ACK3: 34 | ACL3: 35 | ACM3: 36 | ACN3: 37 | ACO3: 38 | ACP3: 39 | ACQ3: 40 | ACR3: 41 | ACS3: 42 | ACT3: 43 | ACU3: 44 | ACV3: 45 | ACW3: 46 | ACX3: 47 | ACY3: 48 | ACZ3: 49 | ADA3: 50 | ADB3: 51 | ADC3: 52 | ADD3: 53 | ADE3: 2015 | ADF3: 2 | ADG3: 3 | ADH3: 4 | ADI3: 5 | ADJ3: 6 | ADK3: 7 | ADL3: 8 | ADM3: 9 | ADN3: 10 | ADO3: 11 | ADP3: 12 | ADQ3: 13 | ADR3: 14 | ADS3: 15 | ADT3: 16 | ADU3: 17 | ADV3: 18 | ADW3: 19 | ADX3: 20 | ADY3: 21 | ADZ3: 22 | AEA3: 23 | AEB3: 24 | AEC3: 25 | AED3: 26 | AEE3: 27 | AEF3: 28 | AEG3: 29 | AEH3: 30 | AEI3: 31 | AEJ3: 32 | AEK3: 33 | AEL3: 34 | AEM3: 35 | AEN3: 36 | AEO3: 37 | AEP3: 38 | AEQ3: 39 | AER3: 40 | AES3: 41 | AET3: 42 | AEU3: 43 | AEV3: 44 | AEW3: 45 | AEX3: 46 | AEY3: 47 | AEZ3: 48 | AFA3: 49 | AFB3: 50 | AFC3: 51 | AFD3: 52 | AFE3: 2016 | AFF3: 2 | AFG3: 3 | AFH3: 4 | AFI3: 5 | AFJ3: 6 | AFK3: 7 | AFL3: 8 | AFM3: 9 | AFN3: 10 | AFO3: 11 | AFP3: 12 | AFQ3: 13 | AFR3: 14 | AFS3: 15 | AFT3: 16 | AFU3: 17 | AFV3: 18 | AFW3: 19 | AFX3: 20 | AFY3: 21 | AFZ3: 22 | AGA3: 23 | AGB3: 24 | AGC3: 25 | AGD3: 26 | AGE3: 27 | AGF3: 28 | AGG3: 29 | AGH3: 30 | AGI3: 31 | AGJ3: 32 | AGK3: 33 | AGL3: 34 | AGM3: 35 | AGN3: 36 | AGO3: 37 | AGP3: 38 | AGQ3: 39 | AGR3: 40 | AGS3: 41 | AGT3: 42 | AGU3: 43 | AGV3: 44 | AGW3: 45 | AGX3: 46 | AGY3: 47 | AGZ3: 48 | AHA3: 49 | AHB3: 50 | AHC3: 51 | AHD3: 52 | AHE3: 2017 | AHF3: 2 | AHG3: 3 | AHH3: 4 | AHI3: 5 | AHJ3: 6 | AHK3: 7 | AHL3: 8 | AHM3: 9 | AHN3: 10 | AHO3: 11 | AHP3: 12 | AHQ3: 13 | AHR3: 14 | AHS3: 15 | AHT3: 16 | AHU3: 17 | AHV3: 18 | AHW3: 19 | AHX3: 20 | AHY3: 21 | AHZ3: 22 | AIA3: 23 | AIB3: 24 | AIC3: 25 | AID3: 26 | AIE3: 27 | AIF3: 28 | AIG3: 29 | AIH3: 30 | AII3: 31 | AIJ3: 32 | AIK3: 33 | AIL3: 34 | AIM3: 35 | AIN3: 36 | AIO3: 37 | AIP3: 38 | AIQ3: 39 | AIR3: 40 | AIS3: 41 | AIT3: 42 | AIU3: 43 | AIV3: 44 | AIW3: 45 | AIX3: 46 | AIY3: 47 | AIZ3: 48 | AJA3: 49 | AJB3: 50 | AJC3: 51 | AJD3: 52 | AJE3: 2018 | AJF3: 2 | AJG3: 3 | AJH3: 4 | AJI3: 5 | AJJ3: 6 | AJK3: 7 | AJL3: 8 | AJM3: 9 | AJN3: 10 | AJO3: 11 | AJP3: 12 | AJQ3: 13 | AJR3: 14 | AJS3: 15 | AJT3: 16 | AJU3: 17 | AJV3: 18 | AJW3: 19 | AJX3: 20 | AJY3: 21 | AJZ3: 22 | AKA3: 23 | AKB3: 24 | AKC3: 25 | AKD3: 26 | AKE3: 27 | AKF3: 28 | AKG3: 29 | AKH3: 30 | AKI3: 31 | AKJ3: 32 | AKK3: 33 | AKL3: 34 | AKM3: 35 | AKN3: 36 | AKO3: 37 | AKP3: 38 | AKQ3: 39 | AKR3: 40 | AKS3: 41 | AKT3: 42 | AKU3: 43 | AKV3: 44 | AKW3: 45 | AKX3: 46 | AKY3: 47 | AKZ3: 48 | ALA3: 49 | ALB3: 50 | ALC3: 51 | ALD3: 52 | ALE3: 2019 | ALF3: 2 | ALG3: 3 | ALH3: 4 | ALI3: 5 | ALJ3: 6 | ALK3: 7 | ALL3: 8 | ALM3: 9 | ALN3: 10 | ALO3: 11 | ALP3: 12 | ALQ3: 13 | ALR3: 14 | ALS3: 15 | ALT3: 16 | ALU3: 17 | ALV3: 18 | ALW3: 19 | ALX3: 20 | ALY3: 21 | ALZ3: 22 | AMA3: 23 | AMB3: 24 | AMC3: 25 | AMD3: 26 | AME3: 27 | AMF3: 28 | AMG3: 29 | AMH3: 30 | AMI3: 31 | AMJ3: 32 | AMK3: 33 | AML3: 34 | AMM3: 35 | AMN3: 36 | AMO3: 37 | AMP3: 38 | AMQ3: 39 | AMR3: 40 | AMS3: 41 | AMT3: 42 | AMU3: 43 | AMV3: 44 | AMW3: 45 | AMX3: 46 | AMY3: 47 | AMZ3: 48 | ANA3: 49 | ANB3: 50 | ANC3: 51 | AND3: 52 | ANE3: 2020 | ANF3: 2 | ANG3: 3 | ANH3: 4 | ANI3: 5 | ANJ3: 6 | ANK3: 7 | ANL3: 8 | ANM3: 9 | ANN3: 10 | ANO3: 11 | ANP3: 12 | ANQ3: 13 | ANR3: 14 | ANS3: 15 | ANT3: 16 | ANU3: 17 | ANV3: 18 | ANW3: 19 | ANX3: 20 | ANY3: 21 | ANZ3: 22 | AOA3: 23 | AOB3: 24 | AOC3: 25 | AOD3: 26 | AOE3: 27 | AOF3: 28 | AOG3: 29 | AOH3: 30 | AOI3: 31 | AOJ3: 32 | AOK3: 33 | AOL3: 34 | AOM3: 35 | AON3: 36 | AOO3: 37 | AOP3: 38 | AOQ3: 39 | AOR3: 40 | AOS3: 41 | AOT3: 42 | AOU3: 43 | AOV3: 44 | AOW3: 45 | AOX3: 46 | AOY3: 47 | AOZ3: 48 | APA3: 49 | APB3: 50 | APC3: 51 | APD3: 52 | APE3: 2021 | APF3: 2 | APG3: 3 | APH3: 4 | API3: 5 | APJ3: 6 | APK3: 7 | APL3: 8 | APM3: 9 | APN3: 10 | APO3: 11 | APP3: 12 | APQ3: 13 | APR3: 14 | APS3: 15 | APT3: 16 | APU3: 17 | APV3: 18 | APW3: 19 | APX3: 20 | APY3: 21 | APZ3: 22 | AQA3: 23 | AQB3: 24 | AQC3: 25 | AQD3: 26 | AQE3: 27 | AQF3: 28 | AQG3: 29 | AQH3: 30 | AQI3: 31 | AQJ3: 32 | AQK3: 33 | AQL3: 34 | AQM3: 35 | AQN3: 36 | AQO3: 37 | AQP3: 38 | AQQ3: 39 | AQR3: 40 | AQS3: 41 | AQT3: 42 | AQU3: 43 | AQV3: 44 | AQW3: 45 | AQX3: 46 | AQY3: 47 | AQZ3: 48 | ARA3: 49 | ARB3: 50 | ARC3: 51 | ARD3: 52 | ARE3: 2022 | ARF3: 2 | ARG3: 3 | ARH3: 4 | ARI3: 5 | ARJ3: 6 | ARK3: 7 | ARL3: 8 | ARM3: 9 | ARN3: 10 | ARO3: 11 | ARP3: 12 | ARQ3: 13 | ARR3: 14 | ARS3: 15 | ART3: 16 | ARU3: 17 | ARV3: 18 | ARW3: 19 | ARX3: 20 | ARY3: 21 | ARZ3: 22 | ASA3: 23 | ASB3: 24 | ASC3: 25 | ASD3: 26 | ASE3: 27 | ASF3: 28 | ASG3: 29 | ASH3: 30 | ASI3: 31 | ASJ3: 32 | ASK3: 33 | ASL3: 34 | ASM3: 35 | ASN3: 36 | ASO3: 37 | ASP3: 38 | ASQ3: 39 | ASR3: 40 | ASS3: 41 | AST3: 42 | ASU3: 43 | ASV3: 44 | ASW3: 45 | ASX3: 46 | ASY3: 47 | ASZ3: 48 | ATA3: 49 | ATB3: 50 | ATC3: 51 | ATD3: 52 | ATF3: 1Q00 | ATG3: 2Q00 | ATH3: 3Q00 | ATI3: 4Q00 | ATJ3: 1Q01 | ATK3: 2Q01 | ATL3: 3Q01 | ATM3: 4Q01 | ATN3: 1Q02 | ATO3: 2Q02 | ATP3: 3Q02 | ATQ3: 4Q02 | ATR3: 1Q03 | ATS3: 2Q03 | ATT3: 3Q03 | ATU3: 4Q03 | ATV3: 1Q04 | ATW3: 2Q04 | ATX3: 3Q04 | ATY3: 4Q04 | ATZ3: 1Q05 | AUA3: 2Q05 | AUB3: 3Q05 | AUC3: 4Q05 | AUD3: 1Q06 | AUE3: 2Q06 | AUF3: 3Q06 | AUG3: 4Q06 | AUH3: 1Q07 | AUI3: 2Q07 | AUJ3: 3Q07 | AUK3: 4Q07 | AUL3: 1Q08 | AUM3: 2Q08 | AUN3: 3Q08 | AUO3: 4Q08 | AUP3: 1Q09 | AUQ3: 2Q09 | AUR3: 3Q09 | AUS3: 4Q09 | AUT3: 1Q10 | AUU3: 2Q10 | AUV3: 3Q10 | AUW3: 4Q10 | AUX3: 1Q11 | AUY3: 2Q11 | AUZ3: 3Q11 | AVA3: 4Q11 | AVB3: 1Q12 | AVC3: 2Q12 | AVD3: 3Q12 | AVE3: 4Q12 | AVF3: 1Q13 | AVG3: 2Q13 | AVH3: 3Q13 | AVI3: 4Q13 | AVJ3: 1Q14 | AVK3: 2Q14 | AVL3: 3Q14 | AVM3: 4Q14 | AVN3: 1Q15 | AVO3: 2Q15 | AVP3: 3Q15 | AVQ3: 4Q15 | AVR3: 1Q16 | AVS3: 2Q16 | AVT3: 3Q16 | AVU3: 4Q16 | AVV3: 1Q17 | AVW3: 2Q17 | AVX3: 3Q17 | AVY3: 4Q17 | AVZ3: 1Q18 | AWA3: 2Q18 | AWB3: 3Q18 | AWC3: 4Q18 | AWD3: 1Q19 | AWE3: 2Q19 | AWF3: 3Q19TD* | AWM3: 2000 | AWN3: 2001 | AWO3: 2002 | AWP3: 2003 | AWQ3: 2004 | AWR3: 2005 | AWS3: 2006 | AWT3: 2007 | AWU3: 2008 | AWV3: 2009 | AWW3: 2010 | AWX3: 2011 | AWY3: 2012 | AWZ3: 2013 | AXA3: 2014 | AXB3: 2015 | AXC3: 2016 | AXD3: 2017 | AXE3: 2018 | AXF3: 2019 | AXG3: 2020
A4: Total North America Class I Carloads
A6: Grain | B6: =B65+B124+B183+B242+B301+B360+B419 -> 0 | C6: 0 | D6: 0 | E6: 0 | F6: 0 | G6: 0 | H6: 0 | I6: 0 | J6: 0 | K6: 0 | L6: 0 | M6: 0 | N6: 0 | O6: 0 | P6: 0 | Q6: 0 | R6: 0 | S6: 0 | T6: 0 | U6: 0 | V6: 0 | W6: 0 | X6: 0 | Y6: 0 | Z6: 0 | AA6: 0 | AB6: 0 | AC6: 0 | AD6: 0 | AE6: 0 | AF6: 0 | AG6: 0 | AH6: 0 | AI6: 0 | AJ6: 0 | AK6: 0 | AL6: 0 | AM6: 0 | AN6: 0 | AO6: 0 | AP6: 0 | AQ6: 0 | AR6: 0 | AS6: 0 | AT6: 0 | AU6: 0 | AV6: 0 | AW6: 0 | AX6: 0 | AY6: 0 | AZ6: 0 | BA6: 0 | BB6: 0 | BC6: 0 | BD6: 0 | BE6: 0 | BF6: 0 | BG6: 0 | BH6: 0 | BI6: 0 | BJ6: 0 | BK6: 0 | BL6: 0 | BM6: 0 | BN6: =BN65+BN124+BN183+BN242+BN301+BN360+BN419 -> 0 | BO6: 0 | BP6: 0 | BQ6: 0 | BR6: 0 | BS6: 0 | BT6: 0 | BU6: 0 | BV6: 0 | BW6: 0 | BX6: 0 | BY6: 0 | BZ6: 0 | CA6: 0 | CB6: 0 | CC6: 0 | CD6: 0 | CE6: 0 | CF6: 0 | CG6: 0 | CH6: 0 | CI6: 0 | CJ6: 0 | CK6: 0 | CL6: 0 | CM6: 0 | CN6: 0 | CO6: 0 | CP6: 0 | CQ6: 0 | CR6: 0 | CS6: 0 | CT6: 0 | CU6: 0 | CV6: 0 | CW6: 0 | CX6: 0 | CY6: 0 | CZ6: 0 | DA6: 0 | DB6: 0 | DC6: 0 | DD6: 0 | DE6: 0 | DF6: 0 | DG6: 0 | DH6: 0 | DI6: 0 | DJ6: 0 | DK6: 0 | DL6: 0 | DM6: 0 | DN6: 0 | DO6: 0 | DP6: 0 | DQ6: 0 | DR6: 0 | DS6: 0 | DT6: 0 | DU6: 0 | DV6: 0 | DW6: 0 | DX6: 0 | DY6: 0 | DZ6: =DZ65+DZ124+DZ183+DZ242+DZ301+DZ360+DZ419 -> 0 | EA6: 0 | EB6: 0 | EC6: 0 | ED6: 0 | EE6: 0 | EF6: 0 | EG6: 0 | EH6: 0 | EI6: 0 | EJ6: 0 | EK6: 0 | EL6: 0 | EM6: 0 | EN6: 0 | EO6: 0 | EP6: 0 | EQ6: 0 | ER6: 0 | ES6: 0 | ET6: 0 | EU6: 0 | EV6: 0 | EW6: 0 | EX6: 0 | EY6: 0 | EZ6: 0 | FA6: 0 | FB6: 0 | FC6: 0 | FD6: 0 | FE6: 0 | FF6: 0 | FG6: 0 | FH6: 0 | FI6: 0 | FJ6: 0 | FK6: 0 | FL6: 0 | FM6: 0 | FN6: 0 | FO6: 0 | FP6: 0 | FQ6: 0 | FR6: 0 | FS6: 0 | FT6: 0 | FU6: 0 | FV6: 0 | FW6: 0 | FX6: 0 | FY6: 0 | FZ6: 0 | GA6: 0 | GB6: 0 | GC6: 0 | GD6: 0 | GE6: 0 | GF6: 0 | GG6: 0 | GH6: 0 | GI6: 0 | GJ6: 0 | GK6: 0 | GL6: =GL65+GL124+GL183+GL242+GL301+GL360+GL419 -> 0 | GM6: 0 | GN6: 0 | GO6: 0 | GP6: 0 | GQ6: 0 | GR6: 0 | GS6: 0 | GT6: 0 | GU6: 0 | GV6: 0 | GW6: 0 | GX6: 0 | GY6: 0 | GZ6: 0 | HA6: 0 | HB6: 0 | HC6: 0 | HD6: 0 | HE6: 0 | HF6: 0 | HG6: 0 | HH6: 0 | HI6: 0 | HJ6: 0 | HK6: 0 | HL6: 0 | HM6: 0 | HN6: 0 | HO6: 0 | HP6: 0 | HQ6: 0 | HR6: 0 | HS6: 0 | HT6: 0 | HU6: 0 | HV6: 0 | HW6: 0 | HX6: 0 | HY6: 0 | HZ6: 0 | IA6: 0 | IB6: 0 | IC6: 0 | ID6: 0 | IE6: 0 | IF6: 0 | IG6: 0 | IH6: 0 | II6: 0 | IJ6: 0 | IK6: 0 | IL6: 0 | IM6: 0 | IN6: 0 | IO6: 0 | IP6: 0 | IQ6: 0 | IR6: 0 | IS6: 0 | IT6: 0 | IU6: 0 | IV6: 0 | IW6: 0 | IX6: =IX65+IX124+IX183+IX242+IX301+IX360+IX419 -> 0 | IY6: 0 | IZ6: 0 | JA6: 0 | JB6: 0 | JC6: 0 | JD6: 0 | JE6: 0 | JF6: 0 | JG6: 0 | JH6: 0 | JI6: 0 | JJ6: 0 | JK6: 0 | JL6: 0 | JM6: 0 | JN6: 0 | JO6: 0 | JP6: 0 | JQ6: 0 | JR6: 0 | JS6: 0 | JT6: 0 | JU6: 0 | JV6: 0 | JW6: 0 | JX6: 0 | JY6: 0 | JZ6: 0 | KA6: 0 | KB6: 0 | KC6: 0 | KD6: 0 | KE6: 0 | KF6: 0 | KG6: 0 | KH6: 0 | KI6: 0 | KJ6: 0 | KK6: 0 | KL6: 0 | KM6: 0 | KN6: 0 | KO6: 0 | KP6: 0 | KQ6: 0 | KR6: 0 | KS6: 0 | KT6: 0 | KU6: 0 | KV6: 0 | KW6: 0 | KX6: 0 | KY6: 0 | KZ6: 0 | LA6: 0 | LB6: 0 | LC6: 0 | LD6: 0 | LE6: 0 | LF6: 0 | LG6: 0 | LH6: 0 | LI6: 0 | LJ6: =LJ65+LJ124+LJ183+LJ242+LJ301+LJ360+LJ419 -> 0 | LK6: 0 | LL6: 0 | LM6: 0 | LN6: 0 | LO6: 0 | LP6: 0 | LQ6: 0 | LR6: 0 | LS6: 0 | LT6: 0 | LU6: 0 | LV6: 0 | LW6: 0 | LX6: 0 | LY6: 0 | LZ6: 0 | MA6: 0 | MB6: 0 | MC6: 0 | MD6: 0 | ME6: 0 | MF6: 0 | MG6: 0 | MH6: 0 | MI6: 0 | MJ6: 0 | MK6: 0 | ML6: 0 | MM6: 0 | MN6: 0 | MO6: 0 | MP6: 0 | MQ6: 0 | MR6: 0 | MS6: 0 | MT6: 0 | MU6: 0 | MV6: 0 | MW6: 0 | MX6: 0 | MY6: 0 | MZ6: 0 | NA6: 0 | NB6: 0 | NC6: 0 | ND6: 0 | NE6: 0 | NF6: 0 | NG6: 0 | NH6: 0 | NI6: 0 | NJ6: 0 | NK6: 0 | NL6: 0 | NM6: 0 | NN6: 0 | NO6: 0 | NP6: 0 | NQ6: 0 | NR6: 0 | NS6: 0 | NT6: 0 | NU6: 0 | NV6: =NV65+NV124+NV183+NV242+NV301+NV360+NV419 -> 0 | NW6: 0 | NX6: 0 | NY6: 0 | NZ6: 0 | OA6: 0 | OB6: 0 | OC6: 0 | OD6: 0 | OE6: 0 | OF6: 0 | OG6: 0 | OH6: 0 | OI6: 0 | OJ6: 0 | OK6: 0 | OL6: 0 | OM6: 0 | ON6: 0 | OO6: 0 | OP6: 0 | OQ6: 0 | OR6: 0 | OS6: 0 | OT6: 0 | OU6: 0 | OV6: 0 | OW6: 0 | OX6: 0 | OY6: 0 | OZ6: 0 | PA6: 0 | PB6: 0 | PC6: 0 | PD6: 0 | PE6: 0 | PF6: 0 | PG6: 0 | PH6: 0 | PI6: 0 | PJ6: 0 | PK6: 0 | PL6: 0 | PM6: 0 | PN6: 0 | PO6: 0 | PP6: 0 | PQ6: 0 | PR6: 0 | PS6: 0 | PT6: 0 | PU6: 0 | PV6: 0 | PW6: 0 | PX6: 0 | PY6: 0 | PZ6: 0 | QA6: 0 | QB6: 0 | QC6: 0 | QD6: 0 | QE6: 0 | QF6: 0 | QG6: 0 | QH6: =QH65+QH124+QH183+QH242+QH301+QH360+QH419 -> 0 | QI6: 0 | QJ6: 0 | QK6: 0 | QL6: 0 | QM6: 0 | QN6: 0 | QO6: 0 | QP6: 0 | QQ6: 0 | QR6: 0 | QS6: 0 | QT6: 0 | QU6: 0 | QV6: 0 | QW6: 0 | QX6: 0 | QY6: 0 | QZ6: 0 | RA6: 0 | RB6: 0 | RC6: 0 | RD6: 0 | RE6: 0 | RF6: 0 | RG6: 0 | RH6: 0 | RI6: 0 | RJ6: 0 | RK6: 0 | RL6: 0 | RM6: 0 | RN6: 0 | RO6: 0 | RP6: 0 | RQ6: 0 | RR6: 0 | RS6: 0 | RT6: 0 | RU6: 0 | RV6: 0 | RW6: 0 | RX6: 0 | RY6: 0 | RZ6: 0 | SA6: 0 | SB6: 0 | SC6: 0 | SD6: 0 | SE6: 0 | SF6: 0 | SG6: 0 | SH6: 0 | SI6: 0 | SJ6: 0 | SK6: 0 | SL6: 0 | SM6: 0 | SN6: 0 | SO6: 0 | SP6: 0 | SQ6: 0 | SR6: 0 | SS6: 0 | ST6: =ST65+ST124+ST183+ST242+ST301+ST360+ST419 -> 0 | SU6: 0 | SV6: 0 | SW6: 0 | SX6: 0 | SY6: 0 | SZ6: 0 | TA6: 0 | TB6: 0 | TC6: 0 | TD6: 0 | TE6: 0 | TF6: 0 | TG6: 0 | TH6: 0 | TI6: 0 | TJ6: 0 | TK6: 0 | TL6: 0 | TM6: 0 | TN6: 0 | TO6: 0 | TP6: 0 | TQ6: 0 | TR6: 0 | TS6: 0 | TT6: 0 | TU6: 0 | TV6: 0 | TW6: 0 | TX6: 0 | TY6: 0 | TZ6: 0 | UA6: 0 | UB6: 0 | UC6: 0 | UD6: 0 | UE6: 0 | UF6: 0 | UG6: 0 | UH6: 0 | UI6: 0 | UJ6: 0 | UK6: 0 | UL6: 0 | UM6: 0 | UN6: 0 | UO6: 0 | UP6: 0 | UQ6: 0 | UR6: 0 | US6: 0 | UT6: 0 | UU6: 0 | UV6: 0 | UW6: 0 | UX6: 0 | UY6: 0 | UZ6: 0 | VA6: 0 | VB6: 0 | VC6: 0 | VD6: 0 | VE6: 0 | VF6: =VF65+VF124+VF183+VF242+VF301+VF360+VF419 -> 0 | VG6: 0 | VH6: 0 | VI6: 0 | VJ6: 0 | VK6: 0 | VL6: 0 | VM6: 0 | VN6: 0 | VO6: 0 | VP6: 0 | VQ6: 0 | VR6: 0 | VS6: 0 | VT6: 0 | VU6: 0 | VV6: 0 | VW6: 0 | VX6: 0 | VY6: 0 | VZ6: 0 | WA6: 0 | WB6: 0 | WC6: 0 | WD6: 0 | WE6: 0 | WF6: 0 | WG6: 0 | WH6: 0 | WI6: 0 | WJ6: 0 | WK6: 0 | WL6: 0 | WM6: 0 | WN6: 0 | WO6: 0 | WP6: 0 | WQ6: 0 | WR6: 0 | WS6: 0 | WT6: 0 | WU6: 0 | WV6: 0 | WW6: 0 | WX6: 0 | WY6: 0 | WZ6: 0 | XA6: 0 | XB6: 0 | XC6: 0 | XD6: 0 | XE6: 0 | XF6: 0 | XG6: 0 | XH6: 0 | XI6: 0 | XJ6: 0 | XK6: 0 | XL6: 0 | XM6: 0 | XN6: 0 | XO6: 0 | XP6: 0 | XQ6: 0 | XR6: =XR65+XR124+XR183+XR242+XR301+XR360+XR419 -> 0 | XS6: 0 | XT6: 0 | XU6: 0 | XV6: 0 | XW6: 0 | XX6: 0 | XY6: 0 | XZ6: 0 | YA6: 0 | YB6: 0 | YC6: 0 | YD6: 0 | YE6: 0 | YF6: 0 | YG6: 0 | YH6: 0 | YI6: 0 | YJ6: 0 | YK6: 0 | YL6: 0 | YM6: 0 | YN6: 0 | YO6: 0 | YP6: 0 | YQ6: 0 | YR6: 0 | YS6: 0 | YT6: 0 | YU6: 0 | YV6: 0 | YW6: 0 | YX6: 0 | YY6: 0 | YZ6: 0 | ZA6: 0 | ZB6: 0 | ZC6: 0 | ZD6: 0 | ZE6: 0 | ZF6: 0 | ZG6: 0 | ZH6: 0 | ZI6: 0 | ZJ6: 0 | ZK6: 0 | ZL6: 0 | ZM6: 0 | ZN6: 0 | ZO6: 0 | ZP6: 0 | ZQ6: 0 | ZR6: 0 | ZS6: 0 | ZT6: 0 | ZU6: 0 | ZV6: 0 | ZW6: 0 | ZX6: 0 | ZY6: 0 | ZZ6: 0 | AAA6: 0 | AAB6: 0 | AAC6: 0 | AAD6: =AAD65+AAD124+AAD183+AAD242+AAD301+AAD360+AAD419 -> 0 | AAE6: 0 | AAF6: 0 | AAG6: 0 | AAH6: 0 | AAI6: 0 | AAJ6: 0 | AAK6: 0 | AAL6: 0 | AAM6: 0 | AAN6: 0 | AAO6: 0 | AAP6: 0 | AAQ6: 0 | AAR6: 0 | AAS6: 0 | AAT6: 0 | AAU6: 0 | AAV6: 0 | AAW6: 0 | AAX6: 0 | AAY6: 0 | AAZ6: 0 | ABA6: 0 | ABB6: 0 | ABC6: 0 | ABD6: 0 | ABE6: 0 | ABF6: 0 | ABG6: 0 | ABH6: 0 | ABI6: 0 | ABJ6: 0 | ABK6: 0 | ABL6: 0 | ABM6: 0 | ABN6: 0 | ABO6: 0 | ABP6: 0 | ABQ6: 0 | ABR6: 0 | ABS6: 0 | ABT6: 0 | ABU6: 0 | ABV6: 0 | ABW6: 0 | ABX6: 0 | ABY6: 0 | ABZ6: 0 | ACA6: 0 | ACB6: 0 | ACC6: 0 | ACD6: 0 | ACE6: 0 | ACF6: 0 | ACG6: 0 | ACH6: 0 | ACI6: 0 | ACJ6: 0 | ACK6: 0 | ACL6: 0 | ACM6: 0 | ACN6: 0 | ACO6: 0 | ACP6: =ACP65+ACP124+ACP183+ACP242+ACP301+ACP360+ACP419 -> 0 | ACQ6: 0 | ACR6: 0 | ACS6: 0 | ACT6: 0 | ACU6: 0 | ACV6: 0 | ACW6: 0 | ACX6: 0 | ACY6: 0 | ACZ6: 0 | ADA6: 0 | ADB6: 0 | ADC6: 0 | ADD6: 0 | ADE6: 0 | ADF6: 0 | ADG6: 0 | ADH6: 0 | ADI6: 0 | ADJ6: 0 | ADK6: 0 | ADL6: 0 | ADM6: 0 | ADN6: 0 | ADO6: 0 | ADP6: 0 | ADQ6: 0 | ADR6: 0 | ADS6: 0 | ADT6: 0 | ADU6: 0 | ADV6: 0 | ADW6: 0 | ADX6: 0 | ADY6: 0 | ADZ6: 0 | AEA6: 0 | AEB6: 0 | AEC6: 0 | AED6: 0 | AEE6: 0 | AEF6: 0 | AEG6: 0 | AEH6: 0 | AEI6: 0 | AEJ6: 0 | AEK6: 0 | AEL6: 0 | AEM6: 0 | AEN6: 0 | AEO6: 0 | AEP6: 0 | AEQ6: 0 | AER6: 0 | AES6: 0 | AET6: 0 | AEU6: 0 | AEV6: 0 | AEW6: 0 | AEX6: 0 | AEY6: 0 | AEZ6: 0 | AFA6: 0 | AFB6: =AFB65+AFB124+AFB183+AFB242+AFB301+AFB360+AFB419 -> 0 | AFC6: 0 | AFD6: 0 | AFE6: 0 | AFF6: 0 | AFG6: 0 | AFH6: 0 | AFI6: 0 | AFJ6: 0 | AFK6: 0 | AFL6: 0 | AFM6: 0 | AFN6: 0 | AFO6: 0 | AFP6: 0 | AFQ6: 0 | AFR6: 0 | AFS6: 0 | AFT6: 0 | AFU6: 0 | AFV6: 0 | AFW6: 0 | AFX6: 0 | AFY6: 0 | AFZ6: 0 | AGA6: 0 | AGB6: 0 | AGC6: 0 | AGD6: 0 | AGE6: 0 | AGF6: 0 | AGG6: 0 | AGH6: 0 | AGI6: 0 | AGJ6: 0 | AGK6: 0 | AGL6: 0 | AGM6: 0 | AGN6: 0 | AGO6: 0 | AGP6: 0 | AGQ6: 0 | AGR6: 0 | AGS6: 0 | AGT6: 0 | AGU6: 0 | AGV6: 0 | AGW6: 0 | AGX6: 0 | AGY6: 0 | AGZ6: 0 | AHA6: 0 | AHB6: 0 | AHC6: 0 | AHD6: 0 | AHE6: 0 | AHF6: 0 | AHG6: 0 | AHH6: 0 | AHI6: 0 | AHJ6: 0 | AHK6: 0 | AHL6: 0 | AHM6: 0 | AHN6: =AHN65+AHN124+AHN183+AHN242+AHN301+AHN360+AHN419 -> 0 | AHO6: 0 | AHP6: 0 | AHQ6: 0 | AHR6: 0 | AHS6: 0 | AHT6: 0 | AHU6: 0 | AHV6: 0 | AHW6: 0 | AHX6: 0 | AHY6: 0 | AHZ6: 0 | AIA6: 0 | AIB6: 0 | AIC6: 0 | AID6: 0 | AIE6: 0 | AIF6: 0 | AIG6: 0 | AIH6: 0 | AII6: 0 | AIJ6: 0 | AIK6: 0 | AIL6: 0 | AIM6: 0 | AIN6: 0 | AIO6: 0 | AIP6: 0 | AIQ6: 0 | AIR6: 0 | AIS6: 0 | AIT6: 0 | AIU6: 0 | AIV6: 0 | AIW6: 0 | AIX6: 0 | AIY6: 0 | AIZ6: 0 | AJA6: 0 | AJB6: 0 | AJC6: 0 | AJD6: 0 | AJE6: 0 | AJF6: 0 | AJG6: 0 | AJH6: 0 | AJI6: 0 | AJJ6: 0 | AJK6: 0 | AJL6: 0 | AJM6: 0 | AJN6: 0 | AJO6: 0 | AJP6: 0 | AJQ6: 0 | AJR6: 0 | AJS6: 0 | AJT6: 0 | AJU6: 0 | AJV6: 0 | AJW6: 0 | AJX6: 0 | AJY6: 0 | AJZ6: =AJZ65+AJZ124+AJZ183+AJZ242+AJZ301+AJZ360+AJZ419 -> 0 | AKA6: 0 | AKB6: 0 | AKC6: 0 | AKD6: 0 | AKE6: 0 | AKF6: 0 | AKG6: 0 | AKH6: 0 | AKI6: 0 | AKJ6: 0 | AKK6: 0 | AKL6: 0 | AKM6: 0 | AKN6: 0 | AKO6: 0 | AKP6: 0 | AKQ6: 0 | AKR6: 0 | AKS6: 0 | AKT6: 0 | AKU6: 0 | AKV6: 0 | AKW6: 0 | AKX6: 0 | AKY6: 0 | AKZ6: 0 | ALA6: 0 | ALB6: 0 | ALC6: 0 | ALD6: 0 | ALE6: =ALE65+ALE124+ALE183+ALE242+ALE301+ALE360+ALE419 -> 0 | ALF6: 0 | ALG6: 0 | ALH6: 0 | ALI6: =ALI65+ALI124+ALI183+ALI242+ALI301+ALI360+ALI419 -> 0 | ALJ6: 0 | ALK6: 0 | ALL6: =ALL65+ALL124+ALL183+ALL242+ALL301+ALL360+ALL419 -> 0 | ALM6: =ALM65+ALM124+ALM183+ALM242+ALM301+ALM360+ALM419 -> 0 | ALN6: =ALN65+ALN124+ALN183+ALN242+ALN301+ALN360+ALN419 -> 0 | ALO6: =ALO65+ALO124+ALO183+ALO242+ALO301+ALO360+ALO419 -> 0 | ALP6: =ALP65+ALP124+ALP183+ALP242+ALP301+ALP360+ALP419 -> 0 | ALQ6: =ALQ65+ALQ124+ALQ183+ALQ242+ALQ301+ALQ360+ALQ419 -> 0 | ALR6: 0 | ALS6: =ALS65+ALS124+ALS183+ALS242+ALS301+ALS360+ALS419 -> 0 | ALT6: 0 | ALU6: 0 | ALV6: 0 | ALW6: 0 | ALX6: 0 | ALY6: 0 | ALZ6: 0 | AMA6: 0 | AMB6: 0 | AMC6: 0 | AMD6: 0 | AME6: 0 | AMF6: =AMF65+AMF124+AMF183+AMF242+AMF301+AMF360+AMF419 -> 0 | AMG6: 0 | AMH6: 0 | AMI6: 0 | ATF6: =SUM(B6:N6) -> 0 | ATG6: =SUM(O6:AA6) -> 0 | ATH6: =SUM(AB6:AN6) -> 0 | ATI6: =SUM(AO6:BA6) -> 0 | ATJ6: =SUM(BB6:BN6) -> 0 | ATK6: =SUM(BO6:CA6) -> 0 | ATL6: =SUM(CB6:CN6) -> 0 | ATM6: =SUM(CO6:DA6) -> 0 | ATN6: =SUM(DB6:DN6) -> 0 | ATO6: =SUM(DO6:EA6) -> 0 | ATP6: =SUM(EB6:EN6) -> 0 | ATQ6: =SUM(EO6:FB6) -> 0 | ATR6: =SUM(FC6:FO6) -> 0 | ATS6: =SUM(FP6:GB6) -> 0 | ATT6: =SUM(GC6:GO6) -> 0 | ATU6: =SUM(GP6:HB6) -> 0 | ATV6: =SUM(HC6:HO6) -> 0 | ATW6: =SUM(HP6:IB6) -> 0 | ATX6: =SUM(IC6:IO6) -> 0 | ATY6: =SUM(IP6:JB6) -> 0 | ATZ6: =SUM(JC6:JO6) -> 0 | AUA6: =SUM(JP6:KB6) -> 0 | AUB6: =SUM(KC6:KO6) -> 0 | AUC6: =SUM(KP6:LB6) -> 0 | AUD6: =SUM(LC6:LO6) -> 0 | AUE6: =SUM(LP6:MB6) -> 0 | AUF6: =SUM(MC6:MO6) -> 0 | AUG6: =SUM(MP6:NB6) -> 0 | AUH6: =SUM(NC6:NO6) -> 0 | AUI6: =SUM(NP6:OB6) -> 0 | AUJ6: =SUM(OC6:OO6) -> 0 | AUK6: =SUM(OP6:PB6) -> 0 | AUL6: =SUM(PC6:PO6) -> 0 | AUM6: =SUM(PP6:QB6) -> 0 | AUN6: =SUM(QC6:QO6) -> 0 | AUO6: =SUM(QP6:RC6) -> 0 | AUP6: =SUM(RD6:RP6) -> 0 | AUQ6: =SUM(RQ6:SC6) -> 0 | AUR6: =SUM(SD6:SP6) -> 0 | AUS6: =SUM(SQ6:TC6) -> 0 | AUT6: =SUM(TD6:TP6) -> 0 | AUU6: =SUM(TQ6:UC6) -> 0 | AUV6: =SUM(UD6:UP6) -> 0 | AUW6: =SUM(UQ6:VC6) -> 0 | AUX6: =SUM(VD6:VP6) -> 0 | AUY6: =SUM(VQ6:WC6) -> 0 | AUZ6: =SUM(WD6:WP6) -> 0 | AVA6: =SUM(WQ6:XC6) -> 0 | AVB6: =SUM(XD6:XP6) -> 0 | AVC6: =SUM(XQ6:YC6) -> 0 | AVD6: =SUM(YD6:YP6) -> 0 | AVE6: =SUM(YQ6:ZC6) -> 0 | AVF6: =SUM(ZD6:ZP6) -> 0 | AVG6: =SUM(ZQ6:AAC6) -> 0 | AVH6: =SUM(AAD6:AAP6) -> 0 | AVI6: =SUM(AAQ6:ABC6) -> 0 | AVJ6: =SUM(ABD6:ABP6) -> 0 | AVK6: =SUM(ABQ6:ACC6) -> 0 | AVL6: =SUM(ACD6:ACP6) -> 0 | AVM6: =SUM(ACQ6:ADD6) -> 0 | AVN6: =SUM(ADE6:ADQ6) -> 0 | AVO6: =SUM(ADR6:AED6) -> 0 | AVP6: =SUM(AEE6:AEQ6) -> 0 | AVQ6: =SUM(AER6:AFD6) -> 0 | AVR6: =SUM(AFE6:AFQ6) -> 0 | AVS6: =SUM(AFR6:AGD6) -> 0 | AVT6: =SUM(AGE6:AGQ6) -> 0 | AVU6: =SUM(AGR6:AHD6) -> 0 | AVV6: =SUM(AHE6:AHQ6) -> 0 | AVW6: =SUM(AHR6:AID6) -> 0 | AVX6: =SUM(AIE6:AIQ6) -> 0 | AVY6: =SUM(AIR6:AJD6) -> 0 | AVZ6: =SUM(AJE6:AJQ6) -> 0 | AWA6: =SUM(AJR6:AKD6) -> 0 | AWB6: =SUM(AKE6:AKQ6) -> 0 | AWC6: =SUM(AKR6:ALD6) -> 0 | AWD6: =SUM(ALE6:ALQ6) -> 0 | AWE6: =SUM(ALR6:AMD6) -> 0 | AWF6: =SUM(AME6:AMI6) -> 0 | AWM6: =SUM(B6:BA6) -> 0 | AWN6: =SUM(BB6:DA6) -> 0 | AWO6: =SUM(DB6:FB6) -> 0 | AWP6: =SUM(FC6:HB6) -> 0 | AWQ6: =SUM(HC6:JB6) -> 0 | AWR6: =SUM(JC6:LB6) -> 0 | AWS6: =SUM(LC6:NB6) -> 0 | AWT6: =SUM(NC6:PB6) -> 0 | AWU6: =SUM(PC6:RC6) -> 0 | AWV6: =SUM(RD6:TC6) -> 0 | AWW6: =SUM(TD6:VC6) -> 0 | AWX6: =SUM(VD6:XC6) -> 0 | AWY6: =SUM(XD6:ZC6) -> 0 | AWZ6: =SUM(ZD6:ABC6) -> 0 | AXA6: =SUM(ABD6:ADD6) -> 0 | AXB6: =SUM(ADE6:AFD6) -> 0 | AXC6: =SUM(AFE6:AHD6) -> 0 | AXD6: =SUM(AHE6:AJD6) -> 0 | AXE6: =SUM(AJE6:ALD6) -> 0 | AXF6: =SUM(ALE6:AMI6) -> 0
A7: Farm Products, Ex. Grain | B7: 0 | C7: 0 | D7: 0 | E7: 0 | F7: 0 | G7: 0 | H7: 0 | I7: 0 | J7: 0 | K7: 0 | L7: 0 | M7: 0 | N7: 0 | O7: 0 | P7: 0 | Q7: 0 | R7: 0 | S7: 0 | T7: 0 | U7: 0 | V7: 0 | W7: 0 | X7: 0 | Y7: 0 | Z7: 0 | AA7: 0 | AB7: 0 | AC7: 0 | AD7: 0 | AE7: 0 | AF7: 0 | AG7: 0 | AH7: 0 | AI7: 0 | AJ7: 0 | AK7: 0 | AL7: 0 | AM7: 0 | AN7: 0 | AO7: 0 | AP7: 0 | AQ7: 0 | AR7: 0 | AS7: 0 | AT7: 0 | AU7: 0 | AV7: 0 | AW7: 0 | AX7: 0 | AY7: 0 | AZ7: 0 | BA7: 0 | BB7: 0 | BC7: 0 | BD7: 0 | BE7: 0 | BF7: 0 | BG7: 0 | BH7: 0 | BI7: 0 | BJ7: 0 | BK7: 0 | BL7: 0 | BM7: 0 | BN7: 0 | BO7: 0 | BP7: 0 | BQ7: 0 | BR7: 0 | BS7: 0 | BT7: 0 | BU7: 0 | BV7: 0 | BW7: 0 | BX7: 0 | BY7: 0 | BZ7: 0 | CA7: 0 | CB7: 0 | CC7: 0 | CD7: 0 | CE7: 0 | CF7: 0 | CG7: 0 | CH7: 0 | CI7: 0 | CJ7: 0 | CK7: 0 | CL7: 0 | CM7: 0 | CN7: 0 | CO7: 0 | CP7: 0 | CQ7: 0 | CR7: 0 | CS7: 0 | CT7: 0 | CU7: 0 | CV7: 0 | CW7: 0 | CX7: 0 | CY7: 0 | CZ7: 0 | DA7: 0 | DB7: 0 | DC7: 0 | DD7: 0 | DE7: 0 | DF7: 0 | DG7: 0 | DH7: 0 | DI7: 0 | DJ7: 0 | DK7: 0 | DL7: 0 | DM7: 0 | DN7: 0 | DO7: 0 | DP7: 0 | DQ7: 0 | DR7: 0 | DS7: 0 | DT7: 0 | DU7: 0 | DV7: 0 | DW7: 0 | DX7: 0 | DY7: 0 | DZ7: 0 | EA7: 0 | EB7: 0 | EC7: 0 | ED7: 0 | EE7: 0 | EF7: 0 | EG7: 0 | EH7: 0 | EI7: 0 | EJ7: 0 | EK7: 0 | EL7: 0 | EM7: 0 | EN7: 0 | EO7: 0 | EP7: 0 | EQ7: 0 | ER7: 0 | ES7: 0 | ET7: 0 | EU7: 0 | EV7: 0 | EW7: 0 | EX7: 0 | EY7: 0 | EZ7: 0 | FA7: 0 | FB7: 0 | FC7: 0 | FD7: 0 | FE7: 0 | FF7: 0 | FG7: 0 | FH7: 0 | FI7: 0 | FJ7: 0 | FK7: 0 | FL7: 0 | FM7: 0 | FN7: 0 | FO7: 0 | FP7: 0 | FQ7: 0 | FR7: 0 | FS7: 0 | FT7: 0 | FU7: 0 | FV7: 0 | FW7: 0 | FX7: 0 | FY7: 0 | FZ7: 0 | GA7: 0 | GB7: 0 | GC7: 0 | GD7: 0 | GE7: 0 | GF7: 0 | GG7: 0 | GH7: 0 | GI7: 0 | GJ7: 0 | GK7: 0 | GL7: 0 | GM7: 0 | GN7: 0 | GO7: 0 | GP7: 0 | GQ7: 0 | GR7: 0 | GS7: 0 | GT7: 0 | GU7: 0 | GV7: 0 | GW7: 0 | GX7: 0 | GY7: 0 | GZ7: 0 | HA7: 0 | HB7: 0 | HC7: 0 | HD7: 0 | HE7: 0 | HF7: 0 | HG7: 0 | HH7: 0 | HI7: 0 | HJ7: 0 | HK7: 0 | HL7: 0 | HM7: 0 | HN7: 0 | HO7: 0 | HP7: 0 | HQ7: 0 | HR7: 0 | HS7: 0 | HT7: 0 | HU7: 0 | HV7: 0 | HW7: 0 | HX7: 0 | HY7: 0 | HZ7: 0 | IA7: 0 | IB7: 0 | IC7: 0 | ID7: 0 | IE7: 0 | IF7: 0 | IG7: 0 | IH7: 0 | II7: 0 | IJ7: 0 | IK7: 0 | IL7: 0 | IM7: 0 | IN7: 0 | IO7: 0 | IP7: 0 | IQ7: 0 | IR7: 0 | IS7: 0 | IT7: 0 | IU7: 0 | IV7: 0 | IW7: 0 | IX7: 0 | IY7: 0 | IZ7: 0 | JA7: 0 | JB7: 0 | JC7: 0 | JD7: 0 | JE7: 0 | JF7: 0 | JG7: 0 | JH7: 0 | JI7: 0 | JJ7: 0 | JK7: 0 | JL7: 0 | JM7: 0 | JN7: 0 | JO7: 0 | JP7: 0 | JQ7: 0 | JR7: 0 | JS7: 0 | JT7: 0 | JU7: 0 | JV7: 0 | JW7: 0 | JX7: 0 | JY7: 0 | JZ7: 0 | KA7: 0 | KB7: 0 | KC7: 0 | KD7: 0 | KE7: 0 | KF7: 0 | KG7: 0 | KH7: 0 | KI7: 0 | KJ7: 0 | KK7: 0 | KL7: 0 | KM7: 0 | KN7: 0 | KO7: 0 | KP7: 0 | KQ7: 0 | KR7: 0 | KS7: 0 | KT7: 0 | KU7: 0 | KV7: 0 | KW7: 0 | KX7: 0 | KY7: 0 | KZ7: 0 | LA7: 0 | LB7: 0 | LC7: 0 | LD7: 0 | LE7: 0 | LF7: 0 | LG7: 0 | LH7: 0 | LI7: 0 | LJ7: 0 | LK7: 0 | LL7: 0 | LM7: 0 | LN7: 0 | LO7: 0 | LP7: 0 | LQ7: 0 | LR7: 0 | LS7: 0 | LT7: 0 | LU7: 0 | LV7: 0 | LW7: 0 | LX7: 0 | LY7: 0 | LZ7: 0 | MA7: 0 | MB7: 0 | MC7: 0 | MD7: 0 | ME7: 0 | MF7: 0 | MG7: 0 | MH7: 0 | MI7: 0 | MJ7: 0 | MK7: 0 | ML7: 0 | MM7: 0 | MN7: 0 | MO7: 0 | MP7: 0 | MQ7: 0 | MR7: 0 | MS7: 0 | MT7: 0 | MU7: 0 | MV7: 0 | MW7: 0 | MX7: 0 | MY7: 0 | MZ7: 0 | NA7: 0 | NB7: 0 | NC7: 0 | ND7: 0 | NE7: 0 | NF7: 0 | NG7: 0 | NH7: 0 | NI7: 0 | NJ7: 0 | NK7: 0 | NL7: 0 | NM7: 0 | NN7: 0 | NO7: 0 | NP7: 0 | NQ7: 0 | NR7: 0 | NS7: 0 | NT7: 0 | NU7: 0 | NV7: 0 | NW7: 0 | NX7: 0 | NY7: 0 | NZ7: 0 | OA7: 0 | OB7: 0 | OC7: 0 | OD7: 0 | OE7: 0 | OF7: 0 | OG7: 0 | OH7: 0 | OI7: 0 | OJ7: 0 | OK7: 0 | OL7: 0 | OM7: 0 | ON7: 0 | OO7: 0 | OP7: 0 | OQ7: 0 | OR7: 0 | OS7: 0 | OT7: 0 | OU7: 0 | OV7: 0 | OW7: 0 | OX7: 0 | OY7: 0 | OZ7: 0 | PA7: 0 | PB7: 0 | PC7: 0 | PD7: 0 | PE7: 0 | PF7: 0 | PG7: 0 | PH7: 0 | PI7: 0 | PJ7: 0 | PK7: 0 | PL7: 0 | PM7: 0 | PN7: 0 | PO7: 0 | PP7: 0 | PQ7: 0 | PR7: 0 | PS7: 0 | PT7: 0 | PU7: 0 | PV7: 0 | PW7: 0 | PX7: 0 | PY7: 0 | PZ7: 0 | QA7: 0 | QB7: 0 | QC7: 0 | QD7: 0 | QE7: 0 | QF7: 0 | QG7: 0 | QH7: 0 | QI7: 0 | QJ7: 0 | QK7: 0 | QL7: 0 | QM7: 0 | QN7: 0 | QO7: 0 | QP7: 0 | QQ7: 0 | QR7: 0 | QS7: 0 | QT7: 0 | QU7: 0 | QV7: 0 | QW7: 0 | QX7: 0 | QY7: 0 | QZ7: 0 | RA7: 0 | RB7: 0 | RC7: 0 | RD7: 0 | RE7: 0 | RF7: 0 | RG7: 0 | RH7: 0 | RI7: 0 | RJ7: 0 | RK7: 0 | RL7: 0 | RM7: 0 | RN7: 0 | RO7: 0 | RP7: 0 | RQ7: 0 | RR7: 0 | RS7: 0 | RT7: 0 | RU7: 0 | RV7: 0 | RW7: 0 | RX7: 0 | RY7: 0 | RZ7: 0 | SA7: 0 | SB7: 0 | SC7: 0 | SD7: 0 | SE7: 0 | SF7: 0 | SG7: 0 | SH7: 0 | SI7: 0 | SJ7: 0 | SK7: 0 | SL7: 0 | SM7: 0 | SN7: 0 | SO7: 0 | SP7: 0 | SQ7: 0 | SR7: 0 | SS7: 0 | ST7: 0 | SU7: 0 | SV7: 0 | SW7: 0 | SX7: 0 | SY7: 0 | SZ7: 0 | TA7: 0 | TB7: 0 | TC7: 0 | TD7: 0 | TE7: 0 | TF7: 0 | TG7: 0 | TH7: 0 | TI7: 0 | TJ7: 0 | TK7: 0 | TL7: 0 | TM7: 0 | TN7: 0 | TO7: 0 | TP7: 0 | TQ7: 0 | TR7: 0 | TS7: 0 | TT7: 0 | TU7: 0 | TV7: 0 | TW7: 0 | TX7: 0 | TY7: 0 | TZ7: 0 | UA7: 0 | UB7: 0 | UC7: 0 | UD7: 0 | UE7: 0 | UF7: 0 | UG7: 0 | UH7: 0 | UI7: 0 | UJ7: 0 | UK7: 0 | UL7: 0 | UM7: 0 | UN7: 0 | UO7: 0 | UP7: 0 | UQ7: 0 | UR7: 0 | US7: 0 | UT7: 0 | UU7: 0 | UV7: 0 | UW7: 0 | UX7: 0 | UY7: 0 | UZ7: 0 | VA7: 0 | VB7: 0 | VC7: 0 | VD7: 0 | VE7: 0 | VF7: 0 | VG7: 0 | VH7: 0 | VI7: 0 | VJ7: 0 | VK7: 0 | VL7: 0 | VM7: 0 | VN7: 0 | VO7: 0 | VP7: 0 | VQ7: 0 | VR7: 0 | VS7: 0 | VT7: 0 | VU7: 0 | VV7: 0 | VW7: 0 | VX7: 0 | VY7: 0 | VZ7: 0 | WA7: 0 | WB7: 0 | WC7: 0 | WD7: 0 | WE7: 0 | WF7: 0 | WG7: 0 | WH7: 0 | WI7: 0 | WJ7: 0 | WK7: 0 | WL7: 0 | WM7: 0 | WN7: 0 | WO7: 0 | WP7: 0 | WQ7: 0 | WR7: 0 | WS7: 0 | WT7: 0 | WU7: 0 | WV7: 0 | WW7: 0 | WX7: 0 | WY7: 0 | WZ7: 0 | XA7: 0 | XB7: 0 | XC7: 0 | XD7: 0 | XE7: 0 | XF7: 0 | XG7: 0 | XH7: 0 | XI7: 0 | XJ7: 0 | XK7: 0 | XL7: 0 | XM7: 0 | XN7: 0 | XO7: 0 | XP7: 0 | XQ7: 0 | XR7: 0 | XS7: 0 | XT7: 0 | XU7: 0 | XV7: 0 | XW7: 0 | XX7: 0 | XY7: 0 | XZ7: 0 | YA7: 0 | YB7: 0 | YC7: 0 | YD7: 0 | YE7: 0 | YF7: 0 | YG7: 0 | YH7: 0 | YI7: 0 | YJ7: 0 | YK7: 0 | YL7: 0 | YM7: 0 | YN7: 0 | YO7: 0 | YP7: 0 | YQ7: 0 | YR7: 0 | YS7: 0 | YT7: 0 | YU7: 0 | YV7: 0 | YW7: 0 | YX7: 0 | YY7: 0 | YZ7: 0 | ZA7: 0 | ZB7: 0 | ZC7: 0 | ZD7: 0 | ZE7: 0 | ZF7: 0 | ZG7: 0 | ZH7: 0 | ZI7: 0 | ZJ7: 0 | ZK7: 0 | ZL7: 0 | ZM7: 0 | ZN7: 0 | ZO7: 0 | ZP7: 0 | ZQ7: 0 | ZR7: 0 | ZS7: 0 | ZT7: 0 | ZU7: 0 | ZV7: 0 | ZW7: 0 | ZX7: 0 | ZY7: 0 | ZZ7: 0 | AAA7: 0 | AAB7: 0 | AAC7: 0 | AAD7: 0 | AAE7: 0 | AAF7: 0 | AAG7: 0 | AAH7: 0 | AAI7: 0 | AAJ7: 0 | AAK7: 0 | AAL7: 0 | AAM7: 0 | AAN7: 0 | AAO7: 0 | AAP7: 0 | AAQ7: 0 | AAR7: 0 | AAS7: 0 | AAT7: 0 | AAU7: 0 | AAV7: 0 | AAW7: 0 | AAX7: 0 | AAY7: 0 | AAZ7: 0 | ABA7: 0 | ABB7: 0 | ABC7: 0 | ABD7: 0 | ABE7: 0 | ABF7: 0 | ABG7: 0 | ABH7: 0 | ABI7: 0 | ABJ7: 0 | ABK7: 0 | ABL7: 0 | ABM7: 0 | ABN7: 0 | ABO7: 0 | ABP7: 0 | ABQ7: 0 | ABR7: 0 | ABS7: 0 | ABT7: 0 | ABU7: 0 | ABV7: 0 | ABW7: 0 | ABX7: 0 | ABY7: 0 | ABZ7: 0 | ACA7: 0 | ACB7: 0 | ACC7: 0 | ACD7: 0 | ACE7: 0 | ACF7: 0 | ACG7: 0 | ACH7: 0 | ACI7: 0 | ACJ7: 0 | ACK7: 0 | ACL7: 0 | ACM7: 0 | ACN7: 0 | ACO7: 0 | ACP7: 0 | ACQ7: 0 | ACR7: 0 | ACS7: 0 | ACT7: 0 | ACU7: 0 | ACV7: 0 | ACW7: 0 | ACX7: 0 | ACY7: 0 | ACZ7: 0 | ADA7: 0 | ADB7: 0 | ADC7: 0 | ADD7: 0 | ADE7: 0 | ADF7: 0 | ADG7: 0 | ADH7: 0 | ADI7: 0 | ADJ7: 0 | ADK7: 0 | ADL7: 0 | ADM7: 0 | ADN7: 0 | ADO7: 0 | ADP7: 0 | ADQ7: 0 | ADR7: 0 | ADS7: 0 | ADT7: 0 | ADU7: 0 | ADV7: 0 | ADW7: 0 | ADX7: 0 | ADY7: 0 | ADZ7: 0 | AEA7: 0 | AEB7: 0 | AEC7: 0 | AED7: 0 | AEE7: 0 | AEF7: 0 | AEG7: 0 | AEH7: 0 | AEI7: 0 | AEJ7: 0 | AEK7: 0 | AEL7: 0 | AEM7: 0 | AEN7: 0 | AEO7: 0 | AEP7: 0 | AEQ7: 0 | AER7: 0 | AES7: 0 | AET7: 0 | AEU7: 0 | AEV7: 0 | AEW7: 0 | AEX7: 0 | AEY7: 0 | AEZ7: 0 | AFA7: 0 | AFB7: 0 | AFC7: 0 | AFD7: 0 | AFE7: 0 | AFF7: 0 | AFG7: 0 | AFH7: 0 | AFI7: 0 | AFJ7: 0 | AFK7: 0 | AFL7: 0 | AFM7: 0 | AFN7: 0 | AFO7: 0 | AFP7: 0 | AFQ7: 0 | AFR7: 0 | AFS7: 0 | AFT7: 0 | AFU7: 0 | AFV7: 0 | AFW7: 0 | AFX7: 0 | AFY7: 0 | AFZ7: 0 | AGA7: 0 | AGB7: 0 | AGC7: 0 | AGD7: 0 | AGE7: 0 | AGF7: 0 | AGG7: 0 | AGH7: 0 | AGI7: 0 | AGJ7: 0 | AGK7: 0 | AGL7: 0 | AGM7: 0 | AGN7: 0 | AGO7: 0 | AGP7: 0 | AGQ7: 0 | AGR7: 0 | AGS7: 0 | AGT7: 0 | AGU7: 0 | AGV7: 0 | AGW7: 0 | AGX7: 0 | AGY7: 0 | AGZ7: 0 | AHA7: 0 | AHB7: 0 | AHC7: 0 | AHD7: 0 | AHE7: 0 | AHF7: 0 | AHG7: 0 | AHH7: 0 | AHI7: 0 | AHJ7: 0 | AHK7: 0 | AHL7: 0 | AHM7: 0 | AHN7: 0 | AHO7: 0 | AHP7: 0 | AHQ7: 0 | AHR7: 0 | AHS7: 0 | AHT7: 0 | AHU7: 0 | AHV7: 0 | AHW7: 0 | AHX7: 0 | AHY7: 0 | AHZ7: 0 | AIA7: 0 | AIB7: 0 | AIC7: 0 | AID7: 0 | AIE7: 0 | AIF7: 0 | AIG7: 0 | AIH7: 0 | AII7: 0 | AIJ7: 0 | AIK7: 0 | AIL7: 0 | AIM7: 0 | AIN7: 0 | AIO7: 0 | AIP7: 0 | AIQ7: 0 | AIR7: 0 | AIS7: 0 | AIT7: 0 | AIU7: 0 | AIV7: 0 | AIW7: 0 | AIX7: 0 | AIY7: 0 | AIZ7: 0 | AJA7: 0 | AJB7: 0 | AJC7: 0 | AJD7: 0 | AJE7: 0 | AJF7: 0 | AJG7: 0 | AJH7: 0 | AJI7: 0 | AJJ7: 0 | AJK7: 0 | AJL7: 0 | AJM7: 0 | AJN7: 0 | AJO7: 0 | AJP7: 0 | AJQ7: 0 | AJR7: 0 | AJS7: 0 | AJT7: 0 | AJU7: 0 | AJV7: 0 | AJW7: 0 | AJX7: 0 | AJY7: 0 | AJZ7: 0 | AKA7: 0 | AKB7: 0 | AKC7: 0 | AKD7: 0 | AKE7: 0 | AKF7: 0 | AKG7: 0 | AKH7: 0 | AKI7: 0 | AKJ7: 0 | AKK7: 0 | AKL7: 0 | AKM7: 0 | AKN7: =AKN66+AKN139+AKN184+AKN243+AKN302+AKN361+AKN420 -> 0 | AKO7: 0 | AKP7: 0 | AKQ7: 0 | AKR7: 0 | AKS7: 0 | AKT7: 0 | AKU7: 0 | AKV7: 0 | AKW7: 0 | AKX7: 0 | AKY7: 0 | AKZ7: 0 | ALA7: 0 | ALB7: 0 | ALC7: 0 | ALD7: 0 | ALE7: =ALE66+ALE139+ALE184+ALE243+ALE302+ALE361+ALE420 -> 0 | ALF7: 0 | ALG7: 0 | ALH7: 0 | ALI7: =ALI66+ALI139+ALI184+ALI243+ALI302+ALI361+ALI420 -> 0 | ALJ7: 0 | ALK7: 0 | ALL7: =ALL66+ALL139+ALL184+ALL243+ALL302+ALL361+ALL420 -> 0 | ALM7: =ALM66+ALM139+ALM184+ALM243+ALM302+ALM361+ALM420 -> 0 | ALN7: =ALN66+ALN139+ALN184+ALN243+ALN302+ALN361+ALN420 -> 0 | ALO7: =ALO66+ALO139+ALO184+ALO243+ALO302+ALO361+ALO420 -> 0 | ALP7: =ALP66+ALP139+ALP184+ALP243+ALP302+ALP361+ALP420 -> 0 | ALQ7: =ALQ66+ALQ139+ALQ184+ALQ243+ALQ302+ALQ361+ALQ420 -> 0 | ALR7: 0 | ALS7: =ALS66+ALS139+ALS184+ALS243+ALS302+ALS361+ALS420 -> 0 | ALT7: 0 | ALU7: 0 | ALV7: 0 | ALW7: 0 | ALX7: 0 | ALY7: 0 | ALZ7: 0 | AMA7: 0 | AMB7: 0 | AMC7: 0 | AMD7: 0 | AME7: 0 | AMF7: =AMF66+AMF139+AMF184+AMF243+AMF302+AMF361+AMF420 -> 0 | AMG7: 0 | AMH7: 0 | AMI7: 0 | ATF7: =SUM(B7:N7) -> 0 | ATG7: =SUM(O7:AA7) -> 0 | ATH7: =SUM(AB7:AN7) -> 0 | ATI7: =SUM(AO7:BA7) -> 0 | ATJ7: =SUM(BB7:BN7) -> 0 | ATK7: =SUM(BO7:CA7) -> 0 | ATL7: =SUM(CB7:CN7) -> 0 | ATM7: =SUM(CO7:DA7) -> 0 | ATN7: =SUM(DB7:DN7) -> 0 | ATO7: =SUM(DO7:EA7) -> 0 | ATP7: =SUM(EB7:EN7) -> 0 | ATQ7: =SUM(EO7:FB7) -> 0 | ATR7: =SUM(FC7:FO7) -> 0 | ATS7: =SUM(FP7:GB7) -> 0 | ATT7: =SUM(GC7:GO7) -> 0 | ATU7: =SUM(GP7:HB7) -> 0 | ATV7: =SUM(HC7:HO7) -> 0 | ATW7: =SUM(HP7:IB7) -> 0 | ATX7: =SUM(IC7:IO7) -> 0 | ATY7: =SUM(IP7:JB7) -> 0 | ATZ7: =SUM(JC7:JO7) -> 0 | AUA7: =SUM(JP7:KB7) -> 0 | AUB7: =SUM(KC7:KO7) -> 0 | AUC7: =SUM(KP7:LB7) -> 0 | AUD7: =SUM(LC7:LO7) -> 0 | AUE7: =SUM(LP7:MB7) -> 0 | AUF7: =SUM(MC7:MO7) -> 0 | AUG7: =SUM(MP7:NB7) -> 0 | AUH7: =SUM(NC7:NO7) -> 0 | AUI7: =SUM(NP7:OB7) -> 0 | AUJ7: =SUM(OC7:OO7) -> 0 | AUK7: =SUM(OP7:PB7) -> 0 | AUL7: =SUM(PC7:PO7) -> 0 | AUM7: =SUM(PP7:QB7) -> 0 | AUN7: =SUM(QC7:QO7) -> 0 | AUO7: =SUM(QP7:RC7) -> 0 | AUP7: =SUM(RD7:RP7) -> 0 | AUQ7: =SUM(RQ7:SC7) -> 0 | AUR7: =SUM(SD7:SP7) -> 0 | AUS7: =SUM(SQ7:TC7) -> 0 | AUT7: =SUM(TD7:TP7) -> 0 | AUU7: =SUM(TQ7:UC7) -> 0 | AUV7: =SUM(UD7:UP7) -> 0 | AUW7: =SUM(UQ7:VC7) -> 0 | AUX7: =SUM(VD7:VP7) -> 0 | AUY7: =SUM(VQ7:WC7) -> 0 | AUZ7: =SUM(WD7:WP7) -> 0 | AVA7: =SUM(WQ7:XC7) -> 0 | AVB7: =SUM(XD7:XP7) -> 0 | AVC7: =SUM(XQ7:YC7) -> 0 | AVD7: =SUM(YD7:YP7) -> 0 | AVE7: =SUM(YQ7:ZC7) -> 0 | AVF7: =SUM(ZD7:ZP7) -> 0 | AVG7: =SUM(ZQ7:AAC7) -> 0 | AVH7: =SUM(AAD7:AAP7) -> 0 | AVI7: =SUM(AAQ7:ABC7) -> 0 | AVJ7: =SUM(ABD7:ABP7) -> 0 | AVK7: =SUM(ABQ7:ACC7) -> 0 | AVL7: =SUM(ACD7:ACP7) -> 0 | AVM7: =SUM(ACQ7:ADD7) -> 0 | AVN7: =SUM(ADE7:ADQ7) -> 0 | AVO7: =SUM(ADR7:AED7) -> 0 | AVP7: =SUM(AEE7:AEQ7) -> 0 | AVQ7: =SUM(AER7:AFD7) -> 0 | AVR7: =SUM(AFE7:AFQ7) -> 0 | AVS7: =SUM(AFR7:AGD7) -> 0 | AVT7: =SUM(AGE7:AGQ7) -> 0 | AVU7: =SUM(AGR7:AHD7) -> 0 | AVV7: =SUM(AHE7:AHQ7) -> 0 | AVW7: =SUM(AHR7:AID7) -> 0 | AVX7: =SUM(AIE7:AIQ7) -> 0 | AVY7: =SUM(AIR7:AJD7) -> 0 | AVZ7: =SUM(AJE7:AJQ7) -> 0 | AWA7: =SUM(AJR7:AKD7) -> 0 | AWB7: =SUM(AKE7:AKQ7) -> 0 | AWC7: =SUM(AKR7:ALD7) -> 0 | AWD7: =SUM(ALE7:ALQ7) -> 0 | AWE7: =SUM(ALR7:AMD7) -> 0 | AWF7: =SUM(AME7:AMI7) -> 0 | AWM7: 0 | AWN7: 0 | AWO7: 0 | AWP7: 0 | AWQ7: 0 | AWR7: 0 | AWS7: 0 | AWT7: 0 | AWU7: 0 | AWV7: 0 | AWW7: 0 | AWX7: 0 | AWY7: 0 | AWZ7: 0 | AXA7: 0 | AXB7: 0 | AXC7: 0 | AXD7: =SUM(AHE7:AJD7) -> 0 | AXE7: =SUM(AJE7:ALD7) -> 0 | AXF7: =SUM(ALE7:AMI7) -> 0
A8: Metallic Ores | B8: 0 | C8: 0 | D8: 0 | E8: 0 | F8: 0 | G8: 0 | H8: 0 | I8: 0 | J8: 0 | K8: 0 | L8: 0 | M8: 0 | N8: 0 | O8: 0 | P8: 0 | Q8: 0 | R8: 0 | S8: 0 | T8: 0 | U8: 0 | V8: 0 | W8: 0 | X8: 0 | Y8: 0 | Z8: 0 | AA8: 0 | AB8: 0 | AC8: 0 | AD8: 0 | AE8: 0 | AF8: 0 | AG8: 0 | AH8: 0 | AI8: 0 | AJ8: 0 | AK8: 0 | AL8: 0 | AM8: 0 | AN8: 0 | AO8: 0 | AP8: 0 | AQ8: 0 | AR8: 0 | AS8: 0 | AT8: 0 | AU8: 0 | AV8: 0 | AW8: 0 | AX8: 0 | AY8: 0 | AZ8: 0 | BA8: 0 | BB8: 0 | BC8: 0 | BD8: 0 | BE8: 0 | BF8: 0 | BG8: 0 | BH8: 0 | BI8: 0 | BJ8: 0 | BK8: 0 | BL8: 0 | BM8: 0 | BN8: 0 | BO8: 0 | BP8: 0 | BQ8: 0 | BR8: 0 | BS8: 0 | BT8: 0 | BU8: 0 | BV8: 0 | BW8: 0 | BX8: 0 | BY8: 0 | BZ8: 0 | CA8: 0 | CB8: 0 | CC8: 0 | CD8: 0 | CE8: 0 | CF8: 0 | CG8: 0 | CH8: 0 | CI8: 0 | CJ8: 0 | CK8: 0 | CL8: 0 | CM8: 0 | CN8: 0 | CO8: 0 | CP8: 0 | CQ8: 0 | CR8: 0 | CS8: 0 | CT8: 0 | CU8: 0 | CV8: 0 | CW8: 0 | CX8: 0 | CY8: 0 | CZ8: 0 | DA8: 0 | DB8: 0 | DC8: 0 | DD8: 0 | DE8: 0 | DF8: 0 | DG8: 0 | DH8: 0 | DI8: 0 | DJ8: 0 | DK8: 0 | DL8: 0 | DM8: 0 | DN8: 0 | DO8: 0 | DP8: 0 | DQ8: 0 | DR8: 0 | DS8: 0 | DT8: 0 | DU8: 0 | DV8: 0 | DW8: 0 | DX8: 0 | DY8: 0 | DZ8: 0 | EA8: 0 | EB8: 0 | EC8: 0 | ED8: 0 | EE8: 0 | EF8: 0 | EG8: 0 | EH8: 0 | EI8: 0 | EJ8: 0 | EK8: 0 | EL8: 0 | EM8: 0 | EN8: 0 | EO8: 0 | EP8: 0 | EQ8: 0 | ER8: 0 | ES8: 0 | ET8: 0 | EU8: 0 | EV8: 0 | EW8: 0 | EX8: 0 | EY8: 0 | EZ8: 0 | FA8: 0 | FB8: 0 | FC8: 0 | FD8: 0 | FE8: 0 | FF8: 0 | FG8: 0 | FH8: 0 | FI8: 0 | FJ8: 0 | FK8: 0 | FL8: 0 | FM8: 0 | FN8: 0 | FO8: 0 | FP8: 0 | FQ8: 0 | FR8: 0 | FS8: 0 | FT8: 0 | FU8: 0 | FV8: 0 | FW8: 0 | FX8: 0 | FY8: 0 | FZ8: 0 | GA8: 0 | GB8: 0 | GC8: 0 | GD8: 0 | GE8: 0 | GF8: 0 | GG8: 0 | GH8: 0 | GI8: 0 | GJ8: 0 | GK8: 0 | GL8: 0 | GM8: 0 | GN8: 0 | GO8: 0 | GP8: 0 | GQ8: 0 | GR8: 0 | GS8: 0 | GT8: 0 | GU8: 0 | GV8: 0 | GW8: 0 | GX8: 0 | GY8: 0 | GZ8: 0 | HA8: 0 | HB8: 0 | HC8: 0 | HD8: 0 | HE8: 0 | HF8: 0 | HG8: 0 | HH8: 0 | HI8: 0 | HJ8: 0 | HK8: 0 | HL8: 0 | HM8: 0 | HN8: 0 | HO8: 0 | HP8: 0 | HQ8: 0 | HR8: 0 | HS8: 0 | HT8: 0 | HU8: 0 | HV8: 0 | HW8: 0 | HX8: 0 | HY8: 0 | HZ8: 0 | IA8: 0 | IB8: 0 | IC8: 0 | ID8: 0 | IE8: 0 | IF8: 0 | IG8: 0 | IH8: 0 | II8: 0 | IJ8: 0 | IK8: 0 | IL8: 0 | IM8: 0 | IN8: 0 | IO8: 0 | IP8: 0 | IQ8: 0 | IR8: 0 | IS8: 0 | IT8: 0 | IU8: 0 | IV8: 0 | IW8: 0 | IX8: 0 | IY8: 0 | IZ8: 0 | JA8: 0 | JB8: 0 | JC8: 0 | JD8: 0 | JE8: 0 | JF8: 0 | JG8: 0 | JH8: 0 | JI8: 0 | JJ8: 0 | JK8: 0 | JL8: 0 | JM8: 0 | JN8: 0 | JO8: 0 | JP8: 0 | JQ8: 0 | JR8: 0 | JS8: 0 | JT8: 0 | JU8: 0 | JV8: 0 | JW8: 0 | JX8: 0 | JY8: 0 | JZ8: 0 | KA8: 0 | KB8: 0 | KC8: 0 | KD8: 0 | KE8: 0 | KF8: 0 | KG8: 0 | KH8: 0 | KI8: 0 | KJ8: 0 | KK8: 0 | KL8: 0 | KM8: 0 | KN8: 0 | KO8: 0 | KP8: 0 | KQ8: 0 | KR8: 0 | KS8: 0 | KT8: 0 | KU8: 0 | KV8: 0 | KW8: 0 | KX8: 0 | KY8: 0 | KZ8: 0 | LA8: 0 | LB8: 0 | LC8: 0 | LD8: 0 | LE8: 0 | LF8: 0 | LG8: 0 | LH8: 0 | LI8: 0 | LJ8: 0 | LK8: 0 | LL8: 0 | LM8: 0 | LN8: 0 | LO8: 0 | LP8: 0 | LQ8: 0 | LR8: 0 | LS8: 0 | LT8: 0 | LU8: 0 | LV8: 0 | LW8: 0 | LX8: 0 | LY8: 0 | LZ8: 0 | MA8: 0 | MB8: 0 | MC8: 0 | MD8: 0 | ME8: 0 | MF8: 0 | MG8: 0 | MH8: 0 | MI8: 0 | MJ8: 0 | MK8: 0 | ML8: 0 | MM8: 0 | MN8: 0 | MO8: 0 | MP8: 0 | MQ8: 0 | MR8: 0 | MS8: 0 | MT8: 0 | MU8: 0 | MV8: 0 | MW8: 0 | MX8: 0 | MY8: 0 | MZ8: 0 | NA8: 0 | NB8: 0 | NC8: 0 | ND8: 0 | NE8: 0 | NF8: 0 | NG8: 0 | NH8: 0 | NI8: 0 | NJ8: 0 | NK8: 0 | NL8: 0 | NM8: 0 | NN8: 0 | NO8: 0 | NP8: 0 | NQ8: 0 | NR8: 0 | NS8: 0 | NT8: 0 | NU8: 0 | NV8: 0 | NW8: 0 | NX8: 0 | NY8: 0 | NZ8: 0 | OA8: 0 | OB8: 0 | OC8: 0 | OD8: 0 | OE8: 0 | OF8: 0 | OG8: 0 | OH8: 0 | OI8: 0 | OJ8: 0 | OK8: 0 | OL8: 0 | OM8: 0 | ON8: 0 | OO8: 0 | OP8: 0 | OQ8: 0 | OR8: 0 | OS8: 0 | OT8: 0 | OU8: 0 | OV8: 0 | OW8: 0 | OX8: 0 | OY8: 0 | OZ8: 0 | PA8: 0 | PB8: 0 | PC8: 0 | PD8: 0 | PE8: 0 | PF8: 0 | PG8: 0 | PH8: 0 | PI8: 0 | PJ8: 0 | PK8: 0 | PL8: 0 | PM8: 0 | PN8: 0 | PO8: 0 | PP8: 0 | PQ8: 0 | PR8: 0 | PS8: 0 | PT8: 0 | PU8: 0 | PV8: 0 | PW8: 0 | PX8: 0 | PY8: 0 | PZ8: 0 | QA8: 0 | QB8: 0 | QC8: 0 | QD8: 0 | QE8: 0 | QF8: 0 | QG8: 0 | QH8: 0 | QI8: 0 | QJ8: 0 | QK8: 0 | QL8: 0 | QM8: 0 | QN8: 0 | QO8: 0 | QP8: 0 | QQ8: 0 | QR8: 0 | QS8: 0 | QT8: 0 | QU8: 0 | QV8: 0 | QW8: 0 | QX8: 0 | QY8: 0 | QZ8: 0 | RA8: 0 | RB8: 0 | RC8: 0 | RD8: 0 | RE8: 0 | RF8: 0 | RG8: 0 | RH8: 0 | RI8: 0 | RJ8: 0 | RK8: 0 | RL8: 0 | RM8: 0 | RN8: 0 | RO8: 0 | RP8: 0 | RQ8: 0 | RR8: 0 | RS8: 0 | RT8: 0 | RU8: 0 | RV8: 0 | RW8: 0 | RX8: 0 | RY8: 0 | RZ8: 0 | SA8: 0 | SB8: 0 | SC8: 0 | SD8: 0 | SE8: 0 | SF8: 0 | SG8: 0 | SH8: 0 | SI8: 0 | SJ8: 0 | SK8: 0 | SL8: 0 | SM8: 0 | SN8: 0 | SO8: 0 | SP8: 0 | SQ8: 0 | SR8: 0 | SS8: 0 | ST8: 0 | SU8: 0 | SV8: 0 | SW8: 0 | SX8: 0 | SY8: 0 | SZ8: 0 | TA8: 0 | TB8: 0 | TC8: 0 | TD8: 0 | TE8: 0 | TF8: 0 | TG8: 0 | TH8: 0 | TI8: 0 | TJ8: 0 | TK8: 0 | TL8: 0 | TM8: 0 | TN8: 0 | TO8: 0 | TP8: 0 | TQ8: 0 | TR8: 0 | TS8: 0 | TT8: 0 | TU8: 0 | TV8: 0 | TW8: 0 | TX8: 0 | TY8: 0 | TZ8: 0 | UA8: 0 | UB8: 0 | UC8: 0 | UD8: 0 | UE8: 0 | UF8: 0 | UG8: 0 | UH8: 0 | UI8: 0 | UJ8: 0 | UK8: 0 | UL8: 0 | UM8: 0 | UN8: 0 | UO8: 0 | UP8: 0 | UQ8: 0 | UR8: 0 | US8: 0 | UT8: 0 | UU8: 0 | UV8: 0 | UW8: 0 | UX8: 0 | UY8: 0 | UZ8: 0 | VA8: 0 | VB8: 0 | VC8: 0 | VD8: 0 | VE8: 0 | VF8: 0 | VG8: 0 | VH8: 0 | VI8: 0 | VJ8: 0 | VK8: 0 | VL8: 0 | VM8: 0 | VN8: 0 | VO8: 0 | VP8: 0 | VQ8: 0 | VR8: 0 | VS8: 0 | VT8: 0 | VU8: 0 | VV8: 0 | VW8: 0 | VX8: 0 | VY8: 0 | VZ8: 0 | WA8: 0 | WB8: 0 | WC8: 0 | WD8: 0 | WE8: 0 | WF8: 0 | WG8: 0 | WH8: 0 | WI8: 0 | WJ8: 0 | WK8: 0 | WL8: 0 | WM8: 0 | WN8: 0 | WO8: 0 | WP8: 0 | WQ8: 0 | WR8: 0 | WS8: 0 | WT8: 0 | WU8: 0 | WV8: 0 | WW8: 0 | WX8: 0 | WY8: 0 | WZ8: 0 | XA8: 0 | XB8: 0 | XC8: 0 | XD8: 0 | XE8: 0 | XF8: 0 | XG8: 0 | XH8: 0 | XI8: 0 | XJ8: 0 | XK8: 0 | XL8: 0 | XM8: 0 | XN8: 0 | XO8: 0 | XP8: 0 | XQ8: 0 | XR8: 0 | XS8: 0 | XT8: 0 | XU8: 0 | XV8: 0 | XW8: 0 | XX8: 0 | XY8: 0 | XZ8: 0 | YA8: 0 | YB8: 0 | YC8: 0 | YD8: 0 | YE8: 0 | YF8: 0 | YG8: 0 | YH8: 0 | YI8: 0 | YJ8: 0 | YK8: 0 | YL8: 0 | YM8: 0 | YN8: 0 | YO8: 0 | YP8: 0 | YQ8: 0 | YR8: 0 | YS8: 0 | YT8: 0 | YU8: 0 | YV8: 0 | YW8: 0 | YX8: 0 | YY8: 0 | YZ8: 0 | ZA8: 0 | ZB8: 0 | ZC8: 0 | ZD8: 0 | ZE8: 0 | ZF8: 0 | ZG8: 0 | ZH8: 0 | ZI8: 0 | ZJ8: 0 | ZK8: 0 | ZL8: 0 | ZM8: 0 | ZN8: 0 | ZO8: 0 | ZP8: 0 | ZQ8: 0 | ZR8: 0 | ZS8: 0 | ZT8: 0 | ZU8: 0 | ZV8: 0 | ZW8: 0 | ZX8: 0 | ZY8: 0 | ZZ8: 0 | AAA8: 0 | AAB8: 0 | AAC8: 0 | AAD8: 0 | AAE8: 0 | AAF8: 0 | AAG8: 0 | AAH8: 0 | AAI8: 0 | AAJ8: 0 | AAK8: 0 | AAL8: 0 | AAM8: 0 | AAN8: 0 | AAO8: 0 | AAP8: 0 | AAQ8: 0 | AAR8: 0 | AAS8: 0 | AAT8: 0 | AAU8: 0 | AAV8: 0 | AAW8: 0 | AAX8: 0 | AAY8: 0 | AAZ8: 0 | ABA8: 0 | ABB8: 0 | ABC8: 0 | ABD8: 0 | ABE8: 0 | ABF8: 0 | ABG8: 0 | ABH8: 0 | ABI8: 0 | ABJ8: 0 | ABK8: 0 | ABL8: 0 | ABM8: 0 | ABN8: 0 | ABO8: 0 | ABP8: 0 | ABQ8: 0 | ABR8: 0 | ABS8: 0 | ABT8: 0 | ABU8: 0 | ABV8: 0 | ABW8: 0 | ABX8: 0 | ABY8: 0 | ABZ8: 0 | ACA8: 0 | ACB8: 0 | ACC8: 0 | ACD8: 0 | ACE8: 0 | ACF8: 0 | ACG8: 0 | ACH8: 0 | ACI8: 0 | ACJ8: 0 | ACK8: 0 | ACL8: 0 | ACM8: 0 | ACN8: 0 | ACO8: 0 | ACP8: 0 | ACQ8: 0 | ACR8: 0 | ACS8: 0 | ACT8: 0 | ACU8: 0 | ACV8: 0 | ACW8: 0 | ACX8: 0 | ACY8: 0 | ACZ8: 0 | ADA8: 0 | ADB8: 0 | ADC8: 0 | ADD8: 0 | ADE8: 0 | ADF8: 0 | ADG8: 0 | ADH8: 0 | ADI8: 0 | ADJ8: 0 | ADK8: 0 | ADL8: 0 | ADM8: 0 | ADN8: 0 | ADO8: 0 | ADP8: 0 | ADQ8: 0 | ADR8: 0 | ADS8: 0 | ADT8: 0 | ADU8: 0 | ADV8: 0 | ADW8: 0 | ADX8: 0 | ADY8: 0 | ADZ8: 0 | AEA8: 0 | AEB8: 0 | AEC8: 0 | AED8: 0 | AEE8: 0 | AEF8: 0 | AEG8: 0 | AEH8: 0 | AEI8: 0 | AEJ8: 0 | AEK8: 0 | AEL8: 0 | AEM8: 0 | AEN8: 0 | AEO8: 0 | AEP8: 0 | AEQ8: 0 | AER8: 0 | AES8: 0 | AET8: 0 | AEU8: 0 | AEV8: 0 | AEW8: 0 | AEX8: 0 | AEY8: 0 | AEZ8: 0 | AFA8: 0 | AFB8: 0 | AFC8: 0 | AFD8: 0 | AFE8: 0 | AFF8: 0 | AFG8: 0 | AFH8: 0 | AFI8: 0 | AFJ8: 0 | AFK8: 0 | AFL8: 0 | AFM8: 0 | AFN8: 0 | AFO8: 0 | AFP8: 0 | AFQ8: 0 | AFR8: 0 | AFS8: 0 | AFT8: 0 | AFU8: 0 | AFV8: 0 | AFW8: 0 | AFX8: 0 | AFY8: 0 | AFZ8: 0 | AGA8: 0 | AGB8: 0 | AGC8: 0 | AGD8: 0 | AGE8: 0 | AGF8: 0 | AGG8: 0 | AGH8: 0 | AGI8: 0 | AGJ8: 0 | AGK8: 0 | AGL8: 0 | AGM8: 0 | AGN8: 0 | AGO8: 0 | AGP8: 0 | AGQ8: 0 | AGR8: 0 | AGS8: 0 | AGT8: 0 | AGU8: 0 | AGV8: 0 | AGW8: 0 | AGX8: 0 | AGY8: 0 | AGZ8: 0 | AHA8: 0 | AHB8: 0 | AHC8: 0 | AHD8: 0 | AHE8: 0 | AHF8: 0 | AHG8: 0 | AHH8: 0 | AHI8: 0 | AHJ8: 0 | AHK8: 0 | AHL8: 0 | AHM8: 0 | AHN8: 0 | AHO8: 0 | AHP8: 0 | AHQ8: 0 | AHR8: 0 | AHS8: 0 | AHT8: 0 | AHU8: 0 | AHV8: 0 | AHW8: 0 | AHX8: 0 | AHY8: 0 | AHZ8: 0 | AIA8: 0 | AIB8: 0 | AIC8: 0 | AID8: 0 | AIE8: 0 | AIF8: 0 | AIG8: 0 | AIH8: 0 | AII8: 0 | AIJ8: 0 | AIK8: 0 | AIL8: 0 | AIM8: 0 | AIN8: 0 | AIO8: 0 | AIP8: 0 | AIQ8: 0 | AIR8: 0 | AIS8: 0 | AIT8: 0 | AIU8: 0 | AIV8: 0 | AIW8: 0 | AIX8: 0 | AIY8: 0 | AIZ8: 0 | AJA8: 0 | AJB8: 0 | AJC8: 0 | AJD8: 0 | AJE8: 0 | AJF8: 0 | AJG8: 0 | AJH8: 0 | AJI8: 0 | AJJ8: 0 | AJK8: 0 | AJL8: 0 | AJM8: 0 | AJN8: 0 | AJO8: 0 | AJP8: 0 | AJQ8: 0 | AJR8: 0 | AJS8: 0 | AJT8: 0 | AJU8: 0 | AJV8: 0 | AJW8: 0 | AJX8: 0 | AJY8: 0 | AJZ8: 0 | AKA8: 0 | AKB8: 0 | AKC8: 0 | AKD8: 0 | AKE8: 0 | AKF8: 0 | AKG8: 0 | AKH8: 0 | AKI8: 0 | AKJ8: 0 | AKK8: 0 | AKL8: 0 | AKM8: 0 | AKN8: 0 | AKO8: 0 | AKP8: 0 | AKQ8: 0 | AKR8: 0 | AKS8: 0 | AKT8: 0 | AKU8: 0 | AKV8: 0 | AKW8: 0 | AKX8: 0 | AKY8: 0 | AKZ8: 0 | ALA8: 0 | ALB8: 0 | ALC8: 0 | ALD8: 0 | ALE8: 0 | ALF8: 0 | ALG8: 0 | ALH8: 0 | ALI8: =ALI67+ALI126+ALI185+ALI244+ALI303+ALI362+ALI421 -> 0 | ALJ8: 0 | ALK8: 0 | ALL8: 0 | ALM8: 0 | ALN8: 0 | ALO8: 0 | ALP8: 0 | ALQ8: =ALQ67+ALQ126+ALQ185+ALQ244+ALQ303+ALQ362+ALQ421 -> 0 | ALR8: 0 | ALS8: =ALS67+ALS126+ALS185+ALS244+ALS303+ALS362+ALS421 -> 0 | ALT8: 0 | ALU8: 0 | ALV8: 0 | ALW8: 0 | ALX8: 0 | ALY8: 0 | ALZ8: 0 | AMA8: 0 | AMB8: 0 | AMC8: 0 | AMD8: 0 | AME8: 0 | AMF8: =AMF67+AMF126+AMF185+AMF244+AMF303+AMF362+AMF421 -> 0 | AMG8: 0 | AMH8: 0 | AMI8: 0 | ATF8: 0 | ATG8: 0 | ATH8: 0 | ATI8: 0 | ATJ8: 0 | ATK8: 0 | ATL8: 0 | ATM8: 0 | ATN8: 0 | ATO8: 0 | ATP8: 0 | ATQ8: 0 | ATR8: 0 | ATS8: 0 | ATT8: 0 | ATU8: 0 | ATV8: 0 | ATW8: 0 | ATX8: 0 | ATY8: 0 | ATZ8: 0 | AUA8: 0 | AUB8: 0 | AUC8: 0 | AUD8: 0 | AUE8: 0 | AUF8: 0 | AUG8: 0 | AUH8: 0 | AUI8: 0 | AUJ8: 0 | AUK8: 0 | AUL8: 0 | AUM8: 0 | AUN8: 0 | AUO8: 0 | AUP8: 0 | AUQ8: 0 | AUR8: 0 | AUS8: 0 | AUT8: 0 | AUU8: 0 | AUV8: 0 | AUW8: 0 | AUX8: 0 | AUY8: 0 | AUZ8: 0 | AVA8: 0 | AVB8: 0 | AVC8: 0 | AVD8: 0 | AVE8: 0 | AVF8: 0 | AVG8: 0 | AVH8: 0 | AVI8: 0 | AVJ8: 0 | AVK8: 0 | AVL8: 0 | AVM8: 0 | AVN8: 0 | AVO8: 0 | AVP8: 0 | AVQ8: 0 | AVR8: 0 | AVS8: 0 | AVT8: 0 | AVU8: 0 | AVV8: 0 | AVW8: 0 | AVX8: 0 | AVY8: 0 | AVZ8: 0 | AWA8: 0 | AWB8: 0 | AWC8: 0 | AWD8: 0 | AWE8: 0 | AWF8: 0 | AWM8: 0 | AWN8: 0 | AWO8: 0 | AWP8: 0 | AWQ8: 0 | AWR8: 0 | AWS8: 0 | AWT8: 0 | AWU8: 0 | AWV8: 0 | AWW8: 0 | AWX8: 0 | AWY8: 0 | AWZ8: 0 | AXA8: 0 | AXB8: 0 | AXC8: 0 | AXD8: 0 | AXE8: 0 | AXF8: 0
A9: Coal | B9: 0 | C9: 0 | D9: 0 | E9: 0 | F9: 0 | G9: 0 | H9: 0 | I9: 0 | J9: 0 | K9: 0 | L9: 0 | M9: 0 | N9: 0 | O9: 0 | P9: 0 | Q9: 0 | R9: 0 | S9: 0 | T9: 0 | U9: 0 | V9: 0 | W9: 0 | X9: 0 | Y9: 0 | Z9: 0 | AA9: 0 | AB9: 0 | AC9: 0 | AD9: 0 | AE9: 0 | AF9: 0 | AG9: 0 | AH9: 0 | AI9: 0 | AJ9: 0 | AK9: 0 | AL9: 0 | AM9: 0 | AN9: 0 | AO9: 0 | AP9: 0 | AQ9: 0 | AR9: 0 | AS9: 0 | AT9: 0 | AU9: 0 | AV9: 0 | AW9: 0 | AX9: 0 | AY9: 0 | AZ9: 0 | BA9: 0 | BB9: 0 | BC9: 0 | BD9: 0 | BE9: 0 | BF9: 0 | BG9: 0 | BH9: 0 | BI9: 0 | BJ9: 0 | BK9: 0 | BL9: 0 | BM9: =BM68+BM127+BM186+BM245+BM304+BM363+BM422 -> 0 | BN9: 0 | BO9: 0 | BP9: 0 | BQ9: 0 | BR9: 0 | BS9: 0 | BT9: 0 | BU9: 0 | BV9: 0 | BW9: 0 | BX9: 0 | BY9: 0 | BZ9: 0 | CA9: 0 | CB9: 0 | CC9: 0 | CD9: 0 | CE9: 0 | CF9: 0 | CG9: 0 | CH9: 0 | CI9: 0 | CJ9: 0 | CK9: 0 | CL9: 0 | CM9: 0 | CN9: 0 | CO9: 0 | CP9: 0 | CQ9: 0 | CR9: 0 | CS9: 0 | CT9: 0 | CU9: 0 | CV9: 0 | CW9: 0 | CX9: 0 | CY9: 0 | CZ9: 0 | DA9: 0 | DB9: 0 | DC9: 0 | DD9: 0 | DE9: 0 | DF9: 0 | DG9: 0 | DH9: 0 | DI9: 0 | DJ9: 0 | DK9: 0 | DL9: 0 | DM9: 0 | DN9: 0 | DO9: 0 | DP9: 0 | DQ9: 0 | DR9: 0 | DS9: 0 | DT9: 0 | DU9: 0 | DV9: 0 | DW9: 0 | DX9: 0 | DY9: =DY68+DY127+DY186+DY245+DY304+DY363+DY422 -> 0 | DZ9: 0 | EA9: 0 | EB9: 0 | EC9: 0 | ED9: 0 | EE9: 0 | EF9: 0 | EG9: 0 | EH9: 0 | EI9: 0 | EJ9: 0 | EK9: 0 | EL9: 0 | EM9: 0 | EN9: 0 | EO9: 0 | EP9: 0 | EQ9: 0 | ER9: 0 | ES9: 0 | ET9: 0 | EU9: 0 | EV9: 0 | EW9: 0 | EX9: 0 | EY9: 0 | EZ9: 0 | FA9: 0 | FB9: 0 | FC9: 0 | FD9: 0 | FE9: 0 | FF9: 0 | FG9: 0 | FH9: 0 | FI9: 0 | FJ9: 0 | FK9: 0 | FL9: 0 | FM9: 0 | FN9: 0 | FO9: 0 | FP9: 0 | FQ9: 0 | FR9: 0 | FS9: 0 | FT9: 0 | FU9: 0 | FV9: 0 | FW9: 0 | FX9: 0 | FY9: 0 | FZ9: 0 | GA9: 0 | GB9: 0 | GC9: 0 | GD9: 0 | GE9: 0 | GF9: 0 | GG9: 0 | GH9: 0 | GI9: 0 | GJ9: 0 | GK9: =GK68+GK127+GK186+GK245+GK304+GK363+GK422 -> 0 | GL9: 0 | GM9: 0 | GN9: 0 | GO9: 0 | GP9: 0 | GQ9: 0 | GR9: 0 | GS9: 0 | GT9: 0 | GU9: 0 | GV9: 0 | GW9: 0 | GX9: 0 | GY9: 0 | GZ9: 0 | HA9: 0 | HB9: 0 | HC9: 0 | HD9: 0 | HE9: 0 | HF9: 0 | HG9: 0 | HH9: 0 | HI9: 0 | HJ9: 0 | HK9: 0 | HL9: 0 | HM9: 0 | HN9: 0 | HO9: 0 | HP9: 0 | HQ9: 0 | HR9: 0 | HS9: 0 | HT9: 0 | HU9: 0 | HV9: 0 | HW9: 0 | HX9: 0 | HY9: 0 | HZ9: 0 | IA9: 0 | IB9: 0 | IC9: 0 | ID9: 0 | IE9: 0 | IF9: 0 | IG9: 0 | IH9: 0 | II9: 0 | IJ9: 0 | IK9: 0 | IL9: 0 | IM9: 0 | IN9: 0 | IO9: 0 | IP9: 0 | IQ9: 0 | IR9: 0 | IS9: 0 | IT9: 0 | IU9: 0 | IV9: 0 | IW9: =IW68+IW127+IW186+IW245+IW304+IW363+IW422 -> 0 | IX9: 0 | IY9: 0 | IZ9: 0 | JA9: 0 | JB9: 0 | JC9: 0 | JD9: 0 | JE9: 0 | JF9: 0 | JG9: 0 | JH9: 0 | JI9: 0 | JJ9: 0 | JK9: 0 | JL9: 0 | JM9: 0 | JN9: 0 | JO9: 0 | JP9: 0 | JQ9: 0 | JR9: 0 | JS9: 0 | JT9: 0 | JU9: 0 | JV9: 0 | JW9: 0 | JX9: 0 | JY9: 0 | JZ9: 0 | KA9: 0 | KB9: 0 | KC9: 0 | KD9: 0 | KE9: 0 | KF9: 0 | KG9: 0 | KH9: 0 | KI9: 0 | KJ9: 0 | KK9: 0 | KL9: 0 | KM9: 0 | KN9: 0 | KO9: 0 | KP9: 0 | KQ9: 0 | KR9: 0 | KS9: 0 | KT9: 0 | KU9: 0 | KV9: 0 | KW9: 0 | KX9: 0 | KY9: 0 | KZ9: 0 | LA9: 0 | LB9: 0 | LC9: 0 | LD9: 0 | LE9: 0 | LF9: 0 | LG9: 0 | LH9: 0 | LI9: =LI68+LI127+LI186+LI245+LI304+LI363+LI422 -> 0 | LJ9: 0 | LK9: 0 | LL9: 0 | LM9: 0 | LN9: 0 | LO9: 0 | LP9: 0 | LQ9: 0 | LR9: 0 | LS9: 0 | LT9: 0 | LU9: 0 | LV9: 0 | LW9: 0 | LX9: 0 | LY9: 0 | LZ9: 0 | MA9: 0 | MB9: 0 | MC9: 0 | MD9: 0 | ME9: 0 | MF9: 0 | MG9: 0 | MH9: 0 | MI9: 0 | MJ9: 0 | MK9: 0 | ML9: 0 | MM9: 0 | MN9: 0 | MO9: 0 | MP9: 0 | MQ9: 0 | MR9: 0 | MS9: 0 | MT9: 0 | MU9: 0 | MV9: 0 | MW9: 0 | MX9: 0 | MY9: 0 | MZ9: 0 | NA9: 0 | NB9: 0 | NC9: 0 | ND9: 0 | NE9: 0 | NF9: 0 | NG9: 0 | NH9: 0 | NI9: 0 | NJ9: 0 | NK9: 0 | NL9: 0 | NM9: 0 | NN9: 0 | NO9: 0 | NP9: 0 | NQ9: 0 | NR9: 0 | NS9: 0 | NT9: 0 | NU9: =NU68+NU127+NU186+NU245+NU304+NU363+NU422 -> 0 | NV9: 0 | NW9: 0 | NX9: 0 | NY9: 0 | NZ9: 0 | OA9: 0 | OB9: 0 | OC9: 0 | OD9: 0 | OE9: 0 | OF9: 0 | OG9: 0 | OH9: 0 | OI9: 0 | OJ9: 0 | OK9: 0 | OL9: 0 | OM9: 0 | ON9: 0 | OO9: 0 | OP9: 0 | OQ9: 0 | OR9: 0 | OS9: 0 | OT9: 0 | OU9: 0 | OV9: 0 | OW9: 0 | OX9: 0 | OY9: 0 | OZ9: 0 | PA9: 0 | PB9: 0 | PC9: 0 | PD9: 0 | PE9: 0 | PF9: 0 | PG9: 0 | PH9: 0 | PI9: 0 | PJ9: 0 | PK9: 0 | PL9: 0 | PM9: 0 | PN9: 0 | PO9: 0 | PP9: 0 | PQ9: 0 | PR9: 0 | PS9: 0 | PT9: 0 | PU9: 0 | PV9: 0 | PW9: 0 | PX9: 0 | PY9: 0 | PZ9: 0 | QA9: 0 | QB9: 0 | QC9: 0 | QD9: 0 | QE9: 0 | QF9: 0 | QG9: =QG68+QG127+QG186+QG245+QG304+QG363+QG422 -> 0 | QH9: 0 | QI9: 0 | QJ9: 0 | QK9: 0 | QL9: 0 | QM9: 0 | QN9: 0 | QO9: 0 | QP9: 0 | QQ9: 0 | QR9: 0 | QS9: 0 | QT9: 0 | QU9: 0 | QV9: 0 | QW9: 0 | QX9: 0 | QY9: 0 | QZ9: 0 | RA9: 0 | RB9: 0 | RC9: 0 | RD9: 0 | RE9: 0 | RF9: 0 | RG9: 0 | RH9: 0 | RI9: 0 | RJ9: 0 | RK9: 0 | RL9: 0 | RM9: 0 | RN9: 0 | RO9: 0 | RP9: 0 | RQ9: 0 | RR9: 0 | RS9: 0 | RT9: 0 | RU9: 0 | RV9: 0 | RW9: 0 | RX9: 0 | RY9: 0 | RZ9: 0 | SA9: 0 | SB9: 0 | SC9: 0 | SD9: 0 | SE9: 0 | SF9: 0 | SG9: 0 | SH9: 0 | SI9: 0 | SJ9: 0 | SK9: 0 | SL9: 0 | SM9: 0 | SN9: 0 | SO9: 0 | SP9: 0 | SQ9: 0 | SR9: 0 | SS9: =SS68+SS127+SS186+SS245+SS304+SS363+SS422 -> 0 | ST9: 0 | SU9: 0 | SV9: 0 | SW9: 0 | SX9: 0 | SY9: 0 | SZ9: 0 | TA9: 0 | TB9: 0 | TC9: 0 | TD9: 0 | TE9: 0 | TF9: 0 | TG9: 0 | TH9: 0 | TI9: 0 | TJ9: 0 | TK9: 0 | TL9: 0 | TM9: 0 | TN9: 0 | TO9: 0 | TP9: 0 | TQ9: 0 | TR9: 0 | TS9: 0 | TT9: 0 | TU9: 0 | TV9: 0 | TW9: 0 | TX9: 0 | TY9: 0 | TZ9: 0 | UA9: 0 | UB9: 0 | UC9: 0 | UD9: 0 | UE9: 0 | UF9: 0 | UG9: 0 | UH9: 0 | UI9: 0 | UJ9: 0 | UK9: 0 | UL9: 0 | UM9: 0 | UN9: 0 | UO9: 0 | UP9: 0 | UQ9: 0 | UR9: 0 | US9: 0 | UT9: 0 | UU9: 0 | UV9: 0 | UW9: 0 | UX9: 0 | UY9: 0 | UZ9: 0 | VA9: 0 | VB9: 0 | VC9: 0 | VD9: 0 | VE9: =VE68+VE127+VE186+VE245+VE304+VE363+VE422 -> 0 | VF9: 0 | VG9: 0 | VH9: 0 | VI9: 0 | VJ9: 0 | VK9: 0 | VL9: 0 | VM9: 0 | VN9: 0 | VO9: 0 | VP9: 0 | VQ9: 0 | VR9: 0 | VS9: 0 | VT9: 0 | VU9: 0 | VV9: 0 | VW9: 0 | VX9: 0 | VY9: 0 | VZ9: 0 | WA9: 0 | WB9: 0 | WC9: 0 | WD9: 0 | WE9: 0 | WF9: 0 | WG9: 0 | WH9: 0 | WI9: 0 | WJ9: 0 | WK9: 0 | WL9: 0 | WM9: 0 | WN9: 0 | WO9: 0 | WP9: 0 | WQ9: 0 | WR9: 0 | WS9: 0 | WT9: 0 | WU9: 0 | WV9: 0 | WW9: 0 | WX9: 0 | WY9: 0 | WZ9: 0 | XA9: 0 | XB9: 0 | XC9: 0 | XD9: 0 | XE9: 0 | XF9: 0 | XG9: 0 | XH9: 0 | XI9: 0 | XJ9: 0 | XK9: 0 | XL9: 0 | XM9: 0 | XN9: 0 | XO9: 0 | XP9: 0 | XQ9: =XQ68+XQ127+XQ186+XQ245+XQ304+XQ363+XQ422 -> 0 | XR9: 0 | XS9: 0 | XT9: 0 | XU9: 0 | XV9: 0 | XW9: 0 | XX9: 0 | XY9: 0 | XZ9: 0 | YA9: 0 | YB9: 0 | YC9: 0 | YD9: 0 | YE9: 0 | YF9: 0 | YG9: 0 | YH9: 0 | YI9: 0 | YJ9: 0 | YK9: 0 | YL9: 0 | YM9: 0 | YN9: 0 | YO9: 0 | YP9: 0 | YQ9: 0 | YR9: 0 | YS9: 0 | YT9: 0 | YU9: 0 | YV9: 0 | YW9: 0 | YX9: 0 | YY9: 0 | YZ9: 0 | ZA9: 0 | ZB9: 0 | ZC9: 0 | ZD9: 0 | ZE9: 0 | ZF9: 0 | ZG9: 0 | ZH9: 0 | ZI9: 0 | ZJ9: 0 | ZK9: 0 | ZL9: 0 | ZM9: 0 | ZN9: 0 | ZO9: 0 | ZP9: 0 | ZQ9: 0 | ZR9: 0 | ZS9: 0 | ZT9: 0 | ZU9: 0 | ZV9: 0 | ZW9: 0 | ZX9: 0 | ZY9: 0 | ZZ9: 0 | AAA9: 0 | AAB9: 0 | AAC9: =AAC68+AAC127+AAC186+AAC245+AAC304+AAC363+AAC422 -> 0 | AAD9: 0 | AAE9: 0 | AAF9: 0 | AAG9: 0 | AAH9: 0 | AAI9: 0 | AAJ9: 0 | AAK9: 0 | AAL9: 0 | AAM9: 0 | AAN9: 0 | AAO9: 0 | AAP9: 0 | AAQ9: 0 | AAR9: 0 | AAS9: 0 | AAT9: 0 | AAU9: 0 | AAV9: 0 | AAW9: 0 | AAX9: 0 | AAY9: 0 | AAZ9: 0 | ABA9: 0 | ABB9: 0 | ABC9: 0 | ABD9: 0 | ABE9: 0 | ABF9: 0 | ABG9: 0 | ABH9: 0 | ABI9: 0 | ABJ9: 0 | ABK9: 0 | ABL9: 0 | ABM9: 0 | ABN9: 0 | ABO9: 0 | ABP9: 0 | ABQ9: 0 | ABR9: 0 | ABS9: 0 | ABT9: 0 | ABU9: 0 | ABV9: 0 | ABW9: 0 | ABX9: 0 | ABY9: 0 | ABZ9: 0 | ACA9: 0 | ACB9: 0 | ACC9: 0 | ACD9: 0 | ACE9: 0 | ACF9: 0 | ACG9: 0 | ACH9: 0 | ACI9: 0 | ACJ9: 0 | ACK9: 0 | ACL9: 0 | ACM9: 0 | ACN9: 0 | ACO9: =ACO68+ACO127+ACO186+ACO245+ACO304+ACO363+ACO422 -> 0 | ACP9: 0 | ACQ9: 0 | ACR9: 0 | ACS9: 0 | ACT9: 0 | ACU9: 0 | ACV9: 0 | ACW9: 0 | ACX9: 0 | ACY9: 0 | ACZ9: 0 | ADA9: 0 | ADB9: 0 | ADC9: 0 | ADD9: 0 | ADE9: 0 | ADF9: 0 | ADG9: 0 | ADH9: 0 | ADI9: 0 | ADJ9: 0 | ADK9: 0 | ADL9: 0 | ADM9: 0 | ADN9: 0 | ADO9: 0 | ADP9: 0 | ADQ9: 0 | ADR9: 0 | ADS9: 0 | ADT9: 0 | ADU9: 0 | ADV9: 0 | ADW9: 0 | ADX9: 0 | ADY9: 0 | ADZ9: 0 | AEA9: 0 | AEB9: 0 | AEC9: 0 | AED9: 0 | AEE9: 0 | AEF9: 0 | AEG9: 0 | AEH9: 0 | AEI9: 0 | AEJ9: 0 | AEK9: 0 | AEL9: 0 | AEM9: 0 | AEN9: 0 | AEO9: 0 | AEP9: 0 | AEQ9: 0 | AER9: 0 | AES9: 0 | AET9: 0 | AEU9: 0 | AEV9: 0 | AEW9: 0 | AEX9: 0 | AEY9: 0 | AEZ9: 0 | AFA9: =AFA68+AFA127+AFA186+AFA245+AFA304+AFA363+AFA422 -> 0 | AFB9: 0 | AFC9: 0 | AFD9: 0 | AFE9: 0 | AFF9: 0 | AFG9: 0 | AFH9: 0 | AFI9: 0 | AFJ9: 0 | AFK9: 0 | AFL9: 0 | AFM9: 0 | AFN9: 0 | AFO9: 0 | AFP9: 0 | AFQ9: 0 | AFR9: 0 | AFS9: 0 | AFT9: 0 | AFU9: 0 | AFV9: 0 | AFW9: 0 | AFX9: 0 | AFY9: 0 | AFZ9: 0 | AGA9: 0 | AGB9: 0 | AGC9: 0 | AGD9: 0 | AGE9: 0 | AGF9: 0 | AGG9: 0 | AGH9: 0 | AGI9: 0 | AGJ9: 0 | AGK9: 0 | AGL9: 0 | AGM9: 0 | AGN9: 0 | AGO9: 0 | AGP9: 0 | AGQ9: 0 | AGR9: 0 | AGS9: 0 | AGT9: 0 | AGU9: 0 | AGV9: 0 | AGW9: 0 | AGX9: 0 | AGY9: 0 | AGZ9: 0 | AHA9: 0 | AHB9: 0 | AHC9: 0 | AHD9: 0 | AHE9: 0 | AHF9: 0 | AHG9: 0 | AHH9: 0 | AHI9: 0 | AHJ9: 0 | AHK9: 0 | AHL9: 0 | AHM9: =AHM68+AHM127+AHM186+AHM245+AHM304+AHM363+AHM422 -> 0 | AHN9: 0 | AHO9: 0 | AHP9: 0 | AHQ9: 0 | AHR9: 0 | AHS9: 0 | AHT9: 0 | AHU9: 0 | AHV9: 0 | AHW9: 0 | AHX9: 0 | AHY9: 0 | AHZ9: 0 | AIA9: 0 | AIB9: 0 | AIC9: 0 | AID9: 0 | AIE9: 0 | AIF9: 0 | AIG9: 0 | AIH9: 0 | AII9: 0 | AIJ9: 0 | AIK9: 0 | AIL9: 0 | AIM9: 0 | AIN9: 0 | AIO9: 0 | AIP9: 0 | AIQ9: 0 | AIR9: 0 | AIS9: 0 | AIT9: 0 | AIU9: 0 | AIV9: 0 | AIW9: 0 | AIX9: 0 | AIY9: 0 | AIZ9: 0 | AJA9: 0 | AJB9: 0 | AJC9: 0 | AJD9: 0 | AJE9: 0 | AJF9: 0 | AJG9: 0 | AJH9: 0 | AJI9: 0 | AJJ9: 0 | AJK9: 0 | AJL9: 0 | AJM9: 0 | AJN9: 0 | AJO9: 0 | AJP9: 0 | AJQ9: 0 | AJR9: 0 | AJS9: 0 | AJT9: 0 | AJU9: 0 | AJV9: 0 | AJW9: 0 | AJX9: 0 | AJY9: =AJY68+AJY127+AJY186+AJY245+AJY304+AJY363+AJY422 -> 0 | AJZ9: 0 | AKA9: 0 | AKB9: 0 | AKC9: 0 | AKD9: 0 | AKE9: 0 | AKF9: 0 | AKG9: 0 | AKH9: 0 | AKI9: 0 | AKJ9: 0 | AKK9: 0 | AKL9: 0 | AKM9: 0 | AKN9: 0 | AKO9: 0 | AKP9: 0 | AKQ9: 0 | AKR9: 0 | AKS9: 0 | AKT9: 0 | AKU9: 0 | AKV9: 0 | AKW9: 0 | AKX9: 0 | AKY9: 0 | AKZ9: 0 | ALA9: 0 | ALB9: 0 | ALC9: 0 | ALD9: 0 | ALE9: 0 | ALF9: 0 | ALG9: 0 | ALH9: 0 | ALI9: =ALI68+ALI127+ALI186+ALI245+ALI304+ALI363+ALI422 -> 0 | ALJ9: 0 | ALK9: 0 | ALL9: 0 | ALM9: 0 | ALN9: 0 | ALO9: 0 | ALP9: 0 | ALQ9: =ALQ68+ALQ127+ALQ186+ALQ245+ALQ304+ALQ363+ALQ422 -> 0 | ALR9: 0 | ALS9: =ALS68+ALS127+ALS186+ALS245+ALS304+ALS363+ALS422 -> 0 | ALT9: 0 | ALU9: 0 | ALV9: 0 | ALW9: 0 | ALX9: 0 | ALY9: 0 | ALZ9: 0 | AMA9: 0 | AMB9: 0 | AMC9: 0 | AMD9: 0 | AME9: 0 | AMF9: =AMF68+AMF127+AMF186+AMF245+AMF304+AMF363+AMF422 -> 0 | AMG9: 0 | AMH9: 0 | AMI9: 0 | ATF9: 0 | ATG9: 0 | ATH9: 0 | ATI9: 0 | ATJ9: 0 | ATK9: 0 | ATL9: 0 | ATM9: 0 | ATN9: 0 | ATO9: 0 | ATP9: 0 | ATQ9: 0 | ATR9: 0 | ATS9: 0 | ATT9: 0 | ATU9: 0 | ATV9: 0 | ATW9: 0 | ATX9: 0 | ATY9: 0 | ATZ9: 0 | AUA9: 0 | AUB9: 0 | AUC9: 0 | AUD9: 0 | AUE9: 0 | AUF9: 0 | AUG9: 0 | AUH9: 0 | AUI9: 0 | AUJ9: 0 | AUK9: 0 | AUL9: 0 | AUM9: 0 | AUN9: 0 | AUO9: 0 | AUP9: 0 | AUQ9: 0 | AUR9: 0 | AUS9: 0 | AUT9: 0 | AUU9: 0 | AUV9: 0 | AUW9: 0 | AUX9: 0 | AUY9: 0 | AUZ9: 0 | AVA9: 0 | AVB9: 0 | AVC9: 0 | AVD9: 0 | AVE9: 0 | AVF9: 0 | AVG9: 0 | AVH9: 0 | AVI9: 0 | AVJ9: 0 | AVK9: 0 | AVL9: 0 | AVM9: 0 | AVN9: 0 | AVO9: 0 | AVP9: 0 | AVQ9: 0 | AVR9: 0 | AVS9: 0 | AVT9: 0 | AVU9: 0 | AVV9: 0 | AVW9: 0 | AVX9: 0 | AVY9: 0 | AVZ9: 0 | AWA9: 0 | AWB9: 0 | AWC9: 0 | AWD9: 0 | AWE9: 0 | AWF9: 0 | AWM9: 0 | AWN9: 0 | AWO9: 0 | AWP9: 0 | AWQ9: 0 | AWR9: 0 | AWS9: 0 | AWT9: 0 | AWU9: 0 | AWV9: 0 | AWW9: 0 | AWX9: 0 | AWY9: 0 | AWZ9: 0 | AXA9: 0 | AXB9: 0 | AXC9: 0 | AXD9: 0 | AXE9: 0 | AXF9: 0
A10: Crushed Stone, Sand & Gravel | B10: =B69+B128+B187+B246+B305+B364+B423 -> 0 | C10: 0 | D10: 0 | E10: 0 | F10: 0 | G10: 0 | H10: 0 | I10: 0 | J10: 0 | K10: 0 | L10: 0 | M10: 0 | N10: 0 | O10: 0 | P10: 0 | Q10: 0 | R10: 0 | S10: 0 | T10: 0 | U10: 0 | V10: 0 | W10: 0 | X10: 0 | Y10: 0 | Z10: 0 | AA10: 0 | AB10: 0 | AC10: 0 | AD10: 0 | AE10: 0 | AF10: 0 | AG10: 0 | AH10: 0 | AI10: 0 | AJ10: 0 | AK10: 0 | AL10: 0 | AM10: 0 | AN10: 0 | AO10: 0 | AP10: 0 | AQ10: 0 | AR10: 0 | AS10: 0 | AT10: 0 | AU10: 0 | AV10: 0 | AW10: 0 | AX10: 0 | AY10: 0 | AZ10: 0 | BA10: 0 | BB10: 0 | BC10: 0 | BD10: 0 | BE10: 0 | BF10: 0 | BG10: 0 | BH10: 0 | BI10: 0 | BJ10: 0 | BK10: 0 | BL10: 0 | BM10: 0 | BN10: =BN69+BN128+BN187+BN246+BN305+BN364+BN423 -> 0 | BO10: 0 | BP10: 0 | BQ10: 0 | BR10: 0 | BS10: 0 | BT10: 0 | BU10: 0 | BV10: 0 | BW10: 0 | BX10: 0 | BY10: 0 | BZ10: 0 | CA10: 0 | CB10: 0 | CC10: 0 | CD10: 0 | CE10: 0 | CF10: 0 | CG10: 0 | CH10: 0 | CI10: 0 | CJ10: 0 | CK10: 0 | CL10: 0 | CM10: 0 | CN10: 0 | CO10: 0 | CP10: 0 | CQ10: 0 | CR10: 0 | CS10: 0 | CT10: 0 | CU10: 0 | CV10: 0 | CW10: 0 | CX10: 0 | CY10: 0 | CZ10: 0 | DA10: 0 | DB10: 0 | DC10: 0 | DD10: 0 | DE10: 0 | DF10: 0 | DG10: 0 | DH10: 0 | DI10: 0 | DJ10: 0 | DK10: 0 | DL10: 0 | DM10: 0 | DN10: 0 | DO10: 0 | DP10: 0 | DQ10: 0 | DR10: 0 | DS10: 0 | DT10: 0 | DU10: 0 | DV10: 0 | DW10: 0 | DX10: 0 | DY10: 0 | DZ10: =DZ69+DZ128+DZ187+DZ246+DZ305+DZ364+DZ423 -> 0 | EA10: 0 | EB10: 0 | EC10: 0 | ED10: 0 | EE10: 0 | EF10: 0 | EG10: 0 | EH10: 0 | EI10: 0 | EJ10: 0 | EK10: 0 | EL10: 0 | EM10: 0 | EN10: 0 | EO10: 0 | EP10: 0 | EQ10: 0 | ER10: 0 | ES10: 0 | ET10: 0 | EU10: 0 | EV10: 0 | EW10: 0 | EX10: 0 | EY10: 0 | EZ10: 0 | FA10: 0 | FB10: 0 | FC10: 0 | FD10: 0 | FE10: 0 | FF10: 0 | FG10: 0 | FH10: 0 | FI10: 0 | FJ10: 0 | FK10: 0 | FL10: 0 | FM10: 0 | FN10: 0 | FO10: 0 | FP10: 0 | FQ10: 0 | FR10: 0 | FS10: 0 | FT10: 0 | FU10: 0 | FV10: 0 | FW10: 0 | FX10: 0 | FY10: 0 | FZ10: 0 | GA10: 0 | GB10: 0 | GC10: 0 | GD10: 0 | GE10: 0 | GF10: 0 | GG10: 0 | GH10: 0 | GI10: 0 | GJ10: 0 | GK10: 0 | GL10: =GL69+GL128+GL187+GL246+GL305+GL364+GL423 -> 0 | GM10: 0 | GN10: 0 | GO10: 0 | GP10: 0 | GQ10: 0 | GR10: 0 | GS10: 0 | GT10: 0 | GU10: 0 | GV10: 0 | GW10: 0 | GX10: 0 | GY10: 0 | GZ10: 0 | HA10: 0 | HB10: 0 | HC10: 0 | HD10: 0 | HE10: 0 | HF10: 0 | HG10: 0 | HH10: 0 | HI10: 0 | HJ10: 0 | HK10: 0 | HL10: 0 | HM10: 0 | HN10: 0 | HO10: 0 | HP10: 0 | HQ10: 0 | HR10: 0 | HS10: 0 | HT10: 0 | HU10: 0 | HV10: 0 | HW10: 0 | HX10: 0 | HY10: 0 | HZ10: 0 | IA10: 0 | IB10: 0 | IC10: 0 | ID10: 0 | IE10: 0 | IF10: 0 | IG10: 0 | IH10: 0 | II10: 0 | IJ10: 0 | IK10: 0 | IL10: 0 | IM10: 0 | IN10: 0 | IO10: 0 | IP10: 0 | IQ10: 0 | IR10: 0 | IS10: 0 | IT10: 0 | IU10: 0 | IV10: 0 | IW10: 0 | IX10: =IX69+IX128+IX187+IX246+IX305+IX364+IX423 -> 0 | IY10: 0 | IZ10: 0 | JA10: 0 | JB10: 0 | JC10: 0 | JD10: 0 | JE10: 0 | JF10: 0 | JG10: 0 | JH10: 0 | JI10: 0 | JJ10: 0 | JK10: 0 | JL10: 0 | JM10: 0 | JN10: 0 | JO10: 0 | JP10: 0 | JQ10: 0 | JR10: 0 | JS10: 0 | JT10: 0 | JU10: 0 | JV10: 0 | JW10: 0 | JX10: 0 | JY10: 0 | JZ10: 0 | KA10: 0 | KB10: 0 | KC10: 0 | KD10: 0 | KE10: 0 | KF10: 0 | KG10: 0 | KH10: 0 | KI10: 0 | KJ10: 0 | KK10: 0 | KL10: 0 | KM10: 0 | KN10: 0 | KO10: 0 | KP10: 0 | KQ10: 0 | KR10: 0 | KS10: 0 | KT10: 0 | KU10: 0 | KV10: 0 | KW10: 0 | KX10: 0 | KY10: 0 | KZ10: 0 | LA10: 0 | LB10: 0 | LC10: 0 | LD10: 0 | LE10: 0 | LF10: 0 | LG10: 0 | LH10: 0 | LI10: 0 | LJ10: =LJ69+LJ128+LJ187+LJ246+LJ305+LJ364+LJ423 -> 0 | LK10: 0 | LL10: 0 | LM10: 0 | LN10: 0 | LO10: 0 | LP10: 0 | LQ10: 0 | LR10: 0 | LS10: 0 | LT10: 0 | LU10: 0 | LV10: 0 | LW10: 0 | LX10: 0 | LY10: 0 | LZ10: 0 | MA10: 0 | MB10: 0 | MC10: 0 | MD10: 0 | ME10: 0 | MF10: 0 | MG10: 0 | MH10: 0 | MI10: 0 | MJ10: 0 | MK10: 0 | ML10: 0 | MM10: 0 | MN10: 0 | MO10: 0 | MP10: 0 | MQ10: 0 | MR10: 0 | MS10: 0 | MT10: 0 | MU10: 0 | MV10: 0 | MW10: 0 | MX10: 0 | MY10: 0 | MZ10: 0 | NA10: 0 | NB10: 0 | NC10: 0 | ND10: 0 | NE10: 0 | NF10: 0 | NG10: 0 | NH10: 0 | NI10: 0 | NJ10: 0 | NK10: 0 | NL10: 0 | NM10: 0 | NN10: 0 | NO10: 0 | NP10: 0 | NQ10: 0 | NR10: 0 | NS10: 0 | NT10: 0 | NU10: 0 | NV10: =NV69+NV128+NV187+NV246+NV305+NV364+NV423 -> 0 | NW10: 0 | NX10: 0 | NY10: 0 | NZ10: 0 | OA10: 0 | OB10: 0 | OC10: 0 | OD10: 0 | OE10: 0 | OF10: 0 | OG10: 0 | OH10: 0 | OI10: 0 | OJ10: 0 | OK10: 0 | OL10: 0 | OM10: 0 | ON10: 0 | OO10: 0 | OP10: 0 | OQ10: 0 | OR10: 0 | OS10: 0 | OT10: 0 | OU10: 0 | OV10: 0 | OW10: 0 | OX10: 0 | OY10: 0 | OZ10: 0 | PA10: 0 | PB10: 0 | PC10: 0 | PD10: 0 | PE10: 0 | PF10: 0 | PG10: 0 | PH10: 0 | PI10: 0 | PJ10: 0 | PK10: 0 | PL10: 0 | PM10: 0 | PN10: 0 | PO10: 0 | PP10: 0 | PQ10: 0 | PR10: 0 | PS10: 0 | PT10: 0 | PU10: 0 | PV10: 0 | PW10: 0 | PX10: 0 | PY10: 0 | PZ10: 0 | QA10: 0 | QB10: 0 | QC10: 0 | QD10: 0 | QE10: 0 | QF10: 0 | QG10: 0 | QH10: =QH69+QH128+QH187+QH246+QH305+QH364+QH423 -> 0 | QI10: 0 | QJ10: 0 | QK10: 0 | QL10: 0 | QM10: 0 | QN10: 0 | QO10: 0 | QP10: 0 | QQ10: 0 | QR10: 0 | QS10: 0 | QT10: 0 | QU10: 0 | QV10: 0 | QW10: 0 | QX10: 0 | QY10: 0 | QZ10: 0 | RA10: 0 | RB10: 0 | RC10: 0 | RD10: 0 | RE10: 0 | RF10: 0 | RG10: 0 | RH10: 0 | RI10: 0 | RJ10: 0 | RK10: 0 | RL10: 0 | RM10: 0 | RN10: 0 | RO10: 0 | RP10: 0 | RQ10: 0 | RR10: 0 | RS10: 0 | RT10: 0 | RU10: 0 | RV10: 0 | RW10: 0 | RX10: 0 | RY10: 0 | RZ10: 0 | SA10: 0 | SB10: 0 | SC10: 0 | SD10: 0 | SE10: 0 | SF10: 0 | SG10: 0 | SH10: 0 | SI10: 0 | SJ10: 0 | SK10: 0 | SL10: 0 | SM10: 0 | SN10: 0 | SO10: 0 | SP10: 0 | SQ10: 0 | SR10: 0 | SS10: 0 | ST10: =ST69+ST128+ST187+ST246+ST305+ST364+ST423 -> 0 | SU10: 0 | SV10: 0 | SW10: 0 | SX10: 0 | SY10: 0 | SZ10: 0 | TA10: 0 | TB10: 0 | TC10: 0 | TD10: 0 | TE10: 0 | TF10: 0 | TG10: 0 | TH10: 0 | TI10: 0 | TJ10: 0 | TK10: 0 | TL10: 0 | TM10: 0 | TN10: 0 | TO10: 0 | TP10: 0 | TQ10: 0 | TR10: 0 | TS10: 0 | TT10: 0 | TU10: 0 | TV10: 0 | TW10: 0 | TX10: 0 | TY10: 0 | TZ10: 0 | UA10: 0 | UB10: 0 | UC10: 0 | UD10: 0 | UE10: 0 | UF10: 0 | UG10: 0 | UH10: 0 | UI10: 0 | UJ10: 0 | UK10: 0 | UL10: 0 | UM10: 0 | UN10: 0 | UO10: 0 | UP10: 0 | UQ10: 0 | UR10: 0 | US10: 0 | UT10: 0 | UU10: 0 | UV10: 0 | UW10: 0 | UX10: 0 | UY10: 0 | UZ10: 0 | VA10: 0 | VB10: 0 | VC10: 0 | VD10: 0 | VE10: 0 | VF10: =VF69+VF128+VF187+VF246+VF305+VF364+VF423 -> 0 | VG10: 0 | VH10: 0 | VI10: 0 | VJ10: 0 | VK10: 0 | VL10: 0 | VM10: 0 | VN10: 0 | VO10: 0 | VP10: 0 | VQ10: 0 | VR10: 0 | VS10: 0 | VT10: 0 | VU10: 0 | VV10: 0 | VW10: 0 | VX10: 0 | VY10: 0 | VZ10: 0 | WA10: 0 | WB10: 0 | WC10: 0 | WD10: 0 | WE10: 0 | WF10: 0 | WG10: 0 | WH10: 0 | WI10: 0 | WJ10: 0 | WK10: 0 | WL10: 0 | WM10: 0 | WN10: 0 | WO10: 0 | WP10: 0 | WQ10: 0 | WR10: 0 | WS10: 0 | WT10: 0 | WU10: 0 | WV10: 0 | WW10: 0 | WX10: 0 | WY10: 0 | WZ10: 0 | XA10: 0 | XB10: 0 | XC10: 0 | XD10: 0 | XE10: 0 | XF10: 0 | XG10: 0 | XH10: 0 | XI10: 0 | XJ10: 0 | XK10: 0 | XL10: 0 | XM10: 0 | XN10: 0 | XO10: 0 | XP10: 0 | XQ10: 0 | XR10: =XR69+XR128+XR187+XR246+XR305+XR364+XR423 -> 0 | XS10: 0 | XT10: 0 | XU10: 0 | XV10: 0 | XW10: 0 | XX10: 0 | XY10: 0 | XZ10: 0 | YA10: 0 | YB10: 0 | YC10: 0 | YD10: 0 | YE10: 0 | YF10: 0 | YG10: 0 | YH10: 0 | YI10: 0 | YJ10: 0 | YK10: 0 | YL10: 0 | YM10: 0 | YN10: 0 | YO10: 0 | YP10: 0 | YQ10: 0 | YR10: 0 | YS10: 0 | YT10: 0 | YU10: 0 | YV10: 0 | YW10: 0 | YX10: 0 | YY10: 0 | YZ10: 0 | ZA10: 0 | ZB10: 0 | ZC10: 0 | ZD10: 0 | ZE10: 0 | ZF10: 0 | ZG10: 0 | ZH10: 0 | ZI10: 0 | ZJ10: 0 | ZK10: 0 | ZL10: 0 | ZM10: 0 | ZN10: 0 | ZO10: 0 | ZP10: 0 | ZQ10: 0 | ZR10: 0 | ZS10: 0 | ZT10: 0 | ZU10: 0 | ZV10: 0 | ZW10: 0 | ZX10: 0 | ZY10: 0 | ZZ10: 0 | AAA10: 0 | AAB10: 0 | AAC10: 0 | AAD10: =AAD69+AAD128+AAD187+AAD246+AAD305+AAD364+AAD423 -> 0 | AAE10: 0 | AAF10: 0 | AAG10: 0 | AAH10: 0 | AAI10: 0 | AAJ10: 0 | AAK10: 0 | AAL10: 0 | AAM10: 0 | AAN10: 0 | AAO10: 0 | AAP10: 0 | AAQ10: 0 | AAR10: 0 | AAS10: 0 | AAT10: 0 | AAU10: 0 | AAV10: 0 | AAW10: 0 | AAX10: 0 | AAY10: 0 | AAZ10: 0 | ABA10: 0 | ABB10: 0 | ABC10: 0 | ABD10: 0 | ABE10: 0 | ABF10: 0 | ABG10: 0 | ABH10: 0 | ABI10: 0 | ABJ10: 0 | ABK10: 0 | ABL10: 0 | ABM10: 0 | ABN10: 0 | ABO10: 0 | ABP10: 0 | ABQ10: 0 | ABR10: 0 | ABS10: 0 | ABT10: 0 | ABU10: 0 | ABV10: 0 | ABW10: 0 | ABX10: 0 | ABY10: 0 | ABZ10: 0 | ACA10: 0 | ACB10: 0 | ACC10: 0 | ACD10: 0 | ACE10: 0 | ACF10: 0 | ACG10: 0 | ACH10: 0 | ACI10: 0 | ACJ10: 0 | ACK10: 0 | ACL10: 0 | ACM10: 0 | ACN10: 0 | ACO10: 0 | ACP10: =ACP69+ACP128+ACP187+ACP246+ACP305+ACP364+ACP423 -> 0 | ACQ10: 0 | ACR10: 0 | ACS10: 0 | ACT10: 0 | ACU10: 0 | ACV10: 0 | ACW10: 0 | ACX10: 0 | ACY10: 0 | ACZ10: 0 | ADA10: 0 | ADB10: 0 | ADC10: 0 | ADD10: 0 | ADE10: 0 | ADF10: 0 | ADG10: 0 | ADH10: 0 | ADI10: 0 | ADJ10: 0 | ADK10: 0 | ADL10: 0 | ADM10: 0 | ADN10: 0 | ADO10: 0 | ADP10: 0 | ADQ10: 0 | ADR10: 0 | ADS10: 0 | ADT10: 0 | ADU10: 0 | ADV10: 0 | ADW10: 0 | ADX10: 0 | ADY10: 0 | ADZ10: 0 | AEA10: 0 | AEB10: 0 | AEC10: 0 | AED10: 0 | AEE10: 0 | AEF10: 0 | AEG10: 0 | AEH10: 0 | AEI10: 0 | AEJ10: 0 | AEK10: 0 | AEL10: 0 | AEM10: 0 | AEN10: 0 | AEO10: 0 | AEP10: 0 | AEQ10: 0 | AER10: 0 | AES10: 0 | AET10: 0 | AEU10: 0 | AEV10: 0 | AEW10: 0 | AEX10: 0 | AEY10: 0 | AEZ10: 0 | AFA10: 0 | AFB10: =AFB69+AFB128+AFB187+AFB246+AFB305+AFB364+AFB423 -> 0 | AFC10: 0 | AFD10: 0 | AFE10: 0 | AFF10: 0 | AFG10: 0 | AFH10: 0 | AFI10: 0 | AFJ10: 0 | AFK10: 0 | AFL10: 0 | AFM10: 0 | AFN10: 0 | AFO10: 0 | AFP10: 0 | AFQ10: 0 | AFR10: 0 | AFS10: 0 | AFT10: 0 | AFU10: 0 | AFV10: 0 | AFW10: 0 | AFX10: 0 | AFY10: 0 | AFZ10: 0 | AGA10: 0 | AGB10: 0 | AGC10: 0 | AGD10: 0 | AGE10: 0 | AGF10: 0 | AGG10: 0 | AGH10: 0 | AGI10: 0 | AGJ10: 0 | AGK10: 0 | AGL10: 0 | AGM10: 0 | AGN10: 0 | AGO10: 0 | AGP10: 0 | AGQ10: 0 | AGR10: 0 | AGS10: 0 | AGT10: 0 | AGU10: 0 | AGV10: 0 | AGW10: 0 | AGX10: 0 | AGY10: 0 | AGZ10: 0 | AHA10: 0 | AHB10: 0 | AHC10: 0 | AHD10: 0 | AHE10: 0 | AHF10: 0 | AHG10: 0 | AHH10: 0 | AHI10: 0 | AHJ10: 0 | AHK10: 0 | AHL10: 0 | AHM10: 0 | AHN10: =AHN69+AHN128+AHN187+AHN246+AHN305+AHN364+AHN423 -> 0 | AHO10: 0 | AHP10: 0 | AHQ10: 0 | AHR10: 0 | AHS10: 0 | AHT10: 0 | AHU10: 0 | AHV10: 0 | AHW10: 0 | AHX10: 0 | AHY10: 0 | AHZ10: 0 | AIA10: 0 | AIB10: 0 | AIC10: 0 | AID10: 0 | AIE10: 0 | AIF10: 0 | AIG10: 0 | AIH10: 0 | AII10: 0 | AIJ10: 0 | AIK10: 0 | AIL10: 0 | AIM10: 0 | AIN10: 0 | AIO10: 0 | AIP10: 0 | AIQ10: 0 | AIR10: 0 | AIS10: 0 | AIT10: 0 | AIU10: 0 | AIV10: 0 | AIW10: 0 | AIX10: 0 | AIY10: 0 | AIZ10: 0 | AJA10: 0 | AJB10: 0 | AJC10: 0 | AJD10: 0 | AJE10: 0 | AJF10: 0 | AJG10: 0 | AJH10: 0 | AJI10: 0 | AJJ10: 0 | AJK10: 0 | AJL10: 0 | AJM10: 0 | AJN10: 0 | AJO10: 0 | AJP10: 0 | AJQ10: 0 | AJR10: 0 | AJS10: 0 | AJT10: 0 | AJU10: 0 | AJV10: 0 | AJW10: 0 | AJX10: 0 | AJY10: 0 | AJZ10: 0 | AKA10: 0 | AKB10: 0 | AKC10: 0 | AKD10: 0 | AKE10: 0 | AKF10: 0 | AKG10: 0 | AKH10: 0 | AKI10: 0 | AKJ10: 0 | AKK10: 0 | AKL10: 0 | AKM10: 0 | AKN10: 0 | AKO10: 0 | AKP10: 0 | AKQ10: 0 | AKR10: 0 | AKS10: 0 | AKT10: 0 | AKU10: 0 | AKV10: 0 | AKW10: 0 | AKX10: 0 | AKY10: 0 | AKZ10: 0 | ALA10: 0 | ALB10: 0 | ALC10: 0 | ALD10: 0 | ALE10: 0 | ALF10: 0 | ALG10: 0 | ALH10: 0 | ALI10: =ALI69+ALI128+ALI187+ALI246+ALI305+ALI364+ALI423 -> 0 | ALJ10: 0 | ALK10: 0 | ALL10: 0 | ALM10: 0 | ALN10: 0 | ALO10: 0 | ALP10: 0 | ALQ10: =ALQ69+ALQ128+ALQ187+ALQ246+ALQ305+ALQ364+ALQ423 -> 0 | ALR10: 0 | ALS10: =ALS69+ALS128+ALS187+ALS246+ALS305+ALS364+ALS423 -> 0 | ALT10: 0 | ALU10: 0 | ALV10: 0 | ALW10: 0 | ALX10: 0 | ALY10: 0 | ALZ10: 0 | AMA10: 0 | AMB10: 0 | AMC10: 0 | AMD10: 0 | AME10: 0 | AMF10: =AMF69+AMF128+AMF187+AMF246+AMF305+AMF364+AMF423 -> 0 | AMG10: 0 | AMH10: 0 | AMI10: 0 | ATF10: 0 | ATG10: 0 | ATH10: 0 | ATI10: 0 | ATJ10: 0 | ATK10: 0 | ATL10: 0 | ATM10: 0 | ATN10: 0 | ATO10: 0 | ATP10: 0 | ATQ10: 0 | ATR10: 0 | ATS10: 0 | ATT10: 0 | ATU10: 0 | ATV10: 0 | ATW10: 0 | ATX10: 0 | ATY10: 0 | ATZ10: 0 | AUA10: 0 | AUB10: 0 | AUC10: 0 | AUD10: 0 | AUE10: 0 | AUF10: 0 | AUG10: 0 | AUH10: 0 | AUI10: 0 | AUJ10: 0 | AUK10: 0 | AUL10: 0 | AUM10: 0 | AUN10: 0 | AUO10: 0 | AUP10: 0 | AUQ10: 0 | AUR10: 0 | AUS10: 0 | AUT10: 0 | AUU10: 0 | AUV10: 0 | AUW10: 0 | AUX10: 0 | AUY10: 0 | AUZ10: 0 | AVA10: 0 | AVB10: 0 | AVC10: 0 | AVD10: 0 | AVE10: 0 | AVF10: 0 | AVG10: 0 | AVH10: 0 | AVI10: 0 | AVJ10: 0 | AVK10: 0 | AVL10: 0 | AVM10: 0 | AVN10: 0 | AVO10: 0 | AVP10: 0 | AVQ10: 0 | AVR10: 0 | AVS10: 0 | AVT10: 0 | AVU10: 0 | AVV10: 0 | AVW10: 0 | AVX10: 0 | AVY10: 0 | AVZ10: 0 | AWA10: 0 | AWB10: 0 | AWC10: 0 | AWD10: 0 | AWE10: 0 | AWF10: 0 | AWM10: 0 | AWN10: 0 | AWO10: 0 | AWP10: 0 | AWQ10: 0 | AWR10: 0 | AWS10: 0 | AWT10: 0 | AWU10: 0 | AWV10: 0 | AWW10: 0 | AWX10: 0 | AWY10: 0 | AWZ10: 0 | AXA10: 0 | AXB10: 0 | AXC10: 0 | AXD10: 0 | AXE10: 0 | AXF10: 0
A11: Nonmetallic Minerals | B11: 0 | C11: 0 | D11: 0 | E11: 0 | F11: 0 | G11: 0 | H11: 0 | I11: 0 | J11: 0 | K11: 0 | L11: 0 | M11: 0 | N11: 0 | O11: 0 | P11: 0 | Q11: 0 | R11: 0 | S11: 0 | T11: 0 | U11: 0 | V11: 0 | W11: 0 | X11: 0 | Y11: 0 | Z11: 0 | AA11: 0 | AB11: 0 | AC11: 0 | AD11: 0 | AE11: 0 | AF11: 0 | AG11: 0 | AH11: 0 | AI11: 0 | AJ11: 0 | AK11: 0 | AL11: 0 | AM11: 0 | AN11: 0 | AO11: 0 | AP11: 0 | AQ11: 0 | AR11: 0 | AS11: 0 | AT11: 0 | AU11: 0 | AV11: 0 | AW11: 0 | AX11: 0 | AY11: 0 | AZ11: 0 | BA11: 0 | BB11: 0 | BC11: 0 | BD11: 0 | BE11: 0 | BF11: 0 | BG11: 0 | BH11: 0 | BI11: 0 | BJ11: 0 | BK11: 0 | BL11: 0 | BM11: 0 | BN11: 0 | BO11: 0 | BP11: 0 | BQ11: 0 | BR11: 0 | BS11: 0 | BT11: 0 | BU11: 0 | BV11: 0 | BW11: 0 | BX11: 0 | BY11: 0 | BZ11: 0 | CA11: 0 | CB11: 0 | CC11: 0 | CD11: 0 | CE11: 0 | CF11: 0 | CG11: 0 | CH11: 0 | CI11: 0 | CJ11: 0 | CK11: 0 | CL11: 0 | CM11: 0 | CN11: 0 | CO11: 0 | CP11: 0 | CQ11: 0 | CR11: 0 | CS11: 0 | CT11: 0 | CU11: 0 | CV11: 0 | CW11: 0 | CX11: 0 | CY11: 0 | CZ11: 0 | DA11: 0 | DB11: 0 | DC11: 0 | DD11: 0 | DE11: 0 | DF11: 0 | DG11: 0 | DH11: 0 | DI11: 0 | DJ11: 0 | DK11: 0 | DL11: 0 | DM11: 0 | DN11: 0 | DO11: 0 | DP11: 0 | DQ11: 0 | DR11: 0 | DS11: 0 | DT11: 0 | DU11: 0 | DV11: 0 | DW11: 0 | DX11: 0 | DY11: 0 | DZ11: 0 | EA11: 0 | EB11: 0 | EC11: 0 | ED11: 0 | EE11: 0 | EF11: 0 | EG11: 0 | EH11: 0 | EI11: 0 | EJ11: 0 | EK11: 0 | EL11: 0 | EM11: 0 | EN11: 0 | EO11: 0 | EP11: 0 | EQ11: 0 | ER11: 0 | ES11: 0 | ET11: 0 | EU11: 0 | EV11: 0 | EW11: 0 | EX11: 0 | EY11: 0 | EZ11: 0 | FA11: 0 | FB11: 0 | FC11: 0 | FD11: 0 | FE11: 0 | FF11: 0 | FG11: 0 | FH11: 0 | FI11: 0 | FJ11: 0 | FK11: 0 | FL11: 0 | FM11: 0 | FN11: 0 | FO11: 0 | FP11: 0 | FQ11: 0 | FR11: 0 | FS11: 0 | FT11: 0 | FU11: 0 | FV11: 0 | FW11: 0 | FX11: 0 | FY11: 0 | FZ11: 0 | GA11: 0 | GB11: 0 | GC11: 0 | GD11: 0 | GE11: 0 | GF11: 0 | GG11: 0 | GH11: 0 | GI11: 0 | GJ11: 0 | GK11: 0 | GL11: 0 | GM11: 0 | GN11: 0 | GO11: 0 | GP11: 0 | GQ11: 0 | GR11: 0 | GS11: 0 | GT11: 0 | GU11: 0 | GV11: 0 | GW11: 0 | GX11: 0 | GY11: 0 | GZ11: 0 | HA11: 0 | HB11: 0 | HC11: 0 | HD11: 0 | HE11: 0 | HF11: 0 | HG11: 0 | HH11: 0 | HI11: 0 | HJ11: 0 | HK11: 0 | HL11: 0 | HM11: 0 | HN11: 0 | HO11: 0 | HP11: 0 | HQ11: 0 | HR11: 0 | HS11: 0 | HT11: 0 | HU11: 0 | HV11: 0 | HW11: 0 | HX11: 0 | HY11: 0 | HZ11: 0 | IA11: 0 | IB11: 0 | IC11: 0 | ID11: 0 | IE11: 0 | IF11: 0 | IG11: 0 | IH11: 0 | II11: 0 | IJ11: 0 | IK11: 0 | IL11: 0 | IM11: 0 | IN11: 0 | IO11: 0 | IP11: 0 | IQ11: 0 | IR11: 0 | IS11: 0 | IT11: 0 | IU11: 0 | IV11: 0 | IW11: 0 | IX11: 0 | IY11: 0 | IZ11: 0 | JA11: 0 | JB11: 0 | JC11: 0 | JD11: 0 | JE11: 0 | JF11: 0 | JG11: 0 | JH11: 0 | JI11: 0 | JJ11: 0 | JK11: 0 | JL11: 0 | JM11: 0 | JN11: 0 | JO11: 0 | JP11: 0 | JQ11: 0 | JR11: 0 | JS11: 0 | JT11: 0 | JU11: 0 | JV11: 0 | JW11: 0 | JX11: 0 | JY11: 0 | JZ11: 0 | KA11: 0 | KB11: 0 | KC11: 0 | KD11: 0 | KE11: 0 | KF11: 0 | KG11: 0 | KH11: 0 | KI11: 0 | KJ11: 0 | KK11: 0 | KL11: 0 | KM11: 0 | KN11: 0 | KO11: 0 | KP11: 0 | KQ11: 0 | KR11: 0 | KS11: 0 | KT11: 0 | KU11: 0 | KV11: 0 | KW11: 0 | KX11: 0 | KY11: 0 | KZ11: 0 | LA11: 0 | LB11: 0 | LC11: 0 | LD11: 0 | LE11: 0 | LF11: 0 | LG11: 0 | LH11: 0 | LI11: 0 | LJ11: 0 | LK11: 0 | LL11: 0 | LM11: 0 | LN11: 0 | LO11: 0 | LP11: 0 | LQ11: 0 | LR11: 0 | LS11: 0 | LT11: 0 | LU11: 0 | LV11: 0 | LW11: 0 | LX11: 0 | LY11: 0 | LZ11: 0 | MA11: 0 | MB11: 0 | MC11: 0 | MD11: 0 | ME11: 0 | MF11: 0 | MG11: 0 | MH11: 0 | MI11: 0 | MJ11: 0 | MK11: 0 | ML11: 0 | MM11: 0 | MN11: 0 | MO11: 0 | MP11: 0 | MQ11: 0 | MR11: 0 | MS11: 0 | MT11: 0 | MU11: 0 | MV11: 0 | MW11: 0 | MX11: 0 | MY11: 0 | MZ11: 0 | NA11: 0 | NB11: 0 | NC11: 0 | ND11: 0 | NE11: 0 | NF11: 0 | NG11: 0 | NH11: 0 | NI11: 0 | NJ11: 0 | NK11: 0 | NL11: 0 | NM11: 0 | NN11: 0 | NO11: 0 | NP11: 0 | NQ11: 0 | NR11: 0 | NS11: 0 | NT11: 0 | NU11: 0 | NV11: 0 | NW11: 0 | NX11: 0 | NY11: 0 | NZ11: 0 | OA11: 0 | OB11: 0 | OC11: 0 | OD11: 0 | OE11: 0 | OF11: 0 | OG11: 0 | OH11: 0 | OI11: 0 | OJ11: 0 | OK11: 0 | OL11: 0 | OM11: 0 | ON11: 0 | OO11: 0 | OP11: 0 | OQ11: 0 | OR11: 0 | OS11: 0 | OT11: 0 | OU11: 0 | OV11: 0 | OW11: 0 | OX11: 0 | OY11: 0 | OZ11: 0 | PA11: 0 | PB11: 0 | PC11: 0 | PD11: 0 | PE11: 0 | PF11: 0 | PG11: 0 | PH11: 0 | PI11: 0 | PJ11: 0 | PK11: 0 | PL11: 0 | PM11: 0 | PN11: 0 | PO11: 0 | PP11: 0 | PQ11: 0 | PR11: 0 | PS11: 0 | PT11: 0 | PU11: 0 | PV11: 0 | PW11: 0 | PX11: 0 | PY11: 0 | PZ11: 0 | QA11: 0 | QB11: 0 | QC11: 0 | QD11: 0 | QE11: 0 | QF11: 0 | QG11: 0 | QH11: 0 | QI11: 0 | QJ11: 0 | QK11: 0 | QL11: 0 | QM11: 0 | QN11: 0 | QO11: 0 | QP11: 0 | QQ11: 0 | QR11: 0 | QS11: 0 | QT11: 0 | QU11: 0 | QV11: 0 | QW11: 0 | QX11: 0 | QY11: 0 | QZ11: 0 | RA11: 0 | RB11: 0 | RC11: 0 | RD11: 0 | RE11: 0 | RF11: 0 | RG11: 0 | RH11: 0 | RI11: 0 | RJ11: 0 | RK11: 0 | RL11: 0 | RM11: 0 | RN11: 0 | RO11: 0 | RP11: 0 | RQ11: 0 | RR11: 0 | RS11: 0 | RT11: 0 | RU11: 0 | RV11: 0 | RW11: 0 | RX11: 0 | RY11: 0 | RZ11: 0 | SA11: 0 | SB11: 0 | SC11: 0 | SD11: 0 | SE11: 0 | SF11: 0 | SG11: 0 | SH11: 0 | SI11: 0 | SJ11: 0 | SK11: 0 | SL11: 0 | SM11: 0 | SN11: 0 | SO11: 0 | SP11: 0 | SQ11: 0 | SR11: 0 | SS11: 0 | ST11: 0 | SU11: 0 | SV11: 0 | SW11: 0 | SX11: 0 | SY11: 0 | SZ11: 0 | TA11: 0 | TB11: 0 | TC11: 0 | TD11: 0 | TE11: 0 | TF11: 0 | TG11: 0 | TH11: 0 | TI11: 0 | TJ11: 0 | TK11: 0 | TL11: 0 | TM11: 0 | TN11: 0 | TO11: 0 | TP11: 0 | TQ11: 0 | TR11: 0 | TS11: 0 | TT11: 0 | TU11: 0 | TV11: 0 | TW11: 0 | TX11: 0 | TY11: 0 | TZ11: 0 | UA11: 0 | UB11: 0 | UC11: 0 | UD11: 0 | UE11: 0 | UF11: 0 | UG11: 0 | UH11: 0 | UI11: 0 | UJ11: 0 | UK11: 0 | UL11: 0 | UM11: 0 | UN11: 0 | UO11: 0 | UP11: 0 | UQ11: 0 | UR11: 0 | US11: 0 | UT11: 0 | UU11: 0 | UV11: 0 | UW11: 0 | UX11: 0 | UY11: 0 | UZ11: 0 | VA11: 0 | VB11: 0 | VC11: 0 | VD11: 0 | VE11: 0 | VF11: 0 | VG11: 0 | VH11: 0 | VI11: 0 | VJ11: 0 | VK11: 0 | VL11: 0 | VM11: 0 | VN11: 0 | VO11: 0 | VP11: 0 | VQ11: 0 | VR11: 0 | VS11: 0 | VT11: 0 | VU11: 0 | VV11: 0 | VW11: 0 | VX11: 0 | VY11: 0 | VZ11: 0 | WA11: 0 | WB11: 0 | WC11: 0 | WD11: 0 | WE11: 0 | WF11: 0 | WG11: 0 | WH11: 0 | WI11: 0 | WJ11: 0 | WK11: 0 | WL11: 0 | WM11: 0 | WN11: 0 | WO11: 0 | WP11: 0 | WQ11: 0 | WR11: 0 | WS11: 0 | WT11: 0 | WU11: 0 | WV11: 0 | WW11: 0 | WX11: 0 | WY11: 0 | WZ11: 0 | XA11: 0 | XB11: 0 | XC11: 0 | XD11: 0 | XE11: 0 | XF11: 0 | XG11: 0 | XH11: 0 | XI11: 0 | XJ11: 0 | XK11: 0 | XL11: 0 | XM11: 0 | XN11: 0 | XO11: 0 | XP11: 0 | XQ11: 0 | XR11: 0 | XS11: 0 | XT11: 0 | XU11: 0 | XV11: 0 | XW11: 0 | XX11: 0 | XY11: 0 | XZ11: 0 | YA11: 0 | YB11: 0 | YC11: 0 | YD11: 0 | YE11: 0 | YF11: 0 | YG11: 0 | YH11: 0 | YI11: 0 | YJ11: 0 | YK11: 0 | YL11: 0 | YM11: 0 | YN11: 0 | YO11: 0 | YP11: 0 | YQ11: 0 | YR11: 0 | YS11: 0 | YT11: 0 | YU11: 0 | YV11: 0 | YW11: 0 | YX11: 0 | YY11: 0 | YZ11: 0 | ZA11: 0 | ZB11: 0 | ZC11: 0 | ZD11: 0 | ZE11: 0 | ZF11: 0 | ZG11: 0 | ZH11: 0 | ZI11: 0 | ZJ11: 0 | ZK11: 0 | ZL11: 0 | ZM11: 0 | ZN11: 0 | ZO11: 0 | ZP11: 0 | ZQ11: 0 | ZR11: 0 | ZS11: 0 | ZT11: 0 | ZU11: 0 | ZV11: 0 | ZW11: 0 | ZX11: 0 | ZY11: 0 | ZZ11: 0 | AAA11: 0 | AAB11: 0 | AAC11: 0 | AAD11: 0 | AAE11: 0 | AAF11: 0 | AAG11: 0 | AAH11: 0 | AAI11: 0 | AAJ11: 0 | AAK11: 0 | AAL11: 0 | AAM11: 0 | AAN11: 0 | AAO11: 0 | AAP11: 0 | AAQ11: 0 | AAR11: 0 | AAS11: 0 | AAT11: 0 | AAU11: 0 | AAV11: 0 | AAW11: 0 | AAX11: 0 | AAY11: 0 | AAZ11: 0 | ABA11: 0 | ABB11: 0 | ABC11: 0 | ABD11: 0 | ABE11: 0 | ABF11: 0 | ABG11: 0 | ABH11: 0 | ABI11: 0 | ABJ11: 0 | ABK11: 0 | ABL11: 0 | ABM11: 0 | ABN11: 0 | ABO11: 0 | ABP11: 0 | ABQ11: 0 | ABR11: 0 | ABS11: 0 | ABT11: 0 | ABU11: 0 | ABV11: 0 | ABW11: 0 | ABX11: 0 | ABY11: 0 | ABZ11: 0 | ACA11: 0 | ACB11: 0 | ACC11: 0 | ACD11: 0 | ACE11: 0 | ACF11: 0 | ACG11: 0 | ACH11: 0 | ACI11: 0 | ACJ11: 0 | ACK11: 0 | ACL11: 0 | ACM11: 0 | ACN11: 0 | ACO11: 0 | ACP11: 0 | ACQ11: 0 | ACR11: 0 | ACS11: 0 | ACT11: 0 | ACU11: 0 | ACV11: 0 | ACW11: 0 | ACX11: 0 | ACY11: 0 | ACZ11: 0 | ADA11: 0 | ADB11: 0 | ADC11: 0 | ADD11: 0 | ADE11: 0 | ADF11: 0 | ADG11: 0 | ADH11: 0 | ADI11: 0 | ADJ11: 0 | ADK11: 0 | ADL11: 0 | ADM11: 0 | ADN11: 0 | ADO11: 0 | ADP11: 0 | ADQ11: 0 | ADR11: 0 | ADS11: 0 | ADT11: 0 | ADU11: 0 | ADV11: 0 | ADW11: 0 | ADX11: 0 | ADY11: 0 | ADZ11: 0 | AEA11: 0 | AEB11: 0 | AEC11: 0 | AED11: 0 | AEE11: 0 | AEF11: 0 | AEG11: 0 | AEH11: 0 | AEI11: 0 | AEJ11: 0 | AEK11: 0 | AEL11: 0 | AEM11: 0 | AEN11: 0 | AEO11: 0 | AEP11: 0 | AEQ11: 0 | AER11: 0 | AES11: 0 | AET11: 0 | AEU11: 0 | AEV11: 0 | AEW11: 0 | AEX11: 0 | AEY11: 0 | AEZ11: 0 | AFA11: 0 | AFB11: 0 | AFC11: 0 | AFD11: 0 | AFE11: 0 | AFF11: 0 | AFG11: 0 | AFH11: 0 | AFI11: 0 | AFJ11: 0 | AFK11: 0 | AFL11: 0 | AFM11: 0 | AFN11: 0 | AFO11: 0 | AFP11: 0 | AFQ11: 0 | AFR11: 0 | AFS11: 0 | AFT11: 0 | AFU11: 0 | AFV11: 0 | AFW11: 0 | AFX11: 0 | AFY11: 0 | AFZ11: 0 | AGA11: 0 | AGB11: 0 | AGC11: 0 | AGD11: 0 | AGE11: 0 | AGF11: 0 | AGG11: 0 | AGH11: 0 | AGI11: 0 | AGJ11: 0 | AGK11: 0 | AGL11: 0 | AGM11: 0 | AGN11: 0 | AGO11: 0 | AGP11: 0 | AGQ11: 0 | AGR11: 0 | AGS11: 0 | AGT11: 0 | AGU11: 0 | AGV11: 0 | AGW11: 0 | AGX11: 0 | AGY11: 0 | AGZ11: 0 | AHA11: 0 | AHB11: 0 | AHC11: 0 | AHD11: 0 | AHE11: 0 | AHF11: 0 | AHG11: 0 | AHH11: 0 | AHI11: 0 | AHJ11: 0 | AHK11: 0 | AHL11: 0 | AHM11: 0 | AHN11: 0 | AHO11: 0 | AHP11: 0 | AHQ11: 0 | AHR11: 0 | AHS11: 0 | AHT11: 0 | AHU11: 0 | AHV11: 0 | AHW11: 0 | AHX11: 0 | AHY11: 0 | AHZ11: 0 | AIA11: 0 | AIB11: 0 | AIC11: 0 | AID11: 0 | AIE11: 0 | AIF11: 0 | AIG11: 0 | AIH11: 0 | AII11: 0 | AIJ11: 0 | AIK11: 0 | AIL11: 0 | AIM11: 0 | AIN11: 0 | AIO11: 0 | AIP11: 0 | AIQ11: 0 | AIR11: 0 | AIS11: 0 | AIT11: 0 | AIU11: 0 | AIV11: 0 | AIW11: 0 | AIX11: 0 | AIY11: 0 | AIZ11: 0 | AJA11: 0 | AJB11: 0 | AJC11: 0 | AJD11: 0 | AJE11: 0 | AJF11: 0 | AJG11: 0 | AJH11: 0 | AJI11: 0 | AJJ11: 0 | AJK11: 0 | AJL11: 0 | AJM11: 0 | AJN11: 0 | AJO11: 0 | AJP11: 0 | AJQ11: 0 | AJR11: 0 | AJS11: 0 | AJT11: 0 | AJU11: 0 | AJV11: 0 | AJW11: 0 | AJX11: 0 | AJY11: 0 | AJZ11: 0 | AKA11: 0 | AKB11: 0 | AKC11: 0 | AKD11: 0 | AKE11: 0 | AKF11: 0 | AKG11: 0 | AKH11: 0 | AKI11: 0 | AKJ11: 0 | AKK11: 0 | AKL11: 0 | AKM11: 0 | AKN11: 0 | AKO11: 0 | AKP11: 0 | AKQ11: 0 | AKR11: 0 | AKS11: 0 | AKT11: 0 | AKU11: 0 | AKV11: 0 | AKW11: 0 | AKX11: 0 | AKY11: 0 | AKZ11: 0 | ALA11: 0 | ALB11: 0 | ALC11: 0 | ALD11: 0 | ALE11: 0 | ALF11: 0 | ALG11: 0 | ALH11: 0 | ALI11: =ALI70+ALI129+ALI188+ALI247+ALI306+ALI365+ALI424 -> 0 | ALJ11: 0 | ALK11: 0 | ALL11: 0 | ALM11: 0 | ALN11: 0 | ALO11: 0 | ALP11: 0 | ALQ11: =ALQ70+ALQ129+ALQ188+ALQ247+ALQ306+ALQ365+ALQ424 -> 0 | ALR11: 0 | ALS11: =ALS70+ALS129+ALS188+ALS247+ALS306+ALS365+ALS424 -> 0 | ALT11: 0 | ALU11: 0 | ALV11: 0 | ALW11: 0 | ALX11: 0 | ALY11: 0 | ALZ11: 0 | AMA11: 0 | AMB11: 0 | AMC11: 0 | AMD11: 0 | AME11: 0 | AMF11: =AMF70+AMF129+AMF188+AMF247+AMF306+AMF365+AMF424 -> 0 | AMG11: 0 | AMH11: 0 | AMI11: 0 | ATF11: 0 | ATG11: 0 | ATH11: 0 | ATI11: 0 | ATJ11: 0 | ATK11: 0 | ATL11: 0 | ATM11: 0 | ATN11: 0 | ATO11: 0 | ATP11: 0 | ATQ11: 0 | ATR11: 0 | ATS11: 0 | ATT11: 0 | ATU11: 0 | ATV11: 0 | ATW11: 0 | ATX11: 0 | ATY11: 0 | ATZ11: 0 | AUA11: 0 | AUB11: 0 | AUC11: 0 | AUD11: 0 | AUE11: 0 | AUF11: 0 | AUG11: 0 | AUH11: 0 | AUI11: 0 | AUJ11: 0 | AUK11: 0 | AUL11: 0 | AUM11: 0 | AUN11: 0 | AUO11: 0 | AUP11: 0 | AUQ11: 0 | AUR11: 0 | AUS11: 0 | AUT11: 0 | AUU11: 0 | AUV11: 0 | AUW11: 0 | AUX11: 0 | AUY11: 0 | AUZ11: 0 | AVA11: 0 | AVB11: 0 | AVC11: 0 | AVD11: 0 | AVE11: 0 | AVF11: 0 | AVG11: 0 | AVH11: 0 | AVI11: 0 | AVJ11: 0 | AVK11: 0 | AVL11: 0 | AVM11: 0 | AVN11: 0 | AVO11: 0 | AVP11: 0 | AVQ11: 0 | AVR11: 0 | AVS11: 0 | AVT11: 0 | AVU11: 0 | AVV11: 0 | AVW11: 0 | AVX11: 0 | AVY11: 0 | AVZ11: 0 | AWA11: 0 | AWB11: 0 | AWC11: 0 | AWD11: 0 | AWE11: 0 | AWF11: 0 | AWM11: 0 | AWN11: 0 | AWO11: 0 | AWP11: 0 | AWQ11: 0 | AWR11: 0 | AWS11: 0 | AWT11: 0 | AWU11: 0 | AWV11: 0 | AWW11: 0 | AWX11: 0 | AWY11: 0 | AWZ11: 0 | AXA11: 0 | AXB11: 0 | AXC11: 0 | AXD11: 0 | AXE11: 0 | AXF11: 0
A12: Grain Mill Products | B12: 0 | C12: 0 | D12: 0 | E12: 0 | F12: 0 | G12: 0 | H12: 0 | I12: 0 | J12: 0 | K12: 0 | L12: 0 | M12: 0 | N12: 0 | O12: 0 | P12: 0 | Q12: 0 | R12: 0 | S12: 0 | T12: 0 | U12: 0 | V12: 0 | W12: 0 | X12: 0 | Y12: 0 | Z12: 0 | AA12: 0 | AB12: 0 | AC12: 0 | AD12: 0 | AE12: 0 | AF12: 0 | AG12: 0 | AH12: 0 | AI12: 0 | AJ12: 0 | AK12: 0 | AL12: 0 | AM12: 0 | AN12: 0 | AO12: 0 | AP12: 0 | AQ12: 0 | AR12: 0 | AS12: 0 | AT12: 0 | AU12: 0 | AV12: 0 | AW12: 0 | AX12: 0 | AY12: 0 | AZ12: 0 | BA12: 0 | BB12: 0 | BC12: 0 | BD12: 0 | BE12: 0 | BF12: 0 | BG12: 0 | BH12: 0 | BI12: 0 | BJ12: 0 | BK12: 0 | BL12: 0 | BM12: 0 | BN12: 0 | BO12: 0 | BP12: 0 | BQ12: 0 | BR12: 0 | BS12: 0 | BT12: 0 | BU12: 0 | BV12: 0 | BW12: 0 | BX12: 0 | BY12: 0 | BZ12: 0 | CA12: 0 | CB12: 0 | CC12: 0 | CD12: 0 | CE12: 0 | CF12: 0 | CG12: 0 | CH12: 0 | CI12: 0 | CJ12: 0 | CK12: 0 | CL12: 0 | CM12: 0 | CN12: 0 | CO12: 0 | CP12: 0 | CQ12: 0 | CR12: 0 | CS12: 0 | CT12: 0 | CU12: 0 | CV12: 0 | CW12: 0 | CX12: 0 | CY12: 0 | CZ12: 0 | DA12: 0 | DB12: 0 | DC12: 0 | DD12: 0 | DE12: 0 | DF12: 0 | DG12: 0 | DH12: 0 | DI12: 0 | DJ12: 0 | DK12: 0 | DL12: 0 | DM12: 0 | DN12: 0 | DO12: 0 | DP12: 0 | DQ12: 0 | DR12: 0 | DS12: 0 | DT12: 0 | DU12: 0 | DV12: 0 | DW12: 0 | DX12: 0 | DY12: 0 | DZ12: 0 | EA12: 0 | EB12: 0 | EC12: 0 | ED12: 0 | EE12: 0 | EF12: 0 | EG12: 0 | EH12: 0 | EI12: 0 | EJ12: 0 | EK12: 0 | EL12: 0 | EM12: 0 | EN12: 0 | EO12: 0 | EP12: 0 | EQ12: 0 | ER12: 0 | ES12: 0 | ET12: 0 | EU12: 0 | EV12: 0 | EW12: 0 | EX12: 0 | EY12: 0 | EZ12: 0 | FA12: 0 | FB12: 0 | FC12: 0 | FD12: 0 | FE12: 0 | FF12: 0 | FG12: 0 | FH12: 0 | FI12: 0 | FJ12: 0 | FK12: 0 | FL12: 0 | FM12: 0 | FN12: 0 | FO12: 0 | FP12: 0 | FQ12: 0 | FR12: 0 | FS12: 0 | FT12: 0 | FU12: 0 | FV12: 0 | FW12: 0 | FX12: 0 | FY12: 0 | FZ12: 0 | GA12: 0 | GB12: 0 | GC12: 0 | GD12: 0 | GE12: 0 | GF12: 0 | GG12: 0 | GH12: 0 | GI12: 0 | GJ12: 0 | GK12: 0 | GL12: 0 | GM12: 0 | GN12: 0 | GO12: 0 | GP12: 0 | GQ12: 0 | GR12: 0 | GS12: 0 | GT12: 0 | GU12: 0 | GV12: 0 | GW12: 0 | GX12: 0 | GY12: 0 | GZ12: 0 | HA12: 0 | HB12: 0 | HC12: 0 | HD12: 0 | HE12: 0 | HF12: 0 | HG12: 0 | HH12: 0 | HI12: 0 | HJ12: 0 | HK12: 0 | HL12: 0 | HM12: 0 | HN12: 0 | HO12: 0 | HP12: 0 | HQ12: 0 | HR12: 0 | HS12: 0 | HT12: 0 | HU12: 0 | HV12: 0 | HW12: 0 | HX12: 0 | HY12: 0 | HZ12: 0 | IA12: 0 | IB12: 0 | IC12: 0 | ID12: 0 | IE12: 0 | IF12: 0 | IG12: 0 | IH12: 0 | II12: 0 | IJ12: 0 | IK12: 0 | IL12: 0 | IM12: 0 | IN12: 0 | IO12: 0 | IP12: 0 | IQ12: 0 | IR12: 0 | IS12: 0 | IT12: 0 | IU12: 0 | IV12: 0 | IW12: 0 | IX12: 0 | IY12: 0 | IZ12: 0 | JA12: 0 | JB12: 0 | JC12: 0 | JD12: 0 | JE12: 0 | JF12: 0 | JG12: 0 | JH12: 0 | JI12: 0 | JJ12: 0 | JK12: 0 | JL12: 0 | JM12: 0 | JN12: 0 | JO12: 0 | JP12: 0 | JQ12: 0 | JR12: 0 | JS12: 0 | JT12: 0 | JU12: 0 | JV12: 0 | JW12: 0 | JX12: 0 | JY12: 0 | JZ12: 0 | KA12: 0 | KB12: 0 | KC12: 0 | KD12: 0 | KE12: 0 | KF12: 0 | KG12: 0 | KH12: 0 | KI12: 0 | KJ12: 0 | KK12: 0 | KL12: 0 | KM12: 0 | KN12: 0 | KO12: 0 | KP12: 0 | KQ12: 0 | KR12: 0 | KS12: 0 | KT12: 0 | KU12: 0 | KV12: 0 | KW12: 0 | KX12: 0 | KY12: 0 | KZ12: 0 | LA12: 0 | LB12: 0 | LC12: 0 | LD12: 0 | LE12: 0 | LF12: 0 | LG12: 0 | LH12: 0 | LI12: 0 | LJ12: 0 | LK12: 0 | LL12: 0 | LM12: 0 | LN12: 0 | LO12: 0 | LP12: 0 | LQ12: 0 | LR12: 0 | LS12: 0 | LT12: 0 | LU12: 0 | LV12: 0 | LW12: 0 | LX12: 0 | LY12: 0 | LZ12: 0 | MA12: 0 | MB12: 0 | MC12: 0 | MD12: 0 | ME12: 0 | MF12: 0 | MG12: 0 | MH12: 0 | MI12: 0 | MJ12: 0 | MK12: 0 | ML12: 0 | MM12: 0 | MN12: 0 | MO12: 0 | MP12: 0 | MQ12: 0 | MR12: 0 | MS12: 0 | MT12: 0 | MU12: 0 | MV12: 0 | MW12: 0 | MX12: 0 | MY12: 0 | MZ12: 0 | NA12: 0 | NB12: 0 | NC12: 0 | ND12: 0 | NE12: 0 | NF12: 0 | NG12: 0 | NH12: 0 | NI12: 0 | NJ12: 0 | NK12: 0 | NL12: 0 | NM12: 0 | NN12: 0 | NO12: 0 | NP12: 0 | NQ12: 0 | NR12: 0 | NS12: 0 | NT12: 0 | NU12: 0 | NV12: 0 | NW12: 0 | NX12: 0 | NY12: 0 | NZ12: 0 | OA12: 0 | OB12: 0 | OC12: 0 | OD12: 0 | OE12: 0 | OF12: 0 | OG12: 0 | OH12: 0 | OI12: 0 | OJ12: 0 | OK12: 0 | OL12: 0 | OM12: 0 | ON12: 0 | OO12: 0 | OP12: 0 | OQ12: 0 | OR12: 0 | OS12: 0 | OT12: 0 | OU12: 0 | OV12: 0 | OW12: 0 | OX12: 0 | OY12: 0 | OZ12: 0 | PA12: 0 | PB12: 0 | PC12: 0 | PD12: 0 | PE12: 0 | PF12: 0 | PG12: 0 | PH12: 0 | PI12: 0 | PJ12: 0 | PK12: 0 | PL12: 0 | PM12: 0 | PN12: 0 | PO12: 0 | PP12: 0 | PQ12: 0 | PR12: 0 | PS12: 0 | PT12: 0 | PU12: 0 | PV12: 0 | PW12: 0 | PX12: 0 | PY12: 0 | PZ12: 0 | QA12: 0 | QB12: 0 | QC12: 0 | QD12: 0 | QE12: 0 | QF12: 0 | QG12: 0 | QH12: 0 | QI12: 0 | QJ12: 0 | QK12: 0 | QL12: 0 | QM12: 0 | QN12: 0 | QO12: 0 | QP12: 0 | QQ12: 0 | QR12: 0 | QS12: 0 | QT12: 0 | QU12: 0 | QV12: 0 | QW12: 0 | QX12: 0 | QY12: 0 | QZ12: 0 | RA12: 0 | RB12: 0 | RC12: 0 | RD12: 0 | RE12: 0 | RF12: 0 | RG12: 0 | RH12: 0 | RI12: 0 | RJ12: 0 | RK12: 0 | RL12: 0 | RM12: 0 | RN12: 0 | RO12: 0 | RP12: 0 | RQ12: 0 | RR12: 0 | RS12: 0 | RT12: 0 | RU12: 0 | RV12: 0 | RW12: 0 | RX12: 0 | RY12: 0 | RZ12: 0 | SA12: 0 | SB12: 0 | SC12: 0 | SD12: 0 | SE12: 0 | SF12: 0 | SG12: 0 | SH12: 0 | SI12: 0 | SJ12: 0 | SK12: 0 | SL12: 0 | SM12: 0 | SN12: 0 | SO12: 0 | SP12: 0 | SQ12: 0 | SR12: 0 | SS12: 0 | ST12: 0 | SU12: 0 | SV12: 0 | SW12: 0 | SX12: 0 | SY12: 0 | SZ12: 0 | TA12: 0 | TB12: 0 | TC12: 0 | TD12: 0 | TE12: 0 | TF12: 0 | TG12: 0 | TH12: 0 | TI12: 0 | TJ12: 0 | TK12: 0 | TL12: 0 | TM12: 0 | TN12: 0 | TO12: 0 | TP12: 0 | TQ12: 0 | TR12: 0 | TS12: 0 | TT12: 0 | TU12: 0 | TV12: 0 | TW12: 0 | TX12: 0 | TY12: 0 | TZ12: 0 | UA12: 0 | UB12: 0 | UC12: 0 | UD12: 0 | UE12: 0 | UF12: 0 | UG12: 0 | UH12: 0 | UI12: 0 | UJ12: 0 | UK12: 0 | UL12: 0 | UM12: 0 | UN12: 0 | UO12: 0 | UP12: 0 | UQ12: 0 | UR12: 0 | US12: 0 | UT12: 0 | UU12: 0 | UV12: 0 | UW12: 0 | UX12: 0 | UY12: 0 | UZ12: 0 | VA12: 0 | VB12: 0 | VC12: 0 | VD12: 0 | VE12: 0 | VF12: 0 | VG12: 0 | VH12: 0 | VI12: 0 | VJ12: 0 | VK12: 0 | VL12: 0 | VM12: 0 | VN12: 0 | VO12: 0 | VP12: 0 | VQ12: 0 | VR12: 0 | VS12: 0 | VT12: 0 | VU12: 0 | VV12: 0 | VW12: 0 | VX12: 0 | VY12: 0 | VZ12: 0 | WA12: 0 | WB12: 0 | WC12: 0 | WD12: 0 | WE12: 0 | WF12: 0 | WG12: 0 | WH12: 0 | WI12: 0 | WJ12: 0 | WK12: 0 | WL12: 0 | WM12: 0 | WN12: 0 | WO12: 0 | WP12: 0 | WQ12: 0 | WR12: 0 | WS12: 0 | WT12: 0 | WU12: 0 | WV12: 0 | WW12: 0 | WX12: 0 | WY12: 0 | WZ12: 0 | XA12: 0 | XB12: 0 | XC12: 0 | XD12: 0 | XE12: 0 | XF12: 0 | XG12: 0 | XH12: 0 | XI12: 0 | XJ12: 0 | XK12: 0 | XL12: 0 | XM12: 0 | XN12: 0 | XO12: 0 | XP12: 0 | XQ12: 0 | XR12: 0 | XS12: 0 | XT12: 0 | XU12: 0 | XV12: 0 | XW12: 0 | XX12: 0 | XY12: 0 | XZ12: 0 | YA12: 0 | YB12: 0 | YC12: 0 | YD12: 0 | YE12: 0 | YF12: 0 | YG12: 0 | YH12: 0 | YI12: 0 | YJ12: 0 | YK12: 0 | YL12: 0 | YM12: 0 | YN12: 0 | YO12: 0 | YP12: 0 | YQ12: 0 | YR12: 0 | YS12: 0 | YT12: 0 | YU12: 0 | YV12: 0 | YW12: 0 | YX12: 0 | YY12: 0 | YZ12: 0 | ZA12: 0 | ZB12: 0 | ZC12: 0 | ZD12: 0 | ZE12: 0 | ZF12: 0 | ZG12: 0 | ZH12: 0 | ZI12: 0 | ZJ12: 0 | ZK12: 0 | ZL12: 0 | ZM12: 0 | ZN12: 0 | ZO12: 0 | ZP12: 0 | ZQ12: 0 | ZR12: 0 | ZS12: 0 | ZT12: 0 | ZU12: 0 | ZV12: 0 | ZW12: 0 | ZX12: 0 | ZY12: 0 | ZZ12: 0 | AAA12: 0 | AAB12: 0 | AAC12: 0 | AAD12: 0 | AAE12: 0 | AAF12: 0 | AAG12: 0 | AAH12: 0 | AAI12: 0 | AAJ12: 0 | AAK12: 0 | AAL12: 0 | AAM12: 0 | AAN12: 0 | AAO12: 0 | AAP12: 0 | AAQ12: 0 | AAR12: 0 | AAS12: 0 | AAT12: 0 | AAU12: 0 | AAV12: 0 | AAW12: 0 | AAX12: 0 | AAY12: 0 | AAZ12: 0 | ABA12: 0 | ABB12: 0 | ABC12: 0 | ABD12: 0 | ABE12: 0 | ABF12: 0 | ABG12: 0 | ABH12: 0 | ABI12: 0 | ABJ12: 0 | ABK12: 0 | ABL12: 0 | ABM12: 0 | ABN12: 0 | ABO12: 0 | ABP12: 0 | ABQ12: 0 | ABR12: 0 | ABS12: 0 | ABT12: 0 | ABU12: 0 | ABV12: 0 | ABW12: 0 | ABX12: 0 | ABY12: 0 | ABZ12: 0 | ACA12: 0 | ACB12: 0 | ACC12: 0 | ACD12: 0 | ACE12: 0 | ACF12: 0 | ACG12: 0 | ACH12: 0 | ACI12: 0 | ACJ12: 0 | ACK12: 0 | ACL12: 0 | ACM12: 0 | ACN12: 0 | ACO12: 0 | ACP12: 0 | ACQ12: 0 | ACR12: 0 | ACS12: 0 | ACT12: 0 | ACU12: 0 | ACV12: 0 | ACW12: 0 | ACX12: 0 | ACY12: 0 | ACZ12: 0 | ADA12: 0 | ADB12: 0 | ADC12: 0 | ADD12: 0 | ADE12: 0 | ADF12: 0 | ADG12: 0 | ADH12: 0 | ADI12: 0 | ADJ12: 0 | ADK12: 0 | ADL12: 0 | ADM12: 0 | ADN12: 0 | ADO12: 0 | ADP12: 0 | ADQ12: 0 | ADR12: 0 | ADS12: 0 | ADT12: 0 | ADU12: 0 | ADV12: 0 | ADW12: 0 | ADX12: 0 | ADY12: 0 | ADZ12: 0 | AEA12: 0 | AEB12: 0 | AEC12: 0 | AED12: 0 | AEE12: 0 | AEF12: 0 | AEG12: 0 | AEH12: 0 | AEI12: 0 | AEJ12: 0 | AEK12: 0 | AEL12: 0 | AEM12: 0 | AEN12: 0 | AEO12: 0 | AEP12: 0 | AEQ12: 0 | AER12: 0 | AES12: 0 | AET12: 0 | AEU12: 0 | AEV12: 0 | AEW12: 0 | AEX12: 0 | AEY12: 0 | AEZ12: 0 | AFA12: 0 | AFB12: 0 | AFC12: 0 | AFD12: 0 | AFE12: 0 | AFF12: 0 | AFG12: 0 | AFH12: 0 | AFI12: 0 | AFJ12: 0 | AFK12: 0 | AFL12: 0 | AFM12: 0 | AFN12: 0 | AFO12: 0 | AFP12: 0 | AFQ12: 0 | AFR12: 0 | AFS12: 0 | AFT12: 0 | AFU12: 0 | AFV12: 0 | AFW12: 0 | AFX12: 0 | AFY12: 0 | AFZ12: 0 | AGA12: 0 | AGB12: 0 | AGC12: 0 | AGD12: 0 | AGE12: 0 | AGF12: 0 | AGG12: 0 | AGH12: 0 | AGI12: 0 | AGJ12: 0 | AGK12: 0 | AGL12: 0 | AGM12: 0 | AGN12: 0 | AGO12: 0 | AGP12: 0 | AGQ12: 0 | AGR12: 0 | AGS12: 0 | AGT12: 0 | AGU12: 0 | AGV12: 0 | AGW12: 0 | AGX12: 0 | AGY12: 0 | AGZ12: 0 | AHA12: 0 | AHB12: 0 | AHC12: 0 | AHD12: 0 | AHE12: 0 | AHF12: 0 | AHG12: 0 | AHH12: 0 | AHI12: 0 | AHJ12: 0 | AHK12: 0 | AHL12: 0 | AHM12: 0 | AHN12: 0 | AHO12: 0 | AHP12: 0 | AHQ12: 0 | AHR12: 0 | AHS12: 0 | AHT12: 0 | AHU12: 0 | AHV12: 0 | AHW12: 0 | AHX12: 0 | AHY12: 0 | AHZ12: 0 | AIA12: 0 | AIB12: 0 | AIC12: 0 | AID12: 0 | AIE12: 0 | AIF12: 0 | AIG12: 0 | AIH12: 0 | AII12: 0 | AIJ12: 0 | AIK12: 0 | AIL12: 0 | AIM12: 0 | AIN12: 0 | AIO12: 0 | AIP12: 0 | AIQ12: 0 | AIR12: 0 | AIS12: 0 | AIT12: 0 | AIU12: 0 | AIV12: 0 | AIW12: 0 | AIX12: 0 | AIY12: 0 | AIZ12: 0 | AJA12: 0 | AJB12: 0 | AJC12: 0 | AJD12: 0 | AJE12: 0 | AJF12: 0 | AJG12: 0 | AJH12: 0 | AJI12: 0 | AJJ12: 0 | AJK12: 0 | AJL12: 0 | AJM12: 0 | AJN12: 0 | AJO12: 0 | AJP12: 0 | AJQ12: 0 | AJR12: 0 | AJS12: 0 | AJT12: 0 | AJU12: 0 | AJV12: 0 | AJW12: 0 | AJX12: 0 | AJY12: 0 | AJZ12: 0 | AKA12: 0 | AKB12: 0 | AKC12: 0 | AKD12: 0 | AKE12: 0 | AKF12: 0 | AKG12: 0 | AKH12: 0 | AKI12: 0 | AKJ12: 0 | AKK12: 0 | AKL12: 0 | AKM12: 0 | AKN12: 0 | AKO12: 0 | AKP12: 0 | AKQ12: 0 | AKR12: 0 | AKS12: 0 | AKT12: 0 | AKU12: 0 | AKV12: 0 | AKW12: 0 | AKX12: 0 | AKY12: 0 | AKZ12: 0 | ALA12: 0 | ALB12: 0 | ALC12: 0 | ALD12: 0 | ALE12: 0 | ALF12: 0 | ALG12: 0 | ALH12: 0 | ALI12: =ALI71+ALI130+ALI189+ALI248+ALI307+ALI366+ALI425 -> 0 | ALJ12: 0 | ALK12: 0 | ALL12: 0 | ALM12: 0 | ALN12: 0 | ALO12: 0 | ALP12: 0 | ALQ12: =ALQ71+ALQ130+ALQ189+ALQ248+ALQ307+ALQ366+ALQ425 -> 0 | ALR12: 0 | ALS12: =ALS71+ALS130+ALS189+ALS248+ALS307+ALS366+ALS425 -> 0 | ALT12: 0 | ALU12: 0 | ALV12: 0 | ALW12: 0 | ALX12: 0 | ALY12: 0 | ALZ12: 0 | AMA12: 0 | AMB12: 0 | AMC12: 0 | AMD12: 0 | AME12: 0 | AMF12: =AMF71+AMF130+AMF189+AMF248+AMF307+AMF366+AMF425 -> 0 | AMG12: 0 | AMH12: 0 | AMI12: 0 | ATF12: 0 | ATG12: 0 | ATH12: 0 | ATI12: 0 | ATJ12: 0 | ATK12: 0 | ATL12: 0 | ATM12: 0 | ATN12: 0 | ATO12: 0 | ATP12: 0 | ATQ12: 0 | ATR12: 0 | ATS12: 0 | ATT12: 0 | ATU12: 0 | ATV12: 0 | ATW12: 0 | ATX12: 0 | ATY12: 0 | ATZ12: 0 | AUA12: 0 | AUB12: 0 | AUC12: 0 | AUD12: 0 | AUE12: 0 | AUF12: 0 | AUG12: 0 | AUH12: 0 | AUI12: 0 | AUJ12: 0 | AUK12: 0 | AUL12: 0 | AUM12: 0 | AUN12: 0 | AUO12: 0 | AUP12: 0 | AUQ12: 0 | AUR12: 0 | AUS12: 0 | AUT12: 0 | AUU12: 0 | AUV12: 0 | AUW12: 0 | AUX12: 0 | AUY12: 0 | AUZ12: 0 | AVA12: 0 | AVB12: 0 | AVC12: 0 | AVD12: 0 | AVE12: 0 | AVF12: 0 | AVG12: 0 | AVH12: 0 | AVI12: 0 | AVJ12: 0 | AVK12: 0 | AVL12: 0 | AVM12: 0 | AVN12: 0 | AVO12: 0 | AVP12: 0 | AVQ12: 0 | AVR12: 0 | AVS12: 0 | AVT12: 0 | AVU12: 0 | AVV12: 0 | AVW12: 0 | AVX12: 0 | AVY12: 0 | AVZ12: 0 | AWA12: 0 | AWB12: 0 | AWC12: 0 | AWD12: 0 | AWE12: 0 | AWF12: 0 | AWM12: 0 | AWN12: 0 | AWO12: 0 | AWP12: 0 | AWQ12: 0 | AWR12: 0 | AWS12: 0 | AWT12: 0 | AWU12: 0 | AWV12: 0 | AWW12: 0 | AWX12: 0 | AWY12: 0 | AWZ12: 0 | AXA12: 0 | AXB12: 0 | AXC12: 0 | AXD12: 0 | AXE12: 0 | AXF12: 0
A13: Food & Kindred Products | B13: 0 | C13: 0 | D13: 0 | E13: 0 | F13: 0 | G13: 0 | H13: 0 | I13: 0 | J13: 0 | K13: 0 | L13: 0 | M13: 0 | N13: 0 | O13: 0 | P13: 0 | Q13: 0 | R13: 0 | S13: 0 | T13: 0 | U13: 0 | V13: 0 | W13: 0 | X13: 0 | Y13: 0 | Z13: 0 | AA13: 0 | AB13: 0 | AC13: 0 | AD13: 0 | AE13: 0 | AF13: 0 | AG13: 0 | AH13: 0 | AI13: 0 | AJ13: 0 | AK13: 0 | AL13: 0 | AM13: 0 | AN13: 0 | AO13: 0 | AP13: 0 | AQ13: 0 | AR13: 0 | AS13: 0 | AT13: 0 | AU13: 0 | AV13: 0 | AW13: 0 | AX13: 0 | AY13: 0 | AZ13: 0 | BA13: 0 | BB13: 0 | BC13: 0 | BD13: 0 | BE13: 0 | BF13: 0 | BG13: 0 | BH13: 0 | BI13: 0 | BJ13: 0 | BK13: 0 | BL13: 0 | BM13: =BM72+BM131+BM190+BM249+BM308+BM367+BM426 -> 0 | BN13: 0 | BO13: 0 | BP13: 0 | BQ13: 0 | BR13: 0 | BS13: 0 | BT13: 0 | BU13: 0 | BV13: 0 | BW13: 0 | BX13: 0 | BY13: 0 | BZ13: 0 | CA13: 0 | CB13: 0 | CC13: 0 | CD13: 0 | CE13: 0 | CF13: 0 | CG13: 0 | CH13: 0 | CI13: 0 | CJ13: 0 | CK13: 0 | CL13: 0 | CM13: 0 | CN13: 0 | CO13: 0 | CP13: 0 | CQ13: 0 | CR13: 0 | CS13: 0 | CT13: 0 | CU13: 0 | CV13: 0 | CW13: 0 | CX13: 0 | CY13: 0 | CZ13: 0 | DA13: 0 | DB13: 0 | DC13: 0 | DD13: 0 | DE13: 0 | DF13: 0 | DG13: 0 | DH13: 0 | DI13: 0 | DJ13: 0 | DK13: 0 | DL13: 0 | DM13: 0 | DN13: 0 | DO13: 0 | DP13: 0 | DQ13: 0 | DR13: 0 | DS13: 0 | DT13: 0 | DU13: 0 | DV13: 0 | DW13: 0 | DX13: 0 | DY13: =DY72+DY131+DY190+DY249+DY308+DY367+DY426 -> 0 | DZ13: 0 | EA13: 0 | EB13: 0 | EC13: 0 | ED13: 0 | EE13: 0 | EF13: 0 | EG13: 0 | EH13: 0 | EI13: 0 | EJ13: 0 | EK13: 0 | EL13: 0 | EM13: 0 | EN13: 0 | EO13: 0 | EP13: 0 | EQ13: 0 | ER13: 0 | ES13: 0 | ET13: 0 | EU13: 0 | EV13: 0 | EW13: 0 | EX13: 0 | EY13: 0 | EZ13: 0 | FA13: 0 | FB13: 0 | FC13: 0 | FD13: 0 | FE13: 0 | FF13: 0 | FG13: 0 | FH13: 0 | FI13: 0 | FJ13: 0 | FK13: 0 | FL13: 0 | FM13: 0 | FN13: 0 | FO13: 0 | FP13: 0 | FQ13: 0 | FR13: 0 | FS13: 0 | FT13: 0 | FU13: 0 | FV13: 0 | FW13: 0 | FX13: 0 | FY13: 0 | FZ13: 0 | GA13: 0 | GB13: 0 | GC13: 0 | GD13: 0 | GE13: 0 | GF13: 0 | GG13: 0 | GH13: 0 | GI13: 0 | GJ13: 0 | GK13: =GK72+GK131+GK190+GK249+GK308+GK367+GK426 -> 0 | GL13: 0 | GM13: 0 | GN13: 0 | GO13: 0 | GP13: 0 | GQ13: 0 | GR13: 0 | GS13: 0 | GT13: 0 | GU13: 0 | GV13: 0 | GW13: 0 | GX13: 0 | GY13: 0 | GZ13: 0 | HA13: 0 | HB13: 0 | HC13: 0 | HD13: 0 | HE13: 0 | HF13: 0 | HG13: 0 | HH13: 0 | HI13: 0 | HJ13: 0 | HK13: 0 | HL13: 0 | HM13: 0 | HN13: 0 | HO13: 0 | HP13: 0 | HQ13: 0 | HR13: 0 | HS13: 0 | HT13: 0 | HU13: 0 | HV13: 0 | HW13: 0 | HX13: 0 | HY13: 0 | HZ13: 0 | IA13: 0 | IB13: 0 | IC13: 0 | ID13: 0 | IE13: 0 | IF13: 0 | IG13: 0 | IH13: 0 | II13: 0 | IJ13: 0 | IK13: 0 | IL13: 0 | IM13: 0 | IN13: 0 | IO13: 0 | IP13: 0 | IQ13: 0 | IR13: 0 | IS13: 0 | IT13: 0 | IU13: 0 | IV13: 0 | IW13: =IW72+IW131+IW190+IW249+IW308+IW367+IW426 -> 0 | IX13: 0 | IY13: 0 | IZ13: 0 | JA13: 0 | JB13: 0 | JC13: 0 | JD13: 0 | JE13: 0 | JF13: 0 | JG13: 0 | JH13: 0 | JI13: 0 | JJ13: 0 | JK13: 0 | JL13: 0 | JM13: 0 | JN13: 0 | JO13: 0 | JP13: 0 | JQ13: 0 | JR13: 0 | JS13: 0 | JT13: 0 | JU13: 0 | JV13: 0 | JW13: 0 | JX13: 0 | JY13: 0 | JZ13: 0 | KA13: 0 | KB13: 0 | KC13: 0 | KD13: 0 | KE13: 0 | KF13: 0 | KG13: 0 | KH13: 0 | KI13: 0 | KJ13: 0 | KK13: 0 | KL13: 0 | KM13: 0 | KN13: 0 | KO13: 0 | KP13: 0 | KQ13: 0 | KR13: 0 | KS13: 0 | KT13: 0 | KU13: 0 | KV13: 0 | KW13: 0 | KX13: 0 | KY13: 0 | KZ13: 0 | LA13: 0 | LB13: 0 | LC13: 0 | LD13: 0 | LE13: 0 | LF13: 0 | LG13: 0 | LH13: 0 | LI13: =LI72+LI131+LI190+LI249+LI308+LI367+LI426 -> 0 | LJ13: 0 | LK13: 0 | LL13: 0 | LM13: 0 | LN13: 0 | LO13: 0 | LP13: 0 | LQ13: 0 | LR13: 0 | LS13: 0 | LT13: 0 | LU13: 0 | LV13: 0 | LW13: 0 | LX13: 0 | LY13: 0 | LZ13: 0 | MA13: 0 | MB13: 0 | MC13: 0 | MD13: 0 | ME13: 0 | MF13: 0 | MG13: 0 | MH13: 0 | MI13: 0 | MJ13: 0 | MK13: 0 | ML13: 0 | MM13: 0 | MN13: 0 | MO13: 0 | MP13: 0 | MQ13: 0 | MR13: 0 | MS13: 0 | MT13: 0 | MU13: 0 | MV13: 0 | MW13: 0 | MX13: 0 | MY13: 0 | MZ13: 0 | NA13: 0 | NB13: 0 | NC13: 0 | ND13: 0 | NE13: 0 | NF13: 0 | NG13: 0 | NH13: 0 | NI13: 0 | NJ13: 0 | NK13: 0 | NL13: 0 | NM13: 0 | NN13: 0 | NO13: 0 | NP13: 0 | NQ13: 0 | NR13: 0 | NS13: 0 | NT13: 0 | NU13: =NU72+NU131+NU190+NU249+NU308+NU367+NU426 -> 0 | NV13: 0 | NW13: 0 | NX13: 0 | NY13: 0 | NZ13: 0 | OA13: 0 | OB13: 0 | OC13: 0 | OD13: 0 | OE13: 0 | OF13: 0 | OG13: 0 | OH13: 0 | OI13: 0 | OJ13: 0 | OK13: 0 | OL13: 0 | OM13: 0 | ON13: 0 | OO13: 0 | OP13: 0 | OQ13: 0 | OR13: 0 | OS13: 0 | OT13: 0 | OU13: 0 | OV13: 0 | OW13: 0 | OX13: 0 | OY13: 0 | OZ13: 0 | PA13: 0 | PB13: 0 | PC13: 0 | PD13: 0 | PE13: 0 | PF13: 0 | PG13: 0 | PH13: 0 | PI13: 0 | PJ13: 0 | PK13: 0 | PL13: 0 | PM13: 0 | PN13: 0 | PO13: 0 | PP13: 0 | PQ13: 0 | PR13: 0 | PS13: 0 | PT13: 0 | PU13: 0 | PV13: 0 | PW13: 0 | PX13: 0 | PY13: 0 | PZ13: 0 | QA13: 0 | QB13: 0 | QC13: 0 | QD13: 0 | QE13: 0 | QF13: 0 | QG13: =QG72+QG131+QG190+QG249+QG308+QG367+QG426 -> 0 | QH13: 0 | QI13: 0 | QJ13: 0 | QK13: 0 | QL13: 0 | QM13: 0 | QN13: 0 | QO13: 0 | QP13: 0 | QQ13: 0 | QR13: 0 | QS13: 0 | QT13: 0 | QU13: 0 | QV13: 0 | QW13: 0 | QX13: 0 | QY13: 0 | QZ13: 0 | RA13: 0 | RB13: 0 | RC13: 0 | RD13: 0 | RE13: 0 | RF13: 0 | RG13: 0 | RH13: 0 | RI13: 0 | RJ13: 0 | RK13: 0 | RL13: 0 | RM13: 0 | RN13: 0 | RO13: 0 | RP13: 0 | RQ13: 0 | RR13: 0 | RS13: 0 | RT13: 0 | RU13: 0 | RV13: 0 | RW13: 0 | RX13: 0 | RY13: 0 | RZ13: 0 | SA13: 0 | SB13: 0 | SC13: 0 | SD13: 0 | SE13: 0 | SF13: 0 | SG13: 0 | SH13: 0 | SI13: 0 | SJ13: 0 | SK13: 0 | SL13: 0 | SM13: 0 | SN13: 0 | SO13: 0 | SP13: 0 | SQ13: 0 | SR13: 0 | SS13: =SS72+SS131+SS190+SS249+SS308+SS367+SS426 -> 0 | ST13: 0 | SU13: 0 | SV13: 0 | SW13: 0 | SX13: 0 | SY13: 0 | SZ13: 0 | TA13: 0 | TB13: 0 | TC13: 0 | TD13: 0 | TE13: 0 | TF13: 0 | TG13: 0 | TH13: 0 | TI13: 0 | TJ13: 0 | TK13: 0 | TL13: 0 | TM13: 0 | TN13: 0 | TO13: 0 | TP13: 0 | TQ13: 0 | TR13: 0 | TS13: 0 | TT13: 0 | TU13: 0 | TV13: 0 | TW13: 0 | TX13: 0 | TY13: 0 | TZ13: 0 | UA13: 0 | UB13: 0 | UC13: 0 | UD13: 0 | UE13: 0 | UF13: 0 | UG13: 0 | UH13: 0 | UI13: 0 | UJ13: 0 | UK13: 0 | UL13: 0 | UM13: 0 | UN13: 0 | UO13: 0 | UP13: 0 | UQ13: 0 | UR13: 0 | US13: 0 | UT13: 0 | UU13: 0 | UV13: 0 | UW13: 0 | UX13: 0 | UY13: 0 | UZ13: 0 | VA13: 0 | VB13: 0 | VC13: 0 | VD13: 0 | VE13: =VE72+VE131+VE190+VE249+VE308+VE367+VE426 -> 0 | VF13: 0 | VG13: 0 | VH13: 0 | VI13: 0 | VJ13: 0 | VK13: 0 | VL13: 0 | VM13: 0 | VN13: 0 | VO13: 0 | VP13: 0 | VQ13: 0 | VR13: 0 | VS13: 0 | VT13: 0 | VU13: 0 | VV13: 0 | VW13: 0 | VX13: 0 | VY13: 0 | VZ13: 0 | WA13: 0 | WB13: 0 | WC13: 0 | WD13: 0 | WE13: 0 | WF13: 0 | WG13: 0 | WH13: 0 | WI13: 0 | WJ13: 0 | WK13: 0 | WL13: 0 | WM13: 0 | WN13: 0 | WO13: 0 | WP13: 0 | WQ13: 0 | WR13: 0 | WS13: 0 | WT13: 0 | WU13: 0 | WV13: 0 | WW13: 0 | WX13: 0 | WY13: 0 | WZ13: 0 | XA13: 0 | XB13: 0 | XC13: 0 | XD13: 0 | XE13: 0 | XF13: 0 | XG13: 0 | XH13: 0 | XI13: 0 | XJ13: 0 | XK13: 0 | XL13: 0 | XM13: 0 | XN13: 0 | XO13: 0 | XP13: 0 | XQ13: =XQ72+XQ131+XQ190+XQ249+XQ308+XQ367+XQ426 -> 0 | XR13: 0 | XS13: 0 | XT13: 0 | XU13: 0 | XV13: 0 | XW13: 0 | XX13: 0 | XY13: 0 | XZ13: 0 | YA13: 0 | YB13: 0 | YC13: 0 | YD13: 0 | YE13: 0 | YF13: 0 | YG13: 0 | YH13: 0 | YI13: 0 | YJ13: 0 | YK13: 0 | YL13: 0 | YM13: 0 | YN13: 0 | YO13: 0 | YP13: 0 | YQ13: 0 | YR13: 0 | YS13: 0 | YT13: 0 | YU13: 0 | YV13: 0 | YW13: 0 | YX13: 0 | YY13: 0 | YZ13: 0 | ZA13: 0 | ZB13: 0 | ZC13: 0 | ZD13: 0 | ZE13: 0 | ZF13: 0 | ZG13: 0 | ZH13: 0 | ZI13: 0 | ZJ13: 0 | ZK13: 0 | ZL13: 0 | ZM13: 0 | ZN13: 0 | ZO13: 0 | ZP13: 0 | ZQ13: 0 | ZR13: 0 | ZS13: 0 | ZT13: 0 | ZU13: 0 | ZV13: 0 | ZW13: 0 | ZX13: 0 | ZY13: 0 | ZZ13: 0 | AAA13: 0 | AAB13: 0 | AAC13: =AAC72+AAC131+AAC190+AAC249+AAC308+AAC367+AAC426 -> 0 | AAD13: 0 | AAE13: 0 | AAF13: 0 | AAG13: 0 | AAH13: 0 | AAI13: 0 | AAJ13: 0 | AAK13: 0 | AAL13: 0 | AAM13: 0 | AAN13: 0 | AAO13: 0 | AAP13: 0 | AAQ13: 0 | AAR13: 0 | AAS13: 0 | AAT13: 0 | AAU13: 0 | AAV13: 0 | AAW13: 0 | AAX13: 0 | AAY13: 0 | AAZ13: 0 | ABA13: 0 | ABB13: 0 | ABC13: 0 | ABD13: 0 | ABE13: 0 | ABF13: 0 | ABG13: 0 | ABH13: 0 | ABI13: 0 | ABJ13: 0 | ABK13: 0 | ABL13: 0 | ABM13: 0 | ABN13: 0 | ABO13: 0 | ABP13: 0 | ABQ13: 0 | ABR13: 0 | ABS13: 0 | ABT13: 0 | ABU13: 0 | ABV13: 0 | ABW13: 0 | ABX13: 0 | ABY13: 0 | ABZ13: 0 | ACA13: 0 | ACB13: 0 | ACC13: 0 | ACD13: 0 | ACE13: 0 | ACF13: 0 | ACG13: 0 | ACH13: 0 | ACI13: 0 | ACJ13: 0 | ACK13: 0 | ACL13: 0 | ACM13: 0 | ACN13: 0 | ACO13: =ACO72+ACO131+ACO190+ACO249+ACO308+ACO367+ACO426 -> 0 | ACP13: 0 | ACQ13: 0 | ACR13: 0 | ACS13: 0 | ACT13: 0 | ACU13: 0 | ACV13: 0 | ACW13: 0 | ACX13: 0 | ACY13: 0 | ACZ13: 0 | ADA13: 0 | ADB13: 0 | ADC13: 0 | ADD13: 0 | ADE13: 0 | ADF13: 0 | ADG13: 0 | ADH13: 0 | ADI13: 0 | ADJ13: 0 | ADK13: 0 | ADL13: 0 | ADM13: 0 | ADN13: 0 | ADO13: 0 | ADP13: 0 | ADQ13: 0 | ADR13: 0 | ADS13: 0 | ADT13: 0 | ADU13: 0 | ADV13: 0 | ADW13: 0 | ADX13: 0 | ADY13: 0 | ADZ13: 0 | AEA13: 0 | AEB13: 0 | AEC13: 0 | AED13: 0 | AEE13: 0 | AEF13: 0 | AEG13: 0 | AEH13: 0 | AEI13: 0 | AEJ13: 0 | AEK13: 0 | AEL13: 0 | AEM13: 0 | AEN13: 0 | AEO13: 0 | AEP13: 0 | AEQ13: 0 | AER13: 0 | AES13: 0 | AET13: 0 | AEU13: 0 | AEV13: 0 | AEW13: 0 | AEX13: 0 | AEY13: 0 | AEZ13: 0 | AFA13: =AFA72+AFA131+AFA190+AFA249+AFA308+AFA367+AFA426 -> 0 | AFB13: 0 | AFC13: 0 | AFD13: 0 | AFE13: 0 | AFF13: 0 | AFG13: 0 | AFH13: 0 | AFI13: 0 | AFJ13: 0 | AFK13: 0 | AFL13: 0 | AFM13: 0 | AFN13: 0 | AFO13: 0 | AFP13: 0 | AFQ13: 0 | AFR13: 0 | AFS13: 0 | AFT13: 0 | AFU13: 0 | AFV13: 0 | AFW13: 0 | AFX13: 0 | AFY13: 0 | AFZ13: 0 | AGA13: 0 | AGB13: 0 | AGC13: 0 | AGD13: 0 | AGE13: 0 | AGF13: 0 | AGG13: 0 | AGH13: 0 | AGI13: 0 | AGJ13: 0 | AGK13: 0 | AGL13: 0 | AGM13: 0 | AGN13: 0 | AGO13: 0 | AGP13: 0 | AGQ13: 0 | AGR13: 0 | AGS13: 0 | AGT13: 0 | AGU13: 0 | AGV13: 0 | AGW13: 0 | AGX13: 0 | AGY13: 0 | AGZ13: 0 | AHA13: 0 | AHB13: 0 | AHC13: 0 | AHD13: 0 | AHE13: 0 | AHF13: 0 | AHG13: 0 | AHH13: 0 | AHI13: 0 | AHJ13: 0 | AHK13: 0 | AHL13: 0 | AHM13: =AHM72+AHM131+AHM190+AHM249+AHM308+AHM367+AHM426 -> 0 | AHN13: 0 | AHO13: 0 | AHP13: 0 | AHQ13: 0 | AHR13: 0 | AHS13: 0 | AHT13: 0 | AHU13: 0 | AHV13: 0 | AHW13: 0 | AHX13: 0 | AHY13: 0 | AHZ13: 0 | AIA13: 0 | AIB13: 0 | AIC13: 0 | AID13: 0 | AIE13: 0 | AIF13: 0 | AIG13: 0 | AIH13: 0 | AII13: 0 | AIJ13: 0 | AIK13: 0 | AIL13: 0 | AIM13: 0 | AIN13: 0 | AIO13: 0 | AIP13: 0 | AIQ13: 0 | AIR13: 0 | AIS13: 0 | AIT13: 0 | AIU13: 0 | AIV13: 0 | AIW13: 0 | AIX13: 0 | AIY13: 0 | AIZ13: 0 | AJA13: 0 | AJB13: 0 | AJC13: 0 | AJD13: 0 | AJE13: 0 | AJF13: 0 | AJG13: 0 | AJH13: 0 | AJI13: 0 | AJJ13: 0 | AJK13: 0 | AJL13: 0 | AJM13: 0 | AJN13: 0 | AJO13: 0 | AJP13: 0 | AJQ13: 0 | AJR13: 0 | AJS13: 0 | AJT13: 0 | AJU13: 0 | AJV13: 0 | AJW13: 0 | AJX13: 0 | AJY13: =AJY72+AJY131+AJY190+AJY249+AJY308+AJY367+AJY426 -> 0 | AJZ13: 0 | AKA13: 0 | AKB13: 0 | AKC13: 0 | AKD13: 0 | AKE13: 0 | AKF13: 0 | AKG13: 0 | AKH13: 0 | AKI13: 0 | AKJ13: 0 | AKK13: 0 | AKL13: 0 | AKM13: 0 | AKN13: 0 | AKO13: 0 | AKP13: 0 | AKQ13: 0 | AKR13: 0 | AKS13: 0 | AKT13: 0 | AKU13: 0 | AKV13: 0 | AKW13: 0 | AKX13: 0 | AKY13: 0 | AKZ13: 0 | ALA13: 0 | ALB13: 0 | ALC13: 0 | ALD13: 0 | ALE13: 0 | ALF13: 0 | ALG13: 0 | ALH13: 0 | ALI13: =ALI72+ALI131+ALI190+ALI249+ALI308+ALI367+ALI426 -> 0 | ALJ13: 0 | ALK13: 0 | ALL13: 0 | ALM13: 0 | ALN13: 0 | ALO13: 0 | ALP13: 0 | ALQ13: =ALQ72+ALQ131+ALQ190+ALQ249+ALQ308+ALQ367+ALQ426 -> 0 | ALR13: 0 | ALS13: =ALS72+ALS131+ALS190+ALS249+ALS308+ALS367+ALS426 -> 0 | ALT13: 0 | ALU13: 0 | ALV13: 0 | ALW13: 0 | ALX13: 0 | ALY13: 0 | ALZ13: 0 | AMA13: 0 | AMB13: 0 | AMC13: 0 | AMD13: 0 | AME13: 0 | AMF13: =AMF72+AMF131+AMF190+AMF249+AMF308+AMF367+AMF426 -> 0 | AMG13: 0 | AMH13: 0 | AMI13: 0 | ATF13: 0 | ATG13: 0 | ATH13: 0 | ATI13: 0 | ATJ13: 0 | ATK13: 0 | ATL13: 0 | ATM13: 0 | ATN13: 0 | ATO13: 0 | ATP13: 0 | ATQ13: 0 | ATR13: 0 | ATS13: 0 | ATT13: 0 | ATU13: 0 | ATV13: 0 | ATW13: 0 | ATX13: 0 | ATY13: 0 | ATZ13: 0 | AUA13: 0 | AUB13: 0 | AUC13: 0 | AUD13: 0 | AUE13: 0 | AUF13: 0 | AUG13: 0 | AUH13: 0 | AUI13: 0 | AUJ13: 0 | AUK13: 0 | AUL13: 0 | AUM13: 0 | AUN13: 0 | AUO13: 0 | AUP13: 0 | AUQ13: 0 | AUR13: 0 | AUS13: 0 | AUT13: 0 | AUU13: 0 | AUV13: 0 | AUW13: 0 | AUX13: 0 | AUY13: 0 | AUZ13: 0 | AVA13: 0 | AVB13: 0 | AVC13: 0 | AVD13: 0 | AVE13: 0 | AVF13: 0 | AVG13: 0 | AVH13: 0 | AVI13: 0 | AVJ13: 0 | AVK13: 0 | AVL13: 0 | AVM13: 0 | AVN13: 0 | AVO13: 0 | AVP13: 0 | AVQ13: 0 | AVR13: 0 | AVS13: 0 | AVT13: 0 | AVU13: 0 | AVV13: 0 | AVW13: 0 | AVX13: 0 | AVY13: 0 | AVZ13: 0 | AWA13: 0 | AWB13: 0 | AWC13: 0 | AWD13: 0 | AWE13: 0 | AWF13: 0 | AWM13: 0 | AWN13: 0 | AWO13: 0 | AWP13: 0 | AWQ13: 0 | AWR13: 0 | AWS13: 0 | AWT13: 0 | AWU13: 0 | AWV13: 0 | AWW13: 0 | AWX13: 0 | AWY13: 0 | AWZ13: 0 | AXA13: 0 | AXB13: 0 | AXC13: 0 | AXD13: 0 | AXE13: 0 | AXF13: 0
A14: Primary Forest Products | B14: =B73+B132+B191+B250+B309+B368+B427 -> 0 | C14: 0 | D14: 0 | E14: 0 | F14: 0 | G14: 0 | H14: 0 | I14: 0 | J14: 0 | K14: 0 | L14: 0 | M14: 0 | N14: 0 | O14: 0 | P14: 0 | Q14: 0 | R14: 0 | S14: 0 | T14: 0 | U14: 0 | V14: 0 | W14: 0 | X14: 0 | Y14: 0 | Z14: 0 | AA14: 0 | AB14: 0 | AC14: 0 | AD14: 0 | AE14: 0 | AF14: 0 | AG14: 0 | AH14: 0 | AI14: 0 | AJ14: 0 | AK14: 0 | AL14: 0 | AM14: 0 | AN14: 0 | AO14: 0 | AP14: 0 | AQ14: 0 | AR14: 0 | AS14: 0 | AT14: 0 | AU14: 0 | AV14: 0 | AW14: 0 | AX14: 0 | AY14: 0 | AZ14: 0 | BA14: 0 | BB14: 0 | BC14: 0 | BD14: 0 | BE14: 0 | BF14: 0 | BG14: 0 | BH14: 0 | BI14: 0 | BJ14: 0 | BK14: 0 | BL14: 0 | BM14: 0 | BN14: =BN73+BN132+BN191+BN250+BN309+BN368+BN427 -> 0 | BO14: 0 | BP14: 0 | BQ14: 0 | BR14: 0 | BS14: 0 | BT14: 0 | BU14: 0 | BV14: 0 | BW14: 0 | BX14: 0 | BY14: 0 | BZ14: 0 | CA14: 0 | CB14: 0 | CC14: 0 | CD14: 0 | CE14: 0 | CF14: 0 | CG14: 0 | CH14: 0 | CI14: 0 | CJ14: 0 | CK14: 0 | CL14: 0 | CM14: 0 | CN14: 0 | CO14: 0 | CP14: 0 | CQ14: 0 | CR14: 0 | CS14: 0 | CT14: 0 | CU14: 0 | CV14: 0 | CW14: 0 | CX14: 0 | CY14: 0 | CZ14: 0 | DA14: 0 | DB14: 0 | DC14: 0 | DD14: 0 | DE14: 0 | DF14: 0 | DG14: 0 | DH14: 0 | DI14: 0 | DJ14: 0 | DK14: 0 | DL14: 0 | DM14: 0 | DN14: 0 | DO14: 0 | DP14: 0 | DQ14: 0 | DR14: 0 | DS14: 0 | DT14: 0 | DU14: 0 | DV14: 0 | DW14: 0 | DX14: 0 | DY14: 0 | DZ14: =DZ73+DZ132+DZ191+DZ250+DZ309+DZ368+DZ427 -> 0 | EA14: 0 | EB14: 0 | EC14: 0 | ED14: 0 | EE14: 0 | EF14: 0 | EG14: 0 | EH14: 0 | EI14: 0 | EJ14: 0 | EK14: 0 | EL14: 0 | EM14: 0 | EN14: 0 | EO14: 0 | EP14: 0 | EQ14: 0 | ER14: 0 | ES14: 0 | ET14: 0 | EU14: 0 | EV14: 0 | EW14: 0 | EX14: 0 | EY14: 0 | EZ14: 0 | FA14: 0 | FB14: 0 | FC14: 0 | FD14: 0 | FE14: 0 | FF14: 0 | FG14: 0 | FH14: 0 | FI14: 0 | FJ14: 0 | FK14: 0 | FL14: 0 | FM14: 0 | FN14: 0 | FO14: 0 | FP14: 0 | FQ14: 0 | FR14: 0 | FS14: 0 | FT14: 0 | FU14: 0 | FV14: 0 | FW14: 0 | FX14: 0 | FY14: 0 | FZ14: 0 | GA14: 0 | GB14: 0 | GC14: 0 | GD14: 0 | GE14: 0 | GF14: 0 | GG14: 0 | GH14: 0 | GI14: 0 | GJ14: 0 | GK14: 0 | GL14: =GL73+GL132+GL191+GL250+GL309+GL368+GL427 -> 0 | GM14: 0 | GN14: 0 | GO14: 0 | GP14: 0 | GQ14: 0 | GR14: 0 | GS14: 0 | GT14: 0 | GU14: 0 | GV14: 0 | GW14: 0 | GX14: 0 | GY14: 0 | GZ14: 0 | HA14: 0 | HB14: 0 | HC14: 0 | HD14: 0 | HE14: 0 | HF14: 0 | HG14: 0 | HH14: 0 | HI14: 0 | HJ14: 0 | HK14: 0 | HL14: 0 | HM14: 0 | HN14: 0 | HO14: 0 | HP14: 0 | HQ14: 0 | HR14: 0 | HS14: 0 | HT14: 0 | HU14: 0 | HV14: 0 | HW14: 0 | HX14: 0 | HY14: 0 | HZ14: 0 | IA14: 0 | IB14: 0 | IC14: 0 | ID14: 0 | IE14: 0 | IF14: 0 | IG14: 0 | IH14: 0 | II14: 0 | IJ14: 0 | IK14: 0 | IL14: 0 | IM14: 0 | IN14: 0 | IO14: 0 | IP14: 0 | IQ14: 0 | IR14: 0 | IS14: 0 | IT14: 0 | IU14: 0 | IV14: 0 | IW14: 0 | IX14: =IX73+IX132+IX191+IX250+IX309+IX368+IX427 -> 0 | IY14: 0 | IZ14: 0 | JA14: 0 | JB14: 0 | JC14: 0 | JD14: 0 | JE14: 0 | JF14: 0 | JG14: 0 | JH14: 0 | JI14: 0 | JJ14: 0 | JK14: 0 | JL14: 0 | JM14: 0 | JN14: 0 | JO14: 0 | JP14: 0 | JQ14: 0 | JR14: 0 | JS14: 0 | JT14: 0 | JU14: 0 | JV14: 0 | JW14: 0 | JX14: 0 | JY14: 0 | JZ14: 0 | KA14: 0 | KB14: 0 | KC14: 0 | KD14: 0 | KE14: 0 | KF14: 0 | KG14: 0 | KH14: 0 | KI14: 0 | KJ14: 0 | KK14: 0 | KL14: 0 | KM14: 0 | KN14: 0 | KO14: 0 | KP14: 0 | KQ14: 0 | KR14: 0 | KS14: 0 | KT14: 0 | KU14: 0 | KV14: 0 | KW14: 0 | KX14: 0 | KY14: 0 | KZ14: 0 | LA14: 0 | LB14: 0 | LC14: 0 | LD14: 0 | LE14: 0 | LF14: 0 | LG14: 0 | LH14: 0 | LI14: 0 | LJ14: =LJ73+LJ132+LJ191+LJ250+LJ309+LJ368+LJ427 -> 0 | LK14: 0 | LL14: 0 | LM14: 0 | LN14: 0 | LO14: 0 | LP14: 0 | LQ14: 0 | LR14: 0 | LS14: 0 | LT14: 0 | LU14: 0 | LV14: 0 | LW14: 0 | LX14: 0 | LY14: 0 | LZ14: 0 | MA14: 0 | MB14: 0 | MC14: 0 | MD14: 0 | ME14: 0 | MF14: 0 | MG14: 0 | MH14: 0 | MI14: 0 | MJ14: 0 | MK14: 0 | ML14: 0 | MM14: 0 | MN14: 0 | MO14: 0 | MP14: 0 | MQ14: 0 | MR14: 0 | MS14: 0 | MT14: 0 | MU14: 0 | MV14: 0 | MW14: 0 | MX14: 0 | MY14: 0 | MZ14: 0 | NA14: 0 | NB14: 0 | NC14: 0 | ND14: 0 | NE14: 0 | NF14: 0 | NG14: 0 | NH14: 0 | NI14: 0 | NJ14: 0 | NK14: 0 | NL14: 0 | NM14: 0 | NN14: 0 | NO14: 0 | NP14: 0 | NQ14: 0 | NR14: 0 | NS14: 0 | NT14: 0 | NU14: 0 | NV14: =NV73+NV132+NV191+NV250+NV309+NV368+NV427 -> 0 | NW14: 0 | NX14: 0 | NY14: 0 | NZ14: 0 | OA14: 0 | OB14: 0 | OC14: 0 | OD14: 0 | OE14: 0 | OF14: 0 | OG14: 0 | OH14: 0 | OI14: 0 | OJ14: 0 | OK14: 0 | OL14: 0 | OM14: 0 | ON14: 0 | OO14: 0 | OP14: 0 | OQ14: 0 | OR14: 0 | OS14: 0 | OT14: 0 | OU14: 0 | OV14: 0 | OW14: 0 | OX14: 0 | OY14: 0 | OZ14: 0 | PA14: 0 | PB14: 0 | PC14: 0 | PD14: 0 | PE14: 0 | PF14: 0 | PG14: 0 | PH14: 0 | PI14: 0 | PJ14: 0 | PK14: 0 | PL14: 0 | PM14: 0 | PN14: 0 | PO14: 0 | PP14: 0 | PQ14: 0 | PR14: 0 | PS14: 0 | PT14: 0 | PU14: 0 | PV14: 0 | PW14: 0 | PX14: 0 | PY14: 0 | PZ14: 0 | QA14: 0 | QB14: 0 | QC14: 0 | QD14: 0 | QE14: 0 | QF14: 0 | QG14: 0 | QH14: =QH73+QH132+QH191+QH250+QH309+QH368+QH427 -> 0 | QI14: 0 | QJ14: 0 | QK14: 0 | QL14: 0 | QM14: 0 | QN14: 0 | QO14: 0 | QP14: 0 | QQ14: 0 | QR14: 0 | QS14: 0 | QT14: 0 | QU14: 0 | QV14: 0 | QW14: 0 | QX14: 0 | QY14: 0 | QZ14: 0 | RA14: 0 | RB14: 0 | RC14: 0 | RD14: 0 | RE14: 0 | RF14: 0 | RG14: 0 | RH14: 0 | RI14: 0 | RJ14: 0 | RK14: 0 | RL14: 0 | RM14: 0 | RN14: 0 | RO14: 0 | RP14: 0 | RQ14: 0 | RR14: 0 | RS14: 0 | RT14: 0 | RU14: 0 | RV14: 0 | RW14: 0 | RX14: 0 | RY14: 0 | RZ14: 0 | SA14: 0 | SB14: 0 | SC14: 0 | SD14: 0 | SE14: 0 | SF14: 0 | SG14: 0 | SH14: 0 | SI14: 0 | SJ14: 0 | SK14: 0 | SL14: 0 | SM14: 0 | SN14: 0 | SO14: 0 | SP14: 0 | SQ14: 0 | SR14: 0 | SS14: 0 | ST14: =ST73+ST132+ST191+ST250+ST309+ST368+ST427 -> 0 | SU14: 0 | SV14: 0 | SW14: 0 | SX14: 0 | SY14: 0 | SZ14: 0 | TA14: 0 | TB14: 0 | TC14: 0 | TD14: 0 | TE14: 0 | TF14: 0 | TG14: 0 | TH14: 0 | TI14: 0 | TJ14: 0 | TK14: 0 | TL14: 0 | TM14: 0 | TN14: 0 | TO14: 0 | TP14: 0 | TQ14: 0 | TR14: 0 | TS14: 0 | TT14: 0 | TU14: 0 | TV14: 0 | TW14: 0 | TX14: 0 | TY14: 0 | TZ14: 0 | UA14: 0 | UB14: 0 | UC14: 0 | UD14: 0 | UE14: 0 | UF14: 0 | UG14: 0 | UH14: 0 | UI14: 0 | UJ14: 0 | UK14: 0 | UL14: 0 | UM14: 0 | UN14: 0 | UO14: 0 | UP14: 0 | UQ14: 0 | UR14: 0 | US14: 0 | UT14: 0 | UU14: 0 | UV14: 0 | UW14: 0 | UX14: 0 | UY14: 0 | UZ14: 0 | VA14: 0 | VB14: 0 | VC14: 0 | VD14: 0 | VE14: 0 | VF14: =VF73+VF132+VF191+VF250+VF309+VF368+VF427 -> 0 | VG14: 0 | VH14: 0 | VI14: 0 | VJ14: 0 | VK14: 0 | VL14: 0 | VM14: 0 | VN14: 0 | VO14: 0 | VP14: 0 | VQ14: 0 | VR14: 0 | VS14: 0 | VT14: 0 | VU14: 0 | VV14: 0 | VW14: 0 | VX14: 0 | VY14: 0 | VZ14: 0 | WA14: 0 | WB14: 0 | WC14: 0 | WD14: 0 | WE14: 0 | WF14: 0 | WG14: 0 | WH14: 0 | WI14: 0 | WJ14: 0 | WK14: 0 | WL14: 0 | WM14: 0 | WN14: 0 | WO14: 0 | WP14: 0 | WQ14: 0 | WR14: 0 | WS14: 0 | WT14: 0 | WU14: 0 | WV14: 0 | WW14: 0 | WX14: 0 | WY14: 0 | WZ14: 0 | XA14: 0 | XB14: 0 | XC14: 0 | XD14: 0 | XE14: 0 | XF14: 0 | XG14: 0 | XH14: 0 | XI14: 0 | XJ14: 0 | XK14: 0 | XL14: 0 | XM14: 0 | XN14: 0 | XO14: 0 | XP14: 0 | XQ14: 0 | XR14: =XR73+XR132+XR191+XR250+XR309+XR368+XR427 -> 0 | XS14: 0 | XT14: 0 | XU14: 0 | XV14: 0 | XW14: 0 | XX14: 0 | XY14: 0 | XZ14: 0 | YA14: 0 | YB14: 0 | YC14: 0 | YD14: 0 | YE14: 0 | YF14: 0 | YG14: 0 | YH14: 0 | YI14: 0 | YJ14: 0 | YK14: 0 | YL14: 0 | YM14: 0 | YN14: 0 | YO14: 0 | YP14: 0 | YQ14: 0 | YR14: 0 | YS14: 0 | YT14: 0 | YU14: 0 | YV14: 0 | YW14: 0 | YX14: 0 | YY14: 0 | YZ14: 0 | ZA14: 0 | ZB14: 0 | ZC14: 0 | ZD14: 0 | ZE14: 0 | ZF14: 0 | ZG14: 0 | ZH14: 0 | ZI14: 0 | ZJ14: 0 | ZK14: 0 | ZL14: 0 | ZM14: 0 | ZN14: 0 | ZO14: 0 | ZP14: 0 | ZQ14: 0 | ZR14: 0 | ZS14: 0 | ZT14: 0 | ZU14: 0 | ZV14: 0 | ZW14: 0 | ZX14: 0 | ZY14: 0 | ZZ14: 0 | AAA14: 0 | AAB14: 0 | AAC14: 0 | AAD14: =AAD73+AAD132+AAD191+AAD250+AAD309+AAD368+AAD427 -> 0 | AAE14: 0 | AAF14: 0 | AAG14: 0 | AAH14: 0 | AAI14: 0 | AAJ14: 0 | AAK14: 0 | AAL14: 0 | AAM14: 0 | AAN14: 0 | AAO14: 0 | AAP14: 0 | AAQ14: 0 | AAR14: 0 | AAS14: 0 | AAT14: 0 | AAU14: 0 | AAV14: 0 | AAW14: 0 | AAX14: 0 | AAY14: 0 | AAZ14: 0 | ABA14: 0 | ABB14: 0 | ABC14: 0 | ABD14: 0 | ABE14: 0 | ABF14: 0 | ABG14: 0 | ABH14: 0 | ABI14: 0 | ABJ14: 0 | ABK14: 0 | ABL14: 0 | ABM14: 0 | ABN14: 0 | ABO14: 0 | ABP14: 0 | ABQ14: 0 | ABR14: 0 | ABS14: 0 | ABT14: 0 | ABU14: 0 | ABV14: 0 | ABW14: 0 | ABX14: 0 | ABY14: 0 | ABZ14: 0 | ACA14: 0 | ACB14: 0 | ACC14: 0 | ACD14: 0 | ACE14: 0 | ACF14: 0 | ACG14: 0 | ACH14: 0 | ACI14: 0 | ACJ14: 0 | ACK14: 0 | ACL14: 0 | ACM14: 0 | ACN14: 0 | ACO14: 0 | ACP14: =ACP73+ACP132+ACP191+ACP250+ACP309+ACP368+ACP427 -> 0 | ACQ14: 0 | ACR14: 0 | ACS14: 0 | ACT14: 0 | ACU14: 0 | ACV14: 0 | ACW14: 0 | ACX14: 0 | ACY14: 0 | ACZ14: 0 | ADA14: 0 | ADB14: 0 | ADC14: 0 | ADD14: 0 | ADE14: 0 | ADF14: 0 | ADG14: 0 | ADH14: 0 | ADI14: 0 | ADJ14: 0 | ADK14: 0 | ADL14: 0 | ADM14: 0 | ADN14: 0 | ADO14: 0 | ADP14: 0 | ADQ14: 0 | ADR14: 0 | ADS14: 0 | ADT14: 0 | ADU14: 0 | ADV14: 0 | ADW14: 0 | ADX14: 0 | ADY14: 0 | ADZ14: 0 | AEA14: 0 | AEB14: 0 | AEC14: 0 | AED14: 0 | AEE14: 0 | AEF14: 0 | AEG14: 0 | AEH14: 0 | AEI14: 0 | AEJ14: 0 | AEK14: 0 | AEL14: 0 | AEM14: 0 | AEN14: 0 | AEO14: 0 | AEP14: 0 | AEQ14: 0 | AER14: 0 | AES14: 0 | AET14: 0 | AEU14: 0 | AEV14: 0 | AEW14: 0 | AEX14: 0 | AEY14: 0 | AEZ14: 0 | AFA14: 0 | AFB14: =AFB73+AFB132+AFB191+AFB250+AFB309+AFB368+AFB427 -> 0 | AFC14: 0 | AFD14: 0 | AFE14: 0 | AFF14: 0 | AFG14: 0 | AFH14: 0 | AFI14: 0 | AFJ14: 0 | AFK14: 0 | AFL14: 0 | AFM14: 0 | AFN14: 0 | AFO14: 0 | AFP14: 0 | AFQ14: 0 | AFR14: 0 | AFS14: 0 | AFT14: 0 | AFU14: 0 | AFV14: 0 | AFW14: 0 | AFX14: 0 | AFY14: 0 | AFZ14: 0 | AGA14: 0 | AGB14: 0 | AGC14: 0 | AGD14: 0 | AGE14: 0 | AGF14: 0 | AGG14: 0 | AGH14: 0 | AGI14: 0 | AGJ14: 0 | AGK14: 0 | AGL14: 0 | AGM14: 0 | AGN14: 0 | AGO14: 0 | AGP14: 0 | AGQ14: 0 | AGR14: 0 | AGS14: 0 | AGT14: 0 | AGU14: 0 | AGV14: 0 | AGW14: 0 | AGX14: 0 | AGY14: 0 | AGZ14: 0 | AHA14: 0 | AHB14: 0 | AHC14: 0 | AHD14: 0 | AHE14: 0 | AHF14: 0 | AHG14: 0 | AHH14: 0 | AHI14: 0 | AHJ14: 0 | AHK14: 0 | AHL14: 0 | AHM14: 0 | AHN14: =AHN73+AHN132+AHN191+AHN250+AHN309+AHN368+AHN427 -> 0 | AHO14: 0 | AHP14: 0 | AHQ14: 0 | AHR14: 0 | AHS14: 0 | AHT14: 0 | AHU14: 0 | AHV14: 0 | AHW14: 0 | AHX14: 0 | AHY14: 0 | AHZ14: 0 | AIA14: 0 | AIB14: 0 | AIC14: 0 | AID14: 0 | AIE14: 0 | AIF14: 0 | AIG14: 0 | AIH14: 0 | AII14: 0 | AIJ14: 0 | AIK14: 0 | AIL14: 0 | AIM14: 0 | AIN14: 0 | AIO14: 0 | AIP14: 0 | AIQ14: 0 | AIR14: 0 | AIS14: 0 | AIT14: 0 | AIU14: 0 | AIV14: 0 | AIW14: 0 | AIX14: 0 | AIY14: 0 | AIZ14: 0 | AJA14: 0 | AJB14: 0 | AJC14: 0 | AJD14: 0 | AJE14: 0 | AJF14: 0 | AJG14: 0 | AJH14: 0 | AJI14: 0 | AJJ14: 0 | AJK14: 0 | AJL14: 0 | AJM14: 0 | AJN14: 0 | AJO14: 0 | AJP14: 0 | AJQ14: 0 | AJR14: 0 | AJS14: 0 | AJT14: 0 | AJU14: 0 | AJV14: 0 | AJW14: 0 | AJX14: 0 | AJY14: 0 | AJZ14: 0 | AKA14: 0 | AKB14: 0 | AKC14: 0 | AKD14: 0 | AKE14: 0 | AKF14: 0 | AKG14: 0 | AKH14: 0 | AKI14: 0 | AKJ14: 0 | AKK14: 0 | AKL14: 0 | AKM14: 0 | AKN14: 0 | AKO14: 0 | AKP14: 0 | AKQ14: 0 | AKR14: 0 | AKS14: 0 | AKT14: 0 | AKU14: 0 | AKV14: 0 | AKW14: 0 | AKX14: =AKX73+AKX132+AKX191+AKX250+AKX309+AKX368+AKX427 -> 0 | AKY14: 0 | AKZ14: 0 | ALA14: 0 | ALB14: 0 | ALC14: 0 | ALD14: 0 | ALE14: =ALE73+ALE132+ALE191+ALE250+ALE309+ALE368+ALE427 -> 0 | ALF14: 0 | ALG14: 0 | ALH14: 0 | ALI14: =ALI73+ALI132+ALI191+ALI250+ALI309+ALI368+ALI427 -> 0 | ALJ14: 0 | ALK14: 0 | ALL14: 0 | ALM14: 0 | ALN14: 0 | ALO14: 0 | ALP14: 0 | ALQ14: =ALQ73+ALQ132+ALQ191+ALQ250+ALQ309+ALQ368+ALQ427 -> 0 | ALR14: 0 | ALS14: =ALS73+ALS132+ALS191+ALS250+ALS309+ALS368+ALS427 -> 0 | ALT14: 0 | ALU14: 0 | ALV14: 0 | ALW14: 0 | ALX14: 0 | ALY14: 0 | ALZ14: 0 | AMA14: 0 | AMB14: 0 | AMC14: 0 | AMD14: 0 | AME14: 0 | AMF14: =AMF73+AMF132+AMF191+AMF250+AMF309+AMF368+AMF427 -> 0 | AMG14: 0 | AMH14: 0 | AMI14: 0 | ATF14: 0 | ATG14: 0 | ATH14: 0 | ATI14: 0 | ATJ14: 0 | ATK14: 0 | ATL14: 0 | ATM14: 0 | ATN14: 0 | ATO14: 0 | ATP14: 0 | ATQ14: 0 | ATR14: 0 | ATS14: 0 | ATT14: 0 | ATU14: 0 | ATV14: 0 | ATW14: 0 | ATX14: 0 | ATY14: 0 | ATZ14: 0 | AUA14: 0 | AUB14: 0 | AUC14: 0 | AUD14: 0 | AUE14: 0 | AUF14: 0 | AUG14: 0 | AUH14: 0 | AUI14: 0 | AUJ14: 0 | AUK14: 0 | AUL14: 0 | AUM14: 0 | AUN14: 0 | AUO14: 0 | AUP14: 0 | AUQ14: 0 | AUR14: 0 | AUS14: 0 | AUT14: 0 | AUU14: 0 | AUV14: 0 | AUW14: 0 | AUX14: 0 | AUY14: 0 | AUZ14: 0 | AVA14: 0 | AVB14: 0 | AVC14: 0 | AVD14: 0 | AVE14: 0 | AVF14: 0 | AVG14: 0 | AVH14: 0 | AVI14: 0 | AVJ14: 0 | AVK14: 0 | AVL14: 0 | AVM14: 0 | AVN14: 0 | AVO14: 0 | AVP14: 0 | AVQ14: 0 | AVR14: 0 | AVS14: 0 | AVT14: 0 | AVU14: 0 | AVV14: 0 | AVW14: 0 | AVX14: 0 | AVY14: 0 | AVZ14: 0 | AWA14: 0 | AWB14: 0 | AWC14: 0 | AWD14: 0 | AWE14: 0 | AWF14: 0 | AWM14: 0 | AWN14: 0 | AWO14: 0 | AWP14: 0 | AWQ14: 0 | AWR14: 0 | AWS14: 0 | AWT14: 0 | AWU14: 0 | AWV14: 0 | AWW14: 0 | AWX14: 0 | AWY14: 0 | AWZ14: 0 | AXA14: 0 | AXB14: 0 | AXC14: 0 | AXD14: 0 | AXE14: 0 | AXF14: 0
A15: Lumber & Wood Products | B15: 0 | C15: 0 | D15: 0 | E15: 0 | F15: 0 | G15: 0 | H15: 0 | I15: 0 | J15: 0 | K15: 0 | L15: 0 | M15: 0 | N15: 0 | O15: 0 | P15: 0 | Q15: 0 | R15: 0 | S15: 0 | T15: 0 | U15: 0 | V15: 0 | W15: 0 | X15: 0 | Y15: 0 | Z15: 0 | AA15: 0 | AB15: 0 | AC15: 0 | AD15: 0 | AE15: 0 | AF15: 0 | AG15: 0 | AH15: 0 | AI15: 0 | AJ15: 0 | AK15: 0 | AL15: 0 | AM15: 0 | AN15: 0 | AO15: 0 | AP15: 0 | AQ15: 0 | AR15: 0 | AS15: 0 | AT15: 0 | AU15: 0 | AV15: 0 | AW15: 0 | AX15: 0 | AY15: 0 | AZ15: 0 | BA15: 0 | BB15: 0 | BC15: 0 | BD15: 0 | BE15: 0 | BF15: 0 | BG15: 0 | BH15: 0 | BI15: 0 | BJ15: 0 | BK15: 0 | BL15: 0 | BM15: 0 | BN15: 0 | BO15: 0 | BP15: 0 | BQ15: 0 | BR15: 0 | BS15: 0 | BT15: 0 | BU15: 0 | BV15: 0 | BW15: 0 | BX15: 0 | BY15: 0 | BZ15: 0 | CA15: 0 | CB15: 0 | CC15: 0 | CD15: 0 | CE15: 0 | CF15: 0 | CG15: 0 | CH15: 0 | CI15: 0 | CJ15: 0 | CK15: 0 | CL15: 0 | CM15: 0 | CN15: 0 | CO15: 0 | CP15: 0 | CQ15: 0 | CR15: 0 | CS15: 0 | CT15: 0 | CU15: 0 | CV15: 0 | CW15: 0 | CX15: 0 | CY15: 0 | CZ15: 0 | DA15: 0 | DB15: 0 | DC15: 0 | DD15: 0 | DE15: 0 | DF15: 0 | DG15: 0 | DH15: 0 | DI15: 0 | DJ15: 0 | DK15: 0 | DL15: 0 | DM15: 0 | DN15: 0 | DO15: 0 | DP15: 0 | DQ15: 0 | DR15: 0 | DS15: 0 | DT15: 0 | DU15: 0 | DV15: 0 | DW15: 0 | DX15: 0 | DY15: 0 | DZ15: 0 | EA15: 0 | EB15: 0 | EC15: 0 | ED15: 0 | EE15: 0 | EF15: 0 | EG15: 0 | EH15: 0 | EI15: 0 | EJ15: 0 | EK15: 0 | EL15: 0 | EM15: 0 | EN15: 0 | EO15: 0 | EP15: 0 | EQ15: 0 | ER15: 0 | ES15: 0 | ET15: 0 | EU15: 0 | EV15: 0 | EW15: 0 | EX15: 0 | EY15: 0 | EZ15: 0 | FA15: 0 | FB15: 0 | FC15: 0 | FD15: 0 | FE15: 0 | FF15: 0 | FG15: 0 | FH15: 0 | FI15: 0 | FJ15: 0 | FK15: 0 | FL15: 0 | FM15: 0 | FN15: 0 | FO15: 0 | FP15: 0 | FQ15: 0 | FR15: 0 | FS15: 0 | FT15: 0 | FU15: 0 | FV15: 0 | FW15: 0 | FX15: 0 | FY15: 0 | FZ15: 0 | GA15: 0 | GB15: 0 | GC15: 0 | GD15: 0 | GE15: 0 | GF15: 0 | GG15: 0 | GH15: 0 | GI15: 0 | GJ15: 0 | GK15: 0 | GL15: 0 | GM15: 0 | GN15: 0 | GO15: 0 | GP15: 0 | GQ15: 0 | GR15: 0 | GS15: 0 | GT15: 0 | GU15: 0 | GV15: 0 | GW15: 0 | GX15: 0 | GY15: 0 | GZ15: 0 | HA15: 0 | HB15: 0 | HC15: 0 | HD15: 0 | HE15: 0 | HF15: 0 | HG15: 0 | HH15: 0 | HI15: 0 | HJ15: 0 | HK15: 0 | HL15: 0 | HM15: 0 | HN15: 0 | HO15: 0 | HP15: 0 | HQ15: 0 | HR15: 0 | HS15: 0 | HT15: 0 | HU15: 0 | HV15: 0 | HW15: 0 | HX15: 0 | HY15: 0 | HZ15: 0 | IA15: 0 | IB15: 0 | IC15: 0 | ID15: 0 | IE15: 0 | IF15: 0 | IG15: 0 | IH15: 0 | II15: 0 | IJ15: 0 | IK15: 0 | IL15: 0 | IM15: 0 | IN15: 0 | IO15: 0 | IP15: 0 | IQ15: 0 | IR15: 0 | IS15: 0 | IT15: 0 | IU15: 0 | IV15: 0 | IW15: 0 | IX15: 0 | IY15: 0 | IZ15: 0 | JA15: 0 | JB15: 0 | JC15: 0 | JD15: 0 | JE15: 0 | JF15: 0 | JG15: 0 | JH15: 0 | JI15: 0 | JJ15: 0 | JK15: 0 | JL15: 0 | JM15: 0 | JN15: 0 | JO15: 0 | JP15: 0 | JQ15: 0 | JR15: 0 | JS15: 0 | JT15: 0 | JU15: 0 | JV15: 0 | JW15: 0 | JX15: 0 | JY15: 0 | JZ15: 0 | KA15: 0 | KB15: 0 | KC15: 0 | KD15: 0 | KE15: 0 | KF15: 0 | KG15: 0 | KH15: 0 | KI15: 0 | KJ15: 0 | KK15: 0 | KL15: 0 | KM15: 0 | KN15: 0 | KO15: 0 | KP15: 0 | KQ15: 0 | KR15: 0 | KS15: 0 | KT15: 0 | KU15: 0 | KV15: 0 | KW15: 0 | KX15: 0 | KY15: 0 | KZ15: 0 | LA15: 0 | LB15: 0 | LC15: 0 | LD15: 0 | LE15: 0 | LF15: 0 | LG15: 0 | LH15: 0 | LI15: 0 | LJ15: 0 | LK15: 0 | LL15: 0 | LM15: 0 | LN15: 0 | LO15: 0 | LP15: 0 | LQ15: 0 | LR15: 0 | LS15: 0 | LT15: 0 | LU15: 0 | LV15: 0 | LW15: 0 | LX15: 0 | LY15: 0 | LZ15: 0 | MA15: 0 | MB15: 0 | MC15: 0 | MD15: 0 | ME15: 0 | MF15: 0 | MG15: 0 | MH15: 0 | MI15: 0 | MJ15: 0 | MK15: 0 | ML15: 0 | MM15: 0 | MN15: 0 | MO15: 0 | MP15: 0 | MQ15: 0 | MR15: 0 | MS15: 0 | MT15: 0 | MU15: 0 | MV15: 0 | MW15: 0 | MX15: 0 | MY15: 0 | MZ15: 0 | NA15: 0 | NB15: 0 | NC15: 0 | ND15: 0 | NE15: 0 | NF15: 0 | NG15: 0 | NH15: 0 | NI15: 0 | NJ15: 0 | NK15: 0 | NL15: 0 | NM15: 0 | NN15: 0 | NO15: 0 | NP15: 0 | NQ15: 0 | NR15: 0 | NS15: 0 | NT15: 0 | NU15: 0 | NV15: 0 | NW15: 0 | NX15: 0 | NY15: 0 | NZ15: 0 | OA15: 0 | OB15: 0 | OC15: 0 | OD15: 0 | OE15: 0 | OF15: 0 | OG15: 0 | OH15: 0 | OI15: 0 | OJ15: 0 | OK15: 0 | OL15: 0 | OM15: 0 | ON15: 0 | OO15: 0 | OP15: 0 | OQ15: 0 | OR15: 0 | OS15: 0 | OT15: 0 | OU15: 0 | OV15: 0 | OW15: 0 | OX15: 0 | OY15: 0 | OZ15: 0 | PA15: 0 | PB15: 0 | PC15: 0 | PD15: 0 | PE15: 0 | PF15: 0 | PG15: 0 | PH15: 0 | PI15: 0 | PJ15: 0 | PK15: 0 | PL15: 0 | PM15: 0 | PN15: 0 | PO15: 0 | PP15: 0 | PQ15: 0 | PR15: 0 | PS15: 0 | PT15: 0 | PU15: 0 | PV15: 0 | PW15: 0 | PX15: 0 | PY15: 0 | PZ15: 0 | QA15: 0 | QB15: 0 | QC15: 0 | QD15: 0 | QE15: 0 | QF15: 0 | QG15: 0 | QH15: 0 | QI15: 0 | QJ15: 0 | QK15: 0 | QL15: 0 | QM15: 0 | QN15: 0 | QO15: 0 | QP15: 0 | QQ15: 0 | QR15: 0 | QS15: 0 | QT15: 0 | QU15: 0 | QV15: 0 | QW15: 0 | QX15: 0 | QY15: 0 | QZ15: 0 | RA15: 0 | RB15: 0 | RC15: 0 | RD15: 0 | RE15: 0 | RF15: 0 | RG15: 0 | RH15: 0 | RI15: 0 | RJ15: 0 | RK15: 0 | RL15: 0 | RM15: 0 | RN15: 0 | RO15: 0 | RP15: 0 | RQ15: 0 | RR15: 0 | RS15: 0 | RT15: 0 | RU15: 0 | RV15: 0 | RW15: 0 | RX15: 0 | RY15: 0 | RZ15: 0 | SA15: 0 | SB15: 0 | SC15: 0 | SD15: 0 | SE15: 0 | SF15: 0 | SG15: 0 | SH15: 0 | SI15: 0 | SJ15: 0 | SK15: 0 | SL15: 0 | SM15: 0 | SN15: 0 | SO15: 0 | SP15: 0 | SQ15: 0 | SR15: 0 | SS15: 0 | ST15: 0 | SU15: 0 | SV15: 0 | SW15: 0 | SX15: 0 | SY15: 0 | SZ15: 0 | TA15: 0 | TB15: 0 | TC15: 0 | TD15: 0 | TE15: 0 | TF15: 0 | TG15: 0 | TH15: 0 | TI15: 0 | TJ15: 0 | TK15: 0 | TL15: 0 | TM15: 0 | TN15: 0 | TO15: 0 | TP15: 0 | TQ15: 0 | TR15: 0 | TS15: 0 | TT15: 0 | TU15: 0 | TV15: 0 | TW15: 0 | TX15: 0 | TY15: 0 | TZ15: 0 | UA15: 0 | UB15: 0 | UC15: 0 | UD15: 0 | UE15: 0 | UF15: 0 | UG15: 0 | UH15: 0 | UI15: 0 | UJ15: 0 | UK15: 0 | UL15: 0 | UM15: 0 | UN15: 0 | UO15: 0 | UP15: 0 | UQ15: 0 | UR15: 0 | US15: 0 | UT15: 0 | UU15: 0 | UV15: 0 | UW15: 0 | UX15: 0 | UY15: 0 | UZ15: 0 | VA15: 0 | VB15: 0 | VC15: 0 | VD15: 0 | VE15: 0 | VF15: 0 | VG15: 0 | VH15: 0 | VI15: 0 | VJ15: 0 | VK15: 0 | VL15: 0 | VM15: 0 | VN15: 0 | VO15: 0 | VP15: 0 | VQ15: 0 | VR15: 0 | VS15: 0 | VT15: 0 | VU15: 0 | VV15: 0 | VW15: 0 | VX15: 0 | VY15: 0 | VZ15: 0 | WA15: 0 | WB15: 0 | WC15: 0 | WD15: 0 | WE15: 0 | WF15: 0 | WG15: 0 | WH15: 0 | WI15: 0 | WJ15: 0 | WK15: 0 | WL15: 0 | WM15: 0 | WN15: 0 | WO15: 0 | WP15: 0 | WQ15: 0 | WR15: 0 | WS15: 0 | WT15: 0 | WU15: 0 | WV15: 0 | WW15: 0 | WX15: 0 | WY15: 0 | WZ15: 0 | XA15: 0 | XB15: 0 | XC15: 0 | XD15: 0 | XE15: 0 | XF15: 0 | XG15: 0 | XH15: 0 | XI15: 0 | XJ15: 0 | XK15: 0 | XL15: 0 | XM15: 0 | XN15: 0 | XO15: 0 | XP15: 0 | XQ15: 0 | XR15: 0 | XS15: 0 | XT15: 0 | XU15: 0 | XV15: 0 | XW15: 0 | XX15: 0 | XY15: 0 | XZ15: 0 | YA15: 0 | YB15: 0 | YC15: 0 | YD15: 0 | YE15: 0 | YF15: 0 | YG15: 0 | YH15: 0 | YI15: 0 | YJ15: 0 | YK15: 0 | YL15: 0 | YM15: 0 | YN15: 0 | YO15: 0 | YP15: 0 | YQ15: 0 | YR15: 0 | YS15: 0 | YT15: 0 | YU15: 0 | YV15: 0 | YW15: 0 | YX15: 0 | YY15: 0 | YZ15: 0 | ZA15: 0 | ZB15: 0 | ZC15: 0 | ZD15: 0 | ZE15: 0 | ZF15: 0 | ZG15: 0 | ZH15: 0 | ZI15: 0 | ZJ15: 0 | ZK15: 0 | ZL15: 0 | ZM15: 0 | ZN15: 0 | ZO15: 0 | ZP15: 0 | ZQ15: 0 | ZR15: 0 | ZS15: 0 | ZT15: 0 | ZU15: 0 | ZV15: 0 | ZW15: 0 | ZX15: 0 | ZY15: 0 | ZZ15: 0 | AAA15: 0 | AAB15: 0 | AAC15: 0 | AAD15: 0 | AAE15: 0 | AAF15: 0 | AAG15: 0 | AAH15: 0 | AAI15: 0 | AAJ15: 0 | AAK15: 0 | AAL15: 0 | AAM15: 0 | AAN15: 0 | AAO15: 0 | AAP15: 0 | AAQ15: 0 | AAR15: 0 | AAS15: 0 | AAT15: 0 | AAU15: 0 | AAV15: 0 | AAW15: 0 | AAX15: 0 | AAY15: 0 | AAZ15: 0 | ABA15: 0 | ABB15: 0 | ABC15: 0 | ABD15: 0 | ABE15: 0 | ABF15: 0 | ABG15: 0 | ABH15: 0 | ABI15: 0 | ABJ15: 0 | ABK15: 0 | ABL15: 0 | ABM15: 0 | ABN15: 0 | ABO15: 0 | ABP15: 0 | ABQ15: 0 | ABR15: 0 | ABS15: 0 | ABT15: 0 | ABU15: 0 | ABV15: 0 | ABW15: 0 | ABX15: 0 | ABY15: 0 | ABZ15: 0 | ACA15: 0 | ACB15: 0 | ACC15: 0 | ACD15: 0 | ACE15: 0 | ACF15: 0 | ACG15: 0 | ACH15: 0 | ACI15: 0 | ACJ15: 0 | ACK15: 0 | ACL15: 0 | ACM15: 0 | ACN15: 0 | ACO15: 0 | ACP15: 0 | ACQ15: 0 | ACR15: 0 | ACS15: 0 | ACT15: 0 | ACU15: 0 | ACV15: 0 | ACW15: 0 | ACX15: 0 | ACY15: 0 | ACZ15: 0 | ADA15: 0 | ADB15: 0 | ADC15: 0 | ADD15: 0 | ADE15: 0 | ADF15: 0 | ADG15: 0 | ADH15: 0 | ADI15: 0 | ADJ15: 0 | ADK15: 0 | ADL15: 0 | ADM15: 0 | ADN15: 0 | ADO15: 0 | ADP15: 0 | ADQ15: 0 | ADR15: 0 | ADS15: 0 | ADT15: 0 | ADU15: 0 | ADV15: 0 | ADW15: 0 | ADX15: 0 | ADY15: 0 | ADZ15: 0 | AEA15: 0 | AEB15: 0 | AEC15: 0 | AED15: 0 | AEE15: 0 | AEF15: 0 | AEG15: 0 | AEH15: 0 | AEI15: 0 | AEJ15: 0 | AEK15: 0 | AEL15: 0 | AEM15: 0 | AEN15: 0 | AEO15: 0 | AEP15: 0 | AEQ15: 0 | AER15: 0 | AES15: 0 | AET15: 0 | AEU15: 0 | AEV15: 0 | AEW15: 0 | AEX15: 0 | AEY15: 0 | AEZ15: 0 | AFA15: 0 | AFB15: 0 | AFC15: 0 | AFD15: 0 | AFE15: 0 | AFF15: 0 | AFG15: 0 | AFH15: 0 | AFI15: 0 | AFJ15: 0 | AFK15: 0 | AFL15: 0 | AFM15: 0 | AFN15: 0 | AFO15: 0 | AFP15: 0 | AFQ15: 0 | AFR15: 0 | AFS15: 0 | AFT15: 0 | AFU15: 0 | AFV15: 0 | AFW15: 0 | AFX15: 0 | AFY15: 0 | AFZ15: 0 | AGA15: 0 | AGB15: 0 | AGC15: 0 | AGD15: 0 | AGE15: 0 | AGF15: 0 | AGG15: 0 | AGH15: 0 | AGI15: 0 | AGJ15: 0 | AGK15: 0 | AGL15: 0 | AGM15: 0 | AGN15: 0 | AGO15: 0 | AGP15: 0 | AGQ15: 0 | AGR15: 0 | AGS15: 0 | AGT15: 0 | AGU15: 0 | AGV15: 0 | AGW15: 0 | AGX15: 0 | AGY15: 0 | AGZ15: 0 | AHA15: 0 | AHB15: 0 | AHC15: 0 | AHD15: 0 | AHE15: 0 | AHF15: 0 | AHG15: 0 | AHH15: 0 | AHI15: 0 | AHJ15: 0 | AHK15: 0 | AHL15: 0 | AHM15: 0 | AHN15: 0 | AHO15: 0 | AHP15: 0 | AHQ15: 0 | AHR15: 0 | AHS15: 0 | AHT15: 0 | AHU15: 0 | AHV15: 0 | AHW15: 0 | AHX15: 0 | AHY15: 0 | AHZ15: 0 | AIA15: 0 | AIB15: 0 | AIC15: 0 | AID15: 0 | AIE15: 0 | AIF15: 0 | AIG15: 0 | AIH15: 0 | AII15: 0 | AIJ15: 0 | AIK15: 0 | AIL15: 0 | AIM15: 0 | AIN15: 0 | AIO15: 0 | AIP15: 0 | AIQ15: 0 | AIR15: 0 | AIS15: 0 | AIT15: 0 | AIU15: 0 | AIV15: 0 | AIW15: 0 | AIX15: 0 | AIY15: 0 | AIZ15: 0 | AJA15: 0 | AJB15: 0 | AJC15: 0 | AJD15: 0 | AJE15: 0 | AJF15: 0 | AJG15: 0 | AJH15: 0 | AJI15: 0 | AJJ15: 0 | AJK15: 0 | AJL15: 0 | AJM15: 0 | AJN15: 0 | AJO15: 0 | AJP15: 0 | AJQ15: 0 | AJR15: 0 | AJS15: 0 | AJT15: 0 | AJU15: 0 | AJV15: 0 | AJW15: 0 | AJX15: 0 | AJY15: 0 | AJZ15: =AJZ74+AJZ133+AJZ192+AJZ251+AJZ310+AJZ369+AJZ428 -> 0 | AKA15: 0 | AKB15: 0 | AKC15: 0 | AKD15: 0 | AKE15: 0 | AKF15: 0 | AKG15: 0 | AKH15: 0 | AKI15: 0 | AKJ15: 0 | AKK15: 0 | AKL15: 0 | AKM15: 0 | AKN15: 0 | AKO15: 0 | AKP15: 0 | AKQ15: 0 | AKR15: 0 | AKS15: 0 | AKT15: 0 | AKU15: 0 | AKV15: 0 | AKW15: 0 | AKX15: 0 | AKY15: 0 | AKZ15: 0 | ALA15: 0 | ALB15: 0 | ALC15: 0 | ALD15: 0 | ALE15: =ALE74+ALE133+ALE192+ALE251+ALE310+ALE369+ALE428 -> 0 | ALF15: 0 | ALG15: 0 | ALH15: 0 | ALI15: =ALI74+ALI133+ALI192+ALI251+ALI310+ALI369+ALI428 -> 0 | ALJ15: 0 | ALK15: 0 | ALL15: 0 | ALM15: 0 | ALN15: 0 | ALO15: 0 | ALP15: 0 | ALQ15: =ALQ74+ALQ133+ALQ192+ALQ251+ALQ310+ALQ369+ALQ428 -> 0 | ALR15: 0 | ALS15: =ALS74+ALS133+ALS192+ALS251+ALS310+ALS369+ALS428 -> 0 | ALT15: 0 | ALU15: 0 | ALV15: 0 | ALW15: 0 | ALX15: 0 | ALY15: 0 | ALZ15: 0 | AMA15: 0 | AMB15: 0 | AMC15: 0 | AMD15: 0 | AME15: 0 | AMF15: =AMF74+AMF133+AMF192+AMF251+AMF310+AMF369+AMF428 -> 0 | AMG15: 0 | AMH15: 0 | AMI15: 0 | ATF15: 0 | ATG15: 0 | ATH15: 0 | ATI15: 0 | ATJ15: 0 | ATK15: 0 | ATL15: 0 | ATM15: 0 | ATN15: 0 | ATO15: 0 | ATP15: 0 | ATQ15: 0 | ATR15: 0 | ATS15: 0 | ATT15: 0 | ATU15: 0 | ATV15: 0 | ATW15: 0 | ATX15: 0 | ATY15: 0 | ATZ15: 0 | AUA15: 0 | AUB15: 0 | AUC15: 0 | AUD15: 0 | AUE15: 0 | AUF15: 0 | AUG15: 0 | AUH15: 0 | AUI15: 0 | AUJ15: 0 | AUK15: 0 | AUL15: 0 | AUM15: 0 | AUN15: 0 | AUO15: 0 | AUP15: 0 | AUQ15: 0 | AUR15: 0 | AUS15: 0 | AUT15: 0 | AUU15: 0 | AUV15: 0 | AUW15: 0 | AUX15: 0 | AUY15: 0 | AUZ15: 0 | AVA15: 0 | AVB15: 0 | AVC15: 0 | AVD15: 0 | AVE15: 0 | AVF15: 0 | AVG15: 0 | AVH15: 0 | AVI15: 0 | AVJ15: 0 | AVK15: 0 | AVL15: 0 | AVM15: 0 | AVN15: 0 | AVO15: 0 | AVP15: 0 | AVQ15: 0 | AVR15: 0 | AVS15: 0 | AVT15: 0 | AVU15: 0 | AVV15: 0 | AVW15: 0 | AVX15: 0 | AVY15: 0 | AVZ15: 0 | AWA15: 0 | AWB15: 0 | AWC15: 0 | AWD15: 0 | AWE15: 0 | AWF15: 0 | AWM15: 0 | AWN15: 0 | AWO15: 0 | AWP15: 0 | AWQ15: 0 | AWR15: 0 | AWS15: 0 | AWT15: 0 | AWU15: 0 | AWV15: 0 | AWW15: 0 | AWX15: 0 | AWY15: 0 | AWZ15: 0 | AXA15: 0 | AXB15: 0 | AXC15: 0 | AXD15: 0 | AXE15: 0 | AXF15: 0
A16: Pulp, Paper & Allied Products | B16: 0 | C16: 0 | D16: 0 | E16: 0 | F16: 0 | G16: 0 | H16: 0 | I16: 0 | J16: 0 | K16: 0 | L16: 0 | M16: 0 | N16: 0 | O16: 0 | P16: 0 | Q16: 0 | R16: 0 | S16: 0 | T16: 0 | U16: 0 | V16: 0 | W16: 0 | X16: 0 | Y16: 0 | Z16: 0 | AA16: 0 | AB16: 0 | AC16: 0 | AD16: 0 | AE16: 0 | AF16: 0 | AG16: 0 | AH16: 0 | AI16: 0 | AJ16: 0 | AK16: 0 | AL16: 0 | AM16: 0 | AN16: 0 | AO16: 0 | AP16: 0 | AQ16: 0 | AR16: 0 | AS16: 0 | AT16: 0 | AU16: 0 | AV16: 0 | AW16: 0 | AX16: 0 | AY16: 0 | AZ16: 0 | BA16: 0 | BB16: 0 | BC16: 0 | BD16: 0 | BE16: 0 | BF16: 0 | BG16: 0 | BH16: 0 | BI16: 0 | BJ16: 0 | BK16: 0 | BL16: 0 | BM16: 0 | BN16: 0 | BO16: 0 | BP16: 0 | BQ16: 0 | BR16: 0 | BS16: 0 | BT16: 0 | BU16: 0 | BV16: 0 | BW16: 0 | BX16: 0 | BY16: 0 | BZ16: 0 | CA16: 0 | CB16: 0 | CC16: 0 | CD16: 0 | CE16: 0 | CF16: 0 | CG16: 0 | CH16: 0 | CI16: 0 | CJ16: 0 | CK16: 0 | CL16: 0 | CM16: 0 | CN16: 0 | CO16: 0 | CP16: 0 | CQ16: 0 | CR16: 0 | CS16: 0 | CT16: 0 | CU16: 0 | CV16: 0 | CW16: 0 | CX16: 0 | CY16: 0 | CZ16: 0 | DA16: 0 | DB16: 0 | DC16: 0 | DD16: 0 | DE16: 0 | DF16: 0 | DG16: 0 | DH16: 0 | DI16: 0 | DJ16: 0 | DK16: 0 | DL16: 0 | DM16: 0 | DN16: 0 | DO16: 0 | DP16: 0 | DQ16: 0 | DR16: 0 | DS16: 0 | DT16: 0 | DU16: 0 | DV16: 0 | DW16: 0 | DX16: 0 | DY16: 0 | DZ16: 0 | EA16: 0 | EB16: 0 | EC16: 0 | ED16: 0 | EE16: 0 | EF16: 0 | EG16: 0 | EH16: 0 | EI16: 0 | EJ16: 0 | EK16: 0 | EL16: 0 | EM16: 0 | EN16: 0 | EO16: 0 | EP16: 0 | EQ16: 0 | ER16: 0 | ES16: 0 | ET16: 0 | EU16: 0 | EV16: 0 | EW16: 0 | EX16: 0 | EY16: 0 | EZ16: 0 | FA16: 0 | FB16: 0 | FC16: 0 | FD16: 0 | FE16: 0 | FF16: 0 | FG16: 0 | FH16: 0 | FI16: 0 | FJ16: 0 | FK16: 0 | FL16: 0 | FM16: 0 | FN16: 0 | FO16: 0 | FP16: 0 | FQ16: 0 | FR16: 0 | FS16: 0 | FT16: 0 | FU16: 0 | FV16: 0 | FW16: 0 | FX16: 0 | FY16: 0 | FZ16: 0 | GA16: 0 | GB16: 0 | GC16: 0 | GD16: 0 | GE16: 0 | GF16: 0 | GG16: 0 | GH16: 0 | GI16: 0 | GJ16: 0 | GK16: 0 | GL16: 0 | GM16: 0 | GN16: 0 | GO16: 0 | GP16: 0 | GQ16: 0 | GR16: 0 | GS16: 0 | GT16: 0 | GU16: 0 | GV16: 0 | GW16: 0 | GX16: 0 | GY16: 0 | GZ16: 0 | HA16: 0 | HB16: 0 | HC16: 0 | HD16: 0 | HE16: 0 | HF16: 0 | HG16: 0 | HH16: 0 | HI16: 0 | HJ16: 0 | HK16: 0 | HL16: 0 | HM16: 0 | HN16: 0 | HO16: 0 | HP16: 0 | HQ16: 0 | HR16: 0 | HS16: 0 | HT16: 0 | HU16: 0 | HV16: 0 | HW16: 0 | HX16: 0 | HY16: 0 | HZ16: 0 | IA16: 0 | IB16: 0 | IC16: 0 | ID16: 0 | IE16: 0 | IF16: 0 | IG16: 0 | IH16: 0 | II16: 0 | IJ16: 0 | IK16: 0 | IL16: 0 | IM16: 0 | IN16: 0 | IO16: 0 | IP16: 0 | IQ16: 0 | IR16: 0 | IS16: 0 | IT16: 0 | IU16: 0 | IV16: 0 | IW16: 0 | IX16: 0 | IY16: 0 | IZ16: 0 | JA16: 0 | JB16: 0 | JC16: 0 | JD16: 0 | JE16: 0 | JF16: 0 | JG16: 0 | JH16: 0 | JI16: 0 | JJ16: 0 | JK16: 0 | JL16: 0 | JM16: 0 | JN16: 0 | JO16: 0 | JP16: 0 | JQ16: 0 | JR16: 0 | JS16: 0 | JT16: 0 | JU16: 0 | JV16: 0 | JW16: 0 | JX16: 0 | JY16: 0 | JZ16: 0 | KA16: 0 | KB16: 0 | KC16: 0 | KD16: 0 | KE16: 0 | KF16: 0 | KG16: 0 | KH16: 0 | KI16: 0 | KJ16: 0 | KK16: 0 | KL16: 0 | KM16: 0 | KN16: 0 | KO16: 0 | KP16: 0 | KQ16: 0 | KR16: 0 | KS16: 0 | KT16: 0 | KU16: 0 | KV16: 0 | KW16: 0 | KX16: 0 | KY16: 0 | KZ16: 0 | LA16: 0 | LB16: 0 | LC16: 0 | LD16: 0 | LE16: 0 | LF16: 0 | LG16: 0 | LH16: 0 | LI16: 0 | LJ16: 0 | LK16: 0 | LL16: 0 | LM16: 0 | LN16: 0 | LO16: 0 | LP16: 0 | LQ16: 0 | LR16: 0 | LS16: 0 | LT16: 0 | LU16: 0 | LV16: 0 | LW16: 0 | LX16: 0 | LY16: 0 | LZ16: 0 | MA16: 0 | MB16: 0 | MC16: 0 | MD16: 0 | ME16: 0 | MF16: 0 | MG16: 0 | MH16: 0 | MI16: 0 | MJ16: 0 | MK16: 0 | ML16: 0 | MM16: 0 | MN16: 0 | MO16: 0 | MP16: 0 | MQ16: 0 | MR16: 0 | MS16: 0 | MT16: 0 | MU16: 0 | MV16: 0 | MW16: 0 | MX16: 0 | MY16: 0 | MZ16: 0 | NA16: 0 | NB16: 0 | NC16: 0 | ND16: 0 | NE16: 0 | NF16: 0 | NG16: 0 | NH16: 0 | NI16: 0 | NJ16: 0 | NK16: 0 | NL16: 0 | NM16: 0 | NN16: 0 | NO16: 0 | NP16: 0 | NQ16: 0 | NR16: 0 | NS16: 0 | NT16: 0 | NU16: 0 | NV16: 0 | NW16: 0 | NX16: 0 | NY16: 0 | NZ16: 0 | OA16: 0 | OB16: 0 | OC16: 0 | OD16: 0 | OE16: 0 | OF16: 0 | OG16: 0 | OH16: 0 | OI16: 0 | OJ16: 0 | OK16: 0 | OL16: 0 | OM16: 0 | ON16: 0 | OO16: 0 | OP16: 0 | OQ16: 0 | OR16: 0 | OS16: 0 | OT16: 0 | OU16: 0 | OV16: 0 | OW16: 0 | OX16: 0 | OY16: 0 | OZ16: 0 | PA16: 0 | PB16: 0 | PC16: 0 | PD16: 0 | PE16: 0 | PF16: 0 | PG16: 0 | PH16: 0 | PI16: 0 | PJ16: 0 | PK16: 0 | PL16: 0 | PM16: 0 | PN16: 0 | PO16: 0 | PP16: 0 | PQ16: 0 | PR16: 0 | PS16: 0 | PT16: 0 | PU16: 0 | PV16: 0 | PW16: 0 | PX16: 0 | PY16: 0 | PZ16: 0 | QA16: 0 | QB16: 0 | QC16: 0 | QD16: 0 | QE16: 0 | QF16: 0 | QG16: 0 | QH16: 0 | QI16: 0 | QJ16: 0 | QK16: 0 | QL16: 0 | QM16: 0 | QN16: 0 | QO16: 0 | QP16: 0 | QQ16: 0 | QR16: 0 | QS16: 0 | QT16: 0 | QU16: 0 | QV16: 0 | QW16: 0 | QX16: 0 | QY16: 0 | QZ16: 0 | RA16: 0 | RB16: 0 | RC16: 0 | RD16: 0 | RE16: 0 | RF16: 0 | RG16: 0 | RH16: 0 | RI16: 0 | RJ16: 0 | RK16: 0 | RL16: 0 | RM16: 0 | RN16: 0 | RO16: 0 | RP16: 0 | RQ16: 0 | RR16: 0 | RS16: 0 | RT16: 0 | RU16: 0 | RV16: 0 | RW16: 0 | RX16: 0 | RY16: 0 | RZ16: 0 | SA16: 0 | SB16: 0 | SC16: 0 | SD16: 0 | SE16: 0 | SF16: 0 | SG16: 0 | SH16: 0 | SI16: 0 | SJ16: 0 | SK16: 0 | SL16: 0 | SM16: 0 | SN16: 0 | SO16: 0 | SP16: 0 | SQ16: 0 | SR16: 0 | SS16: 0 | ST16: 0 | SU16: 0 | SV16: 0 | SW16: 0 | SX16: 0 | SY16: 0 | SZ16: 0 | TA16: 0 | TB16: 0 | TC16: 0 | TD16: 0 | TE16: 0 | TF16: 0 | TG16: 0 | TH16: 0 | TI16: 0 | TJ16: 0 | TK16: 0 | TL16: 0 | TM16: 0 | TN16: 0 | TO16: 0 | TP16: 0 | TQ16: 0 | TR16: 0 | TS16: 0 | TT16: 0 | TU16: 0 | TV16: 0 | TW16: 0 | TX16: 0 | TY16: 0 | TZ16: 0 | UA16: 0 | UB16: 0 | UC16: 0 | UD16: 0 | UE16: 0 | UF16: 0 | UG16: 0 | UH16: 0 | UI16: 0 | UJ16: 0 | UK16: 0 | UL16: 0 | UM16: 0 | UN16: 0 | UO16: 0 | UP16: 0 | UQ16: 0 | UR16: 0 | US16: 0 | UT16: 0 | UU16: 0 | UV16: 0 | UW16: 0 | UX16: 0 | UY16: 0 | UZ16: 0 | VA16: 0 | VB16: 0 | VC16: 0 | VD16: 0 | VE16: 0 | VF16: 0 | VG16: 0 | VH16: 0 | VI16: 0 | VJ16: 0 | VK16: 0 | VL16: 0 | VM16: 0 | VN16: 0 | VO16: 0 | VP16: 0 | VQ16: 0 | VR16: 0 | VS16: 0 | VT16: 0 | VU16: 0 | VV16: 0 | VW16: 0 | VX16: 0 | VY16: 0 | VZ16: 0 | WA16: 0 | WB16: 0 | WC16: 0 | WD16: 0 | WE16: 0 | WF16: 0 | WG16: 0 | WH16: 0 | WI16: 0 | WJ16: 0 | WK16: 0 | WL16: 0 | WM16: 0 | WN16: 0 | WO16: 0 | WP16: 0 | WQ16: 0 | WR16: 0 | WS16: 0 | WT16: 0 | WU16: 0 | WV16: 0 | WW16: 0 | WX16: 0 | WY16: 0 | WZ16: 0 | XA16: 0 | XB16: 0 | XC16: 0 | XD16: 0 | XE16: 0 | XF16: 0 | XG16: 0 | XH16: 0 | XI16: 0 | XJ16: 0 | XK16: 0 | XL16: 0 | XM16: 0 | XN16: 0 | XO16: 0 | XP16: 0 | XQ16: 0 | XR16: 0 | XS16: 0 | XT16: 0 | XU16: 0 | XV16: 0 | XW16: 0 | XX16: 0 | XY16: 0 | XZ16: 0 | YA16: 0 | YB16: 0 | YC16: 0 | YD16: 0 | YE16: 0 | YF16: 0 | YG16: 0 | YH16: 0 | YI16: 0 | YJ16: 0 | YK16: 0 | YL16: 0 | YM16: 0 | YN16: 0 | YO16: 0 | YP16: 0 | YQ16: 0 | YR16: 0 | YS16: 0 | YT16: 0 | YU16: 0 | YV16: 0 | YW16: 0 | YX16: 0 | YY16: 0 | YZ16: 0 | ZA16: 0 | ZB16: 0 | ZC16: 0 | ZD16: 0 | ZE16: 0 | ZF16: 0 | ZG16: 0 | ZH16: 0 | ZI16: 0 | ZJ16: 0 | ZK16: 0 | ZL16: 0 | ZM16: 0 | ZN16: 0 | ZO16: 0 | ZP16: 0 | ZQ16: 0 | ZR16: 0 | ZS16: 0 | ZT16: 0 | ZU16: 0 | ZV16: 0 | ZW16: 0 | ZX16: 0 | ZY16: 0 | ZZ16: 0 | AAA16: 0 | AAB16: 0 | AAC16: 0 | AAD16: 0 | AAE16: 0 | AAF16: 0 | AAG16: 0 | AAH16: 0 | AAI16: 0 | AAJ16: 0 | AAK16: 0 | AAL16: 0 | AAM16: 0 | AAN16: 0 | AAO16: 0 | AAP16: 0 | AAQ16: 0 | AAR16: 0 | AAS16: 0 | AAT16: 0 | AAU16: 0 | AAV16: 0 | AAW16: 0 | AAX16: 0 | AAY16: 0 | AAZ16: 0 | ABA16: 0 | ABB16: 0 | ABC16: 0 | ABD16: 0 | ABE16: 0 | ABF16: 0 | ABG16: 0 | ABH16: 0 | ABI16: 0 | ABJ16: 0 | ABK16: 0 | ABL16: 0 | ABM16: 0 | ABN16: 0 | ABO16: 0 | ABP16: 0 | ABQ16: 0 | ABR16: 0 | ABS16: 0 | ABT16: 0 | ABU16: 0 | ABV16: 0 | ABW16: 0 | ABX16: 0 | ABY16: 0 | ABZ16: 0 | ACA16: 0 | ACB16: 0 | ACC16: 0 | ACD16: 0 | ACE16: 0 | ACF16: 0 | ACG16: 0 | ACH16: 0 | ACI16: 0 | ACJ16: 0 | ACK16: 0 | ACL16: 0 | ACM16: 0 | ACN16: 0 | ACO16: 0 | ACP16: 0 | ACQ16: 0 | ACR16: 0 | ACS16: 0 | ACT16: 0 | ACU16: 0 | ACV16: 0 | ACW16: 0 | ACX16: 0 | ACY16: 0 | ACZ16: 0 | ADA16: 0 | ADB16: 0 | ADC16: 0 | ADD16: 0 | ADE16: 0 | ADF16: 0 | ADG16: 0 | ADH16: 0 | ADI16: 0 | ADJ16: 0 | ADK16: 0 | ADL16: 0 | ADM16: 0 | ADN16: 0 | ADO16: 0 | ADP16: 0 | ADQ16: 0 | ADR16: 0 | ADS16: 0 | ADT16: 0 | ADU16: 0 | ADV16: 0 | ADW16: 0 | ADX16: 0 | ADY16: 0 | ADZ16: 0 | AEA16: 0 | AEB16: 0 | AEC16: 0 | AED16: 0 | AEE16: 0 | AEF16: 0 | AEG16: 0 | AEH16: 0 | AEI16: 0 | AEJ16: 0 | AEK16: 0 | AEL16: 0 | AEM16: 0 | AEN16: 0 | AEO16: 0 | AEP16: 0 | AEQ16: 0 | AER16: 0 | AES16: 0 | AET16: 0 | AEU16: 0 | AEV16: 0 | AEW16: 0 | AEX16: 0 | AEY16: 0 | AEZ16: 0 | AFA16: 0 | AFB16: 0 | AFC16: 0 | AFD16: 0 | AFE16: 0 | AFF16: 0 | AFG16: 0 | AFH16: 0 | AFI16: 0 | AFJ16: 0 | AFK16: 0 | AFL16: 0 | AFM16: 0 | AFN16: 0 | AFO16: 0 | AFP16: 0 | AFQ16: 0 | AFR16: 0 | AFS16: 0 | AFT16: 0 | AFU16: 0 | AFV16: 0 | AFW16: 0 | AFX16: 0 | AFY16: 0 | AFZ16: 0 | AGA16: 0 | AGB16: 0 | AGC16: 0 | AGD16: 0 | AGE16: 0 | AGF16: 0 | AGG16: 0 | AGH16: 0 | AGI16: 0 | AGJ16: 0 | AGK16: 0 | AGL16: 0 | AGM16: 0 | AGN16: 0 | AGO16: 0 | AGP16: 0 | AGQ16: 0 | AGR16: 0 | AGS16: 0 | AGT16: 0 | AGU16: 0 | AGV16: 0 | AGW16: 0 | AGX16: 0 | AGY16: 0 | AGZ16: 0 | AHA16: 0 | AHB16: 0 | AHC16: 0 | AHD16: 0 | AHE16: 0 | AHF16: 0 | AHG16: 0 | AHH16: 0 | AHI16: 0 | AHJ16: 0 | AHK16: 0 | AHL16: 0 | AHM16: 0 | AHN16: 0 | AHO16: 0 | AHP16: 0 | AHQ16: 0 | AHR16: 0 | AHS16: 0 | AHT16: 0 | AHU16: 0 | AHV16: 0 | AHW16: 0 | AHX16: 0 | AHY16: 0 | AHZ16: 0 | AIA16: 0 | AIB16: 0 | AIC16: 0 | AID16: 0 | AIE16: 0 | AIF16: 0 | AIG16: 0 | AIH16: 0 | AII16: 0 | AIJ16: 0 | AIK16: 0 | AIL16: 0 | AIM16: 0 | AIN16: 0 | AIO16: 0 | AIP16: 0 | AIQ16: 0 | AIR16: 0 | AIS16: 0 | AIT16: 0 | AIU16: 0 | AIV16: 0 | AIW16: 0 | AIX16: 0 | AIY16: 0 | AIZ16: 0 | AJA16: 0 | AJB16: 0 | AJC16: 0 | AJD16: 0 | AJE16: 0 | AJF16: 0 | AJG16: 0 | AJH16: 0 | AJI16: 0 | AJJ16: 0 | AJK16: 0 | AJL16: 0 | AJM16: 0 | AJN16: 0 | AJO16: 0 | AJP16: 0 | AJQ16: 0 | AJR16: 0 | AJS16: 0 | AJT16: 0 | AJU16: 0 | AJV16: 0 | AJW16: 0 | AJX16: 0 | AJY16: 0 | AJZ16: 0 | AKA16: 0 | AKB16: 0 | AKC16: 0 | AKD16: 0 | AKE16: 0 | AKF16: 0 | AKG16: 0 | AKH16: 0 | AKI16: 0 | AKJ16: 0 | AKK16: 0 | AKL16: 0 | AKM16: 0 | AKN16: 0 | AKO16: 0 | AKP16: 0 | AKQ16: 0 | AKR16: 0 | AKS16: 0 | AKT16: 0 | AKU16: 0 | AKV16: 0 | AKW16: 0 | AKX16: 0 | AKY16: 0 | AKZ16: 0 | ALA16: 0 | ALB16: 0 | ALC16: 0 | ALD16: 0 | ALE16: =ALE75+ALE134+ALE193+ALE252+ALE311+ALE370+ALE429 -> 0 | ALF16: 0 | ALG16: 0 | ALH16: 0 | ALI16: =ALI75+ALI134+ALI193+ALI252+ALI311+ALI370+ALI429 -> 0 | ALJ16: 0 | ALK16: 0 | ALL16: 0 | ALM16: 0 | ALN16: 0 | ALO16: 0 | ALP16: 0 | ALQ16: =ALQ75+ALQ134+ALQ193+ALQ252+ALQ311+ALQ370+ALQ429 -> 0 | ALR16: 0 | ALS16: =ALS75+ALS134+ALS193+ALS252+ALS311+ALS370+ALS429 -> 0 | ALT16: 0 | ALU16: 0 | ALV16: 0 | ALW16: 0 | ALX16: 0 | ALY16: 0 | ALZ16: 0 | AMA16: 0 | AMB16: 0 | AMC16: 0 | AMD16: 0 | AME16: 0 | AMF16: =AMF75+AMF134+AMF193+AMF252+AMF311+AMF370+AMF429 -> 0 | AMG16: 0 | AMH16: 0 | AMI16: 0 | ATF16: 0 | ATG16: 0 | ATH16: 0 | ATI16: 0 | ATJ16: 0 | ATK16: 0 | ATL16: 0 | ATM16: 0 | ATN16: 0 | ATO16: 0 | ATP16: 0 | ATQ16: 0 | ATR16: 0 | ATS16: 0 | ATT16: 0 | ATU16: 0 | ATV16: 0 | ATW16: 0 | ATX16: 0 | ATY16: 0 | ATZ16: 0 | AUA16: 0 | AUB16: 0 | AUC16: 0 | AUD16: 0 | AUE16: 0 | AUF16: 0 | AUG16: 0 | AUH16: 0 | AUI16: 0 | AUJ16: 0 | AUK16: 0 | AUL16: 0 | AUM16: 0 | AUN16: 0 | AUO16: 0 | AUP16: 0 | AUQ16: 0 | AUR16: 0 | AUS16: 0 | AUT16: 0 | AUU16: 0 | AUV16: 0 | AUW16: 0 | AUX16: 0 | AUY16: 0 | AUZ16: 0 | AVA16: 0 | AVB16: 0 | AVC16: 0 | AVD16: 0 | AVE16: 0 | AVF16: 0 | AVG16: 0 | AVH16: 0 | AVI16: 0 | AVJ16: 0 | AVK16: 0 | AVL16: 0 | AVM16: 0 | AVN16: 0 | AVO16: 0 | AVP16: 0 | AVQ16: 0 | AVR16: 0 | AVS16: 0 | AVT16: 0 | AVU16: 0 | AVV16: 0 | AVW16: 0 | AVX16: 0 | AVY16: 0 | AVZ16: 0 | AWA16: 0 | AWB16: 0 | AWC16: 0 | AWD16: 0 | AWE16: 0 | AWF16: 0 | AWM16: 0 | AWN16: 0 | AWO16: 0 | AWP16: 0 | AWQ16: 0 | AWR16: 0 | AWS16: 0 | AWT16: 0 | AWU16: 0 | AWV16: 0 | AWW16: 0 | AWX16: 0 | AWY16: 0 | AWZ16: 0 | AXA16: 0 | AXB16: 0 | AXC16: 0 | AXD16: 0 | AXE16: 0 | AXF16: 0
A17: Chemicals | B17: 0 | C17: 0 | D17: 0 | E17: 0 | F17: 0 | G17: 0 | H17: 0 | I17: 0 | J17: 0 | K17: 0 | L17: 0 | M17: 0 | N17: 0 | O17: 0 | P17: 0 | Q17: 0 | R17: 0 | S17: 0 | T17: 0 | U17: 0 | V17: 0 | W17: 0 | X17: 0 | Y17: 0 | Z17: 0 | AA17: 0 | AB17: 0 | AC17: 0 | AD17: 0 | AE17: 0 | AF17: 0 | AG17: 0 | AH17: 0 | AI17: 0 | AJ17: 0 | AK17: 0 | AL17: 0 | AM17: 0 | AN17: 0 | AO17: 0 | AP17: 0 | AQ17: 0 | AR17: 0 | AS17: 0 | AT17: 0 | AU17: 0 | AV17: 0 | AW17: 0 | AX17: 0 | AY17: 0 | AZ17: 0 | BA17: 0 | BB17: 0 | BC17: 0 | BD17: 0 | BE17: 0 | BF17: 0 | BG17: 0 | BH17: 0 | BI17: 0 | BJ17: 0 | BK17: 0 | BL17: 0 | BM17: =BM76+BM135+BM194+BM253+BM312+BM371+BM430 -> 0 | BN17: 0 | BO17: 0 | BP17: 0 | BQ17: 0 | BR17: 0 | BS17: 0 | BT17: 0 | BU17: 0 | BV17: 0 | BW17: 0 | BX17: 0 | BY17: 0 | BZ17: 0 | CA17: 0 | CB17: 0 | CC17: 0 | CD17: 0 | CE17: 0 | CF17: 0 | CG17: 0 | CH17: 0 | CI17: 0 | CJ17: 0 | CK17: 0 | CL17: 0 | CM17: 0 | CN17: 0 | CO17: 0 | CP17: 0 | CQ17: 0 | CR17: 0 | CS17: 0 | CT17: 0 | CU17: 0 | CV17: 0 | CW17: 0 | CX17: 0 | CY17: 0 | CZ17: 0 | DA17: 0 | DB17: 0 | DC17: 0 | DD17: 0 | DE17: 0 | DF17: 0 | DG17: 0 | DH17: 0 | DI17: 0 | DJ17: 0 | DK17: 0 | DL17: 0 | DM17: 0 | DN17: 0 | DO17: 0 | DP17: 0 | DQ17: 0 | DR17: 0 | DS17: 0 | DT17: 0 | DU17: 0 | DV17: 0 | DW17: 0 | DX17: 0 | DY17: =DY76+DY135+DY194+DY253+DY312+DY371+DY430 -> 0 | DZ17: 0 | EA17: 0 | EB17: 0 | EC17: 0 | ED17: 0 | EE17: 0 | EF17: 0 | EG17: 0 | EH17: 0 | EI17: 0 | EJ17: 0 | EK17: 0 | EL17: 0 | EM17: 0 | EN17: 0 | EO17: 0 | EP17: 0 | EQ17: 0 | ER17: 0 | ES17: 0 | ET17: 0 | EU17: 0 | EV17: 0 | EW17: 0 | EX17: 0 | EY17: 0 | EZ17: 0 | FA17: 0 | FB17: 0 | FC17: 0 | FD17: 0 | FE17: 0 | FF17: 0 | FG17: 0 | FH17: 0 | FI17: 0 | FJ17: 0 | FK17: 0 | FL17: 0 | FM17: 0 | FN17: 0 | FO17: 0 | FP17: 0 | FQ17: 0 | FR17: 0 | FS17: 0 | FT17: 0 | FU17: 0 | FV17: 0 | FW17: 0 | FX17: 0 | FY17: 0 | FZ17: 0 | GA17: 0 | GB17: 0 | GC17: 0 | GD17: 0 | GE17: 0 | GF17: 0 | GG17: 0 | GH17: 0 | GI17: 0 | GJ17: 0 | GK17: =GK76+GK135+GK194+GK253+GK312+GK371+GK430 -> 0 | GL17: 0 | GM17: 0 | GN17: 0 | GO17: 0 | GP17: 0 | GQ17: 0 | GR17: 0 | GS17: 0 | GT17: 0 | GU17: 0 | GV17: 0 | GW17: 0 | GX17: 0 | GY17: 0 | GZ17: 0 | HA17: 0 | HB17: 0 | HC17: 0 | HD17: 0 | HE17: 0 | HF17: 0 | HG17: 0 | HH17: 0 | HI17: 0 | HJ17: 0 | HK17: 0 | HL17: 0 | HM17: 0 | HN17: 0 | HO17: 0 | HP17: 0 | HQ17: 0 | HR17: 0 | HS17: 0 | HT17: 0 | HU17: 0 | HV17: 0 | HW17: 0 | HX17: 0 | HY17: 0 | HZ17: 0 | IA17: 0 | IB17: 0 | IC17: 0 | ID17: 0 | IE17: 0 | IF17: 0 | IG17: 0 | IH17: 0 | II17: 0 | IJ17: 0 | IK17: 0 | IL17: 0 | IM17: 0 | IN17: 0 | IO17: 0 | IP17: 0 | IQ17: 0 | IR17: 0 | IS17: 0 | IT17: 0 | IU17: 0 | IV17: 0 | IW17: =IW76+IW135+IW194+IW253+IW312+IW371+IW430 -> 0 | IX17: 0 | IY17: 0 | IZ17: 0 | JA17: 0 | JB17: 0 | JC17: 0 | JD17: 0 | JE17: 0 | JF17: 0 | JG17: 0 | JH17: 0 | JI17: 0 | JJ17: 0 | JK17: 0 | JL17: 0 | JM17: 0 | JN17: 0 | JO17: 0 | JP17: 0 | JQ17: 0 | JR17: 0 | JS17: 0 | JT17: 0 | JU17: 0 | JV17: 0 | JW17: 0 | JX17: 0 | JY17: 0 | JZ17: 0 | KA17: 0 | KB17: 0 | KC17: 0 | KD17: 0 | KE17: 0 | KF17: 0 | KG17: 0 | KH17: 0 | KI17: 0 | KJ17: 0 | KK17: 0 | KL17: 0 | KM17: 0 | KN17: 0 | KO17: 0 | KP17: 0 | KQ17: 0 | KR17: 0 | KS17: 0 | KT17: 0 | KU17: 0 | KV17: 0 | KW17: 0 | KX17: 0 | KY17: 0 | KZ17: 0 | LA17: 0 | LB17: 0 | LC17: 0 | LD17: 0 | LE17: 0 | LF17: 0 | LG17: 0 | LH17: 0 | LI17: =LI76+LI135+LI194+LI253+LI312+LI371+LI430 -> 0 | LJ17: 0 | LK17: 0 | LL17: 0 | LM17: 0 | LN17: 0 | LO17: 0 | LP17: 0 | LQ17: 0 | LR17: 0 | LS17: 0 | LT17: 0 | LU17: 0 | LV17: 0 | LW17: 0 | LX17: 0 | LY17: 0 | LZ17: 0 | MA17: 0 | MB17: 0 | MC17: 0 | MD17: 0 | ME17: 0 | MF17: 0 | MG17: 0 | MH17: 0 | MI17: 0 | MJ17: 0 | MK17: 0 | ML17: 0 | MM17: 0 | MN17: 0 | MO17: 0 | MP17: 0 | MQ17: 0 | MR17: 0 | MS17: 0 | MT17: 0 | MU17: 0 | MV17: 0 | MW17: 0 | MX17: 0 | MY17: 0 | MZ17: 0 | NA17: 0 | NB17: 0 | NC17: 0 | ND17: 0 | NE17: 0 | NF17: 0 | NG17: 0 | NH17: 0 | NI17: 0 | NJ17: 0 | NK17: 0 | NL17: 0 | NM17: 0 | NN17: 0 | NO17: 0 | NP17: 0 | NQ17: 0 | NR17: 0 | NS17: 0 | NT17: 0 | NU17: =NU76+NU135+NU194+NU253+NU312+NU371+NU430 -> 0 | NV17: 0 | NW17: 0 | NX17: 0 | NY17: 0 | NZ17: 0 | OA17: 0 | OB17: 0 | OC17: 0 | OD17: 0 | OE17: 0 | OF17: 0 | OG17: 0 | OH17: 0 | OI17: 0 | OJ17: 0 | OK17: 0 | OL17: 0 | OM17: 0 | ON17: 0 | OO17: 0 | OP17: 0 | OQ17: 0 | OR17: 0 | OS17: 0 | OT17: 0 | OU17: 0 | OV17: 0 | OW17: 0 | OX17: 0 | OY17: 0 | OZ17: 0 | PA17: 0 | PB17: 0 | PC17: 0 | PD17: 0 | PE17: 0 | PF17: 0 | PG17: 0 | PH17: 0 | PI17: 0 | PJ17: 0 | PK17: 0 | PL17: 0 | PM17: 0 | PN17: 0 | PO17: 0 | PP17: 0 | PQ17: 0 | PR17: 0 | PS17: 0 | PT17: 0 | PU17: 0 | PV17: 0 | PW17: 0 | PX17: 0 | PY17: 0 | PZ17: 0 | QA17: 0 | QB17: 0 | QC17: 0 | QD17: 0 | QE17: 0 | QF17: 0 | QG17: =QG76+QG135+QG194+QG253+QG312+QG371+QG430 -> 0 | QH17: 0 | QI17: 0 | QJ17: 0 | QK17: 0 | QL17: 0 | QM17: 0 | QN17: 0 | QO17: 0 | QP17: 0 | QQ17: 0 | QR17: 0 | QS17: 0 | QT17: 0 | QU17: 0 | QV17: 0 | QW17: 0 | QX17: 0 | QY17: 0 | QZ17: 0 | RA17: 0 | RB17: 0 | RC17: 0 | RD17: 0 | RE17: 0 | RF17: 0 | RG17: 0 | RH17: 0 | RI17: 0 | RJ17: 0 | RK17: 0 | RL17: 0 | RM17: 0 | RN17: 0 | RO17: 0 | RP17: 0 | RQ17: 0 | RR17: 0 | RS17: 0 | RT17: 0 | RU17: 0 | RV17: 0 | RW17: 0 | RX17: 0 | RY17: 0 | RZ17: 0 | SA17: 0 | SB17: 0 | SC17: 0 | SD17: 0 | SE17: 0 | SF17: 0 | SG17: 0 | SH17: 0 | SI17: 0 | SJ17: 0 | SK17: 0 | SL17: 0 | SM17: 0 | SN17: 0 | SO17: 0 | SP17: 0 | SQ17: 0 | SR17: 0 | SS17: =SS76+SS135+SS194+SS253+SS312+SS371+SS430 -> 0 | ST17: 0 | SU17: 0 | SV17: 0 | SW17: 0 | SX17: 0 | SY17: 0 | SZ17: 0 | TA17: 0 | TB17: 0 | TC17: 0 | TD17: 0 | TE17: 0 | TF17: 0 | TG17: 0 | TH17: 0 | TI17: 0 | TJ17: 0 | TK17: 0 | TL17: 0 | TM17: 0 | TN17: 0 | TO17: 0 | TP17: 0 | TQ17: 0 | TR17: 0 | TS17: 0 | TT17: 0 | TU17: 0 | TV17: 0 | TW17: 0 | TX17: 0 | TY17: 0 | TZ17: 0 | UA17: 0 | UB17: 0 | UC17: 0 | UD17: 0 | UE17: 0 | UF17: 0 | UG17: 0 | UH17: 0 | UI17: 0 | UJ17: 0 | UK17: 0 | UL17: 0 | UM17: 0 | UN17: 0 | UO17: 0 | UP17: 0 | UQ17: 0 | UR17: 0 | US17: 0 | UT17: 0 | UU17: 0 | UV17: 0 | UW17: 0 | UX17: 0 | UY17: 0 | UZ17: 0 | VA17: 0 | VB17: 0 | VC17: 0 | VD17: 0 | VE17: =VE76+VE135+VE194+VE253+VE312+VE371+VE430 -> 0 | VF17: 0 | VG17: 0 | VH17: 0 | VI17: 0 | VJ17: 0 | VK17: 0 | VL17: 0 | VM17: 0 | VN17: 0 | VO17: 0 | VP17: 0 | VQ17: 0 | VR17: 0 | VS17: 0 | VT17: 0 | VU17: 0 | VV17: 0 | VW17: 0 | VX17: 0 | VY17: 0 | VZ17: 0 | WA17: 0 | WB17: 0 | WC17: 0 | WD17: 0 | WE17: 0 | WF17: 0 | WG17: 0 | WH17: 0 | WI17: 0 | WJ17: 0 | WK17: 0 | WL17: 0 | WM17: 0 | WN17: 0 | WO17: 0 | WP17: 0 | WQ17: 0 | WR17: 0 | WS17: 0 | WT17: 0 | WU17: 0 | WV17: 0 | WW17: 0 | WX17: 0 | WY17: 0 | WZ17: 0 | XA17: 0 | XB17: 0 | XC17: 0 | XD17: 0 | XE17: 0 | XF17: 0 | XG17: 0 | XH17: 0 | XI17: 0 | XJ17: 0 | XK17: 0 | XL17: 0 | XM17: 0 | XN17: 0 | XO17: 0 | XP17: 0 | XQ17: =XQ76+XQ135+XQ194+XQ253+XQ312+XQ371+XQ430 -> 0 | XR17: 0 | XS17: 0 | XT17: 0 | XU17: 0 | XV17: 0 | XW17: 0 | XX17: 0 | XY17: 0 | XZ17: 0 | YA17: 0 | YB17: 0 | YC17: 0 | YD17: 0 | YE17: 0 | YF17: 0 | YG17: 0 | YH17: 0 | YI17: 0 | YJ17: 0 | YK17: 0 | YL17: 0 | YM17: 0 | YN17: 0 | YO17: 0 | YP17: 0 | YQ17: 0 | YR17: 0 | YS17: 0 | YT17: 0 | YU17: 0 | YV17: 0 | YW17: 0 | YX17: 0 | YY17: 0 | YZ17: 0 | ZA17: 0 | ZB17: 0 | ZC17: 0 | ZD17: 0 | ZE17: 0 | ZF17: 0 | ZG17: 0 | ZH17: 0 | ZI17: 0 | ZJ17: 0 | ZK17: 0 | ZL17: 0 | ZM17: 0 | ZN17: 0 | ZO17: 0 | ZP17: 0 | ZQ17: 0 | ZR17: 0 | ZS17: 0 | ZT17: 0 | ZU17: 0 | ZV17: 0 | ZW17: 0 | ZX17: 0 | ZY17: 0 | ZZ17: 0 | AAA17: 0 | AAB17: 0 | AAC17: =AAC76+AAC135+AAC194+AAC253+AAC312+AAC371+AAC430 -> 0 | AAD17: 0 | AAE17: 0 | AAF17: 0 | AAG17: 0 | AAH17: 0 | AAI17: 0 | AAJ17: 0 | AAK17: 0 | AAL17: 0 | AAM17: 0 | AAN17: 0 | AAO17: 0 | AAP17: 0 | AAQ17: 0 | AAR17: 0 | AAS17: 0 | AAT17: 0 | AAU17: 0 | AAV17: 0 | AAW17: 0 | AAX17: 0 | AAY17: 0 | AAZ17: 0 | ABA17: 0 | ABB17: 0 | ABC17: 0 | ABD17: 0 | ABE17: 0 | ABF17: 0 | ABG17: 0 | ABH17: 0 | ABI17: 0 | ABJ17: 0 | ABK17: 0 | ABL17: 0 | ABM17: 0 | ABN17: 0 | ABO17: 0 | ABP17: 0 | ABQ17: 0 | ABR17: 0 | ABS17: 0 | ABT17: 0 | ABU17: 0 | ABV17: 0 | ABW17: 0 | ABX17: 0 | ABY17: 0 | ABZ17: 0 | ACA17: 0 | ACB17: 0 | ACC17: 0 | ACD17: 0 | ACE17: 0 | ACF17: 0 | ACG17: 0 | ACH17: 0 | ACI17: 0 | ACJ17: 0 | ACK17: 0 | ACL17: 0 | ACM17: 0 | ACN17: 0 | ACO17: =ACO76+ACO135+ACO194+ACO253+ACO312+ACO371+ACO430 -> 0 | ACP17: 0 | ACQ17: 0 | ACR17: 0 | ACS17: 0 | ACT17: 0 | ACU17: 0 | ACV17: 0 | ACW17: 0 | ACX17: 0 | ACY17: 0 | ACZ17: 0 | ADA17: 0 | ADB17: 0 | ADC17: 0 | ADD17: 0 | ADE17: 0 | ADF17: 0 | ADG17: 0 | ADH17: 0 | ADI17: 0 | ADJ17: 0 | ADK17: 0 | ADL17: 0 | ADM17: 0 | ADN17: 0 | ADO17: 0 | ADP17: 0 | ADQ17: 0 | ADR17: 0 | ADS17: 0 | ADT17: 0 | ADU17: 0 | ADV17: 0 | ADW17: 0 | ADX17: 0 | ADY17: 0 | ADZ17: 0 | AEA17: 0 | AEB17: 0 | AEC17: 0 | AED17: 0 | AEE17: 0 | AEF17: 0 | AEG17: 0 | AEH17: 0 | AEI17: 0 | AEJ17: 0 | AEK17: 0 | AEL17: 0 | AEM17: 0 | AEN17: 0 | AEO17: 0 | AEP17: 0 | AEQ17: 0 | AER17: 0 | AES17: 0 | AET17: 0 | AEU17: 0 | AEV17: 0 | AEW17: 0 | AEX17: 0 | AEY17: 0 | AEZ17: 0 | AFA17: =AFA76+AFA135+AFA194+AFA253+AFA312+AFA371+AFA430 -> 0 | AFB17: 0 | AFC17: 0 | AFD17: 0 | AFE17: 0 | AFF17: 0 | AFG17: 0 | AFH17: 0 | AFI17: 0 | AFJ17: 0 | AFK17: 0 | AFL17: 0 | AFM17: 0 | AFN17: 0 | AFO17: 0 | AFP17: 0 | AFQ17: 0 | AFR17: 0 | AFS17: 0 | AFT17: 0 | AFU17: 0 | AFV17: 0 | AFW17: 0 | AFX17: 0 | AFY17: 0 | AFZ17: 0 | AGA17: 0 | AGB17: 0 | AGC17: 0 | AGD17: 0 | AGE17: 0 | AGF17: 0 | AGG17: 0 | AGH17: 0 | AGI17: 0 | AGJ17: 0 | AGK17: 0 | AGL17: 0 | AGM17: 0 | AGN17: 0 | AGO17: 0 | AGP17: 0 | AGQ17: 0 | AGR17: 0 | AGS17: 0 | AGT17: 0 | AGU17: 0 | AGV17: 0 | AGW17: 0 | AGX17: 0 | AGY17: 0 | AGZ17: 0 | AHA17: 0 | AHB17: 0 | AHC17: 0 | AHD17: 0 | AHE17: 0 | AHF17: 0 | AHG17: 0 | AHH17: 0 | AHI17: 0 | AHJ17: 0 | AHK17: 0 | AHL17: 0 | AHM17: =AHM76+AHM135+AHM194+AHM253+AHM312+AHM371+AHM430 -> 0 | AHN17: 0 | AHO17: 0 | AHP17: 0 | AHQ17: 0 | AHR17: 0 | AHS17: 0 | AHT17: 0 | AHU17: 0 | AHV17: 0 | AHW17: 0 | AHX17: 0 | AHY17: 0 | AHZ17: 0 | AIA17: 0 | AIB17: 0 | AIC17: 0 | AID17: 0 | AIE17: 0 | AIF17: 0 | AIG17: 0 | AIH17: 0 | AII17: 0 | AIJ17: 0 | AIK17: 0 | AIL17: 0 | AIM17: 0 | AIN17: 0 | AIO17: 0 | AIP17: 0 | AIQ17: 0 | AIR17: 0 | AIS17: 0 | AIT17: 0 | AIU17: 0 | AIV17: 0 | AIW17: 0 | AIX17: 0 | AIY17: 0 | AIZ17: 0 | AJA17: 0 | AJB17: 0 | AJC17: 0 | AJD17: 0 | AJE17: 0 | AJF17: 0 | AJG17: 0 | AJH17: 0 | AJI17: 0 | AJJ17: 0 | AJK17: 0 | AJL17: 0 | AJM17: 0 | AJN17: 0 | AJO17: 0 | AJP17: 0 | AJQ17: 0 | AJR17: 0 | AJS17: 0 | AJT17: 0 | AJU17: 0 | AJV17: 0 | AJW17: 0 | AJX17: 0 | AJY17: =AJY76+AJY135+AJY194+AJY253+AJY312+AJY371+AJY430 -> 0 | AJZ17: 0 | AKA17: 0 | AKB17: 0 | AKC17: 0 | AKD17: 0 | AKE17: 0 | AKF17: 0 | AKG17: 0 | AKH17: 0 | AKI17: 0 | AKJ17: 0 | AKK17: 0 | AKL17: 0 | AKM17: 0 | AKN17: 0 | AKO17: 0 | AKP17: 0 | AKQ17: 0 | AKR17: 0 | AKS17: 0 | AKT17: 0 | AKU17: 0 | AKV17: 0 | AKW17: 0 | AKX17: 0 | AKY17: 0 | AKZ17: 0 | ALA17: 0 | ALB17: 0 | ALC17: 0 | ALD17: 0 | ALE17: =ALE76+ALE135+ALE194+ALE253+ALE312+ALE371+ALE430 -> 0 | ALF17: 0 | ALG17: 0 | ALH17: 0 | ALI17: =ALI76+ALI135+ALI194+ALI253+ALI312+ALI371+ALI430 -> 0 | ALJ17: 0 | ALK17: 0 | ALL17: 0 | ALM17: 0 | ALN17: 0 | ALO17: 0 | ALP17: 0 | ALQ17: =ALQ76+ALQ135+ALQ194+ALQ253+ALQ312+ALQ371+ALQ430 -> 0 | ALR17: 0 | ALS17: =ALS76+ALS135+ALS194+ALS253+ALS312+ALS371+ALS430 -> 0 | ALT17: 0 | ALU17: 0 | ALV17: 0 | ALW17: 0 | ALX17: 0 | ALY17: 0 | ALZ17: 0 | AMA17: 0 | AMB17: 0 | AMC17: 0 | AMD17: 0 | AME17: 0 | AMF17: =AMF76+AMF135+AMF194+AMF253+AMF312+AMF371+AMF430 -> 0 | AMG17: 0 | AMH17: 0 | AMI17: 0 | ATF17: 0 | ATG17: 0 | ATH17: 0 | ATI17: 0 | ATJ17: 0 | ATK17: 0 | ATL17: 0 | ATM17: 0 | ATN17: 0 | ATO17: 0 | ATP17: 0 | ATQ17: 0 | ATR17: 0 | ATS17: 0 | ATT17: 0 | ATU17: 0 | ATV17: 0 | ATW17: 0 | ATX17: 0 | ATY17: 0 | ATZ17: 0 | AUA17: 0 | AUB17: 0 | AUC17: 0 | AUD17: 0 | AUE17: 0 | AUF17: 0 | AUG17: 0 | AUH17: 0 | AUI17: 0 | AUJ17: 0 | AUK17: 0 | AUL17: 0 | AUM17: 0 | AUN17: 0 | AUO17: 0 | AUP17: 0 | AUQ17: 0 | AUR17: 0 | AUS17: 0 | AUT17: 0 | AUU17: 0 | AUV17: 0 | AUW17: 0 | AUX17: 0 | AUY17: 0 | AUZ17: 0 | AVA17: 0 | AVB17: 0 | AVC17: 0 | AVD17: 0 | AVE17: 0 | AVF17: 0 | AVG17: 0 | AVH17: 0 | AVI17: 0 | AVJ17: 0 | AVK17: 0 | AVL17: 0 | AVM17: 0 | AVN17: 0 | AVO17: 0 | AVP17: 0 | AVQ17: 0 | AVR17: 0 | AVS17: 0 | AVT17: 0 | AVU17: 0 | AVV17: 0 | AVW17: 0 | AVX17: 0 | AVY17: 0 | AVZ17: 0 | AWA17: 0 | AWB17: 0 | AWC17: 0 | AWD17: 0 | AWE17: 0 | AWF17: 0 | AWM17: 0 | AWN17: 0 | AWO17: 0 | AWP17: 0 | AWQ17: 0 | AWR17: 0 | AWS17: 0 | AWT17: 0 | AWU17: 0 | AWV17: 0 | AWW17: 0 | AWX17: 0 | AWY17: 0 | AWZ17: 0 | AXA17: 0 | AXB17: 0 | AXC17: 0 | AXD17: 0 | AXE17: 0 | AXF17: 0
A18: Petroleum Products | B18: =B77+B136+B195+B254+B313+B372+B431 -> 0 | C18: 0 | D18: 0 | E18: 0 | F18: 0 | G18: 0 | H18: 0 | I18: 0 | J18: 0 | K18: 0 | L18: 0 | M18: 0 | N18: 0 | O18: 0 | P18: 0 | Q18: 0 | R18: 0 | S18: 0 | T18: 0 | U18: 0 | V18: 0 | W18: 0 | X18: 0 | Y18: 0 | Z18: 0 | AA18: 0 | AB18: 0 | AC18: 0 | AD18: 0 | AE18: 0 | AF18: 0 | AG18: 0 | AH18: 0 | AI18: 0 | AJ18: 0 | AK18: 0 | AL18: 0 | AM18: 0 | AN18: 0 | AO18: 0 | AP18: 0 | AQ18: 0 | AR18: 0 | AS18: 0 | AT18: 0 | AU18: 0 | AV18: 0 | AW18: 0 | AX18: 0 | AY18: 0 | AZ18: 0 | BA18: 0 | BB18: 0 | BC18: 0 | BD18: 0 | BE18: 0 | BF18: 0 | BG18: 0 | BH18: 0 | BI18: 0 | BJ18: 0 | BK18: 0 | BL18: 0 | BM18: 0 | BN18: =BN77+BN136+BN195+BN254+BN313+BN372+BN431 -> 0 | BO18: 0 | BP18: 0 | BQ18: 0 | BR18: 0 | BS18: 0 | BT18: 0 | BU18: 0 | BV18: 0 | BW18: 0 | BX18: 0 | BY18: 0 | BZ18: 0 | CA18: 0 | CB18: 0 | CC18: 0 | CD18: 0 | CE18: 0 | CF18: 0 | CG18: 0 | CH18: 0 | CI18: 0 | CJ18: 0 | CK18: 0 | CL18: 0 | CM18: 0 | CN18: 0 | CO18: 0 | CP18: 0 | CQ18: 0 | CR18: 0 | CS18: 0 | CT18: 0 | CU18: 0 | CV18: 0 | CW18: 0 | CX18: 0 | CY18: 0 | CZ18: 0 | DA18: 0 | DB18: 0 | DC18: 0 | DD18: 0 | DE18: 0 | DF18: 0 | DG18: 0 | DH18: 0 | DI18: 0 | DJ18: 0 | DK18: 0 | DL18: 0 | DM18: 0 | DN18: 0 | DO18: 0 | DP18: 0 | DQ18: 0 | DR18: 0 | DS18: 0 | DT18: 0 | DU18: 0 | DV18: 0 | DW18: 0 | DX18: 0 | DY18: 0 | DZ18: =DZ77+DZ136+DZ195+DZ254+DZ313+DZ372+DZ431 -> 0 | EA18: 0 | EB18: 0 | EC18: 0 | ED18: 0 | EE18: 0 | EF18: 0 | EG18: 0 | EH18: 0 | EI18: 0 | EJ18: 0 | EK18: 0 | EL18: 0 | EM18: 0 | EN18: 0 | EO18: 0 | EP18: 0 | EQ18: 0 | ER18: 0 | ES18: 0 | ET18: 0 | EU18: 0 | EV18: 0 | EW18: 0 | EX18: 0 | EY18: 0 | EZ18: 0 | FA18: 0 | FB18: 0 | FC18: 0 | FD18: 0 | FE18: 0 | FF18: 0 | FG18: 0 | FH18: 0 | FI18: 0 | FJ18: 0 | FK18: 0 | FL18: 0 | FM18: 0 | FN18: 0 | FO18: 0 | FP18: 0 | FQ18: 0 | FR18: 0 | FS18: 0 | FT18: 0 | FU18: 0 | FV18: 0 | FW18: 0 | FX18: 0 | FY18: 0 | FZ18: 0 | GA18: 0 | GB18: 0 | GC18: 0 | GD18: 0 | GE18: 0 | GF18: 0 | GG18: 0 | GH18: 0 | GI18: 0 | GJ18: 0 | GK18: 0 | GL18: =GL77+GL136+GL195+GL254+GL313+GL372+GL431 -> 0 | GM18: 0 | GN18: 0 | GO18: 0 | GP18: 0 | GQ18: 0 | GR18: 0 | GS18: 0 | GT18: 0 | GU18: 0 | GV18: 0 | GW18: 0 | GX18: 0 | GY18: 0 | GZ18: 0 | HA18: 0 | HB18: 0 | HC18: 0 | HD18: 0 | HE18: 0 | HF18: 0 | HG18: 0 | HH18: 0 | HI18: 0 | HJ18: 0 | HK18: 0 | HL18: 0 | HM18: 0 | HN18: 0 | HO18: 0 | HP18: 0 | HQ18: 0 | HR18: 0 | HS18: 0 | HT18: 0 | HU18: 0 | HV18: 0 | HW18: 0 | HX18: 0 | HY18: 0 | HZ18: 0 | IA18: 0 | IB18: 0 | IC18: 0 | ID18: 0 | IE18: 0 | IF18: 0 | IG18: 0 | IH18: 0 | II18: 0 | IJ18: 0 | IK18: 0 | IL18: 0 | IM18: 0 | IN18: 0 | IO18: 0 | IP18: 0 | IQ18: 0 | IR18: 0 | IS18: 0 | IT18: 0 | IU18: 0 | IV18: 0 | IW18: 0 | IX18: =IX77+IX136+IX195+IX254+IX313+IX372+IX431 -> 0 | IY18: 0 | IZ18: 0 | JA18: 0 | JB18: 0 | JC18: 0 | JD18: 0 | JE18: 0 | JF18: 0 | JG18: 0 | JH18: 0 | JI18: 0 | JJ18: 0 | JK18: 0 | JL18: 0 | JM18: 0 | JN18: 0 | JO18: 0 | JP18: 0 | JQ18: 0 | JR18: 0 | JS18: 0 | JT18: 0 | JU18: 0 | JV18: 0 | JW18: 0 | JX18: 0 | JY18: 0 | JZ18: 0 | KA18: 0 | KB18: 0 | KC18: 0 | KD18: 0 | KE18: 0 | KF18: 0 | KG18: 0 | KH18: 0 | KI18: 0 | KJ18: 0 | KK18: 0 | KL18: 0 | KM18: 0 | KN18: 0 | KO18: 0 | KP18: 0 | KQ18: 0 | KR18: 0 | KS18: 0 | KT18: 0 | KU18: 0 | KV18: 0 | KW18: 0 | KX18: 0 | KY18: 0 | KZ18: 0 | LA18: 0 | LB18: 0 | LC18: 0 | LD18: 0 | LE18: 0 | LF18: 0 | LG18: 0 | LH18: 0 | LI18: 0 | LJ18: =LJ77+LJ136+LJ195+LJ254+LJ313+LJ372+LJ431 -> 0 | LK18: 0 | LL18: 0 | LM18: 0 | LN18: 0 | LO18: 0 | LP18: 0 | LQ18: 0 | LR18: 0 | LS18: 0 | LT18: 0 | LU18: 0 | LV18: 0 | LW18: 0 | LX18: 0 | LY18: 0 | LZ18: 0 | MA18: 0 | MB18: 0 | MC18: 0 | MD18: 0 | ME18: 0 | MF18: 0 | MG18: 0 | MH18: 0 | MI18: 0 | MJ18: 0 | MK18: 0 | ML18: 0 | MM18: 0 | MN18: 0 | MO18: 0 | MP18: 0 | MQ18: 0 | MR18: 0 | MS18: 0 | MT18: 0 | MU18: 0 | MV18: 0 | MW18: 0 | MX18: 0 | MY18: 0 | MZ18: 0 | NA18: 0 | NB18: 0 | NC18: 0 | ND18: 0 | NE18: 0 | NF18: 0 | NG18: 0 | NH18: 0 | NI18: 0 | NJ18: 0 | NK18: 0 | NL18: 0 | NM18: 0 | NN18: 0 | NO18: 0 | NP18: 0 | NQ18: 0 | NR18: 0 | NS18: 0 | NT18: 0 | NU18: 0 | NV18: =NV77+NV136+NV195+NV254+NV313+NV372+NV431 -> 0 | NW18: 0 | NX18: 0 | NY18: 0 | NZ18: 0 | OA18: 0 | OB18: 0 | OC18: 0 | OD18: 0 | OE18: 0 | OF18: 0 | OG18: 0 | OH18: 0 | OI18: 0 | OJ18: 0 | OK18: 0 | OL18: 0 | OM18: 0 | ON18: 0 | OO18: 0 | OP18: 0 | OQ18: 0 | OR18: 0 | OS18: 0 | OT18: 0 | OU18: 0 | OV18: 0 | OW18: 0 | OX18: 0 | OY18: 0 | OZ18: 0 | PA18: 0 | PB18: 0 | PC18: 0 | PD18: 0 | PE18: 0 | PF18: 0 | PG18: 0 | PH18: 0 | PI18: 0 | PJ18: 0 | PK18: 0 | PL18: 0 | PM18: 0 | PN18: 0 | PO18: 0 | PP18: 0 | PQ18: 0 | PR18: 0 | PS18: 0 | PT18: 0 | PU18: 0 | PV18: 0 | PW18: 0 | PX18: 0 | PY18: 0 | PZ18: 0 | QA18: 0 | QB18: 0 | QC18: 0 | QD18: 0 | QE18: 0 | QF18: 0 | QG18: 0 | QH18: =QH77+QH136+QH195+QH254+QH313+QH372+QH431 -> 0 | QI18: 0 | QJ18: 0 | QK18: 0 | QL18: 0 | QM18: 0 | QN18: 0 | QO18: 0 | QP18: 0 | QQ18: 0 | QR18: 0 | QS18: 0 | QT18: 0 | QU18: 0 | QV18: 0 | QW18: 0 | QX18: 0 | QY18: 0 | QZ18: 0 | RA18: 0 | RB18: 0 | RC18: 0 | RD18: 0 | RE18: 0 | RF18: 0 | RG18: 0 | RH18: 0 | RI18: 0 | RJ18: 0 | RK18: 0 | RL18: 0 | RM18: 0 | RN18: 0 | RO18: 0 | RP18: 0 | RQ18: 0 | RR18: 0 | RS18: 0 | RT18: 0 | RU18: 0 | RV18: 0 | RW18: 0 | RX18: 0 | RY18: 0 | RZ18: 0 | SA18: 0 | SB18: 0 | SC18: 0 | SD18: 0 | SE18: 0 | SF18: 0 | SG18: 0 | SH18: 0 | SI18: 0 | SJ18: 0 | SK18: 0 | SL18: 0 | SM18: 0 | SN18: 0 | SO18: 0 | SP18: 0 | SQ18: 0 | SR18: 0 | SS18: 0 | ST18: =ST77+ST136+ST195+ST254+ST313+ST372+ST431 -> 0 | SU18: 0 | SV18: 0 | SW18: 0 | SX18: 0 | SY18: 0 | SZ18: 0 | TA18: 0 | TB18: 0 | TC18: 0 | TD18: 0 | TE18: 0 | TF18: 0 | TG18: 0 | TH18: 0 | TI18: 0 | TJ18: 0 | TK18: 0 | TL18: 0 | TM18: 0 | TN18: 0 | TO18: 0 | TP18: 0 | TQ18: 0 | TR18: 0 | TS18: 0 | TT18: 0 | TU18: 0 | TV18: 0 | TW18: 0 | TX18: 0 | TY18: 0 | TZ18: 0 | UA18: 0 | UB18: 0 | UC18: 0 | UD18: 0 | UE18: 0 | UF18: 0 | UG18: 0 | UH18: 0 | UI18: 0 | UJ18: 0 | UK18: 0 | UL18: 0 | UM18: 0 | UN18: 0 | UO18: 0 | UP18: 0 | UQ18: 0 | UR18: 0 | US18: 0 | UT18: 0 | UU18: 0 | UV18: 0 | UW18: 0 | UX18: 0 | UY18: 0 | UZ18: 0 | VA18: 0 | VB18: 0 | VC18: 0 | VD18: 0 | VE18: 0 | VF18: =VF77+VF136+VF195+VF254+VF313+VF372+VF431 -> 0 | VG18: 0 | VH18: 0 | VI18: 0 | VJ18: 0 | VK18: 0 | VL18: 0 | VM18: 0 | VN18: 0 | VO18: 0 | VP18: 0 | VQ18: 0 | VR18: 0 | VS18: 0 | VT18: 0 | VU18: 0 | VV18: 0 | VW18: 0 | VX18: 0 | VY18: 0 | VZ18: 0 | WA18: 0 | WB18: 0 | WC18: 0 | WD18: 0 | WE18: 0 | WF18: 0 | WG18: 0 | WH18: 0 | WI18: 0 | WJ18: 0 | WK18: 0 | WL18: 0 | WM18: 0 | WN18: 0 | WO18: 0 | WP18: 0 | WQ18: 0 | WR18: 0 | WS18: 0 | WT18: 0 | WU18: 0 | WV18: 0 | WW18: 0 | WX18: 0 | WY18: 0 | WZ18: 0 | XA18: 0 | XB18: 0 | XC18: 0 | XD18: 0 | XE18: 0 | XF18: 0 | XG18: 0 | XH18: 0 | XI18: 0 | XJ18: 0 | XK18: 0 | XL18: 0 | XM18: 0 | XN18: 0 | XO18: 0 | XP18: 0 | XQ18: 0 | XR18: =XR77+XR136+XR195+XR254+XR313+XR372+XR431 -> 0 | XS18: 0 | XT18: 0 | XU18: 0 | XV18: 0 | XW18: 0 | XX18: 0 | XY18: 0 | XZ18: 0 | YA18: 0 | YB18: 0 | YC18: 0 | YD18: 0 | YE18: 0 | YF18: 0 | YG18: 0 | YH18: 0 | YI18: 0 | YJ18: 0 | YK18: 0 | YL18: 0 | YM18: 0 | YN18: 0 | YO18: 0 | YP18: 0 | YQ18: 0 | YR18: 0 | YS18: 0 | YT18: 0 | YU18: 0 | YV18: 0 | YW18: 0 | YX18: 0 | YY18: 0 | YZ18: 0 | ZA18: 0 | ZB18: 0 | ZC18: 0 | ZD18: 0 | ZE18: 0 | ZF18: 0 | ZG18: 0 | ZH18: 0 | ZI18: 0 | ZJ18: 0 | ZK18: 0 | ZL18: 0 | ZM18: 0 | ZN18: 0 | ZO18: 0 | ZP18: 0 | ZQ18: 0 | ZR18: 0 | ZS18: 0 | ZT18: 0 | ZU18: 0 | ZV18: 0 | ZW18: 0 | ZX18: 0 | ZY18: 0 | ZZ18: 0 | AAA18: 0 | AAB18: 0 | AAC18: 0 | AAD18: =AAD77+AAD136+AAD195+AAD254+AAD313+AAD372+AAD431 -> 0 | AAE18: 0 | AAF18: 0 | AAG18: 0 | AAH18: 0 | AAI18: 0 | AAJ18: 0 | AAK18: 0 | AAL18: 0 | AAM18: 0 | AAN18: 0 | AAO18: 0 | AAP18: 0 | AAQ18: 0 | AAR18: 0 | AAS18: 0 | AAT18: 0 | AAU18: 0 | AAV18: 0 | AAW18: 0 | AAX18: 0 | AAY18: 0 | AAZ18: 0 | ABA18: 0 | ABB18: 0 | ABC18: 0 | ABD18: 0 | ABE18: 0 | ABF18: 0 | ABG18: 0 | ABH18: 0 | ABI18: 0 | ABJ18: 0 | ABK18: 0 | ABL18: 0 | ABM18: 0 | ABN18: 0 | ABO18: 0 | ABP18: 0 | ABQ18: 0 | ABR18: 0 | ABS18: 0 | ABT18: 0 | ABU18: 0 | ABV18: 0 | ABW18: 0 | ABX18: 0 | ABY18: 0 | ABZ18: 0 | ACA18: 0 | ACB18: 0 | ACC18: 0 | ACD18: 0 | ACE18: 0 | ACF18: 0 | ACG18: 0 | ACH18: 0 | ACI18: 0 | ACJ18: 0 | ACK18: 0 | ACL18: 0 | ACM18: 0 | ACN18: 0 | ACO18: 0 | ACP18: =ACP77+ACP136+ACP195+ACP254+ACP313+ACP372+ACP431 -> 0 | ACQ18: 0 | ACR18: 0 | ACS18: 0 | ACT18: 0 | ACU18: 0 | ACV18: 0 | ACW18: 0 | ACX18: 0 | ACY18: 0 | ACZ18: 0 | ADA18: 0 | ADB18: 0 | ADC18: 0 | ADD18: 0 | ADE18: 0 | ADF18: 0 | ADG18: 0 | ADH18: 0 | ADI18: 0 | ADJ18: 0 | ADK18: 0 | ADL18: 0 | ADM18: 0 | ADN18: 0 | ADO18: 0 | ADP18: 0 | ADQ18: 0 | ADR18: 0 | ADS18: 0 | ADT18: 0 | ADU18: 0 | ADV18: 0 | ADW18: 0 | ADX18: 0 | ADY18: 0 | ADZ18: 0 | AEA18: 0 | AEB18: 0 | AEC18: 0 | AED18: 0 | AEE18: 0 | AEF18: 0 | AEG18: 0 | AEH18: 0 | AEI18: 0 | AEJ18: 0 | AEK18: 0 | AEL18: 0 | AEM18: 0 | AEN18: 0 | AEO18: 0 | AEP18: 0 | AEQ18: 0 | AER18: 0 | AES18: 0 | AET18: 0 | AEU18: 0 | AEV18: 0 | AEW18: 0 | AEX18: 0 | AEY18: 0 | AEZ18: 0 | AFA18: 0 | AFB18: =AFB77+AFB136+AFB195+AFB254+AFB313+AFB372+AFB431 -> 0 | AFC18: 0 | AFD18: 0 | AFE18: 0 | AFF18: 0 | AFG18: 0 | AFH18: 0 | AFI18: 0 | AFJ18: 0 | AFK18: 0 | AFL18: 0 | AFM18: 0 | AFN18: 0 | AFO18: 0 | AFP18: 0 | AFQ18: 0 | AFR18: 0 | AFS18: 0 | AFT18: 0 | AFU18: 0 | AFV18: 0 | AFW18: 0 | AFX18: 0 | AFY18: 0 | AFZ18: 0 | AGA18: 0 | AGB18: 0 | AGC18: 0 | AGD18: 0 | AGE18: 0 | AGF18: 0 | AGG18: 0 | AGH18: 0 | AGI18: 0 | AGJ18: 0 | AGK18: 0 | AGL18: 0 | AGM18: 0 | AGN18: 0 | AGO18: 0 | AGP18: 0 | AGQ18: 0 | AGR18: 0 | AGS18: 0 | AGT18: 0 | AGU18: 0 | AGV18: 0 | AGW18: 0 | AGX18: 0 | AGY18: 0 | AGZ18: 0 | AHA18: 0 | AHB18: 0 | AHC18: 0 | AHD18: 0 | AHE18: 0 | AHF18: 0 | AHG18: 0 | AHH18: 0 | AHI18: 0 | AHJ18: 0 | AHK18: 0 | AHL18: 0 | AHM18: 0 | AHN18: =AHN77+AHN136+AHN195+AHN254+AHN313+AHN372+AHN431 -> 0 | AHO18: 0 | AHP18: 0 | AHQ18: 0 | AHR18: 0 | AHS18: 0 | AHT18: 0 | AHU18: 0 | AHV18: 0 | AHW18: 0 | AHX18: 0 | AHY18: 0 | AHZ18: 0 | AIA18: 0 | AIB18: 0 | AIC18: 0 | AID18: 0 | AIE18: 0 | AIF18: 0 | AIG18: 0 | AIH18: 0 | AII18: 0 | AIJ18: 0 | AIK18: 0 | AIL18: 0 | AIM18: 0 | AIN18: 0 | AIO18: 0 | AIP18: 0 | AIQ18: 0 | AIR18: 0 | AIS18: 0 | AIT18: 0 | AIU18: 0 | AIV18: 0 | AIW18: 0 | AIX18: 0 | AIY18: 0 | AIZ18: 0 | AJA18: 0 | AJB18: 0 | AJC18: 0 | AJD18: 0 | AJE18: 0 | AJF18: 0 | AJG18: 0 | AJH18: 0 | AJI18: 0 | AJJ18: 0 | AJK18: 0 | AJL18: 0 | AJM18: 0 | AJN18: 0 | AJO18: 0 | AJP18: 0 | AJQ18: 0 | AJR18: 0 | AJS18: 0 | AJT18: 0 | AJU18: 0 | AJV18: 0 | AJW18: 0 | AJX18: 0 | AJY18: 0 | AJZ18: 0 | AKA18: 0 | AKB18: 0 | AKC18: 0 | AKD18: 0 | AKE18: 0 | AKF18: 0 | AKG18: 0 | AKH18: 0 | AKI18: 0 | AKJ18: 0 | AKK18: 0 | AKL18: 0 | AKM18: 0 | AKN18: 0 | AKO18: 0 | AKP18: 0 | AKQ18: 0 | AKR18: 0 | AKS18: 0 | AKT18: 0 | AKU18: 0 | AKV18: 0 | AKW18: 0 | AKX18: 0 | AKY18: 0 | AKZ18: 0 | ALA18: 0 | ALB18: 0 | ALC18: 0 | ALD18: 0 | ALE18: =ALE77+ALE136+ALE195+ALE254+ALE313+ALE372+ALE431 -> 0 | ALF18: 0 | ALG18: 0 | ALH18: 0 | ALI18: =ALI77+ALI136+ALI195+ALI254+ALI313+ALI372+ALI431 -> 0 | ALJ18: 0 | ALK18: 0 | ALL18: 0 | ALM18: 0 | ALN18: 0 | ALO18: 0 | ALP18: 0 | ALQ18: =ALQ77+ALQ136+ALQ195+ALQ254+ALQ313+ALQ372+ALQ431 -> 0 | ALR18: 0 | ALS18: =ALS77+ALS136+ALS195+ALS254+ALS313+ALS372+ALS431 -> 0 | ALT18: 0 | ALU18: 0 | ALV18: 0 | ALW18: 0 | ALX18: 0 | ALY18: 0 | ALZ18: 0 | AMA18: 0 | AMB18: 0 | AMC18: 0 | AMD18: 0 | AME18: 0 | AMF18: =AMF77+AMF136+AMF195+AMF254+AMF313+AMF372+AMF431 -> 0 | AMG18: 0 | AMH18: 0 | AMI18: 0 | ATF18: 0 | ATG18: 0 | ATH18: 0 | ATI18: 0 | ATJ18: 0 | ATK18: 0 | ATL18: 0 | ATM18: 0 | ATN18: 0 | ATO18: 0 | ATP18: 0 | ATQ18: 0 | ATR18: 0 | ATS18: 0 | ATT18: 0 | ATU18: 0 | ATV18: 0 | ATW18: 0 | ATX18: 0 | ATY18: 0 | ATZ18: 0 | AUA18: 0 | AUB18: 0 | AUC18: 0 | AUD18: 0 | AUE18: 0 | AUF18: 0 | AUG18: 0 | AUH18: 0 | AUI18: 0 | AUJ18: 0 | AUK18: 0 | AUL18: 0 | AUM18: 0 | AUN18: 0 | AUO18: 0 | AUP18: 0 | AUQ18: 0 | AUR18: 0 | AUS18: 0 | AUT18: 0 | AUU18: 0 | AUV18: 0 | AUW18: 0 | AUX18: 0 | AUY18: 0 | AUZ18: 0 | AVA18: 0 | AVB18: 0 | AVC18: 0 | AVD18: 0 | AVE18: 0 | AVF18: 0 | AVG18: 0 | AVH18: 0 | AVI18: 0 | AVJ18: 0 | AVK18: 0 | AVL18: 0 | AVM18: 0 | AVN18: 0 | AVO18: 0 | AVP18: 0 | AVQ18: 0 | AVR18: 0 | AVS18: 0 | AVT18: 0 | AVU18: 0 | AVV18: 0 | AVW18: 0 | AVX18: 0 | AVY18: 0 | AVZ18: 0 | AWA18: 0 | AWB18: 0 | AWC18: 0 | AWD18: 0 | AWE18: 0 | AWF18: 0 | AWM18: 0 | AWN18: 0 | AWO18: 0 | AWP18: 0 | AWQ18: 0 | AWR18: 0 | AWS18: 0 | AWT18: 0 | AWU18: 0 | AWV18: 0 | AWW18: 0 | AWX18: 0 | AWY18: 0 | AWZ18: 0 | AXA18: 0 | AXB18: 0 | AXC18: 0 | AXD18: 0 | AXE18: 0 | AXF18: 0
A19: Stone, Clay & Glass Products | B19: 0 | C19: 0 | D19: 0 | E19: 0 | F19: 0 | G19: 0 | H19: 0 | I19: 0 | J19: 0 | K19: 0 | L19: 0 | M19: 0 | N19: 0 | O19: 0 | P19: 0 | Q19: 0 | R19: 0 | S19: 0 | T19: 0 | U19: 0 | V19: 0 | W19: 0 | X19: 0 | Y19: 0 | Z19: 0 | AA19: 0 | AB19: 0 | AC19: 0 | AD19: 0 | AE19: 0 | AF19: 0 | AG19: 0 | AH19: 0 | AI19: 0 | AJ19: 0 | AK19: 0 | AL19: 0 | AM19: 0 | AN19: 0 | AO19: 0 | AP19: 0 | AQ19: 0 | AR19: 0 | AS19: 0 | AT19: 0 | AU19: 0 | AV19: 0 | AW19: 0 | AX19: 0 | AY19: 0 | AZ19: 0 | BA19: 0 | BB19: 0 | BC19: 0 | BD19: 0 | BE19: 0 | BF19: 0 | BG19: 0 | BH19: 0 | BI19: 0 | BJ19: 0 | BK19: 0 | BL19: 0 | BM19: 0 | BN19: 0 | BO19: 0 | BP19: 0 | BQ19: 0 | BR19: 0 | BS19: 0 | BT19: 0 | BU19: 0 | BV19: 0 | BW19: 0 | BX19: 0 | BY19: 0 | BZ19: 0 | CA19: 0 | CB19: 0 | CC19: 0 | CD19: 0 | CE19: 0 | CF19: 0 | CG19: 0 | CH19: 0 | CI19: 0 | CJ19: 0 | CK19: 0 | CL19: 0 | CM19: 0 | CN19: 0 | CO19: 0 | CP19: 0 | CQ19: 0 | CR19: 0 | CS19: 0 | CT19: 0 | CU19: 0 | CV19: 0 | CW19: 0 | CX19: 0 | CY19: 0 | CZ19: 0 | DA19: 0 | DB19: 0 | DC19: 0 | DD19: 0 | DE19: 0 | DF19: 0 | DG19: 0 | DH19: 0 | DI19: 0 | DJ19: 0 | DK19: 0 | DL19: 0 | DM19: 0 | DN19: 0 | DO19: 0 | DP19: 0 | DQ19: 0 | DR19: 0 | DS19: 0 | DT19: 0 | DU19: 0 | DV19: 0 | DW19: 0 | DX19: 0 | DY19: 0 | DZ19: 0 | EA19: 0 | EB19: 0 | EC19: 0 | ED19: 0 | EE19: 0 | EF19: 0 | EG19: 0 | EH19: 0 | EI19: 0 | EJ19: 0 | EK19: 0 | EL19: 0 | EM19: 0 | EN19: 0 | EO19: 0 | EP19: 0 | EQ19: 0 | ER19: 0 | ES19: 0 | ET19: 0 | EU19: 0 | EV19: 0 | EW19: 0 | EX19: 0 | EY19: 0 | EZ19: 0 | FA19: 0 | FB19: 0 | FC19: 0 | FD19: 0 | FE19: 0 | FF19: 0 | FG19: 0 | FH19: 0 | FI19: 0 | FJ19: 0 | FK19: 0 | FL19: 0 | FM19: 0 | FN19: 0 | FO19: 0 | FP19: 0 | FQ19: 0 | FR19: 0 | FS19: 0 | FT19: 0 | FU19: 0 | FV19: 0 | FW19: 0 | FX19: 0 | FY19: 0 | FZ19: 0 | GA19: 0 | GB19: 0 | GC19: 0 | GD19: 0 | GE19: 0 | GF19: 0 | GG19: 0 | GH19: 0 | GI19: 0 | GJ19: 0 | GK19: 0 | GL19: 0 | GM19: 0 | GN19: 0 | GO19: 0 | GP19: 0 | GQ19: 0 | GR19: 0 | GS19: 0 | GT19: 0 | GU19: 0 | GV19: 0 | GW19: 0 | GX19: 0 | GY19: 0 | GZ19: 0 | HA19: 0 | HB19: 0 | HC19: 0 | HD19: 0 | HE19: 0 | HF19: 0 | HG19: 0 | HH19: 0 | HI19: 0 | HJ19: 0 | HK19: 0 | HL19: 0 | HM19: 0 | HN19: 0 | HO19: 0 | HP19: 0 | HQ19: 0 | HR19: 0 | HS19: 0 | HT19: 0 | HU19: 0 | HV19: 0 | HW19: 0 | HX19: 0 | HY19: 0 | HZ19: 0 | IA19: 0 | IB19: 0 | IC19: 0 | ID19: 0 | IE19: 0 | IF19: 0 | IG19: 0 | IH19: 0 | II19: 0 | IJ19: 0 | IK19: 0 | IL19: 0 | IM19: 0 | IN19: 0 | IO19: 0 | IP19: 0 | IQ19: 0 | IR19: 0 | IS19: 0 | IT19: 0 | IU19: 0 | IV19: 0 | IW19: 0 | IX19: 0 | IY19: 0 | IZ19: 0 | JA19: 0 | JB19: 0 | JC19: 0 | JD19: 0 | JE19: 0 | JF19: 0 | JG19: 0 | JH19: 0 | JI19: 0 | JJ19: 0 | JK19: 0 | JL19: 0 | JM19: 0 | JN19: 0 | JO19: 0 | JP19: 0 | JQ19: 0 | JR19: 0 | JS19: 0 | JT19: 0 | JU19: 0 | JV19: 0 | JW19: 0 | JX19: 0 | JY19: 0 | JZ19: 0 | KA19: 0 | KB19: 0 | KC19: 0 | KD19: 0 | KE19: 0 | KF19: 0 | KG19: 0 | KH19: 0 | KI19: 0 | KJ19: 0 | KK19: 0 | KL19: 0 | KM19: 0 | KN19: 0 | KO19: 0 | KP19: 0 | KQ19: 0 | KR19: 0 | KS19: 0 | KT19: 0 | KU19: 0 | KV19: 0 | KW19: 0 | KX19: 0 | KY19: 0 | KZ19: 0 | LA19: 0 | LB19: 0 | LC19: 0 | LD19: 0 | LE19: 0 | LF19: 0 | LG19: 0 | LH19: 0 | LI19: 0 | LJ19: 0 | LK19: 0 | LL19: 0 | LM19: 0 | LN19: 0 | LO19: 0 | LP19: 0 | LQ19: 0 | LR19: 0 | LS19: 0 | LT19: 0 | LU19: 0 | LV19: 0 | LW19: 0 | LX19: 0 | LY19: 0 | LZ19: 0 | MA19: 0 | MB19: 0 | MC19: 0 | MD19: 0 | ME19: 0 | MF19: 0 | MG19: 0 | MH19: 0 | MI19: 0 | MJ19: 0 | MK19: 0 | ML19: 0 | MM19: 0 | MN19: 0 | MO19: 0 | MP19: 0 | MQ19: 0 | MR19: 0 | MS19: 0 | MT19: 0 | MU19: 0 | MV19: 0 | MW19: 0 | MX19: 0 | MY19: 0 | MZ19: 0 | NA19: 0 | NB19: 0 | NC19: 0 | ND19: 0 | NE19: 0 | NF19: 0 | NG19: 0 | NH19: 0 | NI19: 0 | NJ19: 0 | NK19: 0 | NL19: 0 | NM19: 0 | NN19: 0 | NO19: 0 | NP19: 0 | NQ19: 0 | NR19: 0 | NS19: 0 | NT19: 0 | NU19: 0 | NV19: 0 | NW19: 0 | NX19: 0 | NY19: 0 | NZ19: 0 | OA19: 0 | OB19: 0 | OC19: 0 | OD19: 0 | OE19: 0 | OF19: 0 | OG19: 0 | OH19: 0 | OI19: 0 | OJ19: 0 | OK19: 0 | OL19: 0 | OM19: 0 | ON19: 0 | OO19: 0 | OP19: 0 | OQ19: 0 | OR19: 0 | OS19: 0 | OT19: 0 | OU19: 0 | OV19: 0 | OW19: 0 | OX19: 0 | OY19: 0 | OZ19: 0 | PA19: 0 | PB19: 0 | PC19: 0 | PD19: 0 | PE19: 0 | PF19: 0 | PG19: 0 | PH19: 0 | PI19: 0 | PJ19: 0 | PK19: 0 | PL19: 0 | PM19: 0 | PN19: 0 | PO19: 0 | PP19: 0 | PQ19: 0 | PR19: 0 | PS19: 0 | PT19: 0 | PU19: 0 | PV19: 0 | PW19: 0 | PX19: 0 | PY19: 0 | PZ19: 0 | QA19: 0 | QB19: 0 | QC19: 0 | QD19: 0 | QE19: 0 | QF19: 0 | QG19: 0 | QH19: 0 | QI19: 0 | QJ19: 0 | QK19: 0 | QL19: 0 | QM19: 0 | QN19: 0 | QO19: 0 | QP19: 0 | QQ19: 0 | QR19: 0 | QS19: 0 | QT19: 0 | QU19: 0 | QV19: 0 | QW19: 0 | QX19: 0 | QY19: 0 | QZ19: 0 | RA19: 0 | RB19: 0 | RC19: 0 | RD19: 0 | RE19: 0 | RF19: 0 | RG19: 0 | RH19: 0 | RI19: 0 | RJ19: 0 | RK19: 0 | RL19: 0 | RM19: 0 | RN19: 0 | RO19: 0 | RP19: 0 | RQ19: 0 | RR19: 0 | RS19: 0 | RT19: 0 | RU19: 0 | RV19: 0 | RW19: 0 | RX19: 0 | RY19: 0 | RZ19: 0 | SA19: 0 | SB19: 0 | SC19: 0 | SD19: 0 | SE19: 0 | SF19: 0 | SG19: 0 | SH19: 0 | SI19: 0 | SJ19: 0 | SK19: 0 | SL19: 0 | SM19: 0 | SN19: 0 | SO19: 0 | SP19: 0 | SQ19: 0 | SR19: 0 | SS19: 0 | ST19: 0 | SU19: 0 | SV19: 0 | SW19: 0 | SX19: 0 | SY19: 0 | SZ19: 0 | TA19: 0 | TB19: 0 | TC19: 0 | TD19: 0 | TE19: 0 | TF19: 0 | TG19: 0 | TH19: 0 | TI19: 0 | TJ19: 0 | TK19: 0 | TL19: 0 | TM19: 0 | TN19: 0 | TO19: 0 | TP19: 0 | TQ19: 0 | TR19: 0 | TS19: 0 | TT19: 0 | TU19: 0 | TV19: 0 | TW19: 0 | TX19: 0 | TY19: 0 | TZ19: 0 | UA19: 0 | UB19: 0 | UC19: 0 | UD19: 0 | UE19: 0 | UF19: 0 | UG19: 0 | UH19: 0 | UI19: 0 | UJ19: 0 | UK19: 0 | UL19: 0 | UM19: 0 | UN19: 0 | UO19: 0 | UP19: 0 | UQ19: 0 | UR19: 0 | US19: 0 | UT19: 0 | UU19: 0 | UV19: 0 | UW19: 0 | UX19: 0 | UY19: 0 | UZ19: 0 | VA19: 0 | VB19: 0 | VC19: 0 | VD19: 0 | VE19: 0 | VF19: 0 | VG19: 0 | VH19: 0 | VI19: 0 | VJ19: 0 | VK19: 0 | VL19: 0 | VM19: 0 | VN19: 0 | VO19: 0 | VP19: 0 | VQ19: 0 | VR19: 0 | VS19: 0 | VT19: 0 | VU19: 0 | VV19: 0 | VW19: 0 | VX19: 0 | VY19: 0 | VZ19: 0 | WA19: 0 | WB19: 0 | WC19: 0 | WD19: 0 | WE19: 0 | WF19: 0 | WG19: 0 | WH19: 0 | WI19: 0 | WJ19: 0 | WK19: 0 | WL19: 0 | WM19: 0 | WN19: 0 | WO19: 0 | WP19: 0 | WQ19: 0 | WR19: 0 | WS19: 0 | WT19: 0 | WU19: 0 | WV19: 0 | WW19: 0 | WX19: 0 | WY19: 0 | WZ19: 0 | XA19: 0 | XB19: 0 | XC19: 0 | XD19: 0 | XE19: 0 | XF19: 0 | XG19: 0 | XH19: 0 | XI19: 0 | XJ19: 0 | XK19: 0 | XL19: 0 | XM19: 0 | XN19: 0 | XO19: 0 | XP19: 0 | XQ19: 0 | XR19: 0 | XS19: 0 | XT19: 0 | XU19: 0 | XV19: 0 | XW19: 0 | XX19: 0 | XY19: 0 | XZ19: 0 | YA19: 0 | YB19: 0 | YC19: 0 | YD19: 0 | YE19: 0 | YF19: 0 | YG19: 0 | YH19: 0 | YI19: 0 | YJ19: 0 | YK19: 0 | YL19: 0 | YM19: 0 | YN19: 0 | YO19: 0 | YP19: 0 | YQ19: 0 | YR19: 0 | YS19: 0 | YT19: 0 | YU19: 0 | YV19: 0 | YW19: 0 | YX19: 0 | YY19: 0 | YZ19: 0 | ZA19: 0 | ZB19: 0 | ZC19: 0 | ZD19: 0 | ZE19: 0 | ZF19: 0 | ZG19: 0 | ZH19: 0 | ZI19: 0 | ZJ19: 0 | ZK19: 0 | ZL19: 0 | ZM19: 0 | ZN19: 0 | ZO19: 0 | ZP19: 0 | ZQ19: 0 | ZR19: 0 | ZS19: 0 | ZT19: 0 | ZU19: 0 | ZV19: 0 | ZW19: 0 | ZX19: 0 | ZY19: 0 | ZZ19: 0 | AAA19: 0 | AAB19: 0 | AAC19: 0 | AAD19: 0 | AAE19: 0 | AAF19: 0 | AAG19: 0 | AAH19: 0 | AAI19: 0 | AAJ19: 0 | AAK19: 0 | AAL19: 0 | AAM19: 0 | AAN19: 0 | AAO19: 0 | AAP19: 0 | AAQ19: 0 | AAR19: 0 | AAS19: 0 | AAT19: 0 | AAU19: 0 | AAV19: 0 | AAW19: 0 | AAX19: 0 | AAY19: 0 | AAZ19: 0 | ABA19: 0 | ABB19: 0 | ABC19: 0 | ABD19: 0 | ABE19: 0 | ABF19: 0 | ABG19: 0 | ABH19: 0 | ABI19: 0 | ABJ19: 0 | ABK19: 0 | ABL19: 0 | ABM19: 0 | ABN19: 0 | ABO19: 0 | ABP19: 0 | ABQ19: 0 | ABR19: 0 | ABS19: 0 | ABT19: 0 | ABU19: 0 | ABV19: 0 | ABW19: 0 | ABX19: 0 | ABY19: 0 | ABZ19: 0 | ACA19: 0 | ACB19: 0 | ACC19: 0 | ACD19: 0 | ACE19: 0 | ACF19: 0 | ACG19: 0 | ACH19: 0 | ACI19: 0 | ACJ19: 0 | ACK19: 0 | ACL19: 0 | ACM19: 0 | ACN19: 0 | ACO19: 0 | ACP19: 0 | ACQ19: 0 | ACR19: 0 | ACS19: 0 | ACT19: 0 | ACU19: 0 | ACV19: 0 | ACW19: 0 | ACX19: 0 | ACY19: 0 | ACZ19: 0 | ADA19: 0 | ADB19: 0 | ADC19: 0 | ADD19: 0 | ADE19: 0 | ADF19: 0 | ADG19: 0 | ADH19: 0 | ADI19: 0 | ADJ19: 0 | ADK19: 0 | ADL19: 0 | ADM19: 0 | ADN19: 0 | ADO19: 0 | ADP19: 0 | ADQ19: 0 | ADR19: 0 | ADS19: 0 | ADT19: 0 | ADU19: 0 | ADV19: 0 | ADW19: 0 | ADX19: 0 | ADY19: 0 | ADZ19: 0 | AEA19: 0 | AEB19: 0 | AEC19: 0 | AED19: 0 | AEE19: 0 | AEF19: 0 | AEG19: 0 | AEH19: 0 | AEI19: 0 | AEJ19: 0 | AEK19: 0 | AEL19: 0 | AEM19: 0 | AEN19: 0 | AEO19: 0 | AEP19: 0 | AEQ19: 0 | AER19: 0 | AES19: 0 | AET19: 0 | AEU19: 0 | AEV19: 0 | AEW19: 0 | AEX19: 0 | AEY19: 0 | AEZ19: 0 | AFA19: 0 | AFB19: 0 | AFC19: 0 | AFD19: 0 | AFE19: 0 | AFF19: 0 | AFG19: 0 | AFH19: 0 | AFI19: 0 | AFJ19: 0 | AFK19: 0 | AFL19: 0 | AFM19: 0 | AFN19: 0 | AFO19: 0 | AFP19: 0 | AFQ19: 0 | AFR19: 0 | AFS19: 0 | AFT19: 0 | AFU19: 0 | AFV19: 0 | AFW19: 0 | AFX19: 0 | AFY19: 0 | AFZ19: 0 | AGA19: 0 | AGB19: 0 | AGC19: 0 | AGD19: 0 | AGE19: 0 | AGF19: 0 | AGG19: 0 | AGH19: 0 | AGI19: 0 | AGJ19: 0 | AGK19: 0 | AGL19: 0 | AGM19: 0 | AGN19: 0 | AGO19: 0 | AGP19: 0 | AGQ19: 0 | AGR19: 0 | AGS19: 0 | AGT19: 0 | AGU19: 0 | AGV19: 0 | AGW19: 0 | AGX19: 0 | AGY19: 0 | AGZ19: 0 | AHA19: 0 | AHB19: 0 | AHC19: 0 | AHD19: 0 | AHE19: 0 | AHF19: 0 | AHG19: 0 | AHH19: 0 | AHI19: 0 | AHJ19: 0 | AHK19: 0 | AHL19: 0 | AHM19: 0 | AHN19: 0 | AHO19: 0 | AHP19: 0 | AHQ19: 0 | AHR19: 0 | AHS19: 0 | AHT19: 0 | AHU19: 0 | AHV19: 0 | AHW19: 0 | AHX19: 0 | AHY19: 0 | AHZ19: 0 | AIA19: 0 | AIB19: 0 | AIC19: 0 | AID19: 0 | AIE19: 0 | AIF19: 0 | AIG19: 0 | AIH19: 0 | AII19: 0 | AIJ19: 0 | AIK19: 0 | AIL19: 0 | AIM19: 0 | AIN19: 0 | AIO19: 0 | AIP19: 0 | AIQ19: 0 | AIR19: 0 | AIS19: 0 | AIT19: 0 | AIU19: 0 | AIV19: 0 | AIW19: 0 | AIX19: 0 | AIY19: 0 | AIZ19: 0 | AJA19: 0 | AJB19: 0 | AJC19: 0 | AJD19: 0 | AJE19: 0 | AJF19: 0 | AJG19: 0 | AJH19: 0 | AJI19: 0 | AJJ19: 0 | AJK19: 0 | AJL19: 0 | AJM19: 0 | AJN19: 0 | AJO19: 0 | AJP19: 0 | AJQ19: 0 | AJR19: 0 | AJS19: 0 | AJT19: 0 | AJU19: 0 | AJV19: 0 | AJW19: 0 | AJX19: 0 | AJY19: 0 | AJZ19: 0 | AKA19: 0 | AKB19: 0 | AKC19: 0 | AKD19: 0 | AKE19: 0 | AKF19: 0 | AKG19: 0 | AKH19: 0 | AKI19: 0 | AKJ19: 0 | AKK19: 0 | AKL19: 0 | AKM19: 0 | AKN19: 0 | AKO19: 0 | AKP19: 0 | AKQ19: 0 | AKR19: 0 | AKS19: 0 | AKT19: 0 | AKU19: 0 | AKV19: 0 | AKW19: 0 | AKX19: 0 | AKY19: 0 | AKZ19: 0 | ALA19: 0 | ALB19: 0 | ALC19: 0 | ALD19: 0 | ALE19: =ALE78+ALE137+ALE196+ALE255+ALE314+ALE373+ALE432 -> 0 | ALF19: 0 | ALG19: 0 | ALH19: 0 | ALI19: =ALI78+ALI137+ALI196+ALI255+ALI314+ALI373+ALI432 -> 0 | ALJ19: 0 | ALK19: 0 | ALL19: 0 | ALM19: 0 | ALN19: 0 | ALO19: 0 | ALP19: 0 | ALQ19: =ALQ78+ALQ137+ALQ196+ALQ255+ALQ314+ALQ373+ALQ432 -> 0 | ALR19: 0 | ALS19: =ALS78+ALS137+ALS196+ALS255+ALS314+ALS373+ALS432 -> 0 | ALT19: 0 | ALU19: 0 | ALV19: 0 | ALW19: 0 | ALX19: 0 | ALY19: 0 | ALZ19: 0 | AMA19: 0 | AMB19: 0 | AMC19: 0 | AMD19: 0 | AME19: 0 | AMF19: =AMF78+AMF137+AMF196+AMF255+AMF314+AMF373+AMF432 -> 0 | AMG19: 0 | AMH19: 0 | AMI19: 0 | ATF19: 0 | ATG19: 0 | ATH19: 0 | ATI19: 0 | ATJ19: 0 | ATK19: 0 | ATL19: 0 | ATM19: 0 | ATN19: 0 | ATO19: 0 | ATP19: 0 | ATQ19: 0 | ATR19: 0 | ATS19: 0 | ATT19: 0 | ATU19: 0 | ATV19: 0 | ATW19: 0 | ATX19: 0 | ATY19: 0 | ATZ19: 0 | AUA19: 0 | AUB19: 0 | AUC19: 0 | AUD19: 0 | AUE19: 0 | AUF19: 0 | AUG19: 0 | AUH19: 0 | AUI19: 0 | AUJ19: 0 | AUK19: 0 | AUL19: 0 | AUM19: 0 | AUN19: 0 | AUO19: 0 | AUP19: 0 | AUQ19: 0 | AUR19: 0 | AUS19: 0 | AUT19: 0 | AUU19: 0 | AUV19: 0 | AUW19: 0 | AUX19: 0 | AUY19: 0 | AUZ19: 0 | AVA19: 0 | AVB19: 0 | AVC19: 0 | AVD19: 0 | AVE19: 0 | AVF19: 0 | AVG19: 0 | AVH19: 0 | AVI19: 0 | AVJ19: 0 | AVK19: 0 | AVL19: 0 | AVM19: 0 | AVN19: 0 | AVO19: 0 | AVP19: 0 | AVQ19: 0 | AVR19: 0 | AVS19: 0 | AVT19: 0 | AVU19: 0 | AVV19: 0 | AVW19: 0 | AVX19: 0 | AVY19: 0 | AVZ19: 0 | AWA19: 0 | AWB19: 0 | AWC19: 0 | AWD19: 0 | AWE19: 0 | AWF19: 0 | AWM19: 0 | AWN19: 0 | AWO19: 0 | AWP19: 0 | AWQ19: 0 | AWR19: 0 | AWS19: 0 | AWT19: 0 | AWU19: 0 | AWV19: 0 | AWW19: 0 | AWX19: 0 | AWY19: 0 | AWZ19: 0 | AXA19: 0 | AXB19: 0 | AXC19: 0 | AXD19: 0 | AXE19: 0 | AXF19: 0
A20: Coke | B20: 0 | C20: 0 | D20: 0 | E20: 0 | F20: 0 | G20: 0 | H20: 0 | I20: 0 | J20: 0 | K20: 0 | L20: 0 | M20: 0 | N20: 0 | O20: 0 | P20: 0 | Q20: 0 | R20: 0 | S20: 0 | T20: 0 | U20: 0 | V20: 0 | W20: 0 | X20: 0 | Y20: 0 | Z20: 0 | AA20: 0 | AB20: 0 | AC20: 0 | AD20: 0 | AE20: 0 | AF20: 0 | AG20: 0 | AH20: 0 | AI20: 0 | AJ20: 0 | AK20: 0 | AL20: 0 | AM20: 0 | AN20: 0 | AO20: 0 | AP20: 0 | AQ20: 0 | AR20: 0 | AS20: 0 | AT20: 0 | AU20: 0 | AV20: 0 | AW20: 0 | AX20: 0 | AY20: 0 | AZ20: 0 | BA20: 0 | BB20: 0 | BC20: 0 | BD20: 0 | BE20: 0 | BF20: 0 | BG20: 0 | BH20: 0 | BI20: 0 | BJ20: 0 | BK20: 0 | BL20: 0 | BM20: 0 | BN20: 0 | BO20: 0 | BP20: 0 | BQ20: 0 | BR20: 0 | BS20: 0 | BT20: 0 | BU20: 0 | BV20: 0 | BW20: 0 | BX20: 0 | BY20: 0 | BZ20: 0 | CA20: 0 | CB20: 0 | CC20: 0 | CD20: 0 | CE20: 0 | CF20: 0 | CG20: 0 | CH20: 0 | CI20: 0 | CJ20: 0 | CK20: 0 | CL20: 0 | CM20: 0 | CN20: 0 | CO20: 0 | CP20: 0 | CQ20: 0 | CR20: 0 | CS20: 0 | CT20: 0 | CU20: 0 | CV20: 0 | CW20: 0 | CX20: 0 | CY20: 0 | CZ20: 0 | DA20: 0 | DB20: 0 | DC20: 0 | DD20: 0 | DE20: 0 | DF20: 0 | DG20: 0 | DH20: 0 | DI20: 0 | DJ20: 0 | DK20: 0 | DL20: 0 | DM20: 0 | DN20: 0 | DO20: 0 | DP20: 0 | DQ20: 0 | DR20: 0 | DS20: 0 | DT20: 0 | DU20: 0 | DV20: 0 | DW20: 0 | DX20: 0 | DY20: 0 | DZ20: 0 | EA20: 0 | EB20: 0 | EC20: 0 | ED20: 0 | EE20: 0 | EF20: 0 | EG20: 0 | EH20: 0 | EI20: 0 | EJ20: 0 | EK20: 0 | EL20: 0 | EM20: 0 | EN20: 0 | EO20: 0 | EP20: 0 | EQ20: 0 | ER20: 0 | ES20: 0 | ET20: 0 | EU20: 0 | EV20: 0 | EW20: 0 | EX20: 0 | EY20: 0 | EZ20: 0 | FA20: 0 | FB20: 0 | FC20: 0 | FD20: 0 | FE20: 0 | FF20: 0 | FG20: 0 | FH20: 0 | FI20: 0 | FJ20: 0 | FK20: 0 | FL20: 0 | FM20: 0 | FN20: 0 | FO20: 0 | FP20: 0 | FQ20: 0 | FR20: 0 | FS20: 0 | FT20: 0 | FU20: 0 | FV20: 0 | FW20: 0 | FX20: 0 | FY20: 0 | FZ20: 0 | GA20: 0 | GB20: 0 | GC20: 0 | GD20: 0 | GE20: 0 | GF20: 0 | GG20: 0 | GH20: 0 | GI20: 0 | GJ20: 0 | GK20: 0 | GL20: 0 | GM20: 0 | GN20: 0 | GO20: 0 | GP20: 0 | GQ20: 0 | GR20: 0 | GS20: 0 | GT20: 0 | GU20: 0 | GV20: 0 | GW20: 0 | GX20: 0 | GY20: 0 | GZ20: 0 | HA20: 0 | HB20: 0 | HC20: 0 | HD20: 0 | HE20: 0 | HF20: 0 | HG20: 0 | HH20: 0 | HI20: 0 | HJ20: 0 | HK20: 0 | HL20: 0 | HM20: 0 | HN20: 0 | HO20: 0 | HP20: 0 | HQ20: 0 | HR20: 0 | HS20: 0 | HT20: 0 | HU20: 0 | HV20: 0 | HW20: 0 | HX20: 0 | HY20: 0 | HZ20: 0 | IA20: 0 | IB20: 0 | IC20: 0 | ID20: 0 | IE20: 0 | IF20: 0 | IG20: 0 | IH20: 0 | II20: 0 | IJ20: 0 | IK20: 0 | IL20: 0 | IM20: 0 | IN20: 0 | IO20: 0 | IP20: 0 | IQ20: 0 | IR20: 0 | IS20: 0 | IT20: 0 | IU20: 0 | IV20: 0 | IW20: 0 | IX20: 0 | IY20: 0 | IZ20: 0 | JA20: 0 | JB20: 0 | JC20: 0 | JD20: 0 | JE20: 0 | JF20: 0 | JG20: 0 | JH20: 0 | JI20: 0 | JJ20: 0 | JK20: 0 | JL20: 0 | JM20: 0 | JN20: 0 | JO20: 0 | JP20: 0 | JQ20: 0 | JR20: 0 | JS20: 0 | JT20: 0 | JU20: 0 | JV20: 0 | JW20: 0 | JX20: 0 | JY20: 0 | JZ20: 0 | KA20: 0 | KB20: 0 | KC20: 0 | KD20: 0 | KE20: 0 | KF20: 0 | KG20: 0 | KH20: 0 | KI20: 0 | KJ20: 0 | KK20: 0 | KL20: 0 | KM20: 0 | KN20: 0 | KO20: 0 | KP20: 0 | KQ20: 0 | KR20: 0 | KS20: 0 | KT20: 0 | KU20: 0 | KV20: 0 | KW20: 0 | KX20: 0 | KY20: 0 | KZ20: 0 | LA20: 0 | LB20: 0 | LC20: 0 | LD20: 0 | LE20: 0 | LF20: 0 | LG20: 0 | LH20: 0 | LI20: 0 | LJ20: 0 | LK20: 0 | LL20: 0 | LM20: 0 | LN20: 0 | LO20: 0 | LP20: 0 | LQ20: 0 | LR20: 0 | LS20: 0 | LT20: 0 | LU20: 0 | LV20: 0 | LW20: 0 | LX20: 0 | LY20: 0 | LZ20: 0 | MA20: 0 | MB20: 0 | MC20: 0 | MD20: 0 | ME20: 0 | MF20: 0 | MG20: 0 | MH20: 0 | MI20: 0 | MJ20: 0 | MK20: 0 | ML20: 0 | MM20: 0 | MN20: 0 | MO20: 0 | MP20: 0 | MQ20: 0 | MR20: 0 | MS20: 0 | MT20: 0 | MU20: 0 | MV20: 0 | MW20: 0 | MX20: 0 | MY20: 0 | MZ20: 0 | NA20: 0 | NB20: 0 | NC20: 0 | ND20: 0 | NE20: 0 | NF20: 0 | NG20: 0 | NH20: 0 | NI20: 0 | NJ20: 0 | NK20: 0 | NL20: 0 | NM20: 0 | NN20: 0 | NO20: 0 | NP20: 0 | NQ20: 0 | NR20: 0 | NS20: 0 | NT20: 0 | NU20: 0 | NV20: 0 | NW20: 0 | NX20: 0 | NY20: 0 | NZ20: 0 | OA20: 0 | OB20: 0 | OC20: 0 | OD20: 0 | OE20: 0 | OF20: 0 | OG20: 0 | OH20: 0 | OI20: 0 | OJ20: 0 | OK20: 0 | OL20: 0 | OM20: 0 | ON20: 0 | OO20: 0 | OP20: 0 | OQ20: 0 | OR20: 0 | OS20: 0 | OT20: 0 | OU20: 0 | OV20: 0 | OW20: 0 | OX20: 0 | OY20: 0 | OZ20: 0 | PA20: 0 | PB20: 0 | PC20: 0 | PD20: 0 | PE20: 0 | PF20: 0 | PG20: 0 | PH20: 0 | PI20: 0 | PJ20: 0 | PK20: 0 | PL20: 0 | PM20: 0 | PN20: 0 | PO20: 0 | PP20: 0 | PQ20: 0 | PR20: 0 | PS20: 0 | PT20: 0 | PU20: 0 | PV20: 0 | PW20: 0 | PX20: 0 | PY20: 0 | PZ20: 0 | QA20: 0 | QB20: 0 | QC20: 0 | QD20: 0 | QE20: 0 | QF20: 0 | QG20: 0 | QH20: 0 | QI20: 0 | QJ20: 0 | QK20: 0 | QL20: 0 | QM20: 0 | QN20: 0 | QO20: 0 | QP20: 0 | QQ20: 0 | QR20: 0 | QS20: 0 | QT20: 0 | QU20: 0 | QV20: 0 | QW20: 0 | QX20: 0 | QY20: 0 | QZ20: 0 | RA20: 0 | RB20: 0 | RC20: 0 | RD20: 0 | RE20: 0 | RF20: 0 | RG20: 0 | RH20: 0 | RI20: 0 | RJ20: 0 | RK20: 0 | RL20: 0 | RM20: 0 | RN20: 0 | RO20: 0 | RP20: 0 | RQ20: 0 | RR20: 0 | RS20: 0 | RT20: 0 | RU20: 0 | RV20: 0 | RW20: 0 | RX20: 0 | RY20: 0 | RZ20: 0 | SA20: 0 | SB20: 0 | SC20: 0 | SD20: 0 | SE20: 0 | SF20: 0 | SG20: 0 | SH20: 0 | SI20: 0 | SJ20: 0 | SK20: 0 | SL20: 0 | SM20: 0 | SN20: 0 | SO20: 0 | SP20: 0 | SQ20: 0 | SR20: 0 | SS20: 0 | ST20: 0 | SU20: 0 | SV20: 0 | SW20: 0 | SX20: 0 | SY20: 0 | SZ20: 0 | TA20: 0 | TB20: 0 | TC20: 0 | TD20: 0 | TE20: 0 | TF20: 0 | TG20: 0 | TH20: 0 | TI20: 0 | TJ20: 0 | TK20: 0 | TL20: 0 | TM20: 0 | TN20: 0 | TO20: 0 | TP20: 0 | TQ20: 0 | TR20: 0 | TS20: 0 | TT20: 0 | TU20: 0 | TV20: 0 | TW20: 0 | TX20: 0 | TY20: 0 | TZ20: 0 | UA20: 0 | UB20: 0 | UC20: 0 | UD20: 0 | UE20: 0 | UF20: 0 | UG20: 0 | UH20: 0 | UI20: 0 | UJ20: 0 | UK20: 0 | UL20: 0 | UM20: 0 | UN20: 0 | UO20: 0 | UP20: 0 | UQ20: 0 | UR20: 0 | US20: 0 | UT20: 0 | UU20: 0 | UV20: 0 | UW20: 0 | UX20: 0 | UY20: 0 | UZ20: 0 | VA20: 0 | VB20: 0 | VC20: 0 | VD20: 0 | VE20: 0 | VF20: 0 | VG20: 0 | VH20: 0 | VI20: 0 | VJ20: 0 | VK20: 0 | VL20: 0 | VM20: 0 | VN20: 0 | VO20: 0 | VP20: 0 | VQ20: 0 | VR20: 0 | VS20: 0 | VT20: 0 | VU20: 0 | VV20: 0 | VW20: 0 | VX20: 0 | VY20: 0 | VZ20: 0 | WA20: 0 | WB20: 0 | WC20: 0 | WD20: 0 | WE20: 0 | WF20: 0 | WG20: 0 | WH20: 0 | WI20: 0 | WJ20: 0 | WK20: 0 | WL20: 0 | WM20: 0 | WN20: 0 | WO20: 0 | WP20: 0 | WQ20: 0 | WR20: 0 | WS20: 0 | WT20: 0 | WU20: 0 | WV20: 0 | WW20: 0 | WX20: 0 | WY20: 0 | WZ20: 0 | XA20: 0 | XB20: 0 | XC20: 0 | XD20: 0 | XE20: 0 | XF20: 0 | XG20: 0 | XH20: 0 | XI20: 0 | XJ20: 0 | XK20: 0 | XL20: 0 | XM20: 0 | XN20: 0 | XO20: 0 | XP20: 0 | XQ20: 0 | XR20: 0 | XS20: 0 | XT20: 0 | XU20: 0 | XV20: 0 | XW20: 0 | XX20: 0 | XY20: 0 | XZ20: 0 | YA20: 0 | YB20: 0 | YC20: 0 | YD20: 0 | YE20: 0 | YF20: 0 | YG20: 0 | YH20: 0 | YI20: 0 | YJ20: 0 | YK20: 0 | YL20: 0 | YM20: 0 | YN20: 0 | YO20: 0 | YP20: 0 | YQ20: 0 | YR20: 0 | YS20: 0 | YT20: 0 | YU20: 0 | YV20: 0 | YW20: 0 | YX20: 0 | YY20: 0 | YZ20: 0 | ZA20: 0 | ZB20: 0 | ZC20: 0 | ZD20: 0 | ZE20: 0 | ZF20: 0 | ZG20: 0 | ZH20: 0 | ZI20: 0 | ZJ20: 0 | ZK20: 0 | ZL20: 0 | ZM20: 0 | ZN20: 0 | ZO20: 0 | ZP20: 0 | ZQ20: 0 | ZR20: 0 | ZS20: 0 | ZT20: 0 | ZU20: 0 | ZV20: 0 | ZW20: 0 | ZX20: 0 | ZY20: 0 | ZZ20: 0 | AAA20: 0 | AAB20: 0 | AAC20: 0 | AAD20: 0 | AAE20: 0 | AAF20: 0 | AAG20: 0 | AAH20: 0 | AAI20: 0 | AAJ20: 0 | AAK20: 0 | AAL20: 0 | AAM20: 0 | AAN20: 0 | AAO20: 0 | AAP20: 0 | AAQ20: 0 | AAR20: 0 | AAS20: 0 | AAT20: 0 | AAU20: 0 | AAV20: 0 | AAW20: 0 | AAX20: 0 | AAY20: 0 | AAZ20: 0 | ABA20: 0 | ABB20: 0 | ABC20: 0 | ABD20: 0 | ABE20: 0 | ABF20: 0 | ABG20: 0 | ABH20: 0 | ABI20: 0 | ABJ20: 0 | ABK20: 0 | ABL20: 0 | ABM20: 0 | ABN20: 0 | ABO20: 0 | ABP20: 0 | ABQ20: 0 | ABR20: 0 | ABS20: 0 | ABT20: 0 | ABU20: 0 | ABV20: 0 | ABW20: 0 | ABX20: 0 | ABY20: 0 | ABZ20: 0 | ACA20: 0 | ACB20: 0 | ACC20: 0 | ACD20: 0 | ACE20: 0 | ACF20: 0 | ACG20: 0 | ACH20: 0 | ACI20: 0 | ACJ20: 0 | ACK20: 0 | ACL20: 0 | ACM20: 0 | ACN20: 0 | ACO20: 0 | ACP20: 0 | ACQ20: 0 | ACR20: 0 | ACS20: 0 | ACT20: 0 | ACU20: 0 | ACV20: 0 | ACW20: 0 | ACX20: 0 | ACY20: 0 | ACZ20: 0 | ADA20: 0 | ADB20: 0 | ADC20: 0 | ADD20: 0 | ADE20: 0 | ADF20: 0 | ADG20: 0 | ADH20: 0 | ADI20: 0 | ADJ20: 0 | ADK20: 0 | ADL20: 0 | ADM20: 0 | ADN20: 0 | ADO20: 0 | ADP20: 0 | ADQ20: 0 | ADR20: 0 | ADS20: 0 | ADT20: 0 | ADU20: 0 | ADV20: 0 | ADW20: 0 | ADX20: 0 | ADY20: 0 | ADZ20: 0 | AEA20: 0 | AEB20: 0 | AEC20: 0 | AED20: 0 | AEE20: 0 | AEF20: 0 | AEG20: 0 | AEH20: 0 | AEI20: 0 | AEJ20: 0 | AEK20: 0 | AEL20: 0 | AEM20: 0 | AEN20: 0 | AEO20: 0 | AEP20: 0 | AEQ20: 0 | AER20: 0 | AES20: 0 | AET20: 0 | AEU20: 0 | AEV20: 0 | AEW20: 0 | AEX20: 0 | AEY20: 0 | AEZ20: 0 | AFA20: 0 | AFB20: 0 | AFC20: 0 | AFD20: 0 | AFE20: 0 | AFF20: 0 | AFG20: 0 | AFH20: 0 | AFI20: 0 | AFJ20: 0 | AFK20: 0 | AFL20: 0 | AFM20: 0 | AFN20: 0 | AFO20: 0 | AFP20: 0 | AFQ20: 0 | AFR20: 0 | AFS20: 0 | AFT20: 0 | AFU20: 0 | AFV20: 0 | AFW20: 0 | AFX20: 0 | AFY20: 0 | AFZ20: 0 | AGA20: 0 | AGB20: 0 | AGC20: 0 | AGD20: 0 | AGE20: 0 | AGF20: 0 | AGG20: 0 | AGH20: 0 | AGI20: 0 | AGJ20: 0 | AGK20: 0 | AGL20: 0 | AGM20: 0 | AGN20: 0 | AGO20: 0 | AGP20: 0 | AGQ20: 0 | AGR20: 0 | AGS20: 0 | AGT20: 0 | AGU20: 0 | AGV20: 0 | AGW20: 0 | AGX20: 0 | AGY20: 0 | AGZ20: 0 | AHA20: 0 | AHB20: 0 | AHC20: 0 | AHD20: 0 | AHE20: 0 | AHF20: 0 | AHG20: 0 | AHH20: 0 | AHI20: 0 | AHJ20: 0 | AHK20: 0 | AHL20: 0 | AHM20: 0 | AHN20: 0 | AHO20: 0 | AHP20: 0 | AHQ20: 0 | AHR20: 0 | AHS20: 0 | AHT20: 0 | AHU20: 0 | AHV20: 0 | AHW20: 0 | AHX20: 0 | AHY20: 0 | AHZ20: 0 | AIA20: 0 | AIB20: 0 | AIC20: 0 | AID20: 0 | AIE20: 0 | AIF20: 0 | AIG20: 0 | AIH20: 0 | AII20: 0 | AIJ20: 0 | AIK20: 0 | AIL20: 0 | AIM20: 0 | AIN20: 0 | AIO20: 0 | AIP20: 0 | AIQ20: 0 | AIR20: 0 | AIS20: 0 | AIT20: 0 | AIU20: 0 | AIV20: 0 | AIW20: 0 | AIX20: 0 | AIY20: 0 | AIZ20: 0 | AJA20: 0 | AJB20: 0 | AJC20: 0 | AJD20: 0 | AJE20: 0 | AJF20: 0 | AJG20: 0 | AJH20: 0 | AJI20: 0 | AJJ20: 0 | AJK20: 0 | AJL20: 0 | AJM20: 0 | AJN20: 0 | AJO20: 0 | AJP20: 0 | AJQ20: 0 | AJR20: 0 | AJS20: 0 | AJT20: 0 | AJU20: 0 | AJV20: 0 | AJW20: 0 | AJX20: 0 | AJY20: 0 | AJZ20: 0 | AKA20: 0 | AKB20: 0 | AKC20: 0 | AKD20: 0 | AKE20: 0 | AKF20: 0 | AKG20: 0 | AKH20: 0 | AKI20: 0 | AKJ20: 0 | AKK20: 0 | AKL20: 0 | AKM20: 0 | AKN20: 0 | AKO20: 0 | AKP20: 0 | AKQ20: 0 | AKR20: 0 | AKS20: 0 | AKT20: 0 | AKU20: 0 | AKV20: 0 | AKW20: 0 | AKX20: 0 | AKY20: 0 | AKZ20: 0 | ALA20: 0 | ALB20: 0 | ALC20: 0 | ALD20: 0 | ALE20: =ALE79+ALE138+ALE197+ALE256+ALE315+ALE374+ALE433 -> 0 | ALF20: 0 | ALG20: 0 | ALH20: 0 | ALI20: =ALI79+ALI138+ALI197+ALI256+ALI315+ALI374+ALI433 -> 0 | ALJ20: 0 | ALK20: 0 | ALL20: 0 | ALM20: 0 | ALN20: 0 | ALO20: 0 | ALP20: 0 | ALQ20: =ALQ79+ALQ138+ALQ197+ALQ256+ALQ315+ALQ374+ALQ433 -> 0 | ALR20: 0 | ALS20: =ALS79+ALS138+ALS197+ALS256+ALS315+ALS374+ALS433 -> 0 | ALT20: 0 | ALU20: 0 | ALV20: 0 | ALW20: 0 | ALX20: 0 | ALY20: 0 | ALZ20: 0 | AMA20: 0 | AMB20: 0 | AMC20: 0 | AMD20: 0 | AME20: 0 | AMF20: =AMF79+AMF138+AMF197+AMF256+AMF315+AMF374+AMF433 -> 0 | AMG20: 0 | AMH20: 0 | AMI20: 0 | ATF20: 0 | ATG20: 0 | ATH20: 0 | ATI20: 0 | ATJ20: 0 | ATK20: 0 | ATL20: 0 | ATM20: 0 | ATN20: 0 | ATO20: 0 | ATP20: 0 | ATQ20: 0 | ATR20: 0 | ATS20: 0 | ATT20: 0 | ATU20: 0 | ATV20: 0 | ATW20: 0 | ATX20: 0 | ATY20: 0 | ATZ20: 0 | AUA20: 0 | AUB20: 0 | AUC20: 0 | AUD20: 0 | AUE20: 0 | AUF20: 0 | AUG20: 0 | AUH20: 0 | AUI20: 0 | AUJ20: 0 | AUK20: 0 | AUL20: 0 | AUM20: 0 | AUN20: 0 | AUO20: 0 | AUP20: 0 | AUQ20: 0 | AUR20: 0 | AUS20: 0 | AUT20: 0 | AUU20: 0 | AUV20: 0 | AUW20: 0 | AUX20: 0 | AUY20: 0 | AUZ20: 0 | AVA20: 0 | AVB20: 0 | AVC20: 0 | AVD20: 0 | AVE20: 0 | AVF20: 0 | AVG20: 0 | AVH20: 0 | AVI20: 0 | AVJ20: 0 | AVK20: 0 | AVL20: 0 | AVM20: 0 | AVN20: 0 | AVO20: 0 | AVP20: 0 | AVQ20: 0 | AVR20: 0 | AVS20: 0 | AVT20: 0 | AVU20: 0 | AVV20: 0 | AVW20: 0 | AVX20: 0 | AVY20: 0 | AVZ20: 0 | AWA20: 0 | AWB20: 0 | AWC20: 0 | AWD20: 0 | AWE20: 0 | AWF20: 0 | AWM20: 0 | AWN20: 0 | AWO20: 0 | AWP20: 0 | AWQ20: 0 | AWR20: 0 | AWS20: 0 | AWT20: 0 | AWU20: 0 | AWV20: 0 | AWW20: 0 | AWX20: 0 | AWY20: 0 | AWZ20: 0 | AXA20: 0 | AXB20: 0 | AXC20: 0 | AXD20: 0 | AXE20: 0 | AXF20: 0
A21: Metals & Products | B21: 0 | C21: 0 | D21: 0 | E21: 0 | F21: 0 | G21: 0 | H21: 0 | I21: 0 | J21: 0 | K21: 0 | L21: 0 | M21: 0 | N21: 0 | O21: 0 | P21: 0 | Q21: 0 | R21: 0 | S21: 0 | T21: 0 | U21: 0 | V21: 0 | W21: 0 | X21: 0 | Y21: 0 | Z21: 0 | AA21: 0 | AB21: 0 | AC21: 0 | AD21: 0 | AE21: 0 | AF21: 0 | AG21: 0 | AH21: 0 | AI21: 0 | AJ21: 0 | AK21: 0 | AL21: 0 | AM21: 0 | AN21: 0 | AO21: 0 | AP21: 0 | AQ21: 0 | AR21: 0 | AS21: 0 | AT21: 0 | AU21: 0 | AV21: 0 | AW21: 0 | AX21: 0 | AY21: 0 | AZ21: 0 | BA21: 0 | BB21: 0 | BC21: 0 | BD21: 0 | BE21: 0 | BF21: 0 | BG21: 0 | BH21: 0 | BI21: 0 | BJ21: 0 | BK21: 0 | BL21: 0 | BM21: =BM80+BM139+BM198+BM257+BM316+BM375+BM434 -> 0 | BN21: 0 | BO21: 0 | BP21: 0 | BQ21: 0 | BR21: 0 | BS21: 0 | BT21: 0 | BU21: 0 | BV21: 0 | BW21: 0 | BX21: 0 | BY21: 0 | BZ21: 0 | CA21: 0 | CB21: 0 | CC21: 0 | CD21: 0 | CE21: 0 | CF21: 0 | CG21: 0 | CH21: 0 | CI21: 0 | CJ21: 0 | CK21: 0 | CL21: 0 | CM21: 0 | CN21: 0 | CO21: 0 | CP21: 0 | CQ21: 0 | CR21: 0 | CS21: 0 | CT21: 0 | CU21: 0 | CV21: 0 | CW21: 0 | CX21: 0 | CY21: 0 | CZ21: 0 | DA21: 0 | DB21: 0 | DC21: 0 | DD21: 0 | DE21: 0 | DF21: 0 | DG21: 0 | DH21: 0 | DI21: 0 | DJ21: 0 | DK21: 0 | DL21: 0 | DM21: 0 | DN21: 0 | DO21: 0 | DP21: 0 | DQ21: 0 | DR21: 0 | DS21: 0 | DT21: 0 | DU21: 0 | DV21: 0 | DW21: 0 | DX21: 0 | DY21: =DY80+DY139+DY198+DY257+DY316+DY375+DY434 -> 0 | DZ21: 0 | EA21: 0 | EB21: 0 | EC21: 0 | ED21: 0 | EE21: 0 | EF21: 0 | EG21: 0 | EH21: 0 | EI21: 0 | EJ21: 0 | EK21: 0 | EL21: 0 | EM21: 0 | EN21: 0 | EO21: 0 | EP21: 0 | EQ21: 0 | ER21: 0 | ES21: 0 | ET21: 0 | EU21: 0 | EV21: 0 | EW21: 0 | EX21: 0 | EY21: 0 | EZ21: 0 | FA21: 0 | FB21: 0 | FC21: 0 | FD21: 0 | FE21: 0 | FF21: 0 | FG21: 0 | FH21: 0 | FI21: 0 | FJ21: 0 | FK21: 0 | FL21: 0 | FM21: 0 | FN21: 0 | FO21: 0 | FP21: 0 | FQ21: 0 | FR21: 0 | FS21: 0 | FT21: 0 | FU21: 0 | FV21: 0 | FW21: 0 | FX21: 0 | FY21: 0 | FZ21: 0 | GA21: 0 | GB21: 0 | GC21: 0 | GD21: 0 | GE21: 0 | GF21: 0 | GG21: 0 | GH21: 0 | GI21: 0 | GJ21: 0 | GK21: =GK80+GK139+GK198+GK257+GK316+GK375+GK434 -> 0 | GL21: 0 | GM21: 0 | GN21: 0 | GO21: 0 | GP21: 0 | GQ21: 0 | GR21: 0 | GS21: 0 | GT21: 0 | GU21: 0 | GV21: 0 | GW21: 0 | GX21: 0 | GY21: 0 | GZ21: 0 | HA21: 0 | HB21: 0 | HC21: 0 | HD21: 0 | HE21: 0 | HF21: 0 | HG21: 0 | HH21: 0 | HI21: 0 | HJ21: 0 | HK21: 0 | HL21: 0 | HM21: 0 | HN21: 0 | HO21: 0 | HP21: 0 | HQ21: 0 | HR21: 0 | HS21: 0 | HT21: 0 | HU21: 0 | HV21: 0 | HW21: 0 | HX21: 0 | HY21: 0 | HZ21: 0 | IA21: 0 | IB21: 0 | IC21: 0 | ID21: 0 | IE21: 0 | IF21: 0 | IG21: 0 | IH21: 0 | II21: 0 | IJ21: 0 | IK21: 0 | IL21: 0 | IM21: 0 | IN21: 0 | IO21: 0 | IP21: 0 | IQ21: 0 | IR21: 0 | IS21: 0 | IT21: 0 | IU21: 0 | IV21: 0 | IW21: =IW80+IW139+IW198+IW257+IW316+IW375+IW434 -> 0 | IX21: 0 | IY21: 0 | IZ21: 0 | JA21: 0 | JB21: 0 | JC21: 0 | JD21: 0 | JE21: 0 | JF21: 0 | JG21: 0 | JH21: 0 | JI21: 0 | JJ21: 0 | JK21: 0 | JL21: 0 | JM21: 0 | JN21: 0 | JO21: 0 | JP21: 0 | JQ21: 0 | JR21: 0 | JS21: 0 | JT21: 0 | JU21: 0 | JV21: 0 | JW21: 0 | JX21: 0 | JY21: 0 | JZ21: 0 | KA21: 0 | KB21: 0 | KC21: 0 | KD21: 0 | KE21: 0 | KF21: 0 | KG21: 0 | KH21: 0 | KI21: 0 | KJ21: 0 | KK21: 0 | KL21: 0 | KM21: 0 | KN21: 0 | KO21: 0 | KP21: 0 | KQ21: 0 | KR21: 0 | KS21: 0 | KT21: 0 | KU21: 0 | KV21: 0 | KW21: 0 | KX21: 0 | KY21: 0 | KZ21: 0 | LA21: 0 | LB21: 0 | LC21: 0 | LD21: 0 | LE21: 0 | LF21: 0 | LG21: 0 | LH21: 0 | LI21: =LI80+LI139+LI198+LI257+LI316+LI375+LI434 -> 0 | LJ21: 0 | LK21: 0 | LL21: 0 | LM21: 0 | LN21: 0 | LO21: 0 | LP21: 0 | LQ21: 0 | LR21: 0 | LS21: 0 | LT21: 0 | LU21: 0 | LV21: 0 | LW21: 0 | LX21: 0 | LY21: 0 | LZ21: 0 | MA21: 0 | MB21: 0 | MC21: 0 | MD21: 0 | ME21: 0 | MF21: 0 | MG21: 0 | MH21: 0 | MI21: 0 | MJ21: 0 | MK21: 0 | ML21: 0 | MM21: 0 | MN21: 0 | MO21: 0 | MP21: 0 | MQ21: 0 | MR21: 0 | MS21: 0 | MT21: 0 | MU21: 0 | MV21: 0 | MW21: 0 | MX21: 0 | MY21: 0 | MZ21: 0 | NA21: 0 | NB21: 0 | NC21: 0 | ND21: 0 | NE21: 0 | NF21: 0 | NG21: 0 | NH21: 0 | NI21: 0 | NJ21: 0 | NK21: 0 | NL21: 0 | NM21: 0 | NN21: 0 | NO21: 0 | NP21: 0 | NQ21: 0 | NR21: 0 | NS21: 0 | NT21: 0 | NU21: =NU80+NU139+NU198+NU257+NU316+NU375+NU434 -> 0 | NV21: 0 | NW21: 0 | NX21: 0 | NY21: 0 | NZ21: 0 | OA21: 0 | OB21: 0 | OC21: 0 | OD21: 0 | OE21: 0 | OF21: 0 | OG21: 0 | OH21: 0 | OI21: 0 | OJ21: 0 | OK21: 0 | OL21: 0 | OM21: 0 | ON21: 0 | OO21: 0 | OP21: 0 | OQ21: 0 | OR21: 0 | OS21: 0 | OT21: 0 | OU21: 0 | OV21: 0 | OW21: 0 | OX21: 0 | OY21: 0 | OZ21: 0 | PA21: 0 | PB21: 0 | PC21: 0 | PD21: 0 | PE21: 0 | PF21: 0 | PG21: 0 | PH21: 0 | PI21: 0 | PJ21: 0 | PK21: 0 | PL21: 0 | PM21: 0 | PN21: 0 | PO21: 0 | PP21: 0 | PQ21: 0 | PR21: 0 | PS21: 0 | PT21: 0 | PU21: 0 | PV21: 0 | PW21: 0 | PX21: 0 | PY21: 0 | PZ21: 0 | QA21: 0 | QB21: 0 | QC21: 0 | QD21: 0 | QE21: 0 | QF21: 0 | QG21: =QG80+QG139+QG198+QG257+QG316+QG375+QG434 -> 0 | QH21: 0 | QI21: 0 | QJ21: 0 | QK21: 0 | QL21: 0 | QM21: 0 | QN21: 0 | QO21: 0 | QP21: 0 | QQ21: 0 | QR21: 0 | QS21: 0 | QT21: 0 | QU21: 0 | QV21: 0 | QW21: 0 | QX21: 0 | QY21: 0 | QZ21: 0 | RA21: 0 | RB21: 0 | RC21: 0 | RD21: 0 | RE21: 0 | RF21: 0 | RG21: 0 | RH21: 0 | RI21: 0 | RJ21: 0 | RK21: 0 | RL21: 0 | RM21: 0 | RN21: 0 | RO21: 0 | RP21: 0 | RQ21: 0 | RR21: 0 | RS21: 0 | RT21: 0 | RU21: 0 | RV21: 0 | RW21: 0 | RX21: 0 | RY21: 0 | RZ21: 0 | SA21: 0 | SB21: 0 | SC21: 0 | SD21: 0 | SE21: 0 | SF21: 0 | SG21: 0 | SH21: 0 | SI21: 0 | SJ21: 0 | SK21: 0 | SL21: 0 | SM21: 0 | SN21: 0 | SO21: 0 | SP21: 0 | SQ21: 0 | SR21: 0 | SS21: =SS80+SS139+SS198+SS257+SS316+SS375+SS434 -> 0 | ST21: 0 | SU21: 0 | SV21: 0 | SW21: 0 | SX21: 0 | SY21: 0 | SZ21: 0 | TA21: 0 | TB21: 0 | TC21: 0 | TD21: 0 | TE21: 0 | TF21: 0 | TG21: 0 | TH21: 0 | TI21: 0 | TJ21: 0 | TK21: 0 | TL21: 0 | TM21: 0 | TN21: 0 | TO21: 0 | TP21: 0 | TQ21: 0 | TR21: 0 | TS21: 0 | TT21: 0 | TU21: 0 | TV21: 0 | TW21: 0 | TX21: 0 | TY21: 0 | TZ21: 0 | UA21: 0 | UB21: 0 | UC21: 0 | UD21: 0 | UE21: 0 | UF21: 0 | UG21: 0 | UH21: 0 | UI21: 0 | UJ21: 0 | UK21: 0 | UL21: 0 | UM21: 0 | UN21: 0 | UO21: 0 | UP21: 0 | UQ21: 0 | UR21: 0 | US21: 0 | UT21: 0 | UU21: 0 | UV21: 0 | UW21: 0 | UX21: 0 | UY21: 0 | UZ21: 0 | VA21: 0 | VB21: 0 | VC21: 0 | VD21: 0 | VE21: =VE80+VE139+VE198+VE257+VE316+VE375+VE434 -> 0 | VF21: 0 | VG21: 0 | VH21: 0 | VI21: 0 | VJ21: 0 | VK21: 0 | VL21: 0 | VM21: 0 | VN21: 0 | VO21: 0 | VP21: 0 | VQ21: 0 | VR21: 0 | VS21: 0 | VT21: 0 | VU21: 0 | VV21: 0 | VW21: 0 | VX21: 0 | VY21: 0 | VZ21: 0 | WA21: 0 | WB21: 0 | WC21: 0 | WD21: 0 | WE21: 0 | WF21: 0 | WG21: 0 | WH21: 0 | WI21: 0 | WJ21: 0 | WK21: 0 | WL21: 0 | WM21: 0 | WN21: 0 | WO21: 0 | WP21: 0 | WQ21: 0 | WR21: 0 | WS21: 0 | WT21: 0 | WU21: 0 | WV21: 0 | WW21: 0 | WX21: 0 | WY21: 0 | WZ21: 0 | XA21: 0 | XB21: 0 | XC21: 0 | XD21: 0 | XE21: 0 | XF21: 0 | XG21: 0 | XH21: 0 | XI21: 0 | XJ21: 0 | XK21: 0 | XL21: 0 | XM21: 0 | XN21: 0 | XO21: 0 | XP21: 0 | XQ21: =XQ80+XQ139+XQ198+XQ257+XQ316+XQ375+XQ434 -> 0 | XR21: 0 | XS21: 0 | XT21: 0 | XU21: 0 | XV21: 0 | XW21: 0 | XX21: 0 | XY21: 0 | XZ21: 0 | YA21: 0 | YB21: 0 | YC21: 0 | YD21: 0 | YE21: 0 | YF21: 0 | YG21: 0 | YH21: 0 | YI21: 0 | YJ21: 0 | YK21: 0 | YL21: 0 | YM21: 0 | YN21: 0 | YO21: 0 | YP21: 0 | YQ21: 0 | YR21: 0 | YS21: 0 | YT21: 0 | YU21: 0 | YV21: 0 | YW21: 0 | YX21: 0 | YY21: 0 | YZ21: 0 | ZA21: 0 | ZB21: 0 | ZC21: 0 | ZD21: 0 | ZE21: 0 | ZF21: 0 | ZG21: 0 | ZH21: 0 | ZI21: 0 | ZJ21: 0 | ZK21: 0 | ZL21: 0 | ZM21: 0 | ZN21: 0 | ZO21: 0 | ZP21: 0 | ZQ21: 0 | ZR21: 0 | ZS21: 0 | ZT21: 0 | ZU21: 0 | ZV21: 0 | ZW21: 0 | ZX21: 0 | ZY21: 0 | ZZ21: 0 | AAA21: 0 | AAB21: 0 | AAC21: =AAC80+AAC139+AAC198+AAC257+AAC316+AAC375+AAC434 -> 0 | AAD21: 0 | AAE21: 0 | AAF21: 0 | AAG21: 0 | AAH21: 0 | AAI21: 0 | AAJ21: 0 | AAK21: 0 | AAL21: 0 | AAM21: 0 | AAN21: 0 | AAO21: 0 | AAP21: 0 | AAQ21: 0 | AAR21: 0 | AAS21: 0 | AAT21: 0 | AAU21: 0 | AAV21: 0 | AAW21: 0 | AAX21: 0 | AAY21: 0 | AAZ21: 0 | ABA21: 0 | ABB21: 0 | ABC21: 0 | ABD21: 0 | ABE21: 0 | ABF21: 0 | ABG21: 0 | ABH21: 0 | ABI21: 0 | ABJ21: 0 | ABK21: 0 | ABL21: 0 | ABM21: 0 | ABN21: 0 | ABO21: 0 | ABP21: 0 | ABQ21: 0 | ABR21: 0 | ABS21: 0 | ABT21: 0 | ABU21: 0 | ABV21: 0 | ABW21: 0 | ABX21: 0 | ABY21: 0 | ABZ21: 0 | ACA21: 0 | ACB21: 0 | ACC21: 0 | ACD21: 0 | ACE21: 0 | ACF21: 0 | ACG21: 0 | ACH21: 0 | ACI21: 0 | ACJ21: 0 | ACK21: 0 | ACL21: 0 | ACM21: 0 | ACN21: 0 | ACO21: =ACO80+ACO139+ACO198+ACO257+ACO316+ACO375+ACO434 -> 0 | ACP21: 0 | ACQ21: 0 | ACR21: 0 | ACS21: 0 | ACT21: 0 | ACU21: 0 | ACV21: 0 | ACW21: 0 | ACX21: 0 | ACY21: 0 | ACZ21: 0 | ADA21: 0 | ADB21: 0 | ADC21: 0 | ADD21: 0 | ADE21: 0 | ADF21: 0 | ADG21: 0 | ADH21: 0 | ADI21: 0 | ADJ21: 0 | ADK21: 0 | ADL21: 0 | ADM21: 0 | ADN21: 0 | ADO21: 0 | ADP21: 0 | ADQ21: 0 | ADR21: 0 | ADS21: 0 | ADT21: 0 | ADU21: 0 | ADV21: 0 | ADW21: 0 | ADX21: 0 | ADY21: 0 | ADZ21: 0 | AEA21: 0 | AEB21: 0 | AEC21: 0 | AED21: 0 | AEE21: 0 | AEF21: 0 | AEG21: 0 | AEH21: 0 | AEI21: 0 | AEJ21: 0 | AEK21: 0 | AEL21: 0 | AEM21: 0 | AEN21: 0 | AEO21: 0 | AEP21: 0 | AEQ21: 0 | AER21: 0 | AES21: 0 | AET21: 0 | AEU21: 0 | AEV21: 0 | AEW21: 0 | AEX21: 0 | AEY21: 0 | AEZ21: 0 | AFA21: =AFA80+AFA139+AFA198+AFA257+AFA316+AFA375+AFA434 -> 0 | AFB21: 0 | AFC21: 0 | AFD21: 0 | AFE21: 0 | AFF21: 0 | AFG21: 0 | AFH21: 0 | AFI21: 0 | AFJ21: 0 | AFK21: 0 | AFL21: 0 | AFM21: 0 | AFN21: 0 | AFO21: 0 | AFP21: 0 | AFQ21: 0 | AFR21: 0 | AFS21: 0 | AFT21: 0 | AFU21: 0 | AFV21: 0 | AFW21: 0 | AFX21: 0 | AFY21: 0 | AFZ21: 0 | AGA21: 0 | AGB21: 0 | AGC21: 0 | AGD21: 0 | AGE21: 0 | AGF21: 0 | AGG21: 0 | AGH21: 0 | AGI21: 0 | AGJ21: 0 | AGK21: 0 | AGL21: 0 | AGM21: 0 | AGN21: 0 | AGO21: 0 | AGP21: 0 | AGQ21: 0 | AGR21: 0 | AGS21: 0 | AGT21: 0 | AGU21: 0 | AGV21: 0 | AGW21: 0 | AGX21: 0 | AGY21: 0 | AGZ21: 0 | AHA21: 0 | AHB21: 0 | AHC21: 0 | AHD21: 0 | AHE21: 0 | AHF21: 0 | AHG21: 0 | AHH21: 0 | AHI21: 0 | AHJ21: 0 | AHK21: 0 | AHL21: 0 | AHM21: =AHM80+AHM139+AHM198+AHM257+AHM316+AHM375+AHM434 -> 0 | AHN21: 0 | AHO21: 0 | AHP21: 0 | AHQ21: 0 | AHR21: 0 | AHS21: 0 | AHT21: 0 | AHU21: 0 | AHV21: 0 | AHW21: 0 | AHX21: 0 | AHY21: 0 | AHZ21: 0 | AIA21: 0 | AIB21: 0 | AIC21: 0 | AID21: 0 | AIE21: 0 | AIF21: 0 | AIG21: 0 | AIH21: 0 | AII21: 0 | AIJ21: 0 | AIK21: 0 | AIL21: 0 | AIM21: 0 | AIN21: 0 | AIO21: 0 | AIP21: 0 | AIQ21: 0 | AIR21: 0 | AIS21: 0 | AIT21: 0 | AIU21: 0 | AIV21: 0 | AIW21: 0 | AIX21: 0 | AIY21: 0 | AIZ21: 0 | AJA21: 0 | AJB21: 0 | AJC21: 0 | AJD21: 0 | AJE21: 0 | AJF21: 0 | AJG21: 0 | AJH21: 0 | AJI21: 0 | AJJ21: 0 | AJK21: 0 | AJL21: 0 | AJM21: 0 | AJN21: 0 | AJO21: 0 | AJP21: 0 | AJQ21: 0 | AJR21: 0 | AJS21: 0 | AJT21: 0 | AJU21: 0 | AJV21: 0 | AJW21: 0 | AJX21: 0 | AJY21: =AJY80+AJY139+AJY198+AJY257+AJY316+AJY375+AJY434 -> 0 | AJZ21: 0 | AKA21: 0 | AKB21: 0 | AKC21: 0 | AKD21: 0 | AKE21: 0 | AKF21: 0 | AKG21: 0 | AKH21: 0 | AKI21: 0 | AKJ21: 0 | AKK21: 0 | AKL21: 0 | AKM21: 0 | AKN21: 0 | AKO21: 0 | AKP21: 0 | AKQ21: 0 | AKR21: 0 | AKS21: 0 | AKT21: 0 | AKU21: 0 | AKV21: 0 | AKW21: 0 | AKX21: 0 | AKY21: 0 | AKZ21: 0 | ALA21: 0 | ALB21: 0 | ALC21: 0 | ALD21: 0 | ALE21: =ALE80+ALE139+ALE198+ALE257+ALE316+ALE375+ALE434 -> 0 | ALF21: 0 | ALG21: 0 | ALH21: 0 | ALI21: =ALI80+ALI139+ALI198+ALI257+ALI316+ALI375+ALI434 -> 0 | ALJ21: 0 | ALK21: 0 | ALL21: 0 | ALM21: 0 | ALN21: 0 | ALO21: 0 | ALP21: 0 | ALQ21: =ALQ80+ALQ139+ALQ198+ALQ257+ALQ316+ALQ375+ALQ434 -> 0 | ALR21: 0 | ALS21: =ALS80+ALS139+ALS198+ALS257+ALS316+ALS375+ALS434 -> 0 | ALT21: 0 | ALU21: 0 | ALV21: 0 | ALW21: 0 | ALX21: 0 | ALY21: 0 | ALZ21: 0 | AMA21: 0 | AMB21: 0 | AMC21: 0 | AMD21: 0 | AME21: 0 | AMF21: =AMF80+AMF139+AMF198+AMF257+AMF316+AMF375+AMF434 -> 0 | AMG21: 0 | AMH21: 0 | AMI21: 0 | ATF21: 0 | ATG21: 0 | ATH21: 0 | ATI21: 0 | ATJ21: 0 | ATK21: 0 | ATL21: 0 | ATM21: 0 | ATN21: 0 | ATO21: 0 | ATP21: 0 | ATQ21: 0 | ATR21: 0 | ATS21: 0 | ATT21: 0 | ATU21: 0 | ATV21: 0 | ATW21: 0 | ATX21: 0 | ATY21: 0 | ATZ21: 0 | AUA21: 0 | AUB21: 0 | AUC21: 0 | AUD21: 0 | AUE21: 0 | AUF21: 0 | AUG21: 0 | AUH21: 0 | AUI21: 0 | AUJ21: 0 | AUK21: 0 | AUL21: 0 | AUM21: 0 | AUN21: 0 | AUO21: 0 | AUP21: 0 | AUQ21: 0 | AUR21: 0 | AUS21: 0 | AUT21: 0 | AUU21: 0 | AUV21: 0 | AUW21: 0 | AUX21: 0 | AUY21: 0 | AUZ21: 0 | AVA21: 0 | AVB21: 0 | AVC21: 0 | AVD21: 0 | AVE21: 0 | AVF21: 0 | AVG21: 0 | AVH21: 0 | AVI21: 0 | AVJ21: 0 | AVK21: 0 | AVL21: 0 | AVM21: 0 | AVN21: 0 | AVO21: 0 | AVP21: 0 | AVQ21: 0 | AVR21: 0 | AVS21: 0 | AVT21: 0 | AVU21: 0 | AVV21: 0 | AVW21: 0 | AVX21: 0 | AVY21: 0 | AVZ21: 0 | AWA21: 0 | AWB21: 0 | AWC21: 0 | AWD21: 0 | AWE21: 0 | AWF21: 0 | AWM21: 0 | AWN21: 0 | AWO21: 0 | AWP21: 0 | AWQ21: 0 | AWR21: 0 | AWS21: 0 | AWT21: 0 | AWU21: 0 | AWV21: 0 | AWW21: 0 | AWX21: 0 | AWY21: 0 | AWZ21: 0 | AXA21: 0 | AXB21: 0 | AXC21: 0 | AXD21: 0 | AXE21: 0 | AXF21: 0
A22: Motor Vehicles & Equipment | B22: =B81+B140+B199+B258+B317+B376+B435 -> 0 | C22: 0 | D22: 0 | E22: 0 | F22: 0 | G22: 0 | H22: 0 | I22: 0 | J22: 0 | K22: 0 | L22: 0 | M22: 0 | N22: 0 | O22: 0 | P22: 0 | Q22: 0 | R22: 0 | S22: 0 | T22: 0 | U22: 0 | V22: 0 | W22: 0 | X22: 0 | Y22: 0 | Z22: 0 | AA22: 0 | AB22: 0 | AC22: 0 | AD22: 0 | AE22: 0 | AF22: 0 | AG22: 0 | AH22: 0 | AI22: 0 | AJ22: 0 | AK22: 0 | AL22: 0 | AM22: 0 | AN22: 0 | AO22: 0 | AP22: 0 | AQ22: 0 | AR22: 0 | AS22: 0 | AT22: 0 | AU22: 0 | AV22: 0 | AW22: 0 | AX22: 0 | AY22: 0 | AZ22: 0 | BA22: 0 | BB22: 0 | BC22: 0 | BD22: 0 | BE22: 0 | BF22: 0 | BG22: 0 | BH22: 0 | BI22: 0 | BJ22: 0 | BK22: 0 | BL22: 0 | BM22: 0 | BN22: =BN81+BN140+BN199+BN258+BN317+BN376+BN435 -> 0 | BO22: 0 | BP22: 0 | BQ22: 0 | BR22: 0 | BS22: 0 | BT22: 0 | BU22: 0 | BV22: 0 | BW22: 0 | BX22: 0 | BY22: 0 | BZ22: 0 | CA22: 0 | CB22: 0 | CC22: 0 | CD22: 0 | CE22: 0 | CF22: 0 | CG22: 0 | CH22: 0 | CI22: 0 | CJ22: 0 | CK22: 0 | CL22: 0 | CM22: 0 | CN22: 0 | CO22: 0 | CP22: 0 | CQ22: 0 | CR22: 0 | CS22: 0 | CT22: 0 | CU22: 0 | CV22: 0 | CW22: 0 | CX22: 0 | CY22: 0 | CZ22: 0 | DA22: 0 | DB22: 0 | DC22: 0 | DD22: 0 | DE22: 0 | DF22: 0 | DG22: 0 | DH22: 0 | DI22: 0 | DJ22: 0 | DK22: 0 | DL22: 0 | DM22: 0 | DN22: 0 | DO22: 0 | DP22: 0 | DQ22: 0 | DR22: 0 | DS22: 0 | DT22: 0 | DU22: 0 | DV22: 0 | DW22: 0 | DX22: 0 | DY22: 0 | DZ22: =DZ81+DZ140+DZ199+DZ258+DZ317+DZ376+DZ435 -> 0 | EA22: 0 | EB22: 0 | EC22: 0 | ED22: 0 | EE22: 0 | EF22: 0 | EG22: 0 | EH22: 0 | EI22: 0 | EJ22: 0 | EK22: 0 | EL22: 0 | EM22: 0 | EN22: 0 | EO22: 0 | EP22: 0 | EQ22: 0 | ER22: 0 | ES22: 0 | ET22: 0 | EU22: 0 | EV22: 0 | EW22: 0 | EX22: 0 | EY22: 0 | EZ22: 0 | FA22: 0 | FB22: 0 | FC22: 0 | FD22: 0 | FE22: 0 | FF22: 0 | FG22: 0 | FH22: 0 | FI22: 0 | FJ22: 0 | FK22: 0 | FL22: 0 | FM22: 0 | FN22: 0 | FO22: 0 | FP22: 0 | FQ22: 0 | FR22: 0 | FS22: 0 | FT22: 0 | FU22: 0 | FV22: 0 | FW22: 0 | FX22: 0 | FY22: 0 | FZ22: 0 | GA22: 0 | GB22: 0 | GC22: 0 | GD22: 0 | GE22: 0 | GF22: 0 | GG22: 0 | GH22: 0 | GI22: 0 | GJ22: 0 | GK22: 0 | GL22: =GL81+GL140+GL199+GL258+GL317+GL376+GL435 -> 0 | GM22: 0 | GN22: 0 | GO22: 0 | GP22: 0 | GQ22: 0 | GR22: 0 | GS22: 0 | GT22: 0 | GU22: 0 | GV22: 0 | GW22: 0 | GX22: 0 | GY22: 0 | GZ22: 0 | HA22: 0 | HB22: 0 | HC22: 0 | HD22: 0 | HE22: 0 | HF22: 0 | HG22: 0 | HH22: 0 | HI22: 0 | HJ22: 0 | HK22: 0 | HL22: 0 | HM22: 0 | HN22: 0 | HO22: 0 | HP22: 0 | HQ22: 0 | HR22: 0 | HS22: 0 | HT22: 0 | HU22: 0 | HV22: 0 | HW22: 0 | HX22: 0 | HY22: 0 | HZ22: 0 | IA22: 0 | IB22: 0 | IC22: 0 | ID22: 0 | IE22: 0 | IF22: 0 | IG22: 0 | IH22: 0 | II22: 0 | IJ22: 0 | IK22: 0 | IL22: 0 | IM22: 0 | IN22: 0 | IO22: 0 | IP22: 0 | IQ22: 0 | IR22: 0 | IS22: 0 | IT22: 0 | IU22: 0 | IV22: 0 | IW22: 0 | IX22: =IX81+IX140+IX199+IX258+IX317+IX376+IX435 -> 0 | IY22: 0 | IZ22: 0 | JA22: 0 | JB22: 0 | JC22: 0 | JD22: 0 | JE22: 0 | JF22: 0 | JG22: 0 | JH22: 0 | JI22: 0 | JJ22: 0 | JK22: 0 | JL22: 0 | JM22: 0 | JN22: 0 | JO22: 0 | JP22: 0 | JQ22: 0 | JR22: 0 | JS22: 0 | JT22: 0 | JU22: 0 | JV22: 0 | JW22: 0 | JX22: 0 | JY22: 0 | JZ22: 0 | KA22: 0 | KB22: 0 | KC22: 0 | KD22: 0 | KE22: 0 | KF22: 0 | KG22: 0 | KH22: 0 | KI22: 0 | KJ22: 0 | KK22: 0 | KL22: 0 | KM22: 0 | KN22: 0 | KO22: 0 | KP22: 0 | KQ22: 0 | KR22: 0 | KS22: 0 | KT22: 0 | KU22: 0 | KV22: 0 | KW22: 0 | KX22: 0 | KY22: 0 | KZ22: 0 | LA22: 0 | LB22: 0 | LC22: 0 | LD22: 0 | LE22: 0 | LF22: 0 | LG22: 0 | LH22: 0 | LI22: 0 | LJ22: =LJ81+LJ140+LJ199+LJ258+LJ317+LJ376+LJ435 -> 0 | LK22: 0 | LL22: 0 | LM22: 0 | LN22: 0 | LO22: 0 | LP22: 0 | LQ22: 0 | LR22: 0 | LS22: 0 | LT22: 0 | LU22: 0 | LV22: 0 | LW22: 0 | LX22: 0 | LY22: 0 | LZ22: 0 | MA22: 0 | MB22: 0 | MC22: 0 | MD22: 0 | ME22: 0 | MF22: 0 | MG22: 0 | MH22: 0 | MI22: 0 | MJ22: 0 | MK22: 0 | ML22: 0 | MM22: 0 | MN22: 0 | MO22: 0 | MP22: 0 | MQ22: 0 | MR22: 0 | MS22: 0 | MT22: 0 | MU22: 0 | MV22: 0 | MW22: 0 | MX22: 0 | MY22: 0 | MZ22: 0 | NA22: 0 | NB22: 0 | NC22: 0 | ND22: 0 | NE22: 0 | NF22: 0 | NG22: 0 | NH22: 0 | NI22: 0 | NJ22: 0 | NK22: 0 | NL22: 0 | NM22: 0 | NN22: 0 | NO22: 0 | NP22: 0 | NQ22: 0 | NR22: 0 | NS22: 0 | NT22: 0 | NU22: 0 | NV22: =NV81+NV140+NV199+NV258+NV317+NV376+NV435 -> 0 | NW22: 0 | NX22: 0 | NY22: 0 | NZ22: 0 | OA22: 0 | OB22: 0 | OC22: 0 | OD22: 0 | OE22: 0 | OF22: 0 | OG22: 0 | OH22: 0 | OI22: 0 | OJ22: 0 | OK22: 0 | OL22: 0 | OM22: 0 | ON22: 0 | OO22: 0 | OP22: 0 | OQ22: 0 | OR22: 0 | OS22: 0 | OT22: 0 | OU22: 0 | OV22: 0 | OW22: 0 | OX22: 0 | OY22: 0 | OZ22: 0 | PA22: 0 | PB22: 0 | PC22: 0 | PD22: 0 | PE22: 0 | PF22: 0 | PG22: 0 | PH22: 0 | PI22: 0 | PJ22: 0 | PK22: 0 | PL22: 0 | PM22: 0 | PN22: 0 | PO22: 0 | PP22: 0 | PQ22: 0 | PR22: 0 | PS22: 0 | PT22: 0 | PU22: 0 | PV22: 0 | PW22: 0 | PX22: 0 | PY22: 0 | PZ22: 0 | QA22: 0 | QB22: 0 | QC22: 0 | QD22: 0 | QE22: 0 | QF22: 0 | QG22: 0 | QH22: =QH81+QH140+QH199+QH258+QH317+QH376+QH435 -> 0 | QI22: 0 | QJ22: 0 | QK22: 0 | QL22: 0 | QM22: 0 | QN22: 0 | QO22: 0 | QP22: 0 | QQ22: 0 | QR22: 0 | QS22: 0 | QT22: 0 | QU22: 0 | QV22: 0 | QW22: 0 | QX22: 0 | QY22: 0 | QZ22: 0 | RA22: 0 | RB22: 0 | RC22: 0 | RD22: 0 | RE22: 0 | RF22: 0 | RG22: 0 | RH22: 0 | RI22: 0 | RJ22: 0 | RK22: 0 | RL22: 0 | RM22: 0 | RN22: 0 | RO22: 0 | RP22: 0 | RQ22: 0 | RR22: 0 | RS22: 0 | RT22: 0 | RU22: 0 | RV22: 0 | RW22: 0 | RX22: 0 | RY22: 0 | RZ22: 0 | SA22: 0 | SB22: 0 | SC22: 0 | SD22: 0 | SE22: 0 | SF22: 0 | SG22: 0 | SH22: 0 | SI22: 0 | SJ22: 0 | SK22: 0 | SL22: 0 | SM22: 0 | SN22: 0 | SO22: 0 | SP22: 0 | SQ22: 0 | SR22: 0 | SS22: 0 | ST22: =ST81+ST140+ST199+ST258+ST317+ST376+ST435 -> 0 | SU22: 0 | SV22: 0 | SW22: 0 | SX22: 0 | SY22: 0 | SZ22: 0 | TA22: 0 | TB22: 0 | TC22: 0 | TD22: 0 | TE22: 0 | TF22: 0 | TG22: 0 | TH22: 0 | TI22: 0 | TJ22: 0 | TK22: 0 | TL22: 0 | TM22: 0 | TN22: 0 | TO22: 0 | TP22: 0 | TQ22: 0 | TR22: 0 | TS22: 0 | TT22: 0 | TU22: 0 | TV22: 0 | TW22: 0 | TX22: 0 | TY22: 0 | TZ22: 0 | UA22: 0 | UB22: 0 | UC22: 0 | UD22: 0 | UE22: 0 | UF22: 0 | UG22: 0 | UH22: 0 | UI22: 0 | UJ22: 0 | UK22: 0 | UL22: 0 | UM22: 0 | UN22: 0 | UO22: 0 | UP22: 0 | UQ22: 0 | UR22: 0 | US22: 0 | UT22: 0 | UU22: 0 | UV22: 0 | UW22: 0 | UX22: 0 | UY22: 0 | UZ22: 0 | VA22: 0 | VB22: 0 | VC22: 0 | VD22: 0 | VE22: 0 | VF22: =VF81+VF140+VF199+VF258+VF317+VF376+VF435 -> 0 | VG22: 0 | VH22: 0 | VI22: 0 | VJ22: 0 | VK22: 0 | VL22: 0 | VM22: 0 | VN22: 0 | VO22: 0 | VP22: 0 | VQ22: 0 | VR22: 0 | VS22: 0 | VT22: 0 | VU22: 0 | VV22: 0 | VW22: 0 | VX22: 0 | VY22: 0 | VZ22: 0 | WA22: 0 | WB22: 0 | WC22: 0 | WD22: 0 | WE22: 0 | WF22: 0 | WG22: 0 | WH22: 0 | WI22: 0 | WJ22: 0 | WK22: 0 | WL22: 0 | WM22: 0 | WN22: 0 | WO22: 0 | WP22: 0 | WQ22: 0 | WR22: 0 | WS22: 0 | WT22: 0 | WU22: 0 | WV22: 0 | WW22: 0 | WX22: 0 | WY22: 0 | WZ22: 0 | XA22: 0 | XB22: 0 | XC22: 0 | XD22: 0 | XE22: 0 | XF22: 0 | XG22: 0 | XH22: 0 | XI22: 0 | XJ22: 0 | XK22: 0 | XL22: 0 | XM22: 0 | XN22: 0 | XO22: 0 | XP22: 0 | XQ22: 0 | XR22: =XR81+XR140+XR199+XR258+XR317+XR376+XR435 -> 0 | XS22: 0 | XT22: 0 | XU22: 0 | XV22: 0 | XW22: 0 | XX22: 0 | XY22: 0 | XZ22: 0 | YA22: 0 | YB22: 0 | YC22: 0 | YD22: 0 | YE22: 0 | YF22: 0 | YG22: 0 | YH22: 0 | YI22: 0 | YJ22: 0 | YK22: 0 | YL22: 0 | YM22: 0 | YN22: 0 | YO22: 0 | YP22: 0 | YQ22: 0 | YR22: 0 | YS22: 0 | YT22: 0 | YU22: 0 | YV22: 0 | YW22: 0 | YX22: 0 | YY22: 0 | YZ22: 0 | ZA22: 0 | ZB22: 0 | ZC22: 0 | ZD22: 0 | ZE22: 0 | ZF22: 0 | ZG22: 0 | ZH22: 0 | ZI22: 0 | ZJ22: 0 | ZK22: 0 | ZL22: 0 | ZM22: 0 | ZN22: 0 | ZO22: 0 | ZP22: 0 | ZQ22: 0 | ZR22: 0 | ZS22: 0 | ZT22: 0 | ZU22: 0 | ZV22: 0 | ZW22: 0 | ZX22: 0 | ZY22: 0 | ZZ22: 0 | AAA22: 0 | AAB22: 0 | AAC22: 0 | AAD22: =AAD81+AAD140+AAD199+AAD258+AAD317+AAD376+AAD435 -> 0 | AAE22: 0 | AAF22: 0 | AAG22: 0 | AAH22: 0 | AAI22: 0 | AAJ22: 0 | AAK22: 0 | AAL22: 0 | AAM22: 0 | AAN22: 0 | AAO22: 0 | AAP22: 0 | AAQ22: 0 | AAR22: 0 | AAS22: 0 | AAT22: 0 | AAU22: 0 | AAV22: 0 | AAW22: 0 | AAX22: 0 | AAY22: 0 | AAZ22: 0 | ABA22: 0 | ABB22: 0 | ABC22: 0 | ABD22: 0 | ABE22: 0 | ABF22: 0 | ABG22: 0 | ABH22: 0 | ABI22: 0 | ABJ22: 0 | ABK22: 0 | ABL22: 0 | ABM22: 0 | ABN22: 0 | ABO22: 0 | ABP22: 0 | ABQ22: 0 | ABR22: 0 | ABS22: 0 | ABT22: 0 | ABU22: 0 | ABV22: 0 | ABW22: 0 | ABX22: 0 | ABY22: 0 | ABZ22: 0 | ACA22: 0 | ACB22: 0 | ACC22: 0 | ACD22: 0 | ACE22: 0 | ACF22: 0 | ACG22: 0 | ACH22: 0 | ACI22: 0 | ACJ22: 0 | ACK22: 0 | ACL22: 0 | ACM22: 0 | ACN22: 0 | ACO22: 0 | ACP22: =ACP81+ACP140+ACP199+ACP258+ACP317+ACP376+ACP435 -> 0 | ACQ22: 0 | ACR22: 0 | ACS22: 0 | ACT22: 0 | ACU22: 0 | ACV22: 0 | ACW22: 0 | ACX22: 0 | ACY22: 0 | ACZ22: 0 | ADA22: 0 | ADB22: 0 | ADC22: 0 | ADD22: 0 | ADE22: 0 | ADF22: 0 | ADG22: 0 | ADH22: 0 | ADI22: 0 | ADJ22: 0 | ADK22: 0 | ADL22: 0 | ADM22: 0 | ADN22: 0 | ADO22: 0 | ADP22: 0 | ADQ22: 0 | ADR22: 0 | ADS22: 0 | ADT22: 0 | ADU22: 0 | ADV22: 0 | ADW22: 0 | ADX22: 0 | ADY22: 0 | ADZ22: 0 | AEA22: 0 | AEB22: 0 | AEC22: 0 | AED22: 0 | AEE22: 0 | AEF22: 0 | AEG22: 0 | AEH22: 0 | AEI22: 0 | AEJ22: 0 | AEK22: 0 | AEL22: 0 | AEM22: 0 | AEN22: 0 | AEO22: 0 | AEP22: 0 | AEQ22: 0 | AER22: 0 | AES22: 0 | AET22: 0 | AEU22: 0 | AEV22: 0 | AEW22: 0 | AEX22: 0 | AEY22: 0 | AEZ22: 0 | AFA22: 0 | AFB22: =AFB81+AFB140+AFB199+AFB258+AFB317+AFB376+AFB435 -> 0 | AFC22: 0 | AFD22: 0 | AFE22: 0 | AFF22: 0 | AFG22: 0 | AFH22: 0 | AFI22: 0 | AFJ22: 0 | AFK22: 0 | AFL22: 0 | AFM22: 0 | AFN22: 0 | AFO22: 0 | AFP22: 0 | AFQ22: 0 | AFR22: 0 | AFS22: 0 | AFT22: 0 | AFU22: 0 | AFV22: 0 | AFW22: 0 | AFX22: 0 | AFY22: 0 | AFZ22: 0 | AGA22: 0 | AGB22: 0 | AGC22: 0 | AGD22: 0 | AGE22: 0 | AGF22: 0 | AGG22: 0 | AGH22: 0 | AGI22: 0 | AGJ22: 0 | AGK22: 0 | AGL22: 0 | AGM22: 0 | AGN22: 0 | AGO22: 0 | AGP22: 0 | AGQ22: 0 | AGR22: 0 | AGS22: 0 | AGT22: 0 | AGU22: 0 | AGV22: 0 | AGW22: 0 | AGX22: 0 | AGY22: 0 | AGZ22: 0 | AHA22: 0 | AHB22: 0 | AHC22: 0 | AHD22: 0 | AHE22: 0 | AHF22: 0 | AHG22: 0 | AHH22: 0 | AHI22: 0 | AHJ22: 0 | AHK22: 0 | AHL22: 0 | AHM22: 0 | AHN22: =AHN81+AHN140+AHN199+AHN258+AHN317+AHN376+AHN435 -> 0 | AHO22: 0 | AHP22: 0 | AHQ22: 0 | AHR22: 0 | AHS22: 0 | AHT22: 0 | AHU22: 0 | AHV22: 0 | AHW22: 0 | AHX22: 0 | AHY22: 0 | AHZ22: 0 | AIA22: 0 | AIB22: 0 | AIC22: 0 | AID22: 0 | AIE22: 0 | AIF22: 0 | AIG22: 0 | AIH22: 0 | AII22: 0 | AIJ22: 0 | AIK22: 0 | AIL22: 0 | AIM22: 0 | AIN22: 0 | AIO22: 0 | AIP22: 0 | AIQ22: 0 | AIR22: 0 | AIS22: 0 | AIT22: 0 | AIU22: 0 | AIV22: 0 | AIW22: 0 | AIX22: 0 | AIY22: 0 | AIZ22: 0 | AJA22: 0 | AJB22: 0 | AJC22: 0 | AJD22: 0 | AJE22: 0 | AJF22: 0 | AJG22: 0 | AJH22: 0 | AJI22: 0 | AJJ22: 0 | AJK22: 0 | AJL22: 0 | AJM22: 0 | AJN22: 0 | AJO22: 0 | AJP22: 0 | AJQ22: 0 | AJR22: 0 | AJS22: 0 | AJT22: 0 | AJU22: 0 | AJV22: 0 | AJW22: 0 | AJX22: 0 | AJY22: 0 | AJZ22: 0 | AKA22: 0 | AKB22: 0 | AKC22: 0 | AKD22: 0 | AKE22: 0 | AKF22: 0 | AKG22: 0 | AKH22: 0 | AKI22: 0 | AKJ22: 0 | AKK22: 0 | AKL22: 0 | AKM22: 0 | AKN22: 0 | AKO22: 0 | AKP22: 0 | AKQ22: 0 | AKR22: 0 | AKS22: 0 | AKT22: 0 | AKU22: 0 | AKV22: 0 | AKW22: 0 | AKX22: 0 | AKY22: 0 | AKZ22: 0 | ALA22: 0 | ALB22: 0 | ALC22: 0 | ALD22: 0 | ALE22: =ALE81+ALE140+ALE199+ALE258+ALE317+ALE376+ALE435 -> 0 | ALF22: 0 | ALG22: 0 | ALH22: 0 | ALI22: =ALI81+ALI140+ALI199+ALI258+ALI317+ALI376+ALI435 -> 0 | ALJ22: 0 | ALK22: 0 | ALL22: 0 | ALM22: 0 | ALN22: 0 | ALO22: 0 | ALP22: 0 | ALQ22: =ALQ81+ALQ140+ALQ199+ALQ258+ALQ317+ALQ376+ALQ435 -> 0 | ALR22: 0 | ALS22: =ALS81+ALS140+ALS199+ALS258+ALS317+ALS376+ALS435 -> 0 | ALT22: 0 | ALU22: 0 | ALV22: 0 | ALW22: 0 | ALX22: 0 | ALY22: 0 | ALZ22: 0 | AMA22: 0 | AMB22: 0 | AMC22: 0 | AMD22: 0 | AME22: 0 | AMF22: =AMF81+AMF140+AMF199+AMF258+AMF317+AMF376+AMF435 -> 0 | AMG22: 0 | AMH22: 0 | AMI22: 0 | ATF22: 0 | ATG22: 0 | ATH22: 0 | ATI22: 0 | ATJ22: 0 | ATK22: 0 | ATL22: 0 | ATM22: 0 | ATN22: 0 | ATO22: 0 | ATP22: 0 | ATQ22: 0 | ATR22: 0 | ATS22: 0 | ATT22: 0 | ATU22: 0 | ATV22: 0 | ATW22: 0 | ATX22: 0 | ATY22: 0 | ATZ22: 0 | AUA22: 0 | AUB22: 0 | AUC22: 0 | AUD22: 0 | AUE22: 0 | AUF22: 0 | AUG22: 0 | AUH22: 0 | AUI22: 0 | AUJ22: 0 | AUK22: 0 | AUL22: 0 | AUM22: 0 | AUN22: 0 | AUO22: 0 | AUP22: 0 | AUQ22: 0 | AUR22: 0 | AUS22: 0 | AUT22: 0 | AUU22: 0 | AUV22: 0 | AUW22: 0 | AUX22: 0 | AUY22: 0 | AUZ22: 0 | AVA22: 0 | AVB22: 0 | AVC22: 0 | AVD22: 0 | AVE22: 0 | AVF22: 0 | AVG22: 0 | AVH22: 0 | AVI22: 0 | AVJ22: 0 | AVK22: 0 | AVL22: 0 | AVM22: 0 | AVN22: 0 | AVO22: 0 | AVP22: 0 | AVQ22: 0 | AVR22: 0 | AVS22: 0 | AVT22: 0 | AVU22: 0 | AVV22: 0 | AVW22: 0 | AVX22: 0 | AVY22: 0 | AVZ22: 0 | AWA22: 0 | AWB22: 0 | AWC22: 0 | AWD22: 0 | AWE22: 0 | AWF22: 0 | AWM22: 0 | AWN22: 0 | AWO22: 0 | AWP22: 0 | AWQ22: 0 | AWR22: 0 | AWS22: 0 | AWT22: 0 | AWU22: 0 | AWV22: 0 | AWW22: 0 | AWX22: 0 | AWY22: 0 | AWZ22: 0 | AXA22: 0 | AXB22: 0 | AXC22: 0 | AXD22: 0 | AXE22: 0 | AXF22: 0
A23: Iron & Steel Scrap | B23: 0 | C23: 0 | D23: 0 | E23: 0 | F23: 0 | G23: 0 | H23: 0 | I23: 0 | J23: 0 | K23: 0 | L23: 0 | M23: 0 | N23: 0 | O23: 0 | P23: 0 | Q23: 0 | R23: 0 | S23: 0 | T23: 0 | U23: 0 | V23: 0 | W23: 0 | X23: 0 | Y23: 0 | Z23: 0 | AA23: 0 | AB23: 0 | AC23: 0 | AD23: 0 | AE23: 0 | AF23: 0 | AG23: 0 | AH23: 0 | AI23: 0 | AJ23: 0 | AK23: 0 | AL23: 0 | AM23: 0 | AN23: 0 | AO23: 0 | AP23: 0 | AQ23: 0 | AR23: 0 | AS23: 0 | AT23: 0 | AU23: 0 | AV23: 0 | AW23: 0 | AX23: 0 | AY23: 0 | AZ23: 0 | BA23: 0 | BB23: 0 | BC23: 0 | BD23: 0 | BE23: 0 | BF23: 0 | BG23: 0 | BH23: 0 | BI23: 0 | BJ23: 0 | BK23: 0 | BL23: 0 | BM23: 0 | BN23: 0 | BO23: 0 | BP23: 0 | BQ23: 0 | BR23: 0 | BS23: 0 | BT23: 0 | BU23: 0 | BV23: 0 | BW23: 0 | BX23: 0 | BY23: 0 | BZ23: 0 | CA23: 0 | CB23: 0 | CC23: 0 | CD23: 0 | CE23: 0 | CF23: 0 | CG23: 0 | CH23: 0 | CI23: 0 | CJ23: 0 | CK23: 0 | CL23: 0 | CM23: 0 | CN23: 0 | CO23: 0 | CP23: 0 | CQ23: 0 | CR23: 0 | CS23: 0 | CT23: 0 | CU23: 0 | CV23: 0 | CW23: 0 | CX23: 0 | CY23: 0 | CZ23: 0 | DA23: 0 | DB23: 0 | DC23: 0 | DD23: 0 | DE23: 0 | DF23: 0 | DG23: 0 | DH23: 0 | DI23: 0 | DJ23: 0 | DK23: 0 | DL23: 0 | DM23: 0 | DN23: 0 | DO23: 0 | DP23: 0 | DQ23: 0 | DR23: 0 | DS23: 0 | DT23: 0 | DU23: 0 | DV23: 0 | DW23: 0 | DX23: 0 | DY23: 0 | DZ23: 0 | EA23: 0 | EB23: 0 | EC23: 0 | ED23: 0 | EE23: 0 | EF23: 0 | EG23: 0 | EH23: 0 | EI23: 0 | EJ23: 0 | EK23: 0 | EL23: 0 | EM23: 0 | EN23: 0 | EO23: 0 | EP23: 0 | EQ23: 0 | ER23: 0 | ES23: 0 | ET23: 0 | EU23: 0 | EV23: 0 | EW23: 0 | EX23: 0 | EY23: 0 | EZ23: 0 | FA23: 0 | FB23: 0 | FC23: 0 | FD23: 0 | FE23: 0 | FF23: 0 | FG23: 0 | FH23: 0 | FI23: 0 | FJ23: 0 | FK23: 0 | FL23: 0 | FM23: 0 | FN23: 0 | FO23: 0 | FP23: 0 | FQ23: 0 | FR23: 0 | FS23: 0 | FT23: 0 | FU23: 0 | FV23: 0 | FW23: 0 | FX23: 0 | FY23: 0 | FZ23: 0 | GA23: 0 | GB23: 0 | GC23: 0 | GD23: 0 | GE23: 0 | GF23: 0 | GG23: 0 | GH23: 0 | GI23: 0 | GJ23: 0 | GK23: 0 | GL23: 0 | GM23: 0 | GN23: 0 | GO23: 0 | GP23: 0 | GQ23: 0 | GR23: 0 | GS23: 0 | GT23: 0 | GU23: 0 | GV23: 0 | GW23: 0 | GX23: 0 | GY23: 0 | GZ23: 0 | HA23: 0 | HB23: 0 | HC23: 0 | HD23: 0 | HE23: 0 | HF23: 0 | HG23: 0 | HH23: 0 | HI23: 0 | HJ23: 0 | HK23: 0 | HL23: 0 | HM23: 0 | HN23: 0 | HO23: 0 | HP23: 0 | HQ23: 0 | HR23: 0 | HS23: 0 | HT23: 0 | HU23: 0 | HV23: 0 | HW23: 0 | HX23: 0 | HY23: 0 | HZ23: 0 | IA23: 0 | IB23: 0 | IC23: 0 | ID23: 0 | IE23: 0 | IF23: 0 | IG23: 0 | IH23: 0 | II23: 0 | IJ23: 0 | IK23: 0 | IL23: 0 | IM23: 0 | IN23: 0 | IO23: 0 | IP23: 0 | IQ23: 0 | IR23: 0 | IS23: 0 | IT23: 0 | IU23: 0 | IV23: 0 | IW23: 0 | IX23: 0 | IY23: 0 | IZ23: 0 | JA23: 0 | JB23: 0 | JC23: 0 | JD23: 0 | JE23: 0 | JF23: 0 | JG23: 0 | JH23: 0 | JI23: 0 | JJ23: 0 | JK23: 0 | JL23: 0 | JM23: 0 | JN23: 0 | JO23: 0 | JP23: 0 | JQ23: 0 | JR23: 0 | JS23: 0 | JT23: 0 | JU23: 0 | JV23: 0 | JW23: 0 | JX23: 0 | JY23: 0 | JZ23: 0 | KA23: 0 | KB23: 0 | KC23: 0 | KD23: 0 | KE23: 0 | KF23: 0 | KG23: 0 | KH23: 0 | KI23: 0 | KJ23: 0 | KK23: 0 | KL23: 0 | KM23: 0 | KN23: 0 | KO23: 0 | KP23: 0 | KQ23: 0 | KR23: 0 | KS23: 0 | KT23: 0 | KU23: 0 | KV23: 0 | KW23: 0 | KX23: 0 | KY23: 0 | KZ23: 0 | LA23: 0 | LB23: 0 | LC23: 0 | LD23: 0 | LE23: 0 | LF23: 0 | LG23: 0 | LH23: 0 | LI23: 0 | LJ23: 0 | LK23: 0 | LL23: 0 | LM23: 0 | LN23: 0 | LO23: 0 | LP23: 0 | LQ23: 0 | LR23: 0 | LS23: 0 | LT23: 0 | LU23: 0 | LV23: 0 | LW23: 0 | LX23: 0 | LY23: 0 | LZ23: 0 | MA23: 0 | MB23: 0 | MC23: 0 | MD23: 0 | ME23: 0 | MF23: 0 | MG23: 0 | MH23: 0 | MI23: 0 | MJ23: 0 | MK23: 0 | ML23: 0 | MM23: 0 | MN23: 0 | MO23: 0 | MP23: 0 | MQ23: 0 | MR23: 0 | MS23: 0 | MT23: 0 | MU23: 0 | MV23: 0 | MW23: 0 | MX23: 0 | MY23: 0 | MZ23: 0 | NA23: 0 | NB23: 0 | NC23: 0 | ND23: 0 | NE23: 0 | NF23: 0 | NG23: 0 | NH23: 0 | NI23: 0 | NJ23: 0 | NK23: 0 | NL23: 0 | NM23: 0 | NN23: 0 | NO23: 0 | NP23: 0 | NQ23: 0 | NR23: 0 | NS23: 0 | NT23: 0 | NU23: 0 | NV23: 0 | NW23: 0 | NX23: 0 | NY23: 0 | NZ23: 0 | OA23: 0 | OB23: 0 | OC23: 0 | OD23: 0 | OE23: 0 | OF23: 0 | OG23: 0 | OH23: 0 | OI23: 0 | OJ23: 0 | OK23: 0 | OL23: 0 | OM23: 0 | ON23: 0 | OO23: 0 | OP23: 0 | OQ23: 0 | OR23: 0 | OS23: 0 | OT23: 0 | OU23: 0 | OV23: 0 | OW23: 0 | OX23: 0 | OY23: 0 | OZ23: 0 | PA23: 0 | PB23: 0 | PC23: 0 | PD23: 0 | PE23: 0 | PF23: 0 | PG23: 0 | PH23: 0 | PI23: 0 | PJ23: 0 | PK23: 0 | PL23: 0 | PM23: 0 | PN23: 0 | PO23: 0 | PP23: 0 | PQ23: 0 | PR23: 0 | PS23: 0 | PT23: 0 | PU23: 0 | PV23: 0 | PW23: 0 | PX23: 0 | PY23: 0 | PZ23: 0 | QA23: 0 | QB23: 0 | QC23: 0 | QD23: 0 | QE23: 0 | QF23: 0 | QG23: 0 | QH23: 0 | QI23: 0 | QJ23: 0 | QK23: 0 | QL23: 0 | QM23: 0 | QN23: 0 | QO23: 0 | QP23: 0 | QQ23: 0 | QR23: 0 | QS23: 0 | QT23: 0 | QU23: 0 | QV23: 0 | QW23: 0 | QX23: 0 | QY23: 0 | QZ23: 0 | RA23: 0 | RB23: 0 | RC23: 0 | RD23: 0 | RE23: 0 | RF23: 0 | RG23: 0 | RH23: 0 | RI23: 0 | RJ23: 0 | RK23: 0 | RL23: 0 | RM23: 0 | RN23: 0 | RO23: 0 | RP23: 0 | RQ23: 0 | RR23: 0 | RS23: 0 | RT23: 0 | RU23: 0 | RV23: 0 | RW23: 0 | RX23: 0 | RY23: 0 | RZ23: 0 | SA23: 0 | SB23: 0 | SC23: 0 | SD23: 0 | SE23: 0 | SF23: 0 | SG23: 0 | SH23: 0 | SI23: 0 | SJ23: 0 | SK23: 0 | SL23: 0 | SM23: 0 | SN23: 0 | SO23: 0 | SP23: 0 | SQ23: 0 | SR23: 0 | SS23: 0 | ST23: 0 | SU23: 0 | SV23: 0 | SW23: 0 | SX23: 0 | SY23: 0 | SZ23: 0 | TA23: 0 | TB23: 0 | TC23: 0 | TD23: 0 | TE23: 0 | TF23: 0 | TG23: 0 | TH23: 0 | TI23: 0 | TJ23: 0 | TK23: 0 | TL23: 0 | TM23: 0 | TN23: 0 | TO23: 0 | TP23: 0 | TQ23: 0 | TR23: 0 | TS23: 0 | TT23: 0 | TU23: 0 | TV23: 0 | TW23: 0 | TX23: 0 | TY23: 0 | TZ23: 0 | UA23: 0 | UB23: 0 | UC23: 0 | UD23: 0 | UE23: 0 | UF23: 0 | UG23: 0 | UH23: 0 | UI23: 0 | UJ23: 0 | UK23: 0 | UL23: 0 | UM23: 0 | UN23: 0 | UO23: 0 | UP23: 0 | UQ23: 0 | UR23: 0 | US23: 0 | UT23: 0 | UU23: 0 | UV23: 0 | UW23: 0 | UX23: 0 | UY23: 0 | UZ23: 0 | VA23: 0 | VB23: 0 | VC23: 0 | VD23: 0 | VE23: 0 | VF23: 0 | VG23: 0 | VH23: 0 | VI23: 0 | VJ23: 0 | VK23: 0 | VL23: 0 | VM23: 0 | VN23: 0 | VO23: 0 | VP23: 0 | VQ23: 0 | VR23: 0 | VS23: 0 | VT23: 0 | VU23: 0 | VV23: 0 | VW23: 0 | VX23: 0 | VY23: 0 | VZ23: 0 | WA23: 0 | WB23: 0 | WC23: 0 | WD23: 0 | WE23: 0 | WF23: 0 | WG23: 0 | WH23: 0 | WI23: 0 | WJ23: 0 | WK23: 0 | WL23: 0 | WM23: 0 | WN23: 0 | WO23: 0 | WP23: 0 | WQ23: 0 | WR23: 0 | WS23: 0 | WT23: 0 | WU23: 0 | WV23: 0 | WW23: 0 | WX23: 0 | WY23: 0 | WZ23: 0 | XA23: 0 | XB23: 0 | XC23: 0 | XD23: 0 | XE23: 0 | XF23: 0 | XG23: 0 | XH23: 0 | XI23: 0 | XJ23: 0 | XK23: 0 | XL23: 0 | XM23: 0 | XN23: 0 | XO23: 0 | XP23: 0 | XQ23: 0 | XR23: 0 | XS23: 0 | XT23: 0 | XU23: 0 | XV23: 0 | XW23: 0 | XX23: 0 | XY23: 0 | XZ23: 0 | YA23: 0 | YB23: 0 | YC23: 0 | YD23: 0 | YE23: 0 | YF23: 0 | YG23: 0 | YH23: 0 | YI23: 0 | YJ23: 0 | YK23: 0 | YL23: 0 | YM23: 0 | YN23: 0 | YO23: 0 | YP23: 0 | YQ23: 0 | YR23: 0 | YS23: 0 | YT23: 0 | YU23: 0 | YV23: 0 | YW23: 0 | YX23: 0 | YY23: 0 | YZ23: 0 | ZA23: 0 | ZB23: 0 | ZC23: 0 | ZD23: 0 | ZE23: 0 | ZF23: 0 | ZG23: 0 | ZH23: 0 | ZI23: 0 | ZJ23: 0 | ZK23: 0 | ZL23: 0 | ZM23: 0 | ZN23: 0 | ZO23: 0 | ZP23: 0 | ZQ23: 0 | ZR23: 0 | ZS23: 0 | ZT23: 0 | ZU23: 0 | ZV23: 0 | ZW23: 0 | ZX23: 0 | ZY23: 0 | ZZ23: 0 | AAA23: 0 | AAB23: 0 | AAC23: 0 | AAD23: 0 | AAE23: 0 | AAF23: 0 | AAG23: 0 | AAH23: 0 | AAI23: 0 | AAJ23: 0 | AAK23: 0 | AAL23: 0 | AAM23: 0 | AAN23: 0 | AAO23: 0 | AAP23: 0 | AAQ23: 0 | AAR23: 0 | AAS23: 0 | AAT23: 0 | AAU23: 0 | AAV23: 0 | AAW23: 0 | AAX23: 0 | AAY23: 0 | AAZ23: 0 | ABA23: 0 | ABB23: 0 | ABC23: 0 | ABD23: 0 | ABE23: 0 | ABF23: 0 | ABG23: 0 | ABH23: 0 | ABI23: 0 | ABJ23: 0 | ABK23: 0 | ABL23: 0 | ABM23: 0 | ABN23: 0 | ABO23: 0 | ABP23: 0 | ABQ23: 0 | ABR23: 0 | ABS23: 0 | ABT23: 0 | ABU23: 0 | ABV23: 0 | ABW23: 0 | ABX23: 0 | ABY23: 0 | ABZ23: 0 | ACA23: 0 | ACB23: 0 | ACC23: 0 | ACD23: 0 | ACE23: 0 | ACF23: 0 | ACG23: 0 | ACH23: 0 | ACI23: 0 | ACJ23: 0 | ACK23: 0 | ACL23: 0 | ACM23: 0 | ACN23: 0 | ACO23: 0 | ACP23: 0 | ACQ23: 0 | ACR23: 0 | ACS23: 0 | ACT23: 0 | ACU23: 0 | ACV23: 0 | ACW23: 0 | ACX23: 0 | ACY23: 0 | ACZ23: 0 | ADA23: 0 | ADB23: 0 | ADC23: 0 | ADD23: 0 | ADE23: 0 | ADF23: 0 | ADG23: 0 | ADH23: 0 | ADI23: 0 | ADJ23: 0 | ADK23: 0 | ADL23: 0 | ADM23: 0 | ADN23: 0 | ADO23: 0 | ADP23: 0 | ADQ23: 0 | ADR23: 0 | ADS23: 0 | ADT23: 0 | ADU23: 0 | ADV23: 0 | ADW23: 0 | ADX23: 0 | ADY23: 0 | ADZ23: 0 | AEA23: 0 | AEB23: 0 | AEC23: 0 | AED23: 0 | AEE23: 0 | AEF23: 0 | AEG23: 0 | AEH23: 0 | AEI23: 0 | AEJ23: 0 | AEK23: 0 | AEL23: 0 | AEM23: 0 | AEN23: 0 | AEO23: 0 | AEP23: 0 | AEQ23: 0 | AER23: 0 | AES23: 0 | AET23: 0 | AEU23: 0 | AEV23: 0 | AEW23: 0 | AEX23: 0 | AEY23: 0 | AEZ23: 0 | AFA23: 0 | AFB23: 0 | AFC23: 0 | AFD23: 0 | AFE23: 0 | AFF23: 0 | AFG23: 0 | AFH23: 0 | AFI23: 0 | AFJ23: 0 | AFK23: 0 | AFL23: 0 | AFM23: 0 | AFN23: 0 | AFO23: 0 | AFP23: 0 | AFQ23: 0 | AFR23: 0 | AFS23: 0 | AFT23: 0 | AFU23: 0 | AFV23: 0 | AFW23: 0 | AFX23: 0 | AFY23: 0 | AFZ23: 0 | AGA23: 0 | AGB23: 0 | AGC23: 0 | AGD23: 0 | AGE23: 0 | AGF23: 0 | AGG23: 0 | AGH23: 0 | AGI23: 0 | AGJ23: 0 | AGK23: 0 | AGL23: 0 | AGM23: 0 | AGN23: 0 | AGO23: 0 | AGP23: 0 | AGQ23: 0 | AGR23: 0 | AGS23: 0 | AGT23: 0 | AGU23: 0 | AGV23: 0 | AGW23: 0 | AGX23: 0 | AGY23: 0 | AGZ23: 0 | AHA23: 0 | AHB23: 0 | AHC23: 0 | AHD23: 0 | AHE23: 0 | AHF23: 0 | AHG23: 0 | AHH23: 0 | AHI23: 0 | AHJ23: 0 | AHK23: 0 | AHL23: 0 | AHM23: 0 | AHN23: 0 | AHO23: 0 | AHP23: 0 | AHQ23: 0 | AHR23: 0 | AHS23: 0 | AHT23: 0 | AHU23: 0 | AHV23: 0 | AHW23: 0 | AHX23: 0 | AHY23: 0 | AHZ23: 0 | AIA23: 0 | AIB23: 0 | AIC23: 0 | AID23: 0 | AIE23: 0 | AIF23: 0 | AIG23: 0 | AIH23: 0 | AII23: 0 | AIJ23: 0 | AIK23: 0 | AIL23: 0 | AIM23: 0 | AIN23: 0 | AIO23: 0 | AIP23: 0 | AIQ23: 0 | AIR23: 0 | AIS23: 0 | AIT23: 0 | AIU23: 0 | AIV23: 0 | AIW23: 0 | AIX23: 0 | AIY23: 0 | AIZ23: 0 | AJA23: 0 | AJB23: 0 | AJC23: 0 | AJD23: 0 | AJE23: 0 | AJF23: 0 | AJG23: 0 | AJH23: 0 | AJI23: 0 | AJJ23: 0 | AJK23: 0 | AJL23: 0 | AJM23: 0 | AJN23: 0 | AJO23: 0 | AJP23: 0 | AJQ23: 0 | AJR23: 0 | AJS23: 0 | AJT23: 0 | AJU23: 0 | AJV23: 0 | AJW23: 0 | AJX23: 0 | AJY23: 0 | AJZ23: 0 | AKA23: 0 | AKB23: 0 | AKC23: 0 | AKD23: 0 | AKE23: 0 | AKF23: 0 | AKG23: 0 | AKH23: 0 | AKI23: 0 | AKJ23: 0 | AKK23: 0 | AKL23: 0 | AKM23: 0 | AKN23: 0 | AKO23: 0 | AKP23: 0 | AKQ23: 0 | AKR23: 0 | AKS23: 0 | AKT23: 0 | AKU23: 0 | AKV23: 0 | AKW23: 0 | AKX23: 0 | AKY23: 0 | AKZ23: 0 | ALA23: 0 | ALB23: 0 | ALC23: 0 | ALD23: 0 | ALE23: =ALE82+ALE141+ALE200+ALE259+ALE318+ALE377+ALE436 -> 0 | ALF23: 0 | ALG23: 0 | ALH23: 0 | ALI23: =ALI82+ALI141+ALI200+ALI259+ALI318+ALI377+ALI436 -> 0 | ALJ23: 0 | ALK23: 0 | ALL23: 0 | ALM23: 0 | ALN23: 0 | ALO23: 0 | ALP23: 0 | ALQ23: =ALQ82+ALQ141+ALQ200+ALQ259+ALQ318+ALQ377+ALQ436 -> 0 | ALR23: 0 | ALS23: =ALS82+ALS141+ALS200+ALS259+ALS318+ALS377+ALS436 -> 0 | ALT23: 0 | ALU23: 0 | ALV23: 0 | ALW23: 0 | ALX23: 0 | ALY23: 0 | ALZ23: 0 | AMA23: 0 | AMB23: 0 | AMC23: 0 | AMD23: 0 | AME23: 0 | AMF23: =AMF82+AMF141+AMF200+AMF259+AMF318+AMF377+AMF436 -> 0 | AMG23: 0 | AMH23: 0 | AMI23: 0 | ATF23: 0 | ATG23: 0 | ATH23: 0 | ATI23: 0 | ATJ23: 0 | ATK23: 0 | ATL23: 0 | ATM23: 0 | ATN23: 0 | ATO23: 0 | ATP23: 0 | ATQ23: 0 | ATR23: 0 | ATS23: 0 | ATT23: 0 | ATU23: 0 | ATV23: 0 | ATW23: 0 | ATX23: 0 | ATY23: 0 | ATZ23: 0 | AUA23: 0 | AUB23: 0 | AUC23: 0 | AUD23: 0 | AUE23: 0 | AUF23: 0 | AUG23: 0 | AUH23: 0 | AUI23: 0 | AUJ23: 0 | AUK23: 0 | AUL23: 0 | AUM23: 0 | AUN23: 0 | AUO23: 0 | AUP23: 0 | AUQ23: 0 | AUR23: 0 | AUS23: 0 | AUT23: 0 | AUU23: 0 | AUV23: 0 | AUW23: 0 | AUX23: 0 | AUY23: 0 | AUZ23: 0 | AVA23: 0 | AVB23: 0 | AVC23: 0 | AVD23: 0 | AVE23: 0 | AVF23: 0 | AVG23: 0 | AVH23: 0 | AVI23: 0 | AVJ23: 0 | AVK23: 0 | AVL23: 0 | AVM23: 0 | AVN23: 0 | AVO23: 0 | AVP23: 0 | AVQ23: 0 | AVR23: 0 | AVS23: 0 | AVT23: 0 | AVU23: 0 | AVV23: 0 | AVW23: 0 | AVX23: 0 | AVY23: 0 | AVZ23: 0 | AWA23: 0 | AWB23: 0 | AWC23: 0 | AWD23: 0 | AWE23: 0 | AWF23: 0 | AWU23: 0 | AWV23: 0 | AWW23: 0 | AWX23: 0 | AWY23: 0 | AWZ23: 0 | AXA23: 0 | AXB23: 0 | AXC23: 0 | AXD23: 0 | AXE23: 0 | AXF23: 0
A24: Waste & Nonferrous Scrap | B24: 0 | C24: 0 | D24: 0 | E24: 0 | F24: 0 | G24: 0 | H24: 0 | I24: 0 | J24: 0 | K24: 0 | L24: 0 | M24: 0 | N24: 0 | O24: 0 | P24: 0 | Q24: 0 | R24: 0 | S24: 0 | T24: 0 | U24: 0 | V24: 0 | W24: 0 | X24: 0 | Y24: 0 | Z24: 0 | AA24: 0 | AB24: 0 | AC24: 0 | AD24: 0 | AE24: 0 | AF24: 0 | AG24: 0 | AH24: 0 | AI24: 0 | AJ24: 0 | AK24: 0 | AL24: 0 | AM24: 0 | AN24: 0 | AO24: 0 | AP24: 0 | AQ24: 0 | AR24: 0 | AS24: 0 | AT24: 0 | AU24: 0 | AV24: 0 | AW24: 0 | AX24: 0 | AY24: 0 | AZ24: 0 | BA24: 0 | BB24: 0 | BC24: 0 | BD24: 0 | BE24: 0 | BF24: 0 | BG24: 0 | BH24: 0 | BI24: 0 | BJ24: 0 | BK24: 0 | BL24: 0 | BM24: 0 | BN24: 0 | BO24: 0 | BP24: 0 | BQ24: 0 | BR24: 0 | BS24: 0 | BT24: 0 | BU24: 0 | BV24: 0 | BW24: 0 | BX24: 0 | BY24: 0 | BZ24: 0 | CA24: 0 | CB24: 0 | CC24: 0 | CD24: 0 | CE24: 0 | CF24: 0 | CG24: 0 | CH24: 0 | CI24: 0 | CJ24: 0 | CK24: 0 | CL24: 0 | CM24: 0 | CN24: 0 | CO24: 0 | CP24: 0 | CQ24: 0 | CR24: 0 | CS24: 0 | CT24: 0 | CU24: 0 | CV24: 0 | CW24: 0 | CX24: 0 | CY24: 0 | CZ24: 0 | DA24: 0 | DB24: 0 | DC24: 0 | DD24: 0 | DE24: 0 | DF24: 0 | DG24: 0 | DH24: 0 | DI24: 0 | DJ24: 0 | DK24: 0 | DL24: 0 | DM24: 0 | DN24: 0 | DO24: 0 | DP24: 0 | DQ24: 0 | DR24: 0 | DS24: 0 | DT24: 0 | DU24: 0 | DV24: 0 | DW24: 0 | DX24: 0 | DY24: 0 | DZ24: 0 | EA24: 0 | EB24: 0 | EC24: 0 | ED24: 0 | EE24: 0 | EF24: 0 | EG24: 0 | EH24: 0 | EI24: 0 | EJ24: 0 | EK24: 0 | EL24: 0 | EM24: 0 | EN24: 0 | EO24: 0 | EP24: 0 | EQ24: 0 | ER24: 0 | ES24: 0 | ET24: 0 | EU24: 0 | EV24: 0 | EW24: 0 | EX24: 0 | EY24: 0 | EZ24: 0 | FA24: 0 | FB24: 0 | FC24: 0 | FD24: 0 | FE24: 0 | FF24: 0 | FG24: 0 | FH24: 0 | FI24: 0 | FJ24: 0 | FK24: 0 | FL24: 0 | FM24: 0 | FN24: 0 | FO24: 0 | FP24: 0 | FQ24: 0 | FR24: 0 | FS24: 0 | FT24: 0 | FU24: 0 | FV24: 0 | FW24: 0 | FX24: 0 | FY24: 0 | FZ24: 0 | GA24: 0 | GB24: 0 | GC24: 0 | GD24: 0 | GE24: 0 | GF24: 0 | GG24: 0 | GH24: 0 | GI24: 0 | GJ24: 0 | GK24: 0 | GL24: 0 | GM24: 0 | GN24: 0 | GO24: 0 | GP24: 0 | GQ24: 0 | GR24: 0 | GS24: 0 | GT24: 0 | GU24: 0 | GV24: 0 | GW24: 0 | GX24: 0 | GY24: 0 | GZ24: 0 | HA24: 0 | HB24: 0 | HC24: 0 | HD24: 0 | HE24: 0 | HF24: 0 | HG24: 0 | HH24: 0 | HI24: 0 | HJ24: 0 | HK24: 0 | HL24: 0 | HM24: 0 | HN24: 0 | HO24: 0 | HP24: 0 | HQ24: 0 | HR24: 0 | HS24: 0 | HT24: 0 | HU24: 0 | HV24: 0 | HW24: 0 | HX24: 0 | HY24: 0 | HZ24: 0 | IA24: 0 | IB24: 0 | IC24: 0 | ID24: 0 | IE24: 0 | IF24: 0 | IG24: 0 | IH24: 0 | II24: 0 | IJ24: 0 | IK24: 0 | IL24: 0 | IM24: 0 | IN24: 0 | IO24: 0 | IP24: 0 | IQ24: 0 | IR24: 0 | IS24: 0 | IT24: 0 | IU24: 0 | IV24: 0 | IW24: 0 | IX24: 0 | IY24: 0 | IZ24: 0 | JA24: 0 | JB24: 0 | JC24: 0 | JD24: 0 | JE24: 0 | JF24: 0 | JG24: 0 | JH24: 0 | JI24: 0 | JJ24: 0 | JK24: 0 | JL24: 0 | JM24: 0 | JN24: 0 | JO24: 0 | JP24: 0 | JQ24: 0 | JR24: 0 | JS24: 0 | JT24: 0 | JU24: 0 | JV24: 0 | JW24: 0 | JX24: 0 | JY24: 0 | JZ24: 0 | KA24: 0 | KB24: 0 | KC24: 0 | KD24: 0 | KE24: 0 | KF24: 0 | KG24: 0 | KH24: 0 | KI24: 0 | KJ24: 0 | KK24: 0 | KL24: 0 | KM24: 0 | KN24: 0 | KO24: 0 | KP24: 0 | KQ24: 0 | KR24: 0 | KS24: 0 | KT24: 0 | KU24: 0 | KV24: 0 | KW24: 0 | KX24: 0 | KY24: 0 | KZ24: 0 | LA24: 0 | LB24: 0 | LC24: 0 | LD24: 0 | LE24: 0 | LF24: 0 | LG24: 0 | LH24: 0 | LI24: 0 | LJ24: 0 | LK24: 0 | LL24: 0 | LM24: 0 | LN24: 0 | LO24: 0 | LP24: 0 | LQ24: 0 | LR24: 0 | LS24: 0 | LT24: 0 | LU24: 0 | LV24: 0 | LW24: 0 | LX24: 0 | LY24: 0 | LZ24: 0 | MA24: 0 | MB24: 0 | MC24: 0 | MD24: 0 | ME24: 0 | MF24: 0 | MG24: 0 | MH24: 0 | MI24: 0 | MJ24: 0 | MK24: 0 | ML24: 0 | MM24: 0 | MN24: 0 | MO24: 0 | MP24: 0 | MQ24: 0 | MR24: 0 | MS24: 0 | MT24: 0 | MU24: 0 | MV24: 0 | MW24: 0 | MX24: 0 | MY24: 0 | MZ24: 0 | NA24: 0 | NB24: 0 | NC24: 0 | ND24: 0 | NE24: 0 | NF24: 0 | NG24: 0 | NH24: 0 | NI24: 0 | NJ24: 0 | NK24: 0 | NL24: 0 | NM24: 0 | NN24: 0 | NO24: 0 | NP24: 0 | NQ24: 0 | NR24: 0 | NS24: 0 | NT24: 0 | NU24: 0 | NV24: 0 | NW24: 0 | NX24: 0 | NY24: 0 | NZ24: 0 | OA24: 0 | OB24: 0 | OC24: 0 | OD24: 0 | OE24: 0 | OF24: 0 | OG24: 0 | OH24: 0 | OI24: 0 | OJ24: 0 | OK24: 0 | OL24: 0 | OM24: 0 | ON24: 0 | OO24: 0 | OP24: 0 | OQ24: 0 | OR24: 0 | OS24: 0 | OT24: 0 | OU24: 0 | OV24: 0 | OW24: 0 | OX24: 0 | OY24: 0 | OZ24: 0 | PA24: 0 | PB24: 0 | PC24: 0 | PD24: 0 | PE24: 0 | PF24: 0 | PG24: 0 | PH24: 0 | PI24: 0 | PJ24: 0 | PK24: 0 | PL24: 0 | PM24: 0 | PN24: 0 | PO24: 0 | PP24: 0 | PQ24: 0 | PR24: 0 | PS24: 0 | PT24: 0 | PU24: 0 | PV24: 0 | PW24: 0 | PX24: 0 | PY24: 0 | PZ24: 0 | QA24: 0 | QB24: 0 | QC24: 0 | QD24: 0 | QE24: 0 | QF24: 0 | QG24: 0 | QH24: 0 | QI24: 0 | QJ24: 0 | QK24: 0 | QL24: 0 | QM24: 0 | QN24: 0 | QO24: 0 | QP24: 0 | QQ24: 0 | QR24: 0 | QS24: 0 | QT24: 0 | QU24: 0 | QV24: 0 | QW24: 0 | QX24: 0 | QY24: 0 | QZ24: 0 | RA24: 0 | RB24: 0 | RC24: 0 | RD24: 0 | RE24: 0 | RF24: 0 | RG24: 0 | RH24: 0 | RI24: 0 | RJ24: 0 | RK24: 0 | RL24: 0 | RM24: 0 | RN24: 0 | RO24: 0 | RP24: 0 | RQ24: 0 | RR24: 0 | RS24: 0 | RT24: 0 | RU24: 0 | RV24: 0 | RW24: 0 | RX24: 0 | RY24: 0 | RZ24: 0 | SA24: 0 | SB24: 0 | SC24: 0 | SD24: 0 | SE24: 0 | SF24: 0 | SG24: 0 | SH24: 0 | SI24: 0 | SJ24: 0 | SK24: 0 | SL24: 0 | SM24: 0 | SN24: 0 | SO24: 0 | SP24: 0 | SQ24: 0 | SR24: 0 | SS24: 0 | ST24: 0 | SU24: 0 | SV24: 0 | SW24: 0 | SX24: 0 | SY24: 0 | SZ24: 0 | TA24: 0 | TB24: 0 | TC24: 0 | TD24: 0 | TE24: 0 | TF24: 0 | TG24: 0 | TH24: 0 | TI24: 0 | TJ24: 0 | TK24: 0 | TL24: 0 | TM24: 0 | TN24: 0 | TO24: 0 | TP24: 0 | TQ24: 0 | TR24: 0 | TS24: 0 | TT24: 0 | TU24: 0 | TV24: 0 | TW24: 0 | TX24: 0 | TY24: 0 | TZ24: 0 | UA24: 0 | UB24: 0 | UC24: 0 | UD24: 0 | UE24: 0 | UF24: 0 | UG24: 0 | UH24: 0 | UI24: 0 | UJ24: 0 | UK24: 0 | UL24: 0 | UM24: 0 | UN24: 0 | UO24: 0 | UP24: 0 | UQ24: 0 | UR24: 0 | US24: 0 | UT24: 0 | UU24: 0 | UV24: 0 | UW24: 0 | UX24: 0 | UY24: 0 | UZ24: 0 | VA24: 0 | VB24: 0 | VC24: 0 | VD24: 0 | VE24: 0 | VF24: 0 | VG24: 0 | VH24: 0 | VI24: 0 | VJ24: 0 | VK24: 0 | VL24: 0 | VM24: 0 | VN24: 0 | VO24: 0 | VP24: 0 | VQ24: 0 | VR24: 0 | VS24: 0 | VT24: 0 | VU24: 0 | VV24: 0 | VW24: 0 | VX24: 0 | VY24: 0 | VZ24: 0 | WA24: 0 | WB24: 0 | WC24: 0 | WD24: 0 | WE24: 0 | WF24: 0 | WG24: 0 | WH24: 0 | WI24: 0 | WJ24: 0 | WK24: 0 | WL24: 0 | WM24: 0 | WN24: 0 | WO24: 0 | WP24: 0 | WQ24: 0 | WR24: 0 | WS24: 0 | WT24: 0 | WU24: 0 | WV24: 0 | WW24: 0 | WX24: 0 | WY24: 0 | WZ24: 0 | XA24: 0 | XB24: 0 | XC24: 0 | XD24: 0 | XE24: 0 | XF24: 0 | XG24: 0 | XH24: 0 | XI24: 0 | XJ24: 0 | XK24: 0 | XL24: 0 | XM24: 0 | XN24: 0 | XO24: 0 | XP24: 0 | XQ24: 0 | XR24: 0 | XS24: 0 | XT24: 0 | XU24: 0 | XV24: 0 | XW24: 0 | XX24: 0 | XY24: 0 | XZ24: 0 | YA24: 0 | YB24: 0 | YC24: 0 | YD24: 0 | YE24: 0 | YF24: 0 | YG24: 0 | YH24: 0 | YI24: 0 | YJ24: 0 | YK24: 0 | YL24: 0 | YM24: 0 | YN24: 0 | YO24: 0 | YP24: 0 | YQ24: 0 | YR24: 0 | YS24: 0 | YT24: 0 | YU24: 0 | YV24: 0 | YW24: 0 | YX24: 0 | YY24: 0 | YZ24: 0 | ZA24: 0 | ZB24: 0 | ZC24: 0 | ZD24: 0 | ZE24: 0 | ZF24: 0 | ZG24: 0 | ZH24: 0 | ZI24: 0 | ZJ24: 0 | ZK24: 0 | ZL24: 0 | ZM24: 0 | ZN24: 0 | ZO24: 0 | ZP24: 0 | ZQ24: 0 | ZR24: 0 | ZS24: 0 | ZT24: 0 | ZU24: 0 | ZV24: 0 | ZW24: 0 | ZX24: 0 | ZY24: 0 | ZZ24: 0 | AAA24: 0 | AAB24: 0 | AAC24: 0 | AAD24: 0 | AAE24: 0 | AAF24: 0 | AAG24: 0 | AAH24: 0 | AAI24: 0 | AAJ24: 0 | AAK24: 0 | AAL24: 0 | AAM24: 0 | AAN24: 0 | AAO24: 0 | AAP24: 0 | AAQ24: 0 | AAR24: 0 | AAS24: 0 | AAT24: 0 | AAU24: 0 | AAV24: 0 | AAW24: 0 | AAX24: 0 | AAY24: 0 | AAZ24: 0 | ABA24: 0 | ABB24: 0 | ABC24: 0 | ABD24: 0 | ABE24: 0 | ABF24: 0 | ABG24: 0 | ABH24: 0 | ABI24: 0 | ABJ24: 0 | ABK24: 0 | ABL24: 0 | ABM24: 0 | ABN24: 0 | ABO24: 0 | ABP24: 0 | ABQ24: 0 | ABR24: 0 | ABS24: 0 | ABT24: 0 | ABU24: 0 | ABV24: 0 | ABW24: 0 | ABX24: 0 | ABY24: 0 | ABZ24: 0 | ACA24: 0 | ACB24: 0 | ACC24: 0 | ACD24: 0 | ACE24: 0 | ACF24: 0 | ACG24: 0 | ACH24: 0 | ACI24: 0 | ACJ24: 0 | ACK24: 0 | ACL24: 0 | ACM24: 0 | ACN24: 0 | ACO24: 0 | ACP24: 0 | ACQ24: 0 | ACR24: 0 | ACS24: 0 | ACT24: 0 | ACU24: 0 | ACV24: 0 | ACW24: 0 | ACX24: 0 | ACY24: 0 | ACZ24: 0 | ADA24: 0 | ADB24: 0 | ADC24: 0 | ADD24: 0 | ADE24: 0 | ADF24: 0 | ADG24: 0 | ADH24: 0 | ADI24: 0 | ADJ24: 0 | ADK24: 0 | ADL24: 0 | ADM24: 0 | ADN24: 0 | ADO24: 0 | ADP24: 0 | ADQ24: 0 | ADR24: 0 | ADS24: 0 | ADT24: 0 | ADU24: 0 | ADV24: 0 | ADW24: 0 | ADX24: 0 | ADY24: 0 | ADZ24: 0 | AEA24: 0 | AEB24: 0 | AEC24: 0 | AED24: 0 | AEE24: 0 | AEF24: 0 | AEG24: 0 | AEH24: 0 | AEI24: 0 | AEJ24: 0 | AEK24: 0 | AEL24: 0 | AEM24: 0 | AEN24: 0 | AEO24: 0 | AEP24: 0 | AEQ24: 0 | AER24: 0 | AES24: 0 | AET24: 0 | AEU24: 0 | AEV24: 0 | AEW24: 0 | AEX24: 0 | AEY24: 0 | AEZ24: 0 | AFA24: 0 | AFB24: 0 | AFC24: 0 | AFD24: 0 | AFE24: 0 | AFF24: 0 | AFG24: 0 | AFH24: 0 | AFI24: 0 | AFJ24: 0 | AFK24: 0 | AFL24: 0 | AFM24: 0 | AFN24: 0 | AFO24: 0 | AFP24: 0 | AFQ24: 0 | AFR24: 0 | AFS24: 0 | AFT24: 0 | AFU24: 0 | AFV24: 0 | AFW24: 0 | AFX24: 0 | AFY24: 0 | AFZ24: 0 | AGA24: 0 | AGB24: 0 | AGC24: 0 | AGD24: 0 | AGE24: 0 | AGF24: 0 | AGG24: 0 | AGH24: 0 | AGI24: 0 | AGJ24: 0 | AGK24: 0 | AGL24: 0 | AGM24: 0 | AGN24: 0 | AGO24: 0 | AGP24: 0 | AGQ24: 0 | AGR24: 0 | AGS24: 0 | AGT24: 0 | AGU24: 0 | AGV24: 0 | AGW24: 0 | AGX24: 0 | AGY24: 0 | AGZ24: 0 | AHA24: 0 | AHB24: 0 | AHC24: 0 | AHD24: 0 | AHE24: 0 | AHF24: 0 | AHG24: 0 | AHH24: 0 | AHI24: 0 | AHJ24: 0 | AHK24: 0 | AHL24: 0 | AHM24: 0 | AHN24: 0 | AHO24: 0 | AHP24: 0 | AHQ24: 0 | AHR24: 0 | AHS24: 0 | AHT24: 0 | AHU24: 0 | AHV24: 0 | AHW24: 0 | AHX24: 0 | AHY24: 0 | AHZ24: 0 | AIA24: 0 | AIB24: 0 | AIC24: 0 | AID24: 0 | AIE24: 0 | AIF24: 0 | AIG24: 0 | AIH24: 0 | AII24: 0 | AIJ24: 0 | AIK24: 0 | AIL24: 0 | AIM24: 0 | AIN24: 0 | AIO24: 0 | AIP24: 0 | AIQ24: 0 | AIR24: 0 | AIS24: 0 | AIT24: 0 | AIU24: 0 | AIV24: 0 | AIW24: 0 | AIX24: 0 | AIY24: 0 | AIZ24: 0 | AJA24: 0 | AJB24: 0 | AJC24: 0 | AJD24: 0 | AJE24: 0 | AJF24: 0 | AJG24: 0 | AJH24: 0 | AJI24: 0 | AJJ24: 0 | AJK24: 0 | AJL24: 0 | AJM24: 0 | AJN24: 0 | AJO24: 0 | AJP24: 0 | AJQ24: 0 | AJR24: 0 | AJS24: 0 | AJT24: 0 | AJU24: 0 | AJV24: 0 | AJW24: 0 | AJX24: 0 | AJY24: 0 | AJZ24: 0 | AKA24: 0 | AKB24: 0 | AKC24: 0 | AKD24: 0 | AKE24: 0 | AKF24: 0 | AKG24: 0 | AKH24: 0 | AKI24: 0 | AKJ24: 0 | AKK24: 0 | AKL24: =AKL83+AKL142+AKL201+AKL260+AKL319+AKL378+AKL437 -> 0 | AKM24: 0 | AKN24: 0 | AKO24: 0 | AKP24: 0 | AKQ24: 0 | AKR24: 0 | AKS24: 0 | AKT24: 0 | AKU24: 0 | AKV24: 0 | AKW24: 0 | AKX24: 0 | AKY24: 0 | AKZ24: 0 | ALA24: 0 | ALB24: 0 | ALC24: 0 | ALD24: 0 | ALE24: =ALE83+ALE142+ALE201+ALE260+ALE319+ALE378+ALE437 -> 0 | ALF24: 0 | ALG24: 0 | ALH24: 0 | ALI24: =ALI83+ALI142+ALI201+ALI260+ALI319+ALI378+ALI437 -> 0 | ALJ24: 0 | ALK24: 0 | ALL24: 0 | ALM24: 0 | ALN24: 0 | ALO24: 0 | ALP24: 0 | ALQ24: =ALQ83+ALQ142+ALQ201+ALQ260+ALQ319+ALQ378+ALQ437 -> 0 | ALR24: 0 | ALS24: =ALS83+ALS142+ALS201+ALS260+ALS319+ALS378+ALS437 -> 0 | ALT24: 0 | ALU24: 0 | ALV24: 0 | ALW24: 0 | ALX24: 0 | ALY24: 0 | ALZ24: 0 | AMA24: 0 | AMB24: 0 | AMC24: 0 | AMD24: 0 | AME24: 0 | AMF24: =AMF83+AMF142+AMF201+AMF260+AMF319+AMF378+AMF437 -> 0 | AMG24: 0 | AMH24: 0 | AMI24: 0 | ATF24: 0 | ATG24: 0 | ATH24: 0 | ATI24: 0 | ATJ24: 0 | ATK24: 0 | ATL24: 0 | ATM24: 0 | ATN24: 0 | ATO24: 0 | ATP24: 0 | ATQ24: 0 | ATR24: 0 | ATS24: 0 | ATT24: 0 | ATU24: 0 | ATV24: 0 | ATW24: 0 | ATX24: 0 | ATY24: 0 | ATZ24: 0 | AUA24: 0 | AUB24: 0 | AUC24: 0 | AUD24: 0 | AUE24: 0 | AUF24: 0 | AUG24: 0 | AUH24: 0 | AUI24: 0 | AUJ24: 0 | AUK24: 0 | AUL24: 0 | AUM24: 0 | AUN24: 0 | AUO24: 0 | AUP24: 0 | AUQ24: 0 | AUR24: 0 | AUS24: 0 | AUT24: 0 | AUU24: 0 | AUV24: 0 | AUW24: 0 | AUX24: 0 | AUY24: 0 | AUZ24: 0 | AVA24: 0 | AVB24: 0 | AVC24: 0 | AVD24: 0 | AVE24: 0 | AVF24: 0 | AVG24: 0 | AVH24: 0 | AVI24: 0 | AVJ24: 0 | AVK24: 0 | AVL24: 0 | AVM24: 0 | AVN24: 0 | AVO24: 0 | AVP24: 0 | AVQ24: 0 | AVR24: 0 | AVS24: 0 | AVT24: 0 | AVU24: 0 | AVV24: 0 | AVW24: 0 | AVX24: 0 | AVY24: 0 | AVZ24: 0 | AWA24: 0 | AWB24: 0 | AWC24: 0 | AWD24: 0 | AWE24: 0 | AWF24: 0 | AWM24: =SUM(B24:BA24) -> 0 | AWN24: =SUM(BB24:DA24) -> 0 | AWO24: =SUM(DB24:FB24) -> 0 | AWP24: =SUM(FC24:HB24) -> 0 | AWQ24: =SUM(HC24:JB24) -> 0 | AWR24: =SUM(JC24:LB24) -> 0 | AWS24: =SUM(LC24:NB24) -> 0 | AWT24: =SUM(NC24:PB24) -> 0 | AWU24: 0 | AWV24: 0 | AWW24: 0 | AWX24: 0 | AWY24: 0 | AWZ24: 0 | AXA24: 0 | AXB24: 0 | AXC24: 0 | AXD24: 0 | AXE24: 0 | AXF24: 0
